Workbook

Sheet 試験問題（関数）
A1: ='関数（書き）'!$C$2 -> 179 | B1: ='関数（書き）'!$C$3 -> 20 | C1: ='関数（書き）'!$C$4 -> 130 | D1: ='関数（書き）'!$C$5 -> 64 | E1: ='関数（書き）'!$C$6 -> 89 | F1: ='関数（書き）'!$C$7 -> 151 | G1: ='関数（書き）'!$C$8 -> 193 | H1: ='関数（書き）'!$C$9 -> 43 | I1: ='関数（書き）'!$C$10 -> 93 | J1: ='関数（書き）'!$C$11 -> 19 | K1: ='関数（読み）'!$C$2 -> 158 | L1: ='関数（読み）'!$C$3 -> 5 | M1: ='関数（読み）'!$C$4 -> 87 | N1: ='関数（読み）'!$C$5 -> 185 | O1: ='関数（読み）'!$C$6 -> 65 | P1: ='関数（読み）'!$C$7 -> 78 | Q1: ='関数（読み）'!$C$8 -> 42 | R1: ='関数（読み）'!$C$9 -> 30 | S1: ='関数（読み）'!$C$10 -> 37 | T1: ='関数（読み）'!$C$11 -> 173
A2: ⑳ | B2: ⑲ | C2: ⑱ | D2: ⑰ | E2: ⑯ | F2: ⑮ | G2: ⑭ | H2: ⑬ | I2: ⑫ | J2: ⑪ | K2: ⑩ | L2: ⑨ | M2: ⑧ | N2: ⑦ | O2: ⑥ | P2: ⑤ | Q2: ④ | R2: ③ | S2: ② | T2: ① | U2: 次の［ ］の部分の漢字には読みがなをひらがなで書き、カタカナは漢字に直しなさい。 | V2: 11 | W2: 「漢字の博士検定試験」練習問題
A3: =IF(A1="","",VLOOKUP(A1,漢字書き!$A$2:$N$506,6,0)) -> ［ハ］てしなくつづく | B3: =IF(B1="","",VLOOKUP(B1,漢字書き!$A$2:$N$506,6,0)) -> ［シンパイ］をかける | C3: =IF(C1="","",VLOOKUP(C1,漢字書き!$A$2:$N$506,6,0)) -> よごれを［オ］とす | D3: =IF(D1="","",VLOOKUP(D1,漢字書き!$A$2:$N$506,6,0)) -> ［ショウブ］がつかない | E3: =IF(E1="","",VLOOKUP(E1,漢字書き!$A$2:$N$506,6,0)) -> 牛を［ハナ］す | F3: =IF(F1="","",VLOOKUP(F1,漢字書き!$A$2:$N$506,6,0)) -> [ワショク]をこのむ | G3: =IF(G1="","",VLOOKUP(G1,漢字書き!$A$2:$N$506,6,0)) -> ［ガイロ］じゅの道 | H3: =IF(H1="","",VLOOKUP(H1,漢字書き!$A$2:$N$506,6,0)) -> ［ヒガン］のゆう勝 | I3: =IF(I1="","",VLOOKUP(I1,漢字書き!$A$2:$N$506,6,0)) -> ［アジ］のこい食べ物 | J3: =IF(J1="","",VLOOKUP(J1,漢字書き!$A$2:$N$506,6,0)) -> 新聞を［ハイタツ］する | K3: =IF(K1="","",VLOOKUP(K1,漢字読み!$A$2:$O$506,6,0)) -> ［印］をつける | L3: =IF(L1="","",VLOOKUP(L1,漢字読み!$A$2:$O$506,6,0)) -> ［登山］列車に乗る | M3: =IF(M1="","",VLOOKUP(M1,漢字読み!$A$2:$O$506,6,0)) -> ［命］の重さ | N3: =IF(N1="","",VLOOKUP(N1,漢字読み!$A$2:$O$506,6,0)) -> かけ算を［覚］える | O3: =IF(O1="","",VLOOKUP(O1,漢字読み!$A$2:$O$506,6,0)) -> ［七福神］をまつる | P3: =IF(P1="","",VLOOKUP(P1,漢字読み!$A$2:$O$506,6,0)) -> ［勉強］がすきだ | Q3: =IF(Q1="","",VLOOKUP(Q1,漢字読み!$A$2:$O$506,6,0)) -> ［鼻］がつまる | R3: =IF(R1="","",VLOOKUP(R1,漢字読み!$A$2:$O$506,6,0)) -> むねを［反］らす | S3: =IF(S1="","",VLOOKUP(S1,漢字読み!$A$2:$O$506,6,0)) -> ［悲鳴］がきこえる | T3: =IF(T1="","",VLOOKUP(T1,漢字読み!$A$2:$O$506,6,0)) -> ［発芽］げん米を食べる | V3: 級
V4: 名前
A5: =IF(A1="","",IF(VLOOKUP(A1,漢字書き!$A$2:$N$502,7,0)=0,"",VLOOKUP(A1,漢字書き!$A$2:$N$502,7,0))) -> て | B5: =IF(B1="","",IF(VLOOKUP(B1,漢字書き!$A$2:$N$502,7,0)=0,"",VLOOKUP(B1,漢字書き!$A$2:$N$502,7,0))) ->  | C5: =IF(C1="","",IF(VLOOKUP(C1,漢字書き!$A$2:$N$502,7,0)=0,"",VLOOKUP(C1,漢字書き!$A$2:$N$502,7,0))) -> とす | D5: =IF(D1="","",IF(VLOOKUP(D1,漢字書き!$A$2:$N$502,7,0)=0,"",VLOOKUP(D1,漢字書き!$A$2:$N$502,7,0))) ->  | E5: =IF(E1="","",IF(VLOOKUP(E1,漢字書き!$A$2:$N$502,7,0)=0,"",VLOOKUP(E1,漢字書き!$A$2:$N$502,7,0))) -> す | F5: =IF(F1="","",IF(VLOOKUP(F1,漢字書き!$A$2:$N$502,7,0)=0,"",VLOOKUP(F1,漢字書き!$A$2:$N$502,7,0))) ->  | G5: =IF(G1="","",IF(VLOOKUP(G1,漢字書き!$A$2:$N$502,7,0)=0,"",VLOOKUP(G1,漢字書き!$A$2:$N$502,7,0))) -> じゅ | H5: =IF(H1="","",IF(VLOOKUP(H1,漢字書き!$A$2:$N$502,7,0)=0,"",VLOOKUP(H1,漢字書き!$A$2:$N$502,7,0))) ->  | I5: =IF(I1="","",IF(VLOOKUP(I1,漢字書き!$A$2:$N$502,7,0)=0,"",VLOOKUP(I1,漢字書き!$A$2:$N$502,7,0))) ->  | J5: =IF(J1="","",IF(VLOOKUP(J1,漢字書き!$A$2:$N$502,7,0)=0,"",VLOOKUP(J1,漢字書き!$A$2:$N$502,7,0))) -> する | K5: =IF(K1="","",IF(VLOOKUP(K1,漢字読み!$A$2:$O$502,7,0)=0,"",VLOOKUP(K1,漢字読み!$A$2:$O$502,7,0))) ->  | L5: =IF(L1="","",IF(VLOOKUP(L1,漢字読み!$A$2:$O$502,7,0)=0,"",VLOOKUP(L1,漢字読み!$A$2:$O$502,7,0))) ->  | M5: =IF(M1="","",IF(VLOOKUP(M1,漢字読み!$A$2:$O$502,7,0)=0,"",VLOOKUP(M1,漢字読み!$A$2:$O$502,7,0))) ->  | N5: =IF(N1="","",IF(VLOOKUP(N1,漢字読み!$A$2:$O$502,7,0)=0,"",VLOOKUP(N1,漢字読み!$A$2:$O$502,7,0))) -> える | O5: =IF(O1="","",IF(VLOOKUP(O1,漢字読み!$A$2:$O$502,7,0)=0,"",VLOOKUP(O1,漢字読み!$A$2:$O$502,7,0))) ->  | P5: =IF(P1="","",IF(VLOOKUP(P1,漢字読み!$A$2:$O$502,7,0)=0,"",VLOOKUP(P1,漢字読み!$A$2:$O$502,7,0))) ->  | Q5: =IF(Q1="","",IF(VLOOKUP(Q1,漢字読み!$A$2:$O$502,7,0)=0,"",VLOOKUP(Q1,漢字読み!$A$2:$O$502,7,0))) ->  | R5: =IF(R1="","",IF(VLOOKUP(R1,漢字読み!$A$2:$O$502,7,0)=0,"",VLOOKUP(R1,漢字読み!$A$2:$O$502,7,0))) -> らす | S5: =IF(S1="","",IF(VLOOKUP(S1,漢字読み!$A$2:$O$502,7,0)=0,"",VLOOKUP(S1,漢字読み!$A$2:$O$502,7,0))) ->  | T5: =IF(T1="","",IF(VLOOKUP(T1,漢字読み!$A$2:$O$502,7,0)=0,"",VLOOKUP(T1,漢字読み!$A$2:$O$502,7,0))) ->  | W5: 和歌山県教育委員会
A6: ='関数（書き）'!$C$12 -> 164 | B6: ='関数（書き）'!$C$13 -> 26 | C6: ='関数（書き）'!$C$14 -> 140 | D6: ='関数（書き）'!$C$15 -> 213 | E6: ='関数（書き）'!$C$16 -> 14 | F6: ='関数（書き）'!$C$17 -> 32 | G6: ='関数（書き）'!$C$18 -> 212 | H6: ='関数（書き）'!$C$19 -> 156 | I6: ='関数（書き）'!$C$20 -> 116 | J6: ='関数（書き）'!$C$21 -> 12 | K6: ='関数（読み）'!$C$12 -> 27 | L6: ='関数（読み）'!$C$13 -> 165 | M6: ='関数（読み）'!$C$14 -> 149 | N6: ='関数（読み）'!$C$15 -> 199 | O6: ='関数（読み）'!$C$16 -> 22 | P6: ='関数（読み）'!$C$17 -> 10 | Q6: ='関数（読み）'!$C$18 -> 193 | R6: ='関数（読み）'!$C$19 -> 106 | S6: ='関数（読み）'!$C$20 -> 61 | T6: ='関数（読み）'!$C$21 -> 49
A7: ⑳ | B7: ⑲ | C7: ⑱ | D7: ⑰ | E7: ⑯ | F7: ⑮ | G7: ⑭ | H7: ⑬ | I7: ⑫ | J7: ⑪ | K7: ⑩ | L7: ⑨ | M7: ⑧ | N7: ⑦ | O7: ⑥ | P7: ⑤ | Q7: ④ | R7: ③ | S7: ② | T7: ① | U7: 次の［ ］の部分の漢字には読みがなをひらがなで書き、カタカナは漢字に直しなさい。 | V7: 11 | W7: 「漢字の博士検定試験」練習問題
A8: =IF(A6="","",VLOOKUP(A6,漢字書き!$A$2:$N$506,6,0)) -> ［フクオカケン］に住む | B8: =IF(B6="","",VLOOKUP(B6,漢字書き!$A$2:$N$506,6,0)) -> ［タハタ］をたがやす | C8: =IF(C6="","",VLOOKUP(C6,漢字書き!$A$2:$N$506,6,0)) -> ［ミドリ］があざやかだ | D8: =IF(D6="","",VLOOKUP(D6,漢字書き!$A$2:$N$506,6,0)) -> ［ネンガ］はがきを書く | E8: =IF(E6="","",VLOOKUP(E6,漢字書き!$A$2:$N$506,6,0)) -> ［ドウ］ようを歌う | F8: =IF(F6="","",VLOOKUP(F6,漢字書き!$A$2:$N$506,6,0)) -> 体を［ソ］らす | G8: =IF(G6="","",VLOOKUP(G6,漢字書き!$A$2:$N$506,6,0)) -> 日本には［シキ］がある | H8: =IF(H6="","",VLOOKUP(H6,漢字書き!$A$2:$N$506,6,0)) -> みんなで［アン］を出す | I8: =IF(I6="","",VLOOKUP(I6,漢字書き!$A$2:$N$506,6,0)) -> 十年後を［ヨゲン］する | J8: =IF(J6="","",VLOOKUP(J6,漢字書き!$A$2:$N$506,6,0)) -> 気持ちを［ウゴ］かす | K8: =IF(K6="","",VLOOKUP(K6,漢字読み!$A$2:$O$506,6,0)) -> 元気に声を［発］する | L8: =IF(L6="","",VLOOKUP(L6,漢字読み!$A$2:$O$506,6,0)) -> スープに塩を［加］える | M8: =IF(M6="","",VLOOKUP(M6,漢字読み!$A$2:$O$506,6,0)) -> ［案外］むずかしい | N8: =IF(N6="","",VLOOKUP(N6,漢字読み!$A$2:$O$506,6,0)) -> 春夏秋冬の［季］せつ | O8: =IF(O6="","",VLOOKUP(O6,漢字読み!$A$2:$O$506,6,0)) -> ［倍速］でさい生する | P8: =IF(P6="","",VLOOKUP(P6,漢字読み!$A$2:$O$506,6,0)) -> すばやい［動］き | Q8: =IF(Q6="","",VLOOKUP(Q6,漢字読み!$A$2:$O$506,6,0)) -> ［関］わりをさける | R8: =IF(R6="","",VLOOKUP(R6,漢字読み!$A$2:$O$506,6,0)) -> タバコは［有害］だ | S8: =IF(S6="","",VLOOKUP(S6,漢字読み!$A$2:$O$506,6,0)) -> ［全部］食べる | T8: =IF(T6="","",VLOOKUP(T6,漢字読み!$A$2:$O$506,6,0)) -> うらと［表］をたしかめる | V8: 級
V9: 名前
A10: =IF(A6="","",IF(VLOOKUP(A6,漢字書き!$A$2:$N$502,7,0)=0,"",(VLOOKUP(A6,漢字書き!$A$2:$N$502,7,0)))) ->  | B10: =IF(B6="","",IF(VLOOKUP(B6,漢字書き!$A$2:$N$502,7,0)=0,"",(VLOOKUP(B6,漢字書き!$A$2:$N$502,7,0)))) ->  | C10: =IF(C6="","",IF(VLOOKUP(C6,漢字書き!$A$2:$N$502,7,0)=0,"",(VLOOKUP(C6,漢字書き!$A$2:$N$502,7,0)))) ->  | D10: =IF(D6="","",IF(VLOOKUP(D6,漢字書き!$A$2:$N$502,7,0)=0,"",VLOOKUP(D6,漢字書き!$A$2:$N$502,7,0))) -> はがき | E10: =IF(E6="","",IF(VLOOKUP(E6,漢字書き!$A$2:$N$502,7,0)=0,"",(VLOOKUP(E6,漢字書き!$A$2:$N$502,7,0)))) -> よう | F10: =IF(F6="","",IF(VLOOKUP(F6,漢字書き!$A$2:$N$502,7,0)=0,"",(VLOOKUP(F6,漢字書き!$A$2:$N$502,7,0)))) -> らす | G10: =IF(G6="","",IF(VLOOKUP(G6,漢字書き!$A$2:$N$502,7,0)=0,"",VLOOKUP(G6,漢字書き!$A$2:$N$502,7,0))) ->  | H10: =IF(H6="","",IF(VLOOKUP(H6,漢字書き!$A$2:$N$502,7,0)=0,"",VLOOKUP(H6,漢字書き!$A$2:$N$502,7,0))) ->  | I10: =IF(I6="","",IF(VLOOKUP(I6,漢字書き!$A$2:$N$502,7,0)=0,"",VLOOKUP(I6,漢字書き!$A$2:$N$502,7,0))) -> する | J10: =IF(J6="","",IF(VLOOKUP(J6,漢字書き!$A$2:$N$502,7,0)=0,"",VLOOKUP(J6,漢字書き!$A$2:$N$502,7,0))) -> かす | K10: =IF(K6="","",IF(VLOOKUP(K6,漢字読み!$A$2:$O$502,7,0)=0,"",VLOOKUP(K6,漢字読み!$A$2:$O$502,7,0))) -> する | L10: =IF(L6="","",IF(VLOOKUP(L6,漢字読み!$A$2:$O$502,7,0)=0,"",VLOOKUP(L6,漢字読み!$A$2:$O$502,7,0))) -> える | M10: =IF(M6="","",IF(VLOOKUP(M6,漢字読み!$A$2:$O$502,7,0)=0,"",VLOOKUP(M6,漢字読み!$A$2:$O$502,7,0))) ->  | N10: =IF(N6="","",IF(VLOOKUP(N6,漢字読み!$A$2:$O$502,7,0)=0,"",VLOOKUP(N6,漢字読み!$A$2:$O$502,7,0))) -> せつ | O10: =IF(O6="","",IF(VLOOKUP(O6,漢字読み!$A$2:$O$502,7,0)=0,"",VLOOKUP(O6,漢字読み!$A$2:$O$502,7,0))) ->  | P10: =IF(P6="","",IF(VLOOKUP(P6,漢字読み!$A$2:$O$502,7,0)=0,"",VLOOKUP(P6,漢字読み!$A$2:$O$502,7,0))) -> き | Q10: =IF(Q6="","",IF(VLOOKUP(Q6,漢字読み!$A$2:$O$502,7,0)=0,"",VLOOKUP(Q6,漢字読み!$A$2:$O$502,7,0))) -> わり | R10: =IF(R6="","",IF(VLOOKUP(R6,漢字読み!$A$2:$O$502,7,0)=0,"",VLOOKUP(R6,漢字読み!$A$2:$O$502,7,0))) -> だ | S10: =IF(S6="","",IF(VLOOKUP(S6,漢字読み!$A$2:$O$502,7,0)=0,"",VLOOKUP(S6,漢字読み!$A$2:$O$502,7,0))) ->  | T10: =IF(T6="","",IF(VLOOKUP(T6,漢字読み!$A$2:$O$502,7,0)=0,"",VLOOKUP(T6,漢字読み!$A$2:$O$502,7,0))) ->  | W10: 和歌山県教育委員会
A11: ='関数（書き）'!$C$2 -> 179 | B11: ='関数（書き）'!$C$3 -> 20 | C11: ='関数（書き）'!$C$4 -> 130 | D11: ='関数（書き）'!$C$5 -> 64 | E11: ='関数（書き）'!$C$6 -> 89 | F11: ='関数（書き）'!$C$7 -> 151 | G11: ='関数（書き）'!$C$8 -> 193 | H11: ='関数（書き）'!$C$9 -> 43 | I11: ='関数（書き）'!$C$10 -> 93 | J11: ='関数（書き）'!$C$11 -> 19 | K11: ='関数（読み）'!$C$2 -> 158 | L11: ='関数（読み）'!$C$3 -> 5 | M11: ='関数（読み）'!$C$4 -> 87 | N11: ='関数（読み）'!$C$5 -> 185 | O11: ='関数（読み）'!$C$6 -> 65 | P11: ='関数（読み）'!$C$7 -> 78 | Q11: ='関数（読み）'!$C$8 -> 42 | R11: ='関数（読み）'!$C$9 -> 30 | S11: ='関数（読み）'!$C$10 -> 37 | T11: ='関数（読み）'!$C$11 -> 173
A12: ⑳ | B12: ⑲ | C12: ⑱ | D12: ⑰ | E12: ⑯ | F12: ⑮ | G12: ⑭ | H12: ⑬ | I12: ⑫ | J12: ⑪ | K12: ⑩ | L12: ⑨ | M12: ⑧ | N12: ⑦ | O12: ⑥ | P12: ⑤ | Q12: ④ | R12: ③ | S12: ② | T12: ① | U12: 次の［ ］の部分の漢字には読みがなをひらがなで書き、カタカナは漢字に直しなさい。 | V12: 11 | W12: 「漢字の博士検定試験」練習問題
A13: =IF(A11="","",VLOOKUP(A11,漢字書き!$A$2:$N$506,6,0)) -> ［ハ］てしなくつづく | B13: =IF(B11="","",VLOOKUP(B11,漢字書き!$A$2:$N$506,6,0)) -> ［シンパイ］をかける | C13: =IF(C11="","",VLOOKUP(C11,漢字書き!$A$2:$N$506,6,0)) -> よごれを［オ］とす | D13: =IF(D11="","",VLOOKUP(D11,漢字書き!$A$2:$N$506,6,0)) -> ［ショウブ］がつかない | E13: =IF(E11="","",VLOOKUP(E11,漢字書き!$A$2:$N$506,6,0)) -> 牛を［ハナ］す | F13: =IF(F11="","",VLOOKUP(F11,漢字書き!$A$2:$N$506,6,0)) -> [ワショク]をこのむ | G13: =IF(G11="","",VLOOKUP(G11,漢字書き!$A$2:$N$506,6,0)) -> ［ガイロ］じゅの道 | H13: =IF(H11="","",VLOOKUP(H11,漢字書き!$A$2:$N$506,6,0)) -> ［ヒガン］のゆう勝 | I13: =IF(I11="","",VLOOKUP(I11,漢字書き!$A$2:$N$506,6,0)) -> ［アジ］のこい食べ物 | J13: =IF(J11="","",VLOOKUP(J11,漢字書き!$A$2:$N$506,6,0)) -> 新聞を［ハイタツ］する | K13: =IF(K11="","",VLOOKUP(K11,漢字読み!$A$2:$O$506,6,0)) -> ［印］をつける | L13: =IF(L11="","",VLOOKUP(L11,漢字読み!$A$2:$O$506,6,0)) -> ［登山］列車に乗る | M13: =IF(M11="","",VLOOKUP(M11,漢字読み!$A$2:$O$506,6,0)) -> ［命］の重さ | N13: =IF(N11="","",VLOOKUP(N11,漢字読み!$A$2:$O$506,6,0)) -> かけ算を［覚］える | O13: =IF(O11="","",VLOOKUP(O11,漢字読み!$A$2:$O$506,6,0)) -> ［七福神］をまつる | P13: =IF(P11="","",VLOOKUP(P11,漢字読み!$A$2:$O$506,6,0)) -> ［勉強］がすきだ | Q13: =IF(Q11="","",VLOOKUP(Q11,漢字読み!$A$2:$O$506,6,0)) -> ［鼻］がつまる | R13: =IF(R11="","",VLOOKUP(R11,漢字読み!$A$2:$O$506,6,0)) -> むねを［反］らす | S13: =IF(S11="","",VLOOKUP(S11,漢字読み!$A$2:$O$506,6,0)) -> ［悲鳴］がきこえる | T13: =IF(T11="","",VLOOKUP(T11,漢字読み!$A$2:$O$506,6,0)) -> ［発芽］げん米を食べる | V13: 級
A14: =IF(A$11="","",VLOOKUP(A$11,漢字書き!$A$2:$O$506,8,0)) -> 果 | B14: =IF(B$11="","",VLOOKUP(B$11,漢字書き!$A$2:$O$506,8,0)) -> 心配 | C14: =IF(C$11="","",VLOOKUP(C$11,漢字書き!$A$2:$O$506,8,0)) -> 落 | D14: =IF(D$11="","",VLOOKUP(D$11,漢字書き!$A$2:$O$506,8,0)) -> 勝負 | E14: =IF(E$11="","",VLOOKUP(E$11,漢字書き!$A$2:$O$506,8,0)) -> 放 | F14: =IF(F$11="","",VLOOKUP(F$11,漢字書き!$A$2:$O$506,8,0)) -> 和食 | G14: =IF(G$11="","",VLOOKUP(G$11,漢字書き!$A$2:$O$506,8,0)) -> 街路 | H14: =IF(H$11="","",VLOOKUP(H$11,漢字書き!$A$2:$O$506,8,0)) -> 悲願 | I14: =IF(I$11="","",VLOOKUP(I$11,漢字書き!$A$2:$O$506,8,0)) -> 味 | J14: =IF(J$11="","",VLOOKUP(J$11,漢字書き!$A$2:$O$506,8,0)) -> 配達 | K14: =IF(K$11="","",VLOOKUP(K$11,漢字読み!$A$2:$O$506,8,0)) -> しるし | L14: =IF(L$11="","",VLOOKUP(L$11,漢字読み!$A$2:$O$506,8,0)) -> とざん | M14: =IF(M$11="","",VLOOKUP(M$11,漢字読み!$A$2:$O$506,8,0)) -> いのち | N14: =IF(N$11="","",VLOOKUP(N$11,漢字読み!$A$2:$O$506,8,0)) -> おぼ | O14: =IF(O$11="","",VLOOKUP(O$11,漢字読み!$A$2:$O$506,8,0)) -> しちふくじん | P14: =IF(P$11="","",VLOOKUP(P$11,漢字読み!$A$2:$O$506,8,0)) -> べんきょう | Q14: =IF(Q$11="","",VLOOKUP(Q$11,漢字読み!$A$2:$O$506,8,0)) -> はな | R14: =IF(R$11="","",VLOOKUP(R$11,漢字読み!$A$2:$O$506,8,0)) -> そ | S14: =IF(S$11="","",VLOOKUP(S$11,漢字読み!$A$2:$O$506,8,0)) -> ひめい | T14: =IF(T$11="","",VLOOKUP(T$11,漢字読み!$A$2:$O$506,8,0)) -> はつが | V14: 名前
A15: =IF(A11="","",IF(VLOOKUP(A11,漢字書き!$A$2:$N$502,7,0)=0,"",VLOOKUP(A11,漢字書き!$A$2:$N$502,7,0))) -> て | B15: =IF(B11="","",IF(VLOOKUP(B11,漢字書き!$A$2:$N$502,7,0)=0,"",VLOOKUP(B11,漢字書き!$A$2:$N$502,7,0))) ->  | C15: =IF(C11="","",IF(VLOOKUP(C11,漢字書き!$A$2:$N$502,7,0)=0,"",VLOOKUP(C11,漢字書き!$A$2:$N$502,7,0))) -> とす | D15: =IF(D11="","",IF(VLOOKUP(D11,漢字書き!$A$2:$N$502,7,0)=0,"",VLOOKUP(D11,漢字書き!$A$2:$N$502,7,0))) ->  | E15: =IF(E11="","",IF(VLOOKUP(E11,漢字書き!$A$2:$N$502,7,0)=0,"",VLOOKUP(E11,漢字書き!$A$2:$N$502,7,0))) -> す | F15: =IF(F11="","",IF(VLOOKUP(F11,漢字書き!$A$2:$N$502,7,0)=0,"",VLOOKUP(F11,漢字書き!$A$2:$N$502,7,0))) ->  | G15: =IF(G11="","",IF(VLOOKUP(G11,漢字書き!$A$2:$N$502,7,0)=0,"",VLOOKUP(G11,漢字書き!$A$2:$N$502,7,0))) -> じゅ | H15: =IF(H11="","",IF(VLOOKUP(H11,漢字書き!$A$2:$N$502,7,0)=0,"",VLOOKUP(H11,漢字書き!$A$2:$N$502,7,0))) ->  | I15: =IF(I11="","",IF(VLOOKUP(I11,漢字書き!$A$2:$N$502,7,0)=0,"",VLOOKUP(I11,漢字書き!$A$2:$N$502,7,0))) ->  | J15: =IF(J11="","",IF(VLOOKUP(J11,漢字書き!$A$2:$N$502,7,0)=0,"",VLOOKUP(J11,漢字書き!$A$2:$N$502,7,0))) -> する | K15: =IF(K11="","",IF(VLOOKUP(K11,漢字読み!$A$2:$O$502,7,0)=0,"",VLOOKUP(K11,漢字読み!$A$2:$O$502,7,0))) ->  | L15: =IF(L11="","",IF(VLOOKUP(L11,漢字読み!$A$2:$O$502,7,0)=0,"",VLOOKUP(L11,漢字読み!$A$2:$O$502,7,0))) ->  | M15: =IF(M11="","",IF(VLOOKUP(M11,漢字読み!$A$2:$O$502,7,0)=0,"",VLOOKUP(M11,漢字読み!$A$2:$O$502,7,0))) ->  | N15: =IF(N11="","",IF(VLOOKUP(N11,漢字読み!$A$2:$O$502,7,0)=0,"",VLOOKUP(N11,漢字読み!$A$2:$O$502,7,0))) -> える | O15: =IF(O11="","",IF(VLOOKUP(O11,漢字読み!$A$2:$O$502,7,0)=0,"",VLOOKUP(O11,漢字読み!$A$2:$O$502,7,0))) ->  | P15: =IF(P11="","",IF(VLOOKUP(P11,漢字読み!$A$2:$O$502,7,0)=0,"",VLOOKUP(P11,漢字読み!$A$2:$O$502,7,0))) ->  | Q15: =IF(Q11="","",IF(VLOOKUP(Q11,漢字読み!$A$2:$O$502,7,0)=0,"",VLOOKUP(Q11,漢字読み!$A$2:$O$502,7,0))) ->  | R15: =IF(R11="","",IF(VLOOKUP(R11,漢字読み!$A$2:$O$502,7,0)=0,"",VLOOKUP(R11,漢字読み!$A$2:$O$502,7,0))) -> らす | S15: =IF(S11="","",IF(VLOOKUP(S11,漢字読み!$A$2:$O$502,7,0)=0,"",VLOOKUP(S11,漢字読み!$A$2:$O$502,7,0))) ->  | T15: =IF(T11="","",IF(VLOOKUP(T11,漢字読み!$A$2:$O$502,7,0)=0,"",VLOOKUP(T11,漢字読み!$A$2:$O$502,7,0))) ->  | W15: 和歌山県教育委員会
A16: ='関数（書き）'!$C$12 -> 164 | B16: ='関数（書き）'!$C$13 -> 26 | C16: ='関数（書き）'!$C$14 -> 140 | D16: ='関数（書き）'!$C$15 -> 213 | E16: ='関数（書き）'!$C$16 -> 14 | F16: ='関数（書き）'!$C$17 -> 32 | G16: ='関数（書き）'!$C$18 -> 212 | H16: ='関数（書き）'!$C$19 -> 156 | I16: ='関数（書き）'!$C$20 -> 116 | J16: ='関数（書き）'!$C$21 -> 12 | K16: ='関数（読み）'!$C$12 -> 27 | L16: ='関数（読み）'!$C$13 -> 165 | M16: ='関数（読み）'!$C$14 -> 149 | N16: ='関数（読み）'!$C$15 -> 199 | O16: ='関数（読み）'!$C$16 -> 22 | P16: ='関数（読み）'!$C$17 -> 10 | Q16: ='関数（読み）'!$C$18 -> 193 | R16: ='関数（読み）'!$C$19 -> 106 | S16: ='関数（読み）'!$C$20 -> 61 | T16: ='関数（読み）'!$C$21 -> 49
A17: ⑳ | B17: ⑲ | C17: ⑱ | D17: ⑰ | E17: ⑯ | F17: ⑮ | G17: ⑭ | H17: ⑬ | I17: ⑫ | J17: ⑪ | K17: ⑩ | L17: ⑨ | M17: ⑧ | N17: ⑦ | O17: ⑥ | P17: ⑤ | Q17: ④ | R17: ③ | S17: ② | T17: ① | U17: 次の［ ］の部分の漢字には読みがなをひらがなで書き、カタカナは漢字に直しなさい。 | V17: 11 | W17: 「漢字の博士検定試験」練習問題
A18: =IF(A16="","",VLOOKUP(A16,漢字書き!$A$2:$N$506,6,0)) -> ［フクオカケン］に住む | B18: =IF(B16="","",VLOOKUP(B16,漢字書き!$A$2:$N$506,6,0)) -> ［タハタ］をたがやす | C18: =IF(C16="","",VLOOKUP(C16,漢字書き!$A$2:$N$506,6,0)) -> ［ミドリ］があざやかだ | D18: =IF(D16="","",VLOOKUP(D16,漢字書き!$A$2:$N$506,6,0)) -> ［ネンガ］はがきを書く | E18: =IF(E16="","",VLOOKUP(E16,漢字書き!$A$2:$N$506,6,0)) -> ［ドウ］ようを歌う | F18: =IF(F16="","",VLOOKUP(F16,漢字書き!$A$2:$N$506,6,0)) -> 体を［ソ］らす | G18: =IF(G16="","",VLOOKUP(G16,漢字書き!$A$2:$N$506,6,0)) -> 日本には［シキ］がある | H18: =IF(H16="","",VLOOKUP(H16,漢字書き!$A$2:$N$506,6,0)) -> みんなで［アン］を出す | I18: =IF(I16="","",VLOOKUP(I16,漢字書き!$A$2:$N$506,6,0)) -> 十年後を［ヨゲン］する | J18: =IF(J16="","",VLOOKUP(J16,漢字書き!$A$2:$N$506,6,0)) -> 気持ちを［ウゴ］かす | K18: =IF(K16="","",VLOOKUP(K16,漢字読み!$A$2:$O$506,6,0)) -> 元気に声を［発］する | L18: =IF(L16="","",VLOOKUP(L16,漢字読み!$A$2:$O$506,6,0)) -> スープに塩を［加］える | M18: =IF(M16="","",VLOOKUP(M16,漢字読み!$A$2:$O$506,6,0)) -> ［案外］むずかしい | N18: =IF(N16="","",VLOOKUP(N16,漢字読み!$A$2:$O$506,6,0)) -> 春夏秋冬の［季］せつ | O18: =IF(O16="","",VLOOKUP(O16,漢字読み!$A$2:$O$506,6,0)) -> ［倍速］でさい生する | P18: =IF(P16="","",VLOOKUP(P16,漢字読み!$A$2:$O$506,6,0)) -> すばやい［動］き | Q18: =IF(Q16="","",VLOOKUP(Q16,漢字読み!$A$2:$O$506,6,0)) -> ［関］わりをさける | R18: =IF(R16="","",VLOOKUP(R16,漢字読み!$A$2:$O$506,6,0)) -> タバコは［有害］だ | S18: =IF(S16="","",VLOOKUP(S16,漢字読み!$A$2:$O$506,6,0)) -> ［全部］食べる | T18: =IF(T16="","",VLOOKUP(T16,漢字読み!$A$2:$O$506,6,0)) -> うらと［表］をたしかめる | V18: 級
A19: =IF(A$16="","",VLOOKUP(A$16,漢字書き!$A$2:$O$506,8,0)) -> 福岡県 | B19: =IF(B$16="","",VLOOKUP(B$16,漢字書き!$A$2:$O$506,8,0)) -> 田畑 | C19: =IF(C$16="","",VLOOKUP(C$16,漢字書き!$A$2:$O$506,8,0)) -> 緑 | D19: =IF(D$16="","",VLOOKUP(D$16,漢字書き!$A$2:$O$506,8,0)) -> 年賀 | E19: =IF(E$16="","",VLOOKUP(E$16,漢字書き!$A$2:$O$506,8,0)) -> 童 | F19: =IF(F$16="","",VLOOKUP(F$16,漢字書き!$A$2:$O$506,8,0)) -> 反 | G19: =IF(G$16="","",VLOOKUP(G$16,漢字書き!$A$2:$O$506,8,0)) -> 四季 | H19: =IF(H$16="","",VLOOKUP(H$16,漢字書き!$A$2:$O$506,8,0)) -> 案 | I19: =IF(I$16="","",VLOOKUP(I$16,漢字書き!$A$2:$O$506,8,0)) -> 予言 | J19: =IF(J$16="","",VLOOKUP(J$16,漢字書き!$A$2:$O$506,8,0)) -> 動 | K19: =IF(K$16="","",VLOOKUP(K$16,漢字読み!$A$2:$O$506,8,0)) -> はっ | L19: =IF(L$16="","",VLOOKUP(L$16,漢字読み!$A$2:$O$506,8,0)) -> くわ | M19: =IF(M$16="","",VLOOKUP(M$16,漢字読み!$A$2:$O$506,8,0)) -> あんがい | N19: =IF(N$16="","",VLOOKUP(N$16,漢字読み!$A$2:$O$506,8,0)) -> き | O19: =IF(O$16="","",VLOOKUP(O$16,漢字読み!$A$2:$O$506,8,0)) -> ばいそく | P19: =IF(P$16="","",VLOOKUP(P$16,漢字読み!$A$2:$O$506,8,0)) -> うご | Q19: =IF(Q$16="","",VLOOKUP(Q$16,漢字読み!$A$2:$O$506,8,0)) -> かか | R19: =IF(R$16="","",VLOOKUP(R$16,漢字読み!$A$2:$O$506,8,0)) -> ゆうがい | S19: =IF(S$16="","",VLOOKUP(S$16,漢字読み!$A$2:$O$506,8,0)) -> ぜんぶ | T19: =IF(T$16="","",VLOOKUP(T$16,漢字読み!$A$2:$O$506,8,0)) -> おもて | V19: 名前
A20: =IF(A16="","",IF(VLOOKUP(A16,漢字書き!$A$2:$N$502,7,0)=0,"",(VLOOKUP(A16,漢字書き!$A$2:$N$502,7,0)))) ->  | B20: =IF(B16="","",IF(VLOOKUP(B16,漢字書き!$A$2:$N$502,7,0)=0,"",(VLOOKUP(B16,漢字書き!$A$2:$N$502,7,0)))) ->  | C20: =IF(C16="","",IF(VLOOKUP(C16,漢字書き!$A$2:$N$502,7,0)=0,"",(VLOOKUP(C16,漢字書き!$A$2:$N$502,7,0)))) ->  | D20: =IF(D16="","",IF(VLOOKUP(D16,漢字書き!$A$2:$N$502,7,0)=0,"",VLOOKUP(D16,漢字書き!$A$2:$N$502,7,0))) -> はがき | E20: =IF(E16="","",IF(VLOOKUP(E16,漢字書き!$A$2:$N$502,7,0)=0,"",(VLOOKUP(E16,漢字書き!$A$2:$N$502,7,0)))) -> よう | F20: =IF(F16="","",IF(VLOOKUP(F16,漢字書き!$A$2:$N$502,7,0)=0,"",(VLOOKUP(F16,漢字書き!$A$2:$N$502,7,0)))) -> らす | G20: =IF(G16="","",IF(VLOOKUP(G16,漢字書き!$A$2:$N$502,7,0)=0,"",VLOOKUP(G16,漢字書き!$A$2:$N$502,7,0))) ->  | H20: =IF(H16="","",IF(VLOOKUP(H16,漢字書き!$A$2:$N$502,7,0)=0,"",VLOOKUP(H16,漢字書き!$A$2:$N$502,7,0))) ->  | I20: =IF(I16="","",IF(VLOOKUP(I16,漢字書き!$A$2:$N$502,7,0)=0,"",VLOOKUP(I16,漢字書き!$A$2:$N$502,7,0))) -> する | J20: =IF(J16="","",IF(VLOOKUP(J16,漢字書き!$A$2:$N$502,7,0)=0,"",VLOOKUP(J16,漢字書き!$A$2:$N$502,7,0))) -> かす | K20: =IF(K16="","",IF(VLOOKUP(K16,漢字読み!$A$2:$O$502,7,0)=0,"",VLOOKUP(K16,漢字読み!$A$2:$O$502,7,0))) -> する | L20: =IF(L16="","",IF(VLOOKUP(L16,漢字読み!$A$2:$O$502,7,0)=0,"",VLOOKUP(L16,漢字読み!$A$2:$O$502,7,0))) -> える | M20: =IF(M16="","",IF(VLOOKUP(M16,漢字読み!$A$2:$O$502,7,0)=0,"",VLOOKUP(M16,漢字読み!$A$2:$O$502,7,0))) ->  | N20: =IF(N16="","",IF(VLOOKUP(N16,漢字読み!$A$2:$O$502,7,0)=0,"",VLOOKUP(N16,漢字読み!$A$2:$O$502,7,0))) -> せつ | O20: =IF(O16="","",IF(VLOOKUP(O16,漢字読み!$A$2:$O$502,7,0)=0,"",VLOOKUP(O16,漢字読み!$A$2:$O$502,7,0))) ->  | P20: =IF(P16="","",IF(VLOOKUP(P16,漢字読み!$A$2:$O$502,7,0)=0,"",VLOOKUP(P16,漢字読み!$A$2:$O$502,7,0))) -> き | Q20: =IF(Q16="","",IF(VLOOKUP(Q16,漢字読み!$A$2:$O$502,7,0)=0,"",VLOOKUP(Q16,漢字読み!$A$2:$O$502,7,0))) -> わり | R20: =IF(R16="","",IF(VLOOKUP(R16,漢字読み!$A$2:$O$502,7,0)=0,"",VLOOKUP(R16,漢字読み!$A$2:$O$502,7,0))) -> だ | S20: =IF(S16="","",IF(VLOOKUP(S16,漢字読み!$A$2:$O$502,7,0)=0,"",VLOOKUP(S16,漢字読み!$A$2:$O$502,7,0))) ->  | T20: =IF(T16="","",IF(VLOOKUP(T16,漢字読み!$A$2:$O$502,7,0)=0,"",VLOOKUP(T16,漢字読み!$A$2:$O$502,7,0))) ->  | W20: 和歌山県教育委員会

Sheet 網羅問題（関数）
A1: =INDIRECT("'関数（書き）'!C" & COLUMN(B$1)+SUM($AD$2:$AD2)) -> 179 | B1: =INDIRECT("'関数（書き）'!C" & COLUMN(C$1)+SUM($AD$2:$AD2)) -> 20 | C1: =INDIRECT("'関数（書き）'!C" & COLUMN(D$1)+SUM($AD$2:$AD2)) -> 130 | D1: =INDIRECT("'関数（書き）'!C" & COLUMN(E$1)+SUM($AD$2:$AD2)) -> 64 | E1: =INDIRECT("'関数（書き）'!C" & COLUMN(F$1)+SUM($AD$2:$AD2)) -> 89 | F1: =INDIRECT("'関数（書き）'!C" & COLUMN(G$1)+SUM($AD$2:$AD2)) -> 151 | G1: =INDIRECT("'関数（書き）'!C" & COLUMN(H$1)+SUM($AD$2:$AD2)) -> 193 | H1: =INDIRECT("'関数（書き）'!C" & COLUMN(I$1)+SUM($AD$2:$AD2)) -> 43 | I1: =INDIRECT("'関数（書き）'!C" & COLUMN(J$1)+SUM($AD$2:$AD2)) -> 93 | J1: =INDIRECT("'関数（書き）'!C" & COLUMN(K$1)+SUM($AD$2:$AD2)) -> 19 | K1: =INDIRECT("'関数（読み）'!C" & COLUMN(B$1)+SUM($AD$2:$AD2)) -> 158 | L1: =INDIRECT("'関数（読み）'!C" & COLUMN(C$1)+SUM($AD$2:$AD2)) -> 5 | M1: =INDIRECT("'関数（読み）'!C" & COLUMN(D$1)+SUM($AD$2:$AD2)) -> 87 | N1: =INDIRECT("'関数（読み）'!C" & COLUMN(E$1)+SUM($AD$2:$AD2)) -> 185 | O1: =INDIRECT("'関数（読み）'!C" & COLUMN(F$1)+SUM($AD$2:$AD2)) -> 65 | P1: =INDIRECT("'関数（読み）'!C" & COLUMN(G$1)+SUM($AD$2:$AD2)) -> 78 | Q1: =INDIRECT("'関数（読み）'!C" & COLUMN(H$1)+SUM($AD$2:$AD2)) -> 42 | R1: =INDIRECT("'関数（読み）'!C" & COLUMN(I$1)+SUM($AD$2:$AD2)) -> 30 | S1: =INDIRECT("'関数（読み）'!C" & COLUMN(J$1)+SUM($AD$2:$AD2)) -> 37 | T1: =INDIRECT("'関数（読み）'!C" & COLUMN(K$1)+SUM($AD$2:$AD2)) -> 173
A2: ⑳ | B2: ⑲ | C2: ⑱ | D2: ⑰ | E2: ⑯ | F2: ⑮ | G2: ⑭ | H2: ⑬ | I2: ⑫ | J2: ⑪ | K2: ⑩ | L2: ⑨ | M2: ⑧ | N2: ⑦ | O2: ⑥ | P2: ⑤ | Q2: ④ | R2: ③ | S2: ② | T2: ① | U2: 次の［ ］の部分の漢字には読みがなをひらがなで書き、カタカナは漢字に直しなさい。 | V2: 11 | W2: 「漢字の博士検定試験」練習問題 | AD2: 0 | AE2: 問 | AF2: 1 | AG2: ～ | AH2: =SUM($AD$2:$AD2)+10 -> 10 | AI2: 問まで | AJ2: =COUNTIF($A$1:$T$200,T3) -> 2
A3: =IF(A1="","",VLOOKUP(A1,漢字書き!$A$2:$N$506,6,0)) -> ［ハ］てしなくつづく | B3: =IF(B1="","",VLOOKUP(B1,漢字書き!$A$2:$N$506,6,0)) -> ［シンパイ］をかける | C3: =IF(C1="","",VLOOKUP(C1,漢字書き!$A$2:$N$506,6,0)) -> よごれを［オ］とす | D3: =IF(D1="","",VLOOKUP(D1,漢字書き!$A$2:$N$506,6,0)) -> ［ショウブ］がつかない | E3: =IF(E1="","",VLOOKUP(E1,漢字書き!$A$2:$N$506,6,0)) -> 牛を［ハナ］す | F3: =IF(F1="","",VLOOKUP(F1,漢字書き!$A$2:$N$506,6,0)) -> [ワショク]をこのむ | G3: =IF(G1="","",VLOOKUP(G1,漢字書き!$A$2:$N$506,6,0)) -> ［ガイロ］じゅの道 | H3: =IF(H1="","",VLOOKUP(H1,漢字書き!$A$2:$N$506,6,0)) -> ［ヒガン］のゆう勝 | I3: =IF(I1="","",VLOOKUP(I1,漢字書き!$A$2:$N$506,6,0)) -> ［アジ］のこい食べ物 | J3: =IF(J1="","",VLOOKUP(J1,漢字書き!$A$2:$N$506,6,0)) -> 新聞を［ハイタツ］する | K3: =IF(K1="","",VLOOKUP(K1,漢字読み!$A$2:$O$506,6,0)) -> ［印］をつける | L3: =IF(L1="","",VLOOKUP(L1,漢字読み!$A$2:$O$506,6,0)) -> ［登山］列車に乗る | M3: =IF(M1="","",VLOOKUP(M1,漢字読み!$A$2:$O$506,6,0)) -> ［命］の重さ | N3: =IF(N1="","",VLOOKUP(N1,漢字読み!$A$2:$O$506,6,0)) -> かけ算を［覚］える | O3: =IF(O1="","",VLOOKUP(O1,漢字読み!$A$2:$O$506,6,0)) -> ［七福神］をまつる | P3: =IF(P1="","",VLOOKUP(P1,漢字読み!$A$2:$O$506,6,0)) -> ［勉強］がすきだ | Q3: =IF(Q1="","",VLOOKUP(Q1,漢字読み!$A$2:$O$506,6,0)) -> ［鼻］がつまる | R3: =IF(R1="","",VLOOKUP(R1,漢字読み!$A$2:$O$506,6,0)) -> むねを［反］らす | S3: =IF(S1="","",VLOOKUP(S1,漢字読み!$A$2:$O$506,6,0)) -> ［悲鳴］がきこえる | T3: =IF(T1="","",VLOOKUP(T1,漢字読み!$A$2:$O$506,6,0)) -> ［発芽］げん米を食べる | V3: 級
V4: 名前
A5: =IF(A1="","",IF(VLOOKUP(A1,漢字書き!$A$2:$N$502,7,0)=0,"",VLOOKUP(A1,漢字書き!$A$2:$N$502,7,0))) -> て | B5: =IF(B1="","",IF(VLOOKUP(B1,漢字書き!$A$2:$N$502,7,0)=0,"",VLOOKUP(B1,漢字書き!$A$2:$N$502,7,0))) ->  | C5: =IF(C1="","",IF(VLOOKUP(C1,漢字書き!$A$2:$N$502,7,0)=0,"",VLOOKUP(C1,漢字書き!$A$2:$N$502,7,0))) -> とす | D5: =IF(D1="","",IF(VLOOKUP(D1,漢字書き!$A$2:$N$502,7,0)=0,"",VLOOKUP(D1,漢字書き!$A$2:$N$502,7,0))) ->  | E5: =IF(E1="","",IF(VLOOKUP(E1,漢字書き!$A$2:$N$502,7,0)=0,"",VLOOKUP(E1,漢字書き!$A$2:$N$502,7,0))) -> す | F5: =IF(F1="","",IF(VLOOKUP(F1,漢字書き!$A$2:$N$502,7,0)=0,"",VLOOKUP(F1,漢字書き!$A$2:$N$502,7,0))) ->  | G5: =IF(G1="","",IF(VLOOKUP(G1,漢字書き!$A$2:$N$502,7,0)=0,"",VLOOKUP(G1,漢字書き!$A$2:$N$502,7,0))) -> じゅ | H5: =IF(H1="","",IF(VLOOKUP(H1,漢字書き!$A$2:$N$502,7,0)=0,"",VLOOKUP(H1,漢字書き!$A$2:$N$502,7,0))) ->  | I5: =IF(I1="","",IF(VLOOKUP(I1,漢字書き!$A$2:$N$502,7,0)=0,"",VLOOKUP(I1,漢字書き!$A$2:$N$502,7,0))) ->  | J5: =IF(J1="","",IF(VLOOKUP(J1,漢字書き!$A$2:$N$502,7,0)=0,"",VLOOKUP(J1,漢字書き!$A$2:$N$502,7,0))) -> する | K5: =IF(K1="","",IF(VLOOKUP(K1,漢字読み!$A$2:$O$502,7,0)=0,"",VLOOKUP(K1,漢字読み!$A$2:$O$502,7,0))) ->  | L5: =IF(L1="","",IF(VLOOKUP(L1,漢字読み!$A$2:$O$502,7,0)=0,"",VLOOKUP(L1,漢字読み!$A$2:$O$502,7,0))) ->  | M5: =IF(M1="","",IF(VLOOKUP(M1,漢字読み!$A$2:$O$502,7,0)=0,"",VLOOKUP(M1,漢字読み!$A$2:$O$502,7,0))) ->  | N5: =IF(N1="","",IF(VLOOKUP(N1,漢字読み!$A$2:$O$502,7,0)=0,"",VLOOKUP(N1,漢字読み!$A$2:$O$502,7,0))) -> える | O5: =IF(O1="","",IF(VLOOKUP(O1,漢字読み!$A$2:$O$502,7,0)=0,"",VLOOKUP(O1,漢字読み!$A$2:$O$502,7,0))) ->  | P5: =IF(P1="","",IF(VLOOKUP(P1,漢字読み!$A$2:$O$502,7,0)=0,"",VLOOKUP(P1,漢字読み!$A$2:$O$502,7,0))) ->  | Q5: =IF(Q1="","",IF(VLOOKUP(Q1,漢字読み!$A$2:$O$502,7,0)=0,"",VLOOKUP(Q1,漢字読み!$A$2:$O$502,7,0))) ->  | R5: =IF(R1="","",IF(VLOOKUP(R1,漢字読み!$A$2:$O$502,7,0)=0,"",VLOOKUP(R1,漢字読み!$A$2:$O$502,7,0))) -> らす | S5: =IF(S1="","",IF(VLOOKUP(S1,漢字読み!$A$2:$O$502,7,0)=0,"",VLOOKUP(S1,漢字読み!$A$2:$O$502,7,0))) ->  | T5: =IF(T1="","",IF(VLOOKUP(T1,漢字読み!$A$2:$O$502,7,0)=0,"",VLOOKUP(T1,漢字読み!$A$2:$O$502,7,0))) ->  | W5: 和歌山県教育委員会
A6: =INDIRECT("'関数（書き）'!C" & COLUMN(B$1)+SUM($AD$2:$AD7)) -> 164 | B6: =INDIRECT("'関数（書き）'!C" & COLUMN(C$1)+SUM($AD$2:$AD7)) -> 26 | C6: =INDIRECT("'関数（書き）'!C" & COLUMN(D$1)+SUM($AD$2:$AD7)) -> 140 | D6: =INDIRECT("'関数（書き）'!C" & COLUMN(E$1)+SUM($AD$2:$AD7)) -> 213 | E6: =INDIRECT("'関数（書き）'!C" & COLUMN(F$1)+SUM($AD$2:$AD7)) -> 14 | F6: =INDIRECT("'関数（書き）'!C" & COLUMN(G$1)+SUM($AD$2:$AD7)) -> 32 | G6: =INDIRECT("'関数（書き）'!C" & COLUMN(H$1)+SUM($AD$2:$AD7)) -> 212 | H6: =INDIRECT("'関数（書き）'!C" & COLUMN(I$1)+SUM($AD$2:$AD7)) -> 156 | I6: =INDIRECT("'関数（書き）'!C" & COLUMN(J$1)+SUM($AD$2:$AD7)) -> 116 | J6: =INDIRECT("'関数（書き）'!C" & COLUMN(K$1)+SUM($AD$2:$AD7)) -> 12 | K6: =INDIRECT("'関数（読み）'!C" & COLUMN(B$1)+SUM($AD$2:$AD7)) -> 27 | L6: =INDIRECT("'関数（読み）'!C" & COLUMN(C$1)+SUM($AD$2:$AD7)) -> 165 | M6: =INDIRECT("'関数（読み）'!C" & COLUMN(D$1)+SUM($AD$2:$AD7)) -> 149 | N6: =INDIRECT("'関数（読み）'!C" & COLUMN(E$1)+SUM($AD$2:$AD7)) -> 199 | O6: =INDIRECT("'関数（読み）'!C" & COLUMN(F$1)+SUM($AD$2:$AD7)) -> 22 | P6: =INDIRECT("'関数（読み）'!C" & COLUMN(G$1)+SUM($AD$2:$AD7)) -> 10 | Q6: =INDIRECT("'関数（読み）'!C" & COLUMN(H$1)+SUM($AD$2:$AD7)) -> 193 | R6: =INDIRECT("'関数（読み）'!C" & COLUMN(I$1)+SUM($AD$2:$AD7)) -> 106 | S6: =INDIRECT("'関数（読み）'!C" & COLUMN(J$1)+SUM($AD$2:$AD7)) -> 61 | T6: =INDIRECT("'関数（読み）'!C" & COLUMN(K$1)+SUM($AD$2:$AD7)) -> 49
A7: ⑳ | B7: ⑲ | C7: ⑱ | D7: ⑰ | E7: ⑯ | F7: ⑮ | G7: ⑭ | H7: ⑬ | I7: ⑫ | J7: ⑪ | K7: ⑩ | L7: ⑨ | M7: ⑧ | N7: ⑦ | O7: ⑥ | P7: ⑤ | Q7: ④ | R7: ③ | S7: ② | T7: ① | U7: 次の［ ］の部分の漢字には読みがなをひらがなで書き、カタカナは漢字に直しなさい。 | V7: 11 | W7: 「漢字の博士検定試験」練習問題 | AC7: ← | AD7: 10 | AE7: 問 | AF7: =AH2+1 -> 11 | AG7: ～ | AH7: =SUM($AD$2:$AD7)+10 -> 20 | AI7: 問まで | AJ7: =COUNTIF($A$1:$T$200,T8) -> 2
A8: =IF(A6="","",VLOOKUP(A6,漢字書き!$A$2:$N$506,6,0)) -> ［フクオカケン］に住む | B8: =IF(B6="","",VLOOKUP(B6,漢字書き!$A$2:$N$506,6,0)) -> ［タハタ］をたがやす | C8: =IF(C6="","",VLOOKUP(C6,漢字書き!$A$2:$N$506,6,0)) -> ［ミドリ］があざやかだ | D8: =IF(D6="","",VLOOKUP(D6,漢字書き!$A$2:$N$506,6,0)) -> ［ネンガ］はがきを書く | E8: =IF(E6="","",VLOOKUP(E6,漢字書き!$A$2:$N$506,6,0)) -> ［ドウ］ようを歌う | F8: =IF(F6="","",VLOOKUP(F6,漢字書き!$A$2:$N$506,6,0)) -> 体を［ソ］らす | G8: =IF(G6="","",VLOOKUP(G6,漢字書き!$A$2:$N$506,6,0)) -> 日本には［シキ］がある | H8: =IF(H6="","",VLOOKUP(H6,漢字書き!$A$2:$N$506,6,0)) -> みんなで［アン］を出す | I8: =IF(I6="","",VLOOKUP(I6,漢字書き!$A$2:$N$506,6,0)) -> 十年後を［ヨゲン］する | J8: =IF(J6="","",VLOOKUP(J6,漢字書き!$A$2:$N$506,6,0)) -> 気持ちを［ウゴ］かす | K8: =IF(K6="","",VLOOKUP(K6,漢字読み!$A$2:$O$506,6,0)) -> 元気に声を［発］する | L8: =IF(L6="","",VLOOKUP(L6,漢字読み!$A$2:$O$506,6,0)) -> スープに塩を［加］える | M8: =IF(M6="","",VLOOKUP(M6,漢字読み!$A$2:$O$506,6,0)) -> ［案外］むずかしい | N8: =IF(N6="","",VLOOKUP(N6,漢字読み!$A$2:$O$506,6,0)) -> 春夏秋冬の［季］せつ | O8: =IF(O6="","",VLOOKUP(O6,漢字読み!$A$2:$O$506,6,0)) -> ［倍速］でさい生する | P8: =IF(P6="","",VLOOKUP(P6,漢字読み!$A$2:$O$506,6,0)) -> すばやい［動］き | Q8: =IF(Q6="","",VLOOKUP(Q6,漢字読み!$A$2:$O$506,6,0)) -> ［関］わりをさける | R8: =IF(R6="","",VLOOKUP(R6,漢字読み!$A$2:$O$506,6,0)) -> タバコは［有害］だ | S8: =IF(S6="","",VLOOKUP(S6,漢字読み!$A$2:$O$506,6,0)) -> ［全部］食べる | T8: =IF(T6="","",VLOOKUP(T6,漢字読み!$A$2:$O$506,6,0)) -> うらと［表］をたしかめる | V8: 級
V9: 名前
A10: =IF(A6="","",IF(VLOOKUP(A6,漢字書き!$A$2:$N$502,7,0)=0,"",VLOOKUP(A6,漢字書き!$A$2:$N$502,7,0))) ->  | B10: =IF(B6="","",IF(VLOOKUP(B6,漢字書き!$A$2:$N$502,7,0)=0,"",VLOOKUP(B6,漢字書き!$A$2:$N$502,7,0))) ->  | C10: =IF(C6="","",IF(VLOOKUP(C6,漢字書き!$A$2:$N$502,7,0)=0,"",VLOOKUP(C6,漢字書き!$A$2:$N$502,7,0))) ->  | D10: =IF(D6="","",IF(VLOOKUP(D6,漢字書き!$A$2:$N$502,7,0)=0,"",VLOOKUP(D6,漢字書き!$A$2:$N$502,7,0))) -> はがき | E10: =IF(E6="","",IF(VLOOKUP(E6,漢字書き!$A$2:$N$502,7,0)=0,"",VLOOKUP(E6,漢字書き!$A$2:$N$502,7,0))) -> よう | F10: =IF(F6="","",IF(VLOOKUP(F6,漢字書き!$A$2:$N$502,7,0)=0,"",VLOOKUP(F6,漢字書き!$A$2:$N$502,7,0))) -> らす | G10: =IF(G6="","",IF(VLOOKUP(G6,漢字書き!$A$2:$N$502,7,0)=0,"",VLOOKUP(G6,漢字書き!$A$2:$N$502,7,0))) ->  | H10: =IF(H6="","",IF(VLOOKUP(H6,漢字書き!$A$2:$N$502,7,0)=0,"",VLOOKUP(H6,漢字書き!$A$2:$N$502,7,0))) ->  | I10: =IF(I6="","",IF(VLOOKUP(I6,漢字書き!$A$2:$N$502,7,0)=0,"",VLOOKUP(I6,漢字書き!$A$2:$N$502,7,0))) -> する | J10: =IF(J6="","",IF(VLOOKUP(J6,漢字書き!$A$2:$N$502,7,0)=0,"",VLOOKUP(J6,漢字書き!$A$2:$N$502,7,0))) -> かす | K10: =IF(K6="","",IF(VLOOKUP(K6,漢字読み!$A$2:$O$502,7,0)=0,"",VLOOKUP(K6,漢字読み!$A$2:$O$502,7,0))) -> する | L10: =IF(L6="","",IF(VLOOKUP(L6,漢字読み!$A$2:$O$502,7,0)=0,"",VLOOKUP(L6,漢字読み!$A$2:$O$502,7,0))) -> える | M10: =IF(M6="","",IF(VLOOKUP(M6,漢字読み!$A$2:$O$502,7,0)=0,"",VLOOKUP(M6,漢字読み!$A$2:$O$502,7,0))) ->  | N10: =IF(N6="","",IF(VLOOKUP(N6,漢字読み!$A$2:$O$502,7,0)=0,"",VLOOKUP(N6,漢字読み!$A$2:$O$502,7,0))) -> せつ | O10: =IF(O6="","",IF(VLOOKUP(O6,漢字読み!$A$2:$O$502,7,0)=0,"",VLOOKUP(O6,漢字読み!$A$2:$O$502,7,0))) ->  | P10: =IF(P6="","",IF(VLOOKUP(P6,漢字読み!$A$2:$O$502,7,0)=0,"",VLOOKUP(P6,漢字読み!$A$2:$O$502,7,0))) -> き | Q10: =IF(Q6="","",IF(VLOOKUP(Q6,漢字読み!$A$2:$O$502,7,0)=0,"",VLOOKUP(Q6,漢字読み!$A$2:$O$502,7,0))) -> わり | R10: =IF(R6="","",IF(VLOOKUP(R6,漢字読み!$A$2:$O$502,7,0)=0,"",VLOOKUP(R6,漢字読み!$A$2:$O$502,7,0))) -> だ | S10: =IF(S6="","",IF(VLOOKUP(S6,漢字読み!$A$2:$O$502,7,0)=0,"",VLOOKUP(S6,漢字読み!$A$2:$O$502,7,0))) ->  | T10: =IF(T6="","",IF(VLOOKUP(T6,漢字読み!$A$2:$O$502,7,0)=0,"",VLOOKUP(T6,漢字読み!$A$2:$O$502,7,0))) ->  | W10: 和歌山県教育委員会
A11: =A1 -> 179 | B11: =B1 -> 20 | C11: =C1 -> 130 | D11: =D1 -> 64 | E11: =E1 -> 89 | F11: =F1 -> 151 | G11: =G1 -> 193 | H11: =H1 -> 43 | I11: =I1 -> 93 | J11: =J1 -> 19 | K11: =K1 -> 158 | L11: =L1 -> 5 | M11: =M1 -> 87 | N11: =N1 -> 185 | O11: =O1 -> 65 | P11: =P1 -> 78 | Q11: =Q1 -> 42 | R11: =R1 -> 30 | S11: =S1 -> 37 | T11: =T1 -> 173
A12: ⑳ | B12: ⑲ | C12: ⑱ | D12: ⑰ | E12: ⑯ | F12: ⑮ | G12: ⑭ | H12: ⑬ | I12: ⑫ | J12: ⑪ | K12: ⑩ | L12: ⑨ | M12: ⑧ | N12: ⑦ | O12: ⑥ | P12: ⑤ | Q12: ④ | R12: ③ | S12: ② | T12: ① | U12: 次の［ ］の部分の漢字には読みがなをひらがなで書き、カタカナは漢字に直しなさい。 | V12: 11 | W12: 「漢字の博士検定試験」練習問題
A13: =IF(A11="","",VLOOKUP(A11,漢字書き!$A$2:$N$506,6,0)) -> ［ハ］てしなくつづく | B13: =IF(B11="","",VLOOKUP(B11,漢字書き!$A$2:$N$506,6,0)) -> ［シンパイ］をかける | C13: =IF(C11="","",VLOOKUP(C11,漢字書き!$A$2:$N$506,6,0)) -> よごれを［オ］とす | D13: =IF(D11="","",VLOOKUP(D11,漢字書き!$A$2:$N$506,6,0)) -> ［ショウブ］がつかない | E13: =IF(E11="","",VLOOKUP(E11,漢字書き!$A$2:$N$506,6,0)) -> 牛を［ハナ］す | F13: =IF(F11="","",VLOOKUP(F11,漢字書き!$A$2:$N$506,6,0)) -> [ワショク]をこのむ | G13: =IF(G11="","",VLOOKUP(G11,漢字書き!$A$2:$N$506,6,0)) -> ［ガイロ］じゅの道 | H13: =IF(H11="","",VLOOKUP(H11,漢字書き!$A$2:$N$506,6,0)) -> ［ヒガン］のゆう勝 | I13: =IF(I11="","",VLOOKUP(I11,漢字書き!$A$2:$N$506,6,0)) -> ［アジ］のこい食べ物 | J13: =IF(J11="","",VLOOKUP(J11,漢字書き!$A$2:$N$506,6,0)) -> 新聞を［ハイタツ］する | K13: =IF(K11="","",VLOOKUP(K11,漢字読み!$A$2:$O$506,6,0)) -> ［印］をつける | L13: =IF(L11="","",VLOOKUP(L11,漢字読み!$A$2:$O$506,6,0)) -> ［登山］列車に乗る | M13: =IF(M11="","",VLOOKUP(M11,漢字読み!$A$2:$O$506,6,0)) -> ［命］の重さ | N13: =IF(N11="","",VLOOKUP(N11,漢字読み!$A$2:$O$506,6,0)) -> かけ算を［覚］える | O13: =IF(O11="","",VLOOKUP(O11,漢字読み!$A$2:$O$506,6,0)) -> ［七福神］をまつる | P13: =IF(P11="","",VLOOKUP(P11,漢字読み!$A$2:$O$506,6,0)) -> ［勉強］がすきだ | Q13: =IF(Q11="","",VLOOKUP(Q11,漢字読み!$A$2:$O$506,6,0)) -> ［鼻］がつまる | R13: =IF(R11="","",VLOOKUP(R11,漢字読み!$A$2:$O$506,6,0)) -> むねを［反］らす | S13: =IF(S11="","",VLOOKUP(S11,漢字読み!$A$2:$O$506,6,0)) -> ［悲鳴］がきこえる | T13: =IF(T11="","",VLOOKUP(T11,漢字読み!$A$2:$O$506,6,0)) -> ［発芽］げん米を食べる | V13: 級
A14: =IF(A$11="","",VLOOKUP(A11,漢字書き!$A$2:$O$506,8,0)) -> 果 | B14: =IF(B$11="","",VLOOKUP(B11,漢字書き!$A$2:$O$506,8,0)) -> 心配 | C14: =IF(C$11="","",VLOOKUP(C11,漢字書き!$A$2:$O$506,8,0)) -> 落 | D14: =IF(D$11="","",VLOOKUP(D11,漢字書き!$A$2:$O$506,8,0)) -> 勝負 | E14: =IF(E$11="","",VLOOKUP(E11,漢字書き!$A$2:$O$506,8,0)) -> 放 | F14: =IF(F$11="","",VLOOKUP(F11,漢字書き!$A$2:$O$506,8,0)) -> 和食 | G14: =IF(G$11="","",VLOOKUP(G11,漢字書き!$A$2:$O$506,8,0)) -> 街路 | H14: =IF(H$11="","",VLOOKUP(H11,漢字書き!$A$2:$O$506,8,0)) -> 悲願 | I14: =IF(I$11="","",VLOOKUP(I11,漢字書き!$A$2:$O$506,8,0)) -> 味 | J14: =IF(J$11="","",VLOOKUP(J11,漢字書き!$A$2:$O$506,8,0)) -> 配達 | K14: =IF(K$11="","",VLOOKUP(K11,漢字読み!$A$2:$O$506,8,0)) -> しるし | L14: =IF(L$11="","",VLOOKUP(L11,漢字読み!$A$2:$O$506,8,0)) -> とざん | M14: =IF(M$11="","",VLOOKUP(M11,漢字読み!$A$2:$O$506,8,0)) -> いのち | N14: =IF(N$11="","",VLOOKUP(N11,漢字読み!$A$2:$O$506,8,0)) -> おぼ | O14: =IF(O$11="","",VLOOKUP(O11,漢字読み!$A$2:$O$506,8,0)) -> しちふくじん | P14: =IF(P$11="","",VLOOKUP(P11,漢字読み!$A$2:$O$506,8,0)) -> べんきょう | Q14: =IF(Q$11="","",VLOOKUP(Q11,漢字読み!$A$2:$O$506,8,0)) -> はな | R14: =IF(R$11="","",VLOOKUP(R11,漢字読み!$A$2:$O$506,8,0)) -> そ | S14: =IF(S$11="","",VLOOKUP(S11,漢字読み!$A$2:$O$506,8,0)) -> ひめい | T14: =IF(T$11="","",VLOOKUP(T11,漢字読み!$A$2:$O$506,8,0)) -> はつが | V14: 名前
A15: =IF(A11="","",IF(VLOOKUP(A11,漢字書き!$A$2:$N$502,7,0)=0,"",VLOOKUP(A11,漢字書き!$A$2:$N$502,7,0))) -> て | B15: =IF(B11="","",IF(VLOOKUP(B11,漢字書き!$A$2:$N$502,7,0)=0,"",VLOOKUP(B11,漢字書き!$A$2:$N$502,7,0))) ->  | C15: =IF(C11="","",IF(VLOOKUP(C11,漢字書き!$A$2:$N$502,7,0)=0,"",VLOOKUP(C11,漢字書き!$A$2:$N$502,7,0))) -> とす | D15: =IF(D11="","",IF(VLOOKUP(D11,漢字書き!$A$2:$N$502,7,0)=0,"",VLOOKUP(D11,漢字書き!$A$2:$N$502,7,0))) ->  | E15: =IF(E11="","",IF(VLOOKUP(E11,漢字書き!$A$2:$N$502,7,0)=0,"",VLOOKUP(E11,漢字書き!$A$2:$N$502,7,0))) -> す | F15: =IF(F11="","",IF(VLOOKUP(F11,漢字書き!$A$2:$N$502,7,0)=0,"",VLOOKUP(F11,漢字書き!$A$2:$N$502,7,0))) ->  | G15: =IF(G11="","",IF(VLOOKUP(G11,漢字書き!$A$2:$N$502,7,0)=0,"",VLOOKUP(G11,漢字書き!$A$2:$N$502,7,0))) -> じゅ | H15: =IF(H11="","",IF(VLOOKUP(H11,漢字書き!$A$2:$N$502,7,0)=0,"",VLOOKUP(H11,漢字書き!$A$2:$N$502,7,0))) ->  | I15: =IF(I11="","",IF(VLOOKUP(I11,漢字書き!$A$2:$N$502,7,0)=0,"",VLOOKUP(I11,漢字書き!$A$2:$N$502,7,0))) ->  | J15: =IF(J11="","",IF(VLOOKUP(J11,漢字書き!$A$2:$N$502,7,0)=0,"",VLOOKUP(J11,漢字書き!$A$2:$N$502,7,0))) -> する | K15: =IF(K11="","",IF(VLOOKUP(K11,漢字読み!$A$2:$O$502,7,0)=0,"",VLOOKUP(K11,漢字読み!$A$2:$O$502,7,0))) ->  | L15: =IF(L11="","",IF(VLOOKUP(L11,漢字読み!$A$2:$O$502,7,0)=0,"",VLOOKUP(L11,漢字読み!$A$2:$O$502,7,0))) ->  | M15: =IF(M11="","",IF(VLOOKUP(M11,漢字読み!$A$2:$O$502,7,0)=0,"",VLOOKUP(M11,漢字読み!$A$2:$O$502,7,0))) ->  | N15: =IF(N11="","",IF(VLOOKUP(N11,漢字読み!$A$2:$O$502,7,0)=0,"",VLOOKUP(N11,漢字読み!$A$2:$O$502,7,0))) -> える | O15: =IF(O11="","",IF(VLOOKUP(O11,漢字読み!$A$2:$O$502,7,0)=0,"",VLOOKUP(O11,漢字読み!$A$2:$O$502,7,0))) ->  | P15: =IF(P11="","",IF(VLOOKUP(P11,漢字読み!$A$2:$O$502,7,0)=0,"",VLOOKUP(P11,漢字読み!$A$2:$O$502,7,0))) ->  | Q15: =IF(Q11="","",IF(VLOOKUP(Q11,漢字読み!$A$2:$O$502,7,0)=0,"",VLOOKUP(Q11,漢字読み!$A$2:$O$502,7,0))) ->  | R15: =IF(R11="","",IF(VLOOKUP(R11,漢字読み!$A$2:$O$502,7,0)=0,"",VLOOKUP(R11,漢字読み!$A$2:$O$502,7,0))) -> らす | S15: =IF(S11="","",IF(VLOOKUP(S11,漢字読み!$A$2:$O$502,7,0)=0,"",VLOOKUP(S11,漢字読み!$A$2:$O$502,7,0))) ->  | T15: =IF(T11="","",IF(VLOOKUP(T11,漢字読み!$A$2:$O$502,7,0)=0,"",VLOOKUP(T11,漢字読み!$A$2:$O$502,7,0))) ->  | W15: 和歌山県教育委員会
A16: =A6 -> 164 | B16: =B6 -> 26 | C16: =C6 -> 140 | D16: =D6 -> 213 | E16: =E6 -> 14 | F16: =F6 -> 32 | G16: =G6 -> 212 | H16: =H6 -> 156 | I16: =I6 -> 116 | J16: =J6 -> 12 | K16: =K6 -> 27 | L16: =L6 -> 165 | M16: =M6 -> 149 | N16: =N6 -> 199 | O16: =O6 -> 22 | P16: =P6 -> 10 | Q16: =Q6 -> 193 | R16: =R6 -> 106 | S16: =S6 -> 61 | T16: =T6 -> 49
A17: ⑳ | B17: ⑲ | C17: ⑱ | D17: ⑰ | E17: ⑯ | F17: ⑮ | G17: ⑭ | H17: ⑬ | I17: ⑫ | J17: ⑪ | K17: ⑩ | L17: ⑨ | M17: ⑧ | N17: ⑦ | O17: ⑥ | P17: ⑤ | Q17: ④ | R17: ③ | S17: ② | T17: ① | U17: 次の［ ］の部分の漢字には読みがなをひらがなで書き、カタカナは漢字に直しなさい。 | V17: 11 | W17: 「漢字の博士検定試験」練習問題
A18: =IF(A16="","",VLOOKUP(A16,漢字書き!$A$2:$N$506,6,0)) -> ［フクオカケン］に住む | B18: =IF(B16="","",VLOOKUP(B16,漢字書き!$A$2:$N$506,6,0)) -> ［タハタ］をたがやす | C18: =IF(C16="","",VLOOKUP(C16,漢字書き!$A$2:$N$506,6,0)) -> ［ミドリ］があざやかだ | D18: =IF(D16="","",VLOOKUP(D16,漢字書き!$A$2:$N$506,6,0)) -> ［ネンガ］はがきを書く | E18: =IF(E16="","",VLOOKUP(E16,漢字書き!$A$2:$N$506,6,0)) -> ［ドウ］ようを歌う | F18: =IF(F16="","",VLOOKUP(F16,漢字書き!$A$2:$N$506,6,0)) -> 体を［ソ］らす | G18: =IF(G16="","",VLOOKUP(G16,漢字書き!$A$2:$N$506,6,0)) -> 日本には［シキ］がある | H18: =IF(H16="","",VLOOKUP(H16,漢字書き!$A$2:$N$506,6,0)) -> みんなで［アン］を出す | I18: =IF(I16="","",VLOOKUP(I16,漢字書き!$A$2:$N$506,6,0)) -> 十年後を［ヨゲン］する | J18: =IF(J16="","",VLOOKUP(J16,漢字書き!$A$2:$N$506,6,0)) -> 気持ちを［ウゴ］かす | K18: =IF(K16="","",VLOOKUP(K16,漢字読み!$A$2:$O$506,6,0)) -> 元気に声を［発］する | L18: =IF(L16="","",VLOOKUP(L16,漢字読み!$A$2:$O$506,6,0)) -> スープに塩を［加］える | M18: =IF(M16="","",VLOOKUP(M16,漢字読み!$A$2:$O$506,6,0)) -> ［案外］むずかしい | N18: =IF(N16="","",VLOOKUP(N16,漢字読み!$A$2:$O$506,6,0)) -> 春夏秋冬の［季］せつ | O18: =IF(O16="","",VLOOKUP(O16,漢字読み!$A$2:$O$506,6,0)) -> ［倍速］でさい生する | P18: =IF(P16="","",VLOOKUP(P16,漢字読み!$A$2:$O$506,6,0)) -> すばやい［動］き | Q18: =IF(Q16="","",VLOOKUP(Q16,漢字読み!$A$2:$O$506,6,0)) -> ［関］わりをさける | R18: =IF(R16="","",VLOOKUP(R16,漢字読み!$A$2:$O$506,6,0)) -> タバコは［有害］だ | S18: =IF(S16="","",VLOOKUP(S16,漢字読み!$A$2:$O$506,6,0)) -> ［全部］食べる | T18: =IF(T16="","",VLOOKUP(T16,漢字読み!$A$2:$O$506,6,0)) -> うらと［表］をたしかめる | V18: 級
A19: =IF(A$16="","",VLOOKUP(A16,漢字書き!$A$2:$O$506,8,0)) -> 福岡県 | B19: =IF(B$16="","",VLOOKUP(B16,漢字書き!$A$2:$O$506,8,0)) -> 田畑 | C19: =IF(C$16="","",VLOOKUP(C16,漢字書き!$A$2:$O$506,8,0)) -> 緑 | D19: =IF(D$16="","",VLOOKUP(D16,漢字書き!$A$2:$O$506,8,0)) -> 年賀 | E19: =IF(E$16="","",VLOOKUP(E16,漢字書き!$A$2:$O$506,8,0)) -> 童 | F19: =IF(F$16="","",VLOOKUP(F16,漢字書き!$A$2:$O$506,8,0)) -> 反 | G19: =IF(G$16="","",VLOOKUP(G16,漢字書き!$A$2:$O$506,8,0)) -> 四季 | H19: =IF(H$16="","",VLOOKUP(H16,漢字書き!$A$2:$O$506,8,0)) -> 案 | I19: =IF(I$16="","",VLOOKUP(I16,漢字書き!$A$2:$O$506,8,0)) -> 予言 | J19: =IF(J$16="","",VLOOKUP(J16,漢字書き!$A$2:$O$506,8,0)) -> 動 | K19: =IF(K$16="","",VLOOKUP(K16,漢字読み!$A$2:$O$506,8,0)) -> はっ | L19: =IF(L$16="","",VLOOKUP(L16,漢字読み!$A$2:$O$506,8,0)) -> くわ | M19: =IF(M$16="","",VLOOKUP(M16,漢字読み!$A$2:$O$506,8,0)) -> あんがい | N19: =IF(N$16="","",VLOOKUP(N16,漢字読み!$A$2:$O$506,8,0)) -> き | O19: =IF(O$16="","",VLOOKUP(O16,漢字読み!$A$2:$O$506,8,0)) -> ばいそく | P19: =IF(P$16="","",VLOOKUP(P16,漢字読み!$A$2:$O$506,8,0)) -> うご | Q19: =IF(Q$16="","",VLOOKUP(Q16,漢字読み!$A$2:$O$506,8,0)) -> かか | R19: =IF(R$16="","",VLOOKUP(R16,漢字読み!$A$2:$O$506,8,0)) -> ゆうがい | S19: =IF(S$16="","",VLOOKUP(S16,漢字読み!$A$2:$O$506,8,0)) -> ぜんぶ | T19: =IF(T$16="","",VLOOKUP(T16,漢字読み!$A$2:$O$506,8,0)) -> おもて | V19: 名前
A20: =IF(A16="","",IF(VLOOKUP(A16,漢字書き!$A$2:$N$502,7,0)=0,"",VLOOKUP(A16,漢字書き!$A$2:$N$502,7,0))) ->  | B20: =IF(B16="","",IF(VLOOKUP(B16,漢字書き!$A$2:$N$502,7,0)=0,"",VLOOKUP(B16,漢字書き!$A$2:$N$502,7,0))) ->  | C20: =IF(C16="","",IF(VLOOKUP(C16,漢字書き!$A$2:$N$502,7,0)=0,"",VLOOKUP(C16,漢字書き!$A$2:$N$502,7,0))) ->  | D20: =IF(D16="","",IF(VLOOKUP(D16,漢字書き!$A$2:$N$502,7,0)=0,"",VLOOKUP(D16,漢字書き!$A$2:$N$502,7,0))) -> はがき | E20: =IF(E16="","",IF(VLOOKUP(E16,漢字書き!$A$2:$N$502,7,0)=0,"",VLOOKUP(E16,漢字書き!$A$2:$N$502,7,0))) -> よう | F20: =IF(F16="","",IF(VLOOKUP(F16,漢字書き!$A$2:$N$502,7,0)=0,"",VLOOKUP(F16,漢字書き!$A$2:$N$502,7,0))) -> らす | G20: =IF(G16="","",IF(VLOOKUP(G16,漢字書き!$A$2:$N$502,7,0)=0,"",VLOOKUP(G16,漢字書き!$A$2:$N$502,7,0))) ->  | H20: =IF(H16="","",IF(VLOOKUP(H16,漢字書き!$A$2:$N$502,7,0)=0,"",VLOOKUP(H16,漢字書き!$A$2:$N$502,7,0))) ->  | I20: =IF(I16="","",IF(VLOOKUP(I16,漢字書き!$A$2:$N$502,7,0)=0,"",VLOOKUP(I16,漢字書き!$A$2:$N$502,7,0))) -> する | J20: =IF(J16="","",IF(VLOOKUP(J16,漢字書き!$A$2:$N$502,7,0)=0,"",VLOOKUP(J16,漢字書き!$A$2:$N$502,7,0))) -> かす | K20: =IF(K16="","",IF(VLOOKUP(K16,漢字読み!$A$2:$O$502,7,0)=0,"",VLOOKUP(K16,漢字読み!$A$2:$O$502,7,0))) -> する | L20: =IF(L16="","",IF(VLOOKUP(L16,漢字読み!$A$2:$O$502,7,0)=0,"",VLOOKUP(L16,漢字読み!$A$2:$O$502,7,0))) -> える | M20: =IF(M16="","",IF(VLOOKUP(M16,漢字読み!$A$2:$O$502,7,0)=0,"",VLOOKUP(M16,漢字読み!$A$2:$O$502,7,0))) ->  | N20: =IF(N16="","",IF(VLOOKUP(N16,漢字読み!$A$2:$O$502,7,0)=0,"",VLOOKUP(N16,漢字読み!$A$2:$O$502,7,0))) -> せつ | O20: =IF(O16="","",IF(VLOOKUP(O16,漢字読み!$A$2:$O$502,7,0)=0,"",VLOOKUP(O16,漢字読み!$A$2:$O$502,7,0))) ->  | P20: =IF(P16="","",IF(VLOOKUP(P16,漢字読み!$A$2:$O$502,7,0)=0,"",VLOOKUP(P16,漢字読み!$A$2:$O$502,7,0))) -> き | Q20: =IF(Q16="","",IF(VLOOKUP(Q16,漢字読み!$A$2:$O$502,7,0)=0,"",VLOOKUP(Q16,漢字読み!$A$2:$O$502,7,0))) -> わり | R20: =IF(R16="","",IF(VLOOKUP(R16,漢字読み!$A$2:$O$502,7,0)=0,"",VLOOKUP(R16,漢字読み!$A$2:$O$502,7,0))) -> だ | S20: =IF(S16="","",IF(VLOOKUP(S16,漢字読み!$A$2:$O$502,7,0)=0,"",VLOOKUP(S16,漢字読み!$A$2:$O$502,7,0))) ->  | T20: =IF(T16="","",IF(VLOOKUP(T16,漢字読み!$A$2:$O$502,7,0)=0,"",VLOOKUP(T16,漢字読み!$A$2:$O$502,7,0))) ->  | W20: 和歌山県教育委員会
A21: =INDIRECT("'関数（書き）'!C" & COLUMN(B$1)+SUM($AD$2:$AD22)) -> 113 | B21: =INDIRECT("'関数（書き）'!C" & COLUMN(C$1)+SUM($AD$2:$AD22)) -> 158 | C21: =INDIRECT("'関数（書き）'!C" & COLUMN(D$1)+SUM($AD$2:$AD22)) -> 125 | D21: =INDIRECT("'関数（書き）'!C" & COLUMN(E$1)+SUM($AD$2:$AD22)) -> 2 | E21: =INDIRECT("'関数（書き）'!C" & COLUMN(F$1)+SUM($AD$2:$AD22)) -> 72 | F21: =INDIRECT("'関数（書き）'!C" & COLUMN(G$1)+SUM($AD$2:$AD22)) -> 224 | G21: =INDIRECT("'関数（書き）'!C" & COLUMN(H$1)+SUM($AD$2:$AD22)) -> 225 | H21: =INDIRECT("'関数（書き）'!C" & COLUMN(I$1)+SUM($AD$2:$AD22)) -> 161 | I21: =INDIRECT("'関数（書き）'!C" & COLUMN(J$1)+SUM($AD$2:$AD22)) -> 81 | J21: =INDIRECT("'関数（書き）'!C" & COLUMN(K$1)+SUM($AD$2:$AD22)) -> 127 | K21: =INDIRECT("'関数（読み）'!C" & COLUMN(B$1)+SUM($AD$2:$AD22)) -> 18 | L21: =INDIRECT("'関数（読み）'!C" & COLUMN(C$1)+SUM($AD$2:$AD22)) -> 123 | M21: =INDIRECT("'関数（読み）'!C" & COLUMN(D$1)+SUM($AD$2:$AD22)) -> 40 | N21: =INDIRECT("'関数（読み）'!C" & COLUMN(E$1)+SUM($AD$2:$AD22)) -> 181 | O21: =INDIRECT("'関数（読み）'!C" & COLUMN(F$1)+SUM($AD$2:$AD22)) -> 80 | P21: =INDIRECT("'関数（読み）'!C" & COLUMN(G$1)+SUM($AD$2:$AD22)) -> 69 | Q21: =INDIRECT("'関数（読み）'!C" & COLUMN(H$1)+SUM($AD$2:$AD22)) -> 2 | R21: =INDIRECT("'関数（読み）'!C" & COLUMN(I$1)+SUM($AD$2:$AD22)) -> 6 | S21: =INDIRECT("'関数（読み）'!C" & COLUMN(J$1)+SUM($AD$2:$AD22)) -> 210 | T21: =INDIRECT("'関数（読み）'!C" & COLUMN(K$1)+SUM($AD$2:$AD22)) -> 111
A22: ⑳ | B22: ⑲ | C22: ⑱ | D22: ⑰ | E22: ⑯ | F22: ⑮ | G22: ⑭ | H22: ⑬ | I22: ⑫ | J22: ⑪ | K22: ⑩ | L22: ⑨ | M22: ⑧ | N22: ⑦ | O22: ⑥ | P22: ⑤ | Q22: ④ | R22: ③ | S22: ② | T22: ① | U22: 次の［ ］の部分の漢字には読みがなをひらがなで書き、カタカナは漢字に直しなさい。 | V22: 11 | W22: 「漢字の博士検定試験」練習問題 | AC22: ← | AD22: 10 | AE22: 問 | AF22: =AH7+1 -> 21 | AG22: ～ | AH22: =SUM($AD$2:$AD22)+10 -> 30 | AI22: 問まで | AJ22: =COUNTIF($A$1:$T$200,T23) -> 2
A23: =IF(A21="","",VLOOKUP(A21,漢字書き!$A$2:$N$506,6,0)) -> ［ユウエンチ］に行く | B23: =IF(B21="","",VLOOKUP(B21,漢字書き!$A$2:$N$506,6,0)) -> ［イフク］を整える | C23: =IF(C21="","",VLOOKUP(C21,漢字書き!$A$2:$N$506,6,0)) -> ［ヨウキ］なせいかく | D23: =IF(D21="","",VLOOKUP(D21,漢字書き!$A$2:$N$506,6,0)) -> ［ユ］をわかす | E23: =IF(E21="","",VLOOKUP(E21,漢字書き!$A$2:$N$506,6,0)) -> 薬を［フクヨウ］する | F23: =IF(F21="","",VLOOKUP(F21,漢字書き!$A$2:$N$506,6,0)) -> 答えを［モト］める | G23: =IF(G21="","",VLOOKUP(G21,漢字書き!$A$2:$N$506,6,0)) -> ［クマ］を発見する | H23: =IF(H21="","",VLOOKUP(H21,漢字書き!$A$2:$N$506,6,0)) -> ［クライ］をそろえる | I23: =IF(I21="","",VLOOKUP(I21,漢字書き!$A$2:$N$506,6,0)) -> ［タイ］らな所におく | J23: =IF(J21="","",VLOOKUP(J21,漢字書き!$A$2:$N$506,6,0)) -> はだかの［オウサマ］ | K23: =IF(K21="","",VLOOKUP(K21,漢字読み!$A$2:$O$506,6,0)) -> 高い［波］に気をつける | L23: =IF(L21="","",VLOOKUP(L21,漢字読み!$A$2:$O$506,6,0)) -> ［様子］がわからない | M23: =IF(M21="","",VLOOKUP(M21,漢字読み!$A$2:$O$506,6,0)) -> ［美］しいけしき | N23: =IF(N21="","",VLOOKUP(N21,漢字読み!$A$2:$O$506,6,0)) -> ［街］の光が消える | O23: =IF(O21="","",VLOOKUP(O21,漢字読み!$A$2:$O$506,6,0)) -> 魚を［放流］する | P23: =IF(P21="","",VLOOKUP(P21,漢字読み!$A$2:$O$506,6,0)) -> ［品物］をならべる | Q23: =IF(Q21="","",VLOOKUP(Q21,漢字読み!$A$2:$O$506,6,0)) -> ［湯］に水をまぜる | R23: =IF(R21="","",VLOOKUP(R21,漢字読み!$A$2:$O$506,6,0)) -> 山に［登］る | S23: =IF(S21="","",VLOOKUP(S21,漢字読み!$A$2:$O$506,6,0)) -> 助けを［求］める | T23: =IF(T21="","",VLOOKUP(T21,漢字読み!$A$2:$O$506,6,0)) -> 夏休みの［予定］ | V23: 級
V24: 名前
A25: =IF(A21="","",IF(VLOOKUP(A21,漢字書き!$A$2:$N$502,7,0)=0,"",VLOOKUP(A21,漢字書き!$A$2:$N$502,7,0))) ->  | B25: =IF(B21="","",IF(VLOOKUP(B21,漢字書き!$A$2:$N$502,7,0)=0,"",VLOOKUP(B21,漢字書き!$A$2:$N$502,7,0))) ->  | C25: =IF(C21="","",IF(VLOOKUP(C21,漢字書き!$A$2:$N$502,7,0)=0,"",VLOOKUP(C21,漢字書き!$A$2:$N$502,7,0))) -> な | D25: =IF(D21="","",IF(VLOOKUP(D21,漢字書き!$A$2:$N$502,7,0)=0,"",VLOOKUP(D21,漢字書き!$A$2:$N$502,7,0))) ->  | E25: =IF(E21="","",IF(VLOOKUP(E21,漢字書き!$A$2:$N$502,7,0)=0,"",VLOOKUP(E21,漢字書き!$A$2:$N$502,7,0))) -> する | F25: =IF(F21="","",IF(VLOOKUP(F21,漢字書き!$A$2:$N$502,7,0)=0,"",VLOOKUP(F21,漢字書き!$A$2:$N$502,7,0))) -> める | G25: =IF(G21="","",IF(VLOOKUP(G21,漢字書き!$A$2:$N$502,7,0)=0,"",VLOOKUP(G21,漢字書き!$A$2:$N$502,7,0))) ->  | H25: =IF(H21="","",IF(VLOOKUP(H21,漢字書き!$A$2:$N$502,7,0)=0,"",VLOOKUP(H21,漢字書き!$A$2:$N$502,7,0))) ->  | I25: =IF(I21="","",IF(VLOOKUP(I21,漢字書き!$A$2:$N$502,7,0)=0,"",VLOOKUP(I21,漢字書き!$A$2:$N$502,7,0))) -> らな | J25: =IF(J21="","",IF(VLOOKUP(J21,漢字書き!$A$2:$N$502,7,0)=0,"",VLOOKUP(J21,漢字書き!$A$2:$N$502,7,0))) ->  | K25: =IF(K21="","",IF(VLOOKUP(K21,漢字読み!$A$2:$O$502,7,0)=0,"",VLOOKUP(K21,漢字読み!$A$2:$O$502,7,0))) ->  | L25: =IF(L21="","",IF(VLOOKUP(L21,漢字読み!$A$2:$O$502,7,0)=0,"",VLOOKUP(L21,漢字読み!$A$2:$O$502,7,0))) ->  | M25: =IF(M21="","",IF(VLOOKUP(M21,漢字読み!$A$2:$O$502,7,0)=0,"",VLOOKUP(M21,漢字読み!$A$2:$O$502,7,0))) -> しい | N25: =IF(N21="","",IF(VLOOKUP(N21,漢字読み!$A$2:$O$502,7,0)=0,"",VLOOKUP(N21,漢字読み!$A$2:$O$502,7,0))) ->  | O25: =IF(O21="","",IF(VLOOKUP(O21,漢字読み!$A$2:$O$502,7,0)=0,"",VLOOKUP(O21,漢字読み!$A$2:$O$502,7,0))) -> する | P25: =IF(P21="","",IF(VLOOKUP(P21,漢字読み!$A$2:$O$502,7,0)=0,"",VLOOKUP(P21,漢字読み!$A$2:$O$502,7,0))) ->  | Q25: =IF(Q21="","",IF(VLOOKUP(Q21,漢字読み!$A$2:$O$502,7,0)=0,"",VLOOKUP(Q21,漢字読み!$A$2:$O$502,7,0))) ->  | R25: =IF(R21="","",IF(VLOOKUP(R21,漢字読み!$A$2:$O$502,7,0)=0,"",VLOOKUP(R21,漢字読み!$A$2:$O$502,7,0))) -> る | S25: =IF(S21="","",IF(VLOOKUP(S21,漢字読み!$A$2:$O$502,7,0)=0,"",VLOOKUP(S21,漢字読み!$A$2:$O$502,7,0))) -> める | T25: =IF(T21="","",IF(VLOOKUP(T21,漢字読み!$A$2:$O$502,7,0)=0,"",VLOOKUP(T21,漢字読み!$A$2:$O$502,7,0))) ->  | W25: 和歌山県教育委員会
A26: =INDIRECT("'関数（書き）'!C" & COLUMN(B$1)+SUM($AD$2:$AD27)) -> 171 | B26: =INDIRECT("'関数（書き）'!C" & COLUMN(C$1)+SUM($AD$2:$AD27)) -> 178 | C26: =INDIRECT("'関数（書き）'!C" & COLUMN(D$1)+SUM($AD$2:$AD27)) -> 78 | D26: =INDIRECT("'関数（書き）'!C" & COLUMN(E$1)+SUM($AD$2:$AD27)) -> 75 | E26: =INDIRECT("'関数（書き）'!C" & COLUMN(F$1)+SUM($AD$2:$AD27)) -> 42 | F26: =INDIRECT("'関数（書き）'!C" & COLUMN(G$1)+SUM($AD$2:$AD27)) -> 184 | G26: =INDIRECT("'関数（書き）'!C" & COLUMN(H$1)+SUM($AD$2:$AD27)) -> 163 | H26: =INDIRECT("'関数（書き）'!C" & COLUMN(I$1)+SUM($AD$2:$AD27)) -> 195 | I26: =INDIRECT("'関数（書き）'!C" & COLUMN(J$1)+SUM($AD$2:$AD27)) -> 168 | J26: =INDIRECT("'関数（書き）'!C" & COLUMN(K$1)+SUM($AD$2:$AD27)) -> 197 | K26: =INDIRECT("'関数（読み）'!C" & COLUMN(B$1)+SUM($AD$2:$AD27)) -> 194 | L26: =INDIRECT("'関数（読み）'!C" & COLUMN(C$1)+SUM($AD$2:$AD27)) -> 156 | M26: =INDIRECT("'関数（読み）'!C" & COLUMN(D$1)+SUM($AD$2:$AD27)) -> 153 | N26: =INDIRECT("'関数（読み）'!C" & COLUMN(E$1)+SUM($AD$2:$AD27)) -> 53 | O26: =INDIRECT("'関数（読み）'!C" & COLUMN(F$1)+SUM($AD$2:$AD27)) -> 19 | P26: =INDIRECT("'関数（読み）'!C" & COLUMN(G$1)+SUM($AD$2:$AD27)) -> 118 | Q26: =INDIRECT("'関数（読み）'!C" & COLUMN(H$1)+SUM($AD$2:$AD27)) -> 15 | R26: =INDIRECT("'関数（読み）'!C" & COLUMN(I$1)+SUM($AD$2:$AD27)) -> 130 | S26: =INDIRECT("'関数（読み）'!C" & COLUMN(J$1)+SUM($AD$2:$AD27)) -> 55 | T26: =INDIRECT("'関数（読み）'!C" & COLUMN(K$1)+SUM($AD$2:$AD27)) -> 104
A27: ⑳ | B27: ⑲ | C27: ⑱ | D27: ⑰ | E27: ⑯ | F27: ⑮ | G27: ⑭ | H27: ⑬ | I27: ⑫ | J27: ⑪ | K27: ⑩ | L27: ⑨ | M27: ⑧ | N27: ⑦ | O27: ⑥ | P27: ⑤ | Q27: ④ | R27: ③ | S27: ② | T27: ① | U27: 次の［ ］の部分の漢字には読みがなをひらがなで書き、カタカナは漢字に直しなさい。 | V27: 11 | W27: 「漢字の博士検定試験」練習問題 | AC27: ← | AD27: 10 | AE27: 問 | AF27: =AH22+1 -> 31 | AG27: ～ | AH27: =SUM($AD$2:$AD27)+10 -> 40 | AI27: 問まで | AJ27: =COUNTIF($A$1:$T$200,T28) -> 2
A28: =IF(A26="","",VLOOKUP(A26,漢字書き!$A$2:$N$506,6,0)) -> ［エンブン］の取りすぎ | B28: =IF(B26="","",VLOOKUP(B26,漢字書き!$A$2:$N$506,6,0)) -> ［カジツ］のしゅうかく | C28: =IF(C26="","",VLOOKUP(C26,漢字書き!$A$2:$N$506,6,0)) -> ［モノガタリ］を読む | D28: =IF(D26="","",VLOOKUP(D26,漢字書き!$A$2:$N$506,6,0)) -> たくさんの［ケンブツ］人 | E28: =IF(E26="","",VLOOKUP(E26,漢字書き!$A$2:$N$506,6,0)) -> みかんの［カワ］ | F28: =IF(F26="","",VLOOKUP(F26,漢字書き!$A$2:$N$506,6,0)) -> ［カダイ］をあたえられる | G28: =IF(G26="","",VLOOKUP(G26,漢字書き!$A$2:$N$506,6,0)) -> ［オカヤマケン］の出身 | H28: =IF(H26="","",VLOOKUP(H26,漢字書き!$A$2:$N$506,6,0)) -> ［カンカク］がするどい | I28: =IF(I26="","",VLOOKUP(I26,漢字書き!$A$2:$N$506,6,0)) -> ［エイ］ゆうになる | J28: =IF(J26="","",VLOOKUP(J26,漢字書き!$A$2:$N$506,6,0)) -> 字を［オボ］える | K28: =IF(K26="","",VLOOKUP(K26,漢字読み!$A$2:$O$506,6,0)) -> ［観光］地をおとずれる | L28: =IF(L26="","",VLOOKUP(L26,漢字読み!$A$2:$O$506,6,0)) -> ［岡山県］に帰る | M28: =IF(M26="","",VLOOKUP(M26,漢字読み!$A$2:$O$506,6,0)) -> ［品位］が問われる | N28: =IF(N26="","",VLOOKUP(N26,漢字読み!$A$2:$O$506,6,0)) -> ［病院］でみてもらう | O28: =IF(O26="","",VLOOKUP(O26,漢字読み!$A$2:$O$506,6,0)) -> 新聞を［配達］する | P28: =IF(P26="","",VLOOKUP(P26,漢字読み!$A$2:$O$506,6,0)) -> ［落葉］する木 | Q28: =IF(Q26="","",VLOOKUP(Q26,漢字読み!$A$2:$O$506,6,0)) -> ［波長］が合う | R28: =IF(R26="","",VLOOKUP(R26,漢字読み!$A$2:$O$506,6,0)) -> 水に［流］す | S28: =IF(S26="","",VLOOKUP(S26,漢字読み!$A$2:$O$506,6,0)) -> 車の［部品］ | T28: =IF(T26="","",VLOOKUP(T26,漢字読み!$A$2:$O$506,6,0)) -> 火に［油］をそそぐ | V28: 級
V29: 名前
A30: =IF(A26="","",IF(VLOOKUP(A26,漢字書き!$A$2:$N$502,7,0)=0,"",VLOOKUP(A26,漢字書き!$A$2:$N$502,7,0))) ->  | B30: =IF(B26="","",IF(VLOOKUP(B26,漢字書き!$A$2:$N$502,7,0)=0,"",VLOOKUP(B26,漢字書き!$A$2:$N$502,7,0))) ->  | C30: =IF(C26="","",IF(VLOOKUP(C26,漢字書き!$A$2:$N$502,7,0)=0,"",VLOOKUP(C26,漢字書き!$A$2:$N$502,7,0))) ->  | D30: =IF(D26="","",IF(VLOOKUP(D26,漢字書き!$A$2:$N$502,7,0)=0,"",VLOOKUP(D26,漢字書き!$A$2:$N$502,7,0))) -> 人 | E30: =IF(E26="","",IF(VLOOKUP(E26,漢字書き!$A$2:$N$502,7,0)=0,"",VLOOKUP(E26,漢字書き!$A$2:$N$502,7,0))) ->  | F30: =IF(F26="","",IF(VLOOKUP(F26,漢字書き!$A$2:$N$502,7,0)=0,"",VLOOKUP(F26,漢字書き!$A$2:$N$502,7,0))) ->  | G30: =IF(G26="","",IF(VLOOKUP(G26,漢字書き!$A$2:$N$502,7,0)=0,"",VLOOKUP(G26,漢字書き!$A$2:$N$502,7,0))) ->  | H30: =IF(H26="","",IF(VLOOKUP(H26,漢字書き!$A$2:$N$502,7,0)=0,"",VLOOKUP(H26,漢字書き!$A$2:$N$502,7,0))) ->  | I30: =IF(I26="","",IF(VLOOKUP(I26,漢字書き!$A$2:$N$502,7,0)=0,"",VLOOKUP(I26,漢字書き!$A$2:$N$502,7,0))) -> ゆう | J30: =IF(J26="","",IF(VLOOKUP(J26,漢字書き!$A$2:$N$502,7,0)=0,"",VLOOKUP(J26,漢字書き!$A$2:$N$502,7,0))) -> える | K30: =IF(K26="","",IF(VLOOKUP(K26,漢字読み!$A$2:$O$502,7,0)=0,"",VLOOKUP(K26,漢字読み!$A$2:$O$502,7,0))) -> 地 | L30: =IF(L26="","",IF(VLOOKUP(L26,漢字読み!$A$2:$O$502,7,0)=0,"",VLOOKUP(L26,漢字読み!$A$2:$O$502,7,0))) ->  | M30: =IF(M26="","",IF(VLOOKUP(M26,漢字読み!$A$2:$O$502,7,0)=0,"",VLOOKUP(M26,漢字読み!$A$2:$O$502,7,0))) ->  | N30: =IF(N26="","",IF(VLOOKUP(N26,漢字読み!$A$2:$O$502,7,0)=0,"",VLOOKUP(N26,漢字読み!$A$2:$O$502,7,0))) ->  | O30: =IF(O26="","",IF(VLOOKUP(O26,漢字読み!$A$2:$O$502,7,0)=0,"",VLOOKUP(O26,漢字読み!$A$2:$O$502,7,0))) -> する | P30: =IF(P26="","",IF(VLOOKUP(P26,漢字読み!$A$2:$O$502,7,0)=0,"",VLOOKUP(P26,漢字読み!$A$2:$O$502,7,0))) -> する | Q30: =IF(Q26="","",IF(VLOOKUP(Q26,漢字読み!$A$2:$O$502,7,0)=0,"",VLOOKUP(Q26,漢字読み!$A$2:$O$502,7,0))) ->  | R30: =IF(R26="","",IF(VLOOKUP(R26,漢字読み!$A$2:$O$502,7,0)=0,"",VLOOKUP(R26,漢字読み!$A$2:$O$502,7,0))) -> す | S30: =IF(S26="","",IF(VLOOKUP(S26,漢字読み!$A$2:$O$502,7,0)=0,"",VLOOKUP(S26,漢字読み!$A$2:$O$502,7,0))) ->  | T30: =IF(T26="","",IF(VLOOKUP(T26,漢字読み!$A$2:$O$502,7,0)=0,"",VLOOKUP(T26,漢字読み!$A$2:$O$502,7,0))) ->  | W30: 和歌山県教育委員会
A31: =A21 -> 113 | B31: =B21 -> 158 | C31: =C21 -> 125 | D31: =D21 -> 2 | E31: =E21 -> 72 | F31: =F21 -> 224 | G31: =G21 -> 225 | H31: =H21 -> 161 | I31: =I21 -> 81 | J31: =J21 -> 127 | K31: =K21 -> 18 | L31: =L21 -> 123 | M31: =M21 -> 40 | N31: =N21 -> 181 | O31: =O21 -> 80 | P31: =P21 -> 69 | Q31: =Q21 -> 2 | R31: =R21 -> 6 | S31: =S21 -> 210 | T31: =T21 -> 111
A32: ⑳ | B32: ⑲ | C32: ⑱ | D32: ⑰ | E32: ⑯ | F32: ⑮ | G32: ⑭ | H32: ⑬ | I32: ⑫ | J32: ⑪ | K32: ⑩ | L32: ⑨ | M32: ⑧ | N32: ⑦ | O32: ⑥ | P32: ⑤ | Q32: ④ | R32: ③ | S32: ② | T32: ① | U32: 次の［ ］の部分の漢字には読みがなをひらがなで書き、カタカナは漢字に直しなさい。 | V32: 11 | W32: 「漢字の博士検定試験」練習問題
A33: =IF(A31="","",VLOOKUP(A31,漢字書き!$A$2:$N$506,6,0)) -> ［ユウエンチ］に行く | B33: =IF(B31="","",VLOOKUP(B31,漢字書き!$A$2:$N$506,6,0)) -> ［イフク］を整える | C33: =IF(C31="","",VLOOKUP(C31,漢字書き!$A$2:$N$506,6,0)) -> ［ヨウキ］なせいかく | D33: =IF(D31="","",VLOOKUP(D31,漢字書き!$A$2:$N$506,6,0)) -> ［ユ］をわかす | E33: =IF(E31="","",VLOOKUP(E31,漢字書き!$A$2:$N$506,6,0)) -> 薬を［フクヨウ］する | F33: =IF(F31="","",VLOOKUP(F31,漢字書き!$A$2:$N$506,6,0)) -> 答えを［モト］める | G33: =IF(G31="","",VLOOKUP(G31,漢字書き!$A$2:$N$506,6,0)) -> ［クマ］を発見する | H33: =IF(H31="","",VLOOKUP(H31,漢字書き!$A$2:$N$506,6,0)) -> ［クライ］をそろえる | I33: =IF(I31="","",VLOOKUP(I31,漢字書き!$A$2:$N$506,6,0)) -> ［タイ］らな所におく | J33: =IF(J31="","",VLOOKUP(J31,漢字書き!$A$2:$N$506,6,0)) -> はだかの［オウサマ］ | K33: =IF(K31="","",VLOOKUP(K31,漢字読み!$A$2:$O$506,6,0)) -> 高い［波］に気をつける | L33: =IF(L31="","",VLOOKUP(L31,漢字読み!$A$2:$O$506,6,0)) -> ［様子］がわからない | M33: =IF(M31="","",VLOOKUP(M31,漢字読み!$A$2:$O$506,6,0)) -> ［美］しいけしき | N33: =IF(N31="","",VLOOKUP(N31,漢字読み!$A$2:$O$506,6,0)) -> ［街］の光が消える | O33: =IF(O31="","",VLOOKUP(O31,漢字読み!$A$2:$O$506,6,0)) -> 魚を［放流］する | P33: =IF(P31="","",VLOOKUP(P31,漢字読み!$A$2:$O$506,6,0)) -> ［品物］をならべる | Q33: =IF(Q31="","",VLOOKUP(Q31,漢字読み!$A$2:$O$506,6,0)) -> ［湯］に水をまぜる | R33: =IF(R31="","",VLOOKUP(R31,漢字読み!$A$2:$O$506,6,0)) -> 山に［登］る | S33: =IF(S31="","",VLOOKUP(S31,漢字読み!$A$2:$O$506,6,0)) -> 助けを［求］める | T33: =IF(T31="","",VLOOKUP(T31,漢字読み!$A$2:$O$506,6,0)) -> 夏休みの［予定］ | V33: 級
A34: =IF(A$11="","",VLOOKUP(A31,漢字書き!$A$2:$O$506,8,0)) -> 遊園地 | B34: =IF(B$11="","",VLOOKUP(B31,漢字書き!$A$2:$O$506,8,0)) -> 衣服 | C34: =IF(C$11="","",VLOOKUP(C31,漢字書き!$A$2:$O$506,8,0)) -> 陽気 | D34: =IF(D$11="","",VLOOKUP(D31,漢字書き!$A$2:$O$506,8,0)) -> 湯 | E34: =IF(E$11="","",VLOOKUP(E31,漢字書き!$A$2:$O$506,8,0)) -> 服用 | F34: =IF(F$11="","",VLOOKUP(F31,漢字書き!$A$2:$O$506,8,0)) -> 求 | G34: =IF(G$11="","",VLOOKUP(G31,漢字書き!$A$2:$O$506,8,0)) -> 熊 | H34: =IF(H$11="","",VLOOKUP(H31,漢字書き!$A$2:$O$506,8,0)) -> 位 | I34: =IF(I$11="","",VLOOKUP(I31,漢字書き!$A$2:$O$506,8,0)) -> 平 | J34: =IF(J$11="","",VLOOKUP(J31,漢字書き!$A$2:$O$506,8,0)) -> 王様 | K34: =IF(K$11="","",VLOOKUP(K31,漢字読み!$A$2:$O$506,8,0)) -> なみ | L34: =IF(L$11="","",VLOOKUP(L31,漢字読み!$A$2:$O$506,8,0)) -> ようす | M34: =IF(M$11="","",VLOOKUP(M31,漢字読み!$A$2:$O$506,8,0)) -> うつく | N34: =IF(N$11="","",VLOOKUP(N31,漢字読み!$A$2:$O$506,8,0)) -> まち | O34: =IF(O$11="","",VLOOKUP(O31,漢字読み!$A$2:$O$506,8,0)) -> ほうりゅう | P34: =IF(P$11="","",VLOOKUP(P31,漢字読み!$A$2:$O$506,8,0)) -> しなもの | Q34: =IF(Q$11="","",VLOOKUP(Q31,漢字読み!$A$2:$O$506,8,0)) -> ゆ | R34: =IF(R$11="","",VLOOKUP(R31,漢字読み!$A$2:$O$506,8,0)) -> のぼ | S34: =IF(S$11="","",VLOOKUP(S31,漢字読み!$A$2:$O$506,8,0)) -> もと | T34: =IF(T$11="","",VLOOKUP(T31,漢字読み!$A$2:$O$506,8,0)) -> よてい | V34: 名前
A35: =IF(A31="","",IF(VLOOKUP(A31,漢字書き!$A$2:$N$502,7,0)=0,"",VLOOKUP(A31,漢字書き!$A$2:$N$502,7,0))) ->  | B35: =IF(B31="","",IF(VLOOKUP(B31,漢字書き!$A$2:$N$502,7,0)=0,"",VLOOKUP(B31,漢字書き!$A$2:$N$502,7,0))) ->  | C35: =IF(C31="","",IF(VLOOKUP(C31,漢字書き!$A$2:$N$502,7,0)=0,"",VLOOKUP(C31,漢字書き!$A$2:$N$502,7,0))) -> な | D35: =IF(D31="","",IF(VLOOKUP(D31,漢字書き!$A$2:$N$502,7,0)=0,"",VLOOKUP(D31,漢字書き!$A$2:$N$502,7,0))) ->  | E35: =IF(E31="","",IF(VLOOKUP(E31,漢字書き!$A$2:$N$502,7,0)=0,"",VLOOKUP(E31,漢字書き!$A$2:$N$502,7,0))) -> する | F35: =IF(F31="","",IF(VLOOKUP(F31,漢字書き!$A$2:$N$502,7,0)=0,"",VLOOKUP(F31,漢字書き!$A$2:$N$502,7,0))) -> める | G35: =IF(G31="","",IF(VLOOKUP(G31,漢字書き!$A$2:$N$502,7,0)=0,"",VLOOKUP(G31,漢字書き!$A$2:$N$502,7,0))) ->  | H35: =IF(H31="","",IF(VLOOKUP(H31,漢字書き!$A$2:$N$502,7,0)=0,"",VLOOKUP(H31,漢字書き!$A$2:$N$502,7,0))) ->  | I35: =IF(I31="","",IF(VLOOKUP(I31,漢字書き!$A$2:$N$502,7,0)=0,"",VLOOKUP(I31,漢字書き!$A$2:$N$502,7,0))) -> らな | J35: =IF(J31="","",IF(VLOOKUP(J31,漢字書き!$A$2:$N$502,7,0)=0,"",VLOOKUP(J31,漢字書き!$A$2:$N$502,7,0))) ->  | K35: =IF(K31="","",IF(VLOOKUP(K31,漢字読み!$A$2:$O$502,7,0)=0,"",VLOOKUP(K31,漢字読み!$A$2:$O$502,7,0))) ->  | L35: =IF(L31="","",IF(VLOOKUP(L31,漢字読み!$A$2:$O$502,7,0)=0,"",VLOOKUP(L31,漢字読み!$A$2:$O$502,7,0))) ->  | M35: =IF(M31="","",IF(VLOOKUP(M31,漢字読み!$A$2:$O$502,7,0)=0,"",VLOOKUP(M31,漢字読み!$A$2:$O$502,7,0))) -> しい | N35: =IF(N31="","",IF(VLOOKUP(N31,漢字読み!$A$2:$O$502,7,0)=0,"",VLOOKUP(N31,漢字読み!$A$2:$O$502,7,0))) ->  | O35: =IF(O31="","",IF(VLOOKUP(O31,漢字読み!$A$2:$O$502,7,0)=0,"",VLOOKUP(O31,漢字読み!$A$2:$O$502,7,0))) -> する | P35: =IF(P31="","",IF(VLOOKUP(P31,漢字読み!$A$2:$O$502,7,0)=0,"",VLOOKUP(P31,漢字読み!$A$2:$O$502,7,0))) ->  | Q35: =IF(Q31="","",IF(VLOOKUP(Q31,漢字読み!$A$2:$O$502,7,0)=0,"",VLOOKUP(Q31,漢字読み!$A$2:$O$502,7,0))) ->  | R35: =IF(R31="","",IF(VLOOKUP(R31,漢字読み!$A$2:$O$502,7,0)=0,"",VLOOKUP(R31,漢字読み!$A$2:$O$502,7,0))) -> る | S35: =IF(S31="","",IF(VLOOKUP(S31,漢字読み!$A$2:$O$502,7,0)=0,"",VLOOKUP(S31,漢字読み!$A$2:$O$502,7,0))) -> める | T35: =IF(T31="","",IF(VLOOKUP(T31,漢字読み!$A$2:$O$502,7,0)=0,"",VLOOKUP(T31,漢字読み!$A$2:$O$502,7,0))) ->  | W35: 和歌山県教育委員会
A36: =A26 -> 171 | B36: =B26 -> 178 | C36: =C26 -> 78 | D36: =D26 -> 75 | E36: =E26 -> 42 | F36: =F26 -> 184 | G36: =G26 -> 163 | H36: =H26 -> 195 | I36: =I26 -> 168 | J36: =J26 -> 197 | K36: =K26 -> 194 | L36: =L26 -> 156 | M36: =M26 -> 153 | N36: =N26 -> 53 | O36: =O26 -> 19 | P36: =P26 -> 118 | Q36: =Q26 -> 15 | R36: =R26 -> 130 | S36: =S26 -> 55 | T36: =T26 -> 104
A37: ⑳ | B37: ⑲ | C37: ⑱ | D37: ⑰ | E37: ⑯ | F37: ⑮ | G37: ⑭ | H37: ⑬ | I37: ⑫ | J37: ⑪ | K37: ⑩ | L37: ⑨ | M37: ⑧ | N37: ⑦ | O37: ⑥ | P37: ⑤ | Q37: ④ | R37: ③ | S37: ② | T37: ① | U37: 次の［ ］の部分の漢字には読みがなをひらがなで書き、カタカナは漢字に直しなさい。 | V37: 11 | W37: 「漢字の博士検定試験」練習問題
A38: =IF(A36="","",VLOOKUP(A36,漢字書き!$A$2:$N$506,6,0)) -> ［エンブン］の取りすぎ | B38: =IF(B36="","",VLOOKUP(B36,漢字書き!$A$2:$N$506,6,0)) -> ［カジツ］のしゅうかく | C38: =IF(C36="","",VLOOKUP(C36,漢字書き!$A$2:$N$506,6,0)) -> ［モノガタリ］を読む | D38: =IF(D36="","",VLOOKUP(D36,漢字書き!$A$2:$N$506,6,0)) -> たくさんの［ケンブツ］人 | E38: =IF(E36="","",VLOOKUP(E36,漢字書き!$A$2:$N$506,6,0)) -> みかんの［カワ］ | F38: =IF(F36="","",VLOOKUP(F36,漢字書き!$A$2:$N$506,6,0)) -> ［カダイ］をあたえられる | G38: =IF(G36="","",VLOOKUP(G36,漢字書き!$A$2:$N$506,6,0)) -> ［オカヤマケン］の出身 | H38: =IF(H36="","",VLOOKUP(H36,漢字書き!$A$2:$N$506,6,0)) -> ［カンカク］がするどい | I38: =IF(I36="","",VLOOKUP(I36,漢字書き!$A$2:$N$506,6,0)) -> ［エイ］ゆうになる | J38: =IF(J36="","",VLOOKUP(J36,漢字書き!$A$2:$N$506,6,0)) -> 字を［オボ］える | K38: =IF(K36="","",VLOOKUP(K36,漢字読み!$A$2:$O$506,6,0)) -> ［観光］地をおとずれる | L38: =IF(L36="","",VLOOKUP(L36,漢字読み!$A$2:$O$506,6,0)) -> ［岡山県］に帰る | M38: =IF(M36="","",VLOOKUP(M36,漢字読み!$A$2:$O$506,6,0)) -> ［品位］が問われる | N38: =IF(N36="","",VLOOKUP(N36,漢字読み!$A$2:$O$506,6,0)) -> ［病院］でみてもらう | O38: =IF(O36="","",VLOOKUP(O36,漢字読み!$A$2:$O$506,6,0)) -> 新聞を［配達］する | P38: =IF(P36="","",VLOOKUP(P36,漢字読み!$A$2:$O$506,6,0)) -> ［落葉］する木 | Q38: =IF(Q36="","",VLOOKUP(Q36,漢字読み!$A$2:$O$506,6,0)) -> ［波長］が合う | R38: =IF(R36="","",VLOOKUP(R36,漢字読み!$A$2:$O$506,6,0)) -> 水に［流］す | S38: =IF(S36="","",VLOOKUP(S36,漢字読み!$A$2:$O$506,6,0)) -> 車の［部品］ | T38: =IF(T36="","",VLOOKUP(T36,漢字読み!$A$2:$O$506,6,0)) -> 火に［油］をそそぐ | V38: 級
A39: =IF(A$16="","",VLOOKUP(A36,漢字書き!$A$2:$O$506,8,0)) -> 塩分 | B39: =IF(B$16="","",VLOOKUP(B36,漢字書き!$A$2:$O$506,8,0)) -> 果実 | C39: =IF(C$16="","",VLOOKUP(C36,漢字書き!$A$2:$O$506,8,0)) -> 物語 | D39: =IF(D$16="","",VLOOKUP(D36,漢字書き!$A$2:$O$506,8,0)) -> 見物 | E39: =IF(E$16="","",VLOOKUP(E36,漢字書き!$A$2:$O$506,8,0)) -> 皮 | F39: =IF(F$16="","",VLOOKUP(F36,漢字書き!$A$2:$O$506,8,0)) -> 課題 | G39: =IF(G$16="","",VLOOKUP(G36,漢字書き!$A$2:$O$506,8,0)) -> 岡山県 | H39: =IF(H$16="","",VLOOKUP(H36,漢字書き!$A$2:$O$506,8,0)) -> 感覚 | I39: =IF(I$16="","",VLOOKUP(I36,漢字書き!$A$2:$O$506,8,0)) -> 英 | J39: =IF(J$16="","",VLOOKUP(J36,漢字書き!$A$2:$O$506,8,0)) -> 覚 | K39: =IF(K$16="","",VLOOKUP(K36,漢字読み!$A$2:$O$506,8,0)) -> かんこう | L39: =IF(L$16="","",VLOOKUP(L36,漢字読み!$A$2:$O$506,8,0)) -> おかやまけん | M39: =IF(M$16="","",VLOOKUP(M36,漢字読み!$A$2:$O$506,8,0)) -> ひんい | N39: =IF(N$16="","",VLOOKUP(N36,漢字読み!$A$2:$O$506,8,0)) -> びょういん | O39: =IF(O$16="","",VLOOKUP(O36,漢字読み!$A$2:$O$506,8,0)) -> はいたつ | P39: =IF(P$16="","",VLOOKUP(P36,漢字読み!$A$2:$O$506,8,0)) -> らくよう | Q39: =IF(Q$16="","",VLOOKUP(Q36,漢字読み!$A$2:$O$506,8,0)) -> はちょう | R39: =IF(R$16="","",VLOOKUP(R36,漢字読み!$A$2:$O$506,8,0)) -> なが | S39: =IF(S$16="","",VLOOKUP(S36,漢字読み!$A$2:$O$506,8,0)) -> ぶひん | T39: =IF(T$16="","",VLOOKUP(T36,漢字読み!$A$2:$O$506,8,0)) -> あぶら | V39: 名前
A40: =IF(A36="","",IF(VLOOKUP(A36,漢字書き!$A$2:$N$502,7,0)=0,"",VLOOKUP(A36,漢字書き!$A$2:$N$502,7,0))) ->  | B40: =IF(B36="","",IF(VLOOKUP(B36,漢字書き!$A$2:$N$502,7,0)=0,"",VLOOKUP(B36,漢字書き!$A$2:$N$502,7,0))) ->  | C40: =IF(C36="","",IF(VLOOKUP(C36,漢字書き!$A$2:$N$502,7,0)=0,"",VLOOKUP(C36,漢字書き!$A$2:$N$502,7,0))) ->  | D40: =IF(D36="","",IF(VLOOKUP(D36,漢字書き!$A$2:$N$502,7,0)=0,"",VLOOKUP(D36,漢字書き!$A$2:$N$502,7,0))) -> 人 | E40: =IF(E36="","",IF(VLOOKUP(E36,漢字書き!$A$2:$N$502,7,0)=0,"",VLOOKUP(E36,漢字書き!$A$2:$N$502,7,0))) ->  | F40: =IF(F36="","",IF(VLOOKUP(F36,漢字書き!$A$2:$N$502,7,0)=0,"",VLOOKUP(F36,漢字書き!$A$2:$N$502,7,0))) ->  | G40: =IF(G36="","",IF(VLOOKUP(G36,漢字書き!$A$2:$N$502,7,0)=0,"",VLOOKUP(G36,漢字書き!$A$2:$N$502,7,0))) ->  | H40: =IF(H36="","",IF(VLOOKUP(H36,漢字書き!$A$2:$N$502,7,0)=0,"",VLOOKUP(H36,漢字書き!$A$2:$N$502,7,0))) ->  | I40: =IF(I36="","",IF(VLOOKUP(I36,漢字書き!$A$2:$N$502,7,0)=0,"",VLOOKUP(I36,漢字書き!$A$2:$N$502,7,0))) -> ゆう | J40: =IF(J36="","",IF(VLOOKUP(J36,漢字書き!$A$2:$N$502,7,0)=0,"",VLOOKUP(J36,漢字書き!$A$2:$N$502,7,0))) -> える | K40: =IF(K36="","",IF(VLOOKUP(K36,漢字読み!$A$2:$O$502,7,0)=0,"",VLOOKUP(K36,漢字読み!$A$2:$O$502,7,0))) -> 地 | L40: =IF(L36="","",IF(VLOOKUP(L36,漢字読み!$A$2:$O$502,7,0)=0,"",VLOOKUP(L36,漢字読み!$A$2:$O$502,7,0))) ->  | M40: =IF(M36="","",IF(VLOOKUP(M36,漢字読み!$A$2:$O$502,7,0)=0,"",VLOOKUP(M36,漢字読み!$A$2:$O$502,7,0))) ->  | N40: =IF(N36="","",IF(VLOOKUP(N36,漢字読み!$A$2:$O$502,7,0)=0,"",VLOOKUP(N36,漢字読み!$A$2:$O$502,7,0))) ->  | O40: =IF(O36="","",IF(VLOOKUP(O36,漢字読み!$A$2:$O$502,7,0)=0,"",VLOOKUP(O36,漢字読み!$A$2:$O$502,7,0))) -> する | P40: =IF(P36="","",IF(VLOOKUP(P36,漢字読み!$A$2:$O$502,7,0)=0,"",VLOOKUP(P36,漢字読み!$A$2:$O$502,7,0))) -> する | Q40: =IF(Q36="","",IF(VLOOKUP(Q36,漢字読み!$A$2:$O$502,7,0)=0,"",VLOOKUP(Q36,漢字読み!$A$2:$O$502,7,0))) ->  | R40: =IF(R36="","",IF(VLOOKUP(R36,漢字読み!$A$2:$O$502,7,0)=0,"",VLOOKUP(R36,漢字読み!$A$2:$O$502,7,0))) -> す | S40: =IF(S36="","",IF(VLOOKUP(S36,漢字読み!$A$2:$O$502,7,0)=0,"",VLOOKUP(S36,漢字読み!$A$2:$O$502,7,0))) ->  | T40: =IF(T36="","",IF(VLOOKUP(T36,漢字読み!$A$2:$O$502,7,0)=0,"",VLOOKUP(T36,漢字読み!$A$2:$O$502,7,0))) ->  | W40: 和歌山県教育委員会
A41: =INDIRECT("'関数（書き）'!C" & COLUMN(B$1)+SUM($AD$2:$AD42)) -> 6 | B41: =INDIRECT("'関数（書き）'!C" & COLUMN(C$1)+SUM($AD$2:$AD42)) -> 177 | C41: =INDIRECT("'関数（書き）'!C" & COLUMN(D$1)+SUM($AD$2:$AD42)) -> 108 | D41: =INDIRECT("'関数（書き）'!C" & COLUMN(E$1)+SUM($AD$2:$AD42)) -> 54 | E41: =INDIRECT("'関数（書き）'!C" & COLUMN(F$1)+SUM($AD$2:$AD42)) -> 115 | F41: =INDIRECT("'関数（書き）'!C" & COLUMN(G$1)+SUM($AD$2:$AD42)) -> 136 | G41: =INDIRECT("'関数（書き）'!C" & COLUMN(H$1)+SUM($AD$2:$AD42)) -> 214 | H41: =INDIRECT("'関数（書き）'!C" & COLUMN(I$1)+SUM($AD$2:$AD42)) -> 40 | I41: =INDIRECT("'関数（書き）'!C" & COLUMN(J$1)+SUM($AD$2:$AD42)) -> 169 | J41: =INDIRECT("'関数（書き）'!C" & COLUMN(K$1)+SUM($AD$2:$AD42)) -> 23 | K41: =INDIRECT("'関数（読み）'!C" & COLUMN(B$1)+SUM($AD$2:$AD42)) -> 51 | L41: =INDIRECT("'関数（読み）'!C" & COLUMN(C$1)+SUM($AD$2:$AD42)) -> 204 | M41: =INDIRECT("'関数（読み）'!C" & COLUMN(D$1)+SUM($AD$2:$AD42)) -> 92 | N41: =INDIRECT("'関数（読み）'!C" & COLUMN(E$1)+SUM($AD$2:$AD42)) -> 11 | O41: =INDIRECT("'関数（読み）'!C" & COLUMN(F$1)+SUM($AD$2:$AD42)) -> 102 | P41: =INDIRECT("'関数（読み）'!C" & COLUMN(G$1)+SUM($AD$2:$AD42)) -> 134 | Q41: =INDIRECT("'関数（読み）'!C" & COLUMN(H$1)+SUM($AD$2:$AD42)) -> 197 | R41: =INDIRECT("'関数（読み）'!C" & COLUMN(I$1)+SUM($AD$2:$AD42)) -> 189 | S41: =INDIRECT("'関数（読み）'!C" & COLUMN(J$1)+SUM($AD$2:$AD42)) -> 112 | T41: =INDIRECT("'関数（読み）'!C" & COLUMN(K$1)+SUM($AD$2:$AD42)) -> 21
A42: ⑳ | B42: ⑲ | C42: ⑱ | D42: ⑰ | E42: ⑯ | F42: ⑮ | G42: ⑭ | H42: ⑬ | I42: ⑫ | J42: ⑪ | K42: ⑩ | L42: ⑨ | M42: ⑧ | N42: ⑦ | O42: ⑥ | P42: ⑤ | Q42: ④ | R42: ③ | S42: ② | T42: ① | U42: 次の［ ］の部分の漢字には読みがなをひらがなで書き、カタカナは漢字に直しなさい。 | V42: 11 | W42: 「漢字の博士検定試験」練習問題 | AC42: ← | AD42: 10 | AE42: 問 | AF42: =AH27+1 -> 41 | AG42: ～ | AH42: =SUM($AD$2:$AD42)+10 -> 50 | AI42: 問まで | AJ42: =COUNTIF($A$1:$T$200,T43) -> 2
A43: =IF(A41="","",VLOOKUP(A41,漢字書き!$A$2:$N$506,6,0)) -> ケーキを［トウブン］する | B43: =IF(B41="","",VLOOKUP(B41,漢字書き!$A$2:$N$506,6,0)) -> ゲームに［クワ］わる | C43: =IF(C41="","",VLOOKUP(C41,漢字書き!$A$2:$N$506,6,0)) -> ［ジユウ］な生活 | D43: =IF(D41="","",VLOOKUP(D41,漢字書き!$A$2:$N$506,6,0)) -> ［ヒョウシ］の写真 | E43: =IF(E41="","",VLOOKUP(E41,漢字書き!$A$2:$N$506,6,0)) -> 昔の［アソ］び | F43: =IF(F41="","",VLOOKUP(F41,漢字書き!$A$2:$N$506,6,0)) -> ［リョウホウ］ともほしい | G43: =IF(G41="","",VLOOKUP(G41,漢字書き!$A$2:$N$506,6,0)) -> ［ニイガタケン］の米づくり | H43: =IF(H41="","",VLOOKUP(H41,漢字書き!$A$2:$N$506,6,0)) -> りんごの［カワ］をむく | I43: =IF(I41="","",VLOOKUP(I41,漢字書き!$A$2:$N$506,6,0)) -> ［エイコウ］のかけ橋 | J43: =IF(J41="","",VLOOKUP(J41,漢字書き!$A$2:$N$506,6,0)) -> ごみ［バコ］を用意する | K43: =IF(K41="","",VLOOKUP(K41,漢字読み!$A$2:$O$506,6,0)) -> 一分は六十［秒］ | L43: =IF(L41="","",VLOOKUP(L41,漢字読み!$A$2:$O$506,6,0)) -> ［旗］をふる | M43: =IF(M41="","",VLOOKUP(M41,漢字読み!$A$2:$O$506,6,0)) -> ［問答］をする | N43: =IF(N41="","",VLOOKUP(N41,漢字読み!$A$2:$O$506,6,0)) -> ［童話］を読む | O43: =IF(O41="","",VLOOKUP(O41,漢字読み!$A$2:$O$506,6,0)) -> ［由来］をたずねる | P43: =IF(P41="","",VLOOKUP(P41,漢字読み!$A$2:$O$506,6,0)) -> 一人で［旅］をする | Q43: =IF(Q41="","",VLOOKUP(Q41,漢字読み!$A$2:$O$506,6,0)) -> ［願］いがかなう | R43: =IF(R41="","",VLOOKUP(R41,漢字読み!$A$2:$O$506,6,0)) -> 体には［血管］がある | S43: =IF(S41="","",VLOOKUP(S41,漢字読み!$A$2:$O$506,6,0)) -> ［羊毛］のセーター | T43: =IF(T41="","",VLOOKUP(T41,漢字読み!$A$2:$O$506,6,0)) -> 長さを［倍］にする | V43: 級
V44: 名前
A45: =IF(A41="","",IF(VLOOKUP(A41,漢字書き!$A$2:$N$502,7,0)=0,"",VLOOKUP(A41,漢字書き!$A$2:$N$502,7,0))) -> する | B45: =IF(B41="","",IF(VLOOKUP(B41,漢字書き!$A$2:$N$502,7,0)=0,"",VLOOKUP(B41,漢字書き!$A$2:$N$502,7,0))) -> わる | C45: =IF(C41="","",IF(VLOOKUP(C41,漢字書き!$A$2:$N$502,7,0)=0,"",VLOOKUP(C41,漢字書き!$A$2:$N$502,7,0))) -> な | D45: =IF(D41="","",IF(VLOOKUP(D41,漢字書き!$A$2:$N$502,7,0)=0,"",VLOOKUP(D41,漢字書き!$A$2:$N$502,7,0))) ->  | E45: =IF(E41="","",IF(VLOOKUP(E41,漢字書き!$A$2:$N$502,7,0)=0,"",VLOOKUP(E41,漢字書き!$A$2:$N$502,7,0))) -> び | F45: =IF(F41="","",IF(VLOOKUP(F41,漢字書き!$A$2:$N$502,7,0)=0,"",VLOOKUP(F41,漢字書き!$A$2:$N$502,7,0))) ->  | G45: =IF(G41="","",IF(VLOOKUP(G41,漢字書き!$A$2:$N$502,7,0)=0,"",VLOOKUP(G41,漢字書き!$A$2:$N$502,7,0))) ->  | H45: =IF(H41="","",IF(VLOOKUP(H41,漢字書き!$A$2:$N$502,7,0)=0,"",VLOOKUP(H41,漢字書き!$A$2:$N$502,7,0))) ->  | I45: =IF(I41="","",IF(VLOOKUP(I41,漢字書き!$A$2:$N$502,7,0)=0,"",VLOOKUP(I41,漢字書き!$A$2:$N$502,7,0))) ->  | J45: =IF(J41="","",IF(VLOOKUP(J41,漢字書き!$A$2:$N$502,7,0)=0,"",VLOOKUP(J41,漢字書き!$A$2:$N$502,7,0))) ->  | K45: =IF(K41="","",IF(VLOOKUP(K41,漢字読み!$A$2:$O$502,7,0)=0,"",VLOOKUP(K41,漢字読み!$A$2:$O$502,7,0))) ->  | L45: =IF(L41="","",IF(VLOOKUP(L41,漢字読み!$A$2:$O$502,7,0)=0,"",VLOOKUP(L41,漢字読み!$A$2:$O$502,7,0))) ->  | M45: =IF(M41="","",IF(VLOOKUP(M41,漢字読み!$A$2:$O$502,7,0)=0,"",VLOOKUP(M41,漢字読み!$A$2:$O$502,7,0))) ->  | N45: =IF(N41="","",IF(VLOOKUP(N41,漢字読み!$A$2:$O$502,7,0)=0,"",VLOOKUP(N41,漢字読み!$A$2:$O$502,7,0))) ->  | O45: =IF(O41="","",IF(VLOOKUP(O41,漢字読み!$A$2:$O$502,7,0)=0,"",VLOOKUP(O41,漢字読み!$A$2:$O$502,7,0))) ->  | P45: =IF(P41="","",IF(VLOOKUP(P41,漢字読み!$A$2:$O$502,7,0)=0,"",VLOOKUP(P41,漢字読み!$A$2:$O$502,7,0))) ->  | Q45: =IF(Q41="","",IF(VLOOKUP(Q41,漢字読み!$A$2:$O$502,7,0)=0,"",VLOOKUP(Q41,漢字読み!$A$2:$O$502,7,0))) -> い | R45: =IF(R41="","",IF(VLOOKUP(R41,漢字読み!$A$2:$O$502,7,0)=0,"",VLOOKUP(R41,漢字読み!$A$2:$O$502,7,0))) ->  | S45: =IF(S41="","",IF(VLOOKUP(S41,漢字読み!$A$2:$O$502,7,0)=0,"",VLOOKUP(S41,漢字読み!$A$2:$O$502,7,0))) ->  | T45: =IF(T41="","",IF(VLOOKUP(T41,漢字読み!$A$2:$O$502,7,0)=0,"",VLOOKUP(T41,漢字読み!$A$2:$O$502,7,0))) ->  | W45: 和歌山県教育委員会
A46: =INDIRECT("'関数（書き）'!C" & COLUMN(B$1)+SUM($AD$2:$AD47)) -> 103 | B46: =INDIRECT("'関数（書き）'!C" & COLUMN(C$1)+SUM($AD$2:$AD47)) -> 109 | C46: =INDIRECT("'関数（書き）'!C" & COLUMN(D$1)+SUM($AD$2:$AD47)) -> 218 | D46: =INDIRECT("'関数（書き）'!C" & COLUMN(E$1)+SUM($AD$2:$AD47)) -> 170 | E46: =INDIRECT("'関数（書き）'!C" & COLUMN(F$1)+SUM($AD$2:$AD47)) -> 146 | F46: =INDIRECT("'関数（書き）'!C" & COLUMN(G$1)+SUM($AD$2:$AD47)) -> 70 | G46: =INDIRECT("'関数（書き）'!C" & COLUMN(H$1)+SUM($AD$2:$AD47)) -> 215 | H46: =INDIRECT("'関数（書き）'!C" & COLUMN(I$1)+SUM($AD$2:$AD47)) -> 188 | I46: =INDIRECT("'関数（書き）'!C" & COLUMN(J$1)+SUM($AD$2:$AD47)) -> 231 | J46: =INDIRECT("'関数（書き）'!C" & COLUMN(K$1)+SUM($AD$2:$AD47)) -> 154 | K46: =INDIRECT("'関数（読み）'!C" & COLUMN(B$1)+SUM($AD$2:$AD47)) -> 82 | L46: =INDIRECT("'関数（読み）'!C" & COLUMN(C$1)+SUM($AD$2:$AD47)) -> 147 | M46: =INDIRECT("'関数（読み）'!C" & COLUMN(D$1)+SUM($AD$2:$AD47)) -> 151 | N46: =INDIRECT("'関数（読み）'!C" & COLUMN(E$1)+SUM($AD$2:$AD47)) -> 33 | O46: =INDIRECT("'関数（読み）'!C" & COLUMN(F$1)+SUM($AD$2:$AD47)) -> 38 | P46: =INDIRECT("'関数（読み）'!C" & COLUMN(G$1)+SUM($AD$2:$AD47)) -> 160 | Q46: =INDIRECT("'関数（読み）'!C" & COLUMN(H$1)+SUM($AD$2:$AD47)) -> 75 | R46: =INDIRECT("'関数（読み）'!C" & COLUMN(I$1)+SUM($AD$2:$AD47)) -> 28 | S46: =INDIRECT("'関数（読み）'!C" & COLUMN(J$1)+SUM($AD$2:$AD47)) -> 161 | T46: =INDIRECT("'関数（読み）'!C" & COLUMN(K$1)+SUM($AD$2:$AD47)) -> 171
A47: ⑳ | B47: ⑲ | C47: ⑱ | D47: ⑰ | E47: ⑯ | F47: ⑮ | G47: ⑭ | H47: ⑬ | I47: ⑫ | J47: ⑪ | K47: ⑩ | L47: ⑨ | M47: ⑧ | N47: ⑦ | O47: ⑥ | P47: ⑤ | Q47: ④ | R47: ③ | S47: ② | T47: ① | U47: 次の［ ］の部分の漢字には読みがなをひらがなで書き、カタカナは漢字に直しなさい。 | V47: 11 | W47: 「漢字の博士検定試験」練習問題 | AC47: ← | AD47: 10 | AE47: 問 | AF47: =AH42+1 -> 51 | AG47: ～ | AH47: =SUM($AD$2:$AD47)+10 -> 60 | AI47: 問まで | AJ47: =COUNTIF($A$1:$T$200,T48) -> 2
A48: =IF(A46="","",VLOOKUP(A46,漢字書き!$A$2:$N$506,6,0)) -> ［ヤクシャ］になる | B48: =IF(B46="","",VLOOKUP(B46,漢字書き!$A$2:$N$506,6,0)) -> 石炭と［セキユ］ | C48: =IF(C46="","",VLOOKUP(C46,漢字書き!$A$2:$N$506,6,0)) -> 消火[キ]の使い方 | D48: =IF(D46="","",VLOOKUP(D46,漢字書き!$A$2:$N$506,6,0)) -> 町が［サカ］える | E48: =IF(E46="","",VLOOKUP(E46,漢字書き!$A$2:$N$506,6,0)) -> ピアノの［レンシュウ］ | F48: =IF(F46="","",VLOOKUP(F46,漢字書き!$A$2:$N$506,6,0)) -> ［ヤキュウブ］の先ぱい | G48: =IF(G46="","",VLOOKUP(G46,漢字書き!$A$2:$N$506,6,0)) -> 日本の［コッキ］ | H48: =IF(H46="","",VLOOKUP(H46,漢字書き!$A$2:$N$506,6,0)) -> すなおに［アラタ］める | I48: =IF(I46="","",VLOOKUP(I46,漢字書き!$A$2:$N$506,6,0)) ->  | J48: =IF(J46="","",VLOOKUP(J46,漢字書き!$A$2:$N$506,6,0)) -> ［アイチケン］の出身 | K48: =IF(K46="","",VLOOKUP(K46,漢字読み!$A$2:$O$506,6,0)) -> ボールを［放］る | L48: =IF(L46="","",VLOOKUP(L46,漢字読み!$A$2:$O$506,6,0)) -> 家族から［愛］される | M48: =IF(M46="","",VLOOKUP(M46,漢字読み!$A$2:$O$506,6,0)) -> ［衣服］をたたむ | N48: =IF(N46="","",VLOOKUP(N46,漢字読み!$A$2:$O$506,6,0)) -> ［鉄板］でやいた肉 | O48: =IF(O46="","",VLOOKUP(O46,漢字読み!$A$2:$O$506,6,0)) -> ［悲］しい日々 | P48: =IF(P46="","",VLOOKUP(P46,漢字読み!$A$2:$O$506,6,0)) -> 国が［栄］える | Q48: =IF(Q46="","",VLOOKUP(Q46,漢字読み!$A$2:$O$506,6,0)) -> 気持ちのよい［返事］ | R48: =IF(R46="","",VLOOKUP(R46,漢字読み!$A$2:$O$506,6,0)) -> 考えを［発表］する | S48: =IF(S46="","",VLOOKUP(S46,漢字読み!$A$2:$O$506,6,0)) -> ［栄］ようをとる | T48: =IF(T46="","",VLOOKUP(T46,漢字読み!$A$2:$O$506,6,0)) -> ［課長］の仕事 | V48: 級
V49: 名前
A50: =IF(A46="","",IF(VLOOKUP(A46,漢字書き!$A$2:$N$502,7,0)=0,"",VLOOKUP(A46,漢字書き!$A$2:$N$502,7,0))) ->  | B50: =IF(B46="","",IF(VLOOKUP(B46,漢字書き!$A$2:$N$502,7,0)=0,"",VLOOKUP(B46,漢字書き!$A$2:$N$502,7,0))) ->  | C50: =IF(C46="","",IF(VLOOKUP(C46,漢字書き!$A$2:$N$502,7,0)=0,"",VLOOKUP(C46,漢字書き!$A$2:$N$502,7,0))) ->  | D50: =IF(D46="","",IF(VLOOKUP(D46,漢字書き!$A$2:$N$502,7,0)=0,"",VLOOKUP(D46,漢字書き!$A$2:$N$502,7,0))) -> える | E50: =IF(E46="","",IF(VLOOKUP(E46,漢字書き!$A$2:$N$502,7,0)=0,"",VLOOKUP(E46,漢字書き!$A$2:$N$502,7,0))) ->  | F50: =IF(F46="","",IF(VLOOKUP(F46,漢字書き!$A$2:$N$502,7,0)=0,"",VLOOKUP(F46,漢字書き!$A$2:$N$502,7,0))) ->  | G50: =IF(G46="","",IF(VLOOKUP(G46,漢字書き!$A$2:$N$502,7,0)=0,"",VLOOKUP(G46,漢字書き!$A$2:$N$502,7,0))) ->  | H50: =IF(H46="","",IF(VLOOKUP(H46,漢字書き!$A$2:$N$502,7,0)=0,"",VLOOKUP(H46,漢字書き!$A$2:$N$502,7,0))) -> める | I50: =IF(I46="","",IF(VLOOKUP(I46,漢字書き!$A$2:$N$502,7,0)=0,"",VLOOKUP(I46,漢字書き!$A$2:$N$502,7,0))) ->  | J50: =IF(J46="","",IF(VLOOKUP(J46,漢字書き!$A$2:$N$502,7,0)=0,"",VLOOKUP(J46,漢字書き!$A$2:$N$502,7,0))) ->  | K50: =IF(K46="","",IF(VLOOKUP(K46,漢字読み!$A$2:$O$502,7,0)=0,"",VLOOKUP(K46,漢字読み!$A$2:$O$502,7,0))) -> る | L50: =IF(L46="","",IF(VLOOKUP(L46,漢字読み!$A$2:$O$502,7,0)=0,"",VLOOKUP(L46,漢字読み!$A$2:$O$502,7,0))) -> される | M50: =IF(M46="","",IF(VLOOKUP(M46,漢字読み!$A$2:$O$502,7,0)=0,"",VLOOKUP(M46,漢字読み!$A$2:$O$502,7,0))) ->  | N50: =IF(N46="","",IF(VLOOKUP(N46,漢字読み!$A$2:$O$502,7,0)=0,"",VLOOKUP(N46,漢字読み!$A$2:$O$502,7,0))) ->  | O50: =IF(O46="","",IF(VLOOKUP(O46,漢字読み!$A$2:$O$502,7,0)=0,"",VLOOKUP(O46,漢字読み!$A$2:$O$502,7,0))) -> しい | P50: =IF(P46="","",IF(VLOOKUP(P46,漢字読み!$A$2:$O$502,7,0)=0,"",VLOOKUP(P46,漢字読み!$A$2:$O$502,7,0))) -> える | Q50: =IF(Q46="","",IF(VLOOKUP(Q46,漢字読み!$A$2:$O$502,7,0)=0,"",VLOOKUP(Q46,漢字読み!$A$2:$O$502,7,0))) ->  | R50: =IF(R46="","",IF(VLOOKUP(R46,漢字読み!$A$2:$O$502,7,0)=0,"",VLOOKUP(R46,漢字読み!$A$2:$O$502,7,0))) -> する | S50: =IF(S46="","",IF(VLOOKUP(S46,漢字読み!$A$2:$O$502,7,0)=0,"",VLOOKUP(S46,漢字読み!$A$2:$O$502,7,0))) -> よう | T50: =IF(T46="","",IF(VLOOKUP(T46,漢字読み!$A$2:$O$502,7,0)=0,"",VLOOKUP(T46,漢字読み!$A$2:$O$502,7,0))) ->  | W50: 和歌山県教育委員会
A51: =A41 -> 6 | B51: =B41 -> 177 | C51: =C41 -> 108 | D51: =D41 -> 54 | E51: =E41 -> 115 | F51: =F41 -> 136 | G51: =G41 -> 214 | H51: =H41 -> 40 | I51: =I41 -> 169 | J51: =J41 -> 23 | K51: =K41 -> 51 | L51: =L41 -> 204 | M51: =M41 -> 92 | N51: =N41 -> 11 | O51: =O41 -> 102 | P51: =P41 -> 134 | Q51: =Q41 -> 197 | R51: =R41 -> 189 | S51: =S41 -> 112 | T51: =T41 -> 21
A52: ⑳ | B52: ⑲ | C52: ⑱ | D52: ⑰ | E52: ⑯ | F52: ⑮ | G52: ⑭ | H52: ⑬ | I52: ⑫ | J52: ⑪ | K52: ⑩ | L52: ⑨ | M52: ⑧ | N52: ⑦ | O52: ⑥ | P52: ⑤ | Q52: ④ | R52: ③ | S52: ② | T52: ① | U52: 次の［ ］の部分の漢字には読みがなをひらがなで書き、カタカナは漢字に直しなさい。 | V52: 11 | W52: 「漢字の博士検定試験」練習問題
A53: =IF(A51="","",VLOOKUP(A51,漢字書き!$A$2:$N$506,6,0)) -> ケーキを［トウブン］する | B53: =IF(B51="","",VLOOKUP(B51,漢字書き!$A$2:$N$506,6,0)) -> ゲームに［クワ］わる | C53: =IF(C51="","",VLOOKUP(C51,漢字書き!$A$2:$N$506,6,0)) -> ［ジユウ］な生活 | D53: =IF(D51="","",VLOOKUP(D51,漢字書き!$A$2:$N$506,6,0)) -> ［ヒョウシ］の写真 | E53: =IF(E51="","",VLOOKUP(E51,漢字書き!$A$2:$N$506,6,0)) -> 昔の［アソ］び | F53: =IF(F51="","",VLOOKUP(F51,漢字書き!$A$2:$N$506,6,0)) -> ［リョウホウ］ともほしい | G53: =IF(G51="","",VLOOKUP(G51,漢字書き!$A$2:$N$506,6,0)) -> ［ニイガタケン］の米づくり | H53: =IF(H51="","",VLOOKUP(H51,漢字書き!$A$2:$N$506,6,0)) -> りんごの［カワ］をむく | I53: =IF(I51="","",VLOOKUP(I51,漢字書き!$A$2:$N$506,6,0)) -> ［エイコウ］のかけ橋 | J53: =IF(J51="","",VLOOKUP(J51,漢字書き!$A$2:$N$506,6,0)) -> ごみ［バコ］を用意する | K53: =IF(K51="","",VLOOKUP(K51,漢字読み!$A$2:$O$506,6,0)) -> 一分は六十［秒］ | L53: =IF(L51="","",VLOOKUP(L51,漢字読み!$A$2:$O$506,6,0)) -> ［旗］をふる | M53: =IF(M51="","",VLOOKUP(M51,漢字読み!$A$2:$O$506,6,0)) -> ［問答］をする | N53: =IF(N51="","",VLOOKUP(N51,漢字読み!$A$2:$O$506,6,0)) -> ［童話］を読む | O53: =IF(O51="","",VLOOKUP(O51,漢字読み!$A$2:$O$506,6,0)) -> ［由来］をたずねる | P53: =IF(P51="","",VLOOKUP(P51,漢字読み!$A$2:$O$506,6,0)) -> 一人で［旅］をする | Q53: =IF(Q51="","",VLOOKUP(Q51,漢字読み!$A$2:$O$506,6,0)) -> ［願］いがかなう | R53: =IF(R51="","",VLOOKUP(R51,漢字読み!$A$2:$O$506,6,0)) -> 体には［血管］がある | S53: =IF(S51="","",VLOOKUP(S51,漢字読み!$A$2:$O$506,6,0)) -> ［羊毛］のセーター | T53: =IF(T51="","",VLOOKUP(T51,漢字読み!$A$2:$O$506,6,0)) -> 長さを［倍］にする | V53: 級
A54: =IF(A$11="","",VLOOKUP(A51,漢字書き!$A$2:$O$506,8,0)) -> 等分 | B54: =IF(B$11="","",VLOOKUP(B51,漢字書き!$A$2:$O$506,8,0)) -> 加 | C54: =IF(C$11="","",VLOOKUP(C51,漢字書き!$A$2:$O$506,8,0)) -> 自由 | D54: =IF(D$11="","",VLOOKUP(D51,漢字書き!$A$2:$O$506,8,0)) -> 表紙 | E54: =IF(E$11="","",VLOOKUP(E51,漢字書き!$A$2:$O$506,8,0)) -> 遊 | F54: =IF(F$11="","",VLOOKUP(F51,漢字書き!$A$2:$O$506,8,0)) -> 両方 | G54: =IF(G$11="","",VLOOKUP(G51,漢字書き!$A$2:$O$506,8,0)) -> 新潟県 | H54: =IF(H$11="","",VLOOKUP(H51,漢字書き!$A$2:$O$506,8,0)) -> 皮 | I54: =IF(I$11="","",VLOOKUP(I51,漢字書き!$A$2:$O$506,8,0)) -> 栄光 | J54: =IF(J$11="","",VLOOKUP(J51,漢字書き!$A$2:$O$506,8,0)) -> 箱 | K54: =IF(K$11="","",VLOOKUP(K51,漢字読み!$A$2:$O$506,8,0)) -> びょう | L54: =IF(L$11="","",VLOOKUP(L51,漢字読み!$A$2:$O$506,8,0)) -> はた | M54: =IF(M$11="","",VLOOKUP(M51,漢字読み!$A$2:$O$506,8,0)) -> もんどう | N54: =IF(N$11="","",VLOOKUP(N51,漢字読み!$A$2:$O$506,8,0)) -> どうわ | O54: =IF(O$11="","",VLOOKUP(O51,漢字読み!$A$2:$O$506,8,0)) -> ゆらい | P54: =IF(P$11="","",VLOOKUP(P51,漢字読み!$A$2:$O$506,8,0)) -> たび | Q54: =IF(Q$11="","",VLOOKUP(Q51,漢字読み!$A$2:$O$506,8,0)) -> ねが | R54: =IF(R$11="","",VLOOKUP(R51,漢字読み!$A$2:$O$506,8,0)) -> けっかん | S54: =IF(S$11="","",VLOOKUP(S51,漢字読み!$A$2:$O$506,8,0)) -> ようもう | T54: =IF(T$11="","",VLOOKUP(T51,漢字読み!$A$2:$O$506,8,0)) -> ばい | V54: 名前
A55: =IF(A51="","",IF(VLOOKUP(A51,漢字書き!$A$2:$N$502,7,0)=0,"",VLOOKUP(A51,漢字書き!$A$2:$N$502,7,0))) -> する | B55: =IF(B51="","",IF(VLOOKUP(B51,漢字書き!$A$2:$N$502,7,0)=0,"",VLOOKUP(B51,漢字書き!$A$2:$N$502,7,0))) -> わる | C55: =IF(C51="","",IF(VLOOKUP(C51,漢字書き!$A$2:$N$502,7,0)=0,"",VLOOKUP(C51,漢字書き!$A$2:$N$502,7,0))) -> な | D55: =IF(D51="","",IF(VLOOKUP(D51,漢字書き!$A$2:$N$502,7,0)=0,"",VLOOKUP(D51,漢字書き!$A$2:$N$502,7,0))) ->  | E55: =IF(E51="","",IF(VLOOKUP(E51,漢字書き!$A$2:$N$502,7,0)=0,"",VLOOKUP(E51,漢字書き!$A$2:$N$502,7,0))) -> び | F55: =IF(F51="","",IF(VLOOKUP(F51,漢字書き!$A$2:$N$502,7,0)=0,"",VLOOKUP(F51,漢字書き!$A$2:$N$502,7,0))) ->  | G55: =IF(G51="","",IF(VLOOKUP(G51,漢字書き!$A$2:$N$502,7,0)=0,"",VLOOKUP(G51,漢字書き!$A$2:$N$502,7,0))) ->  | H55: =IF(H51="","",IF(VLOOKUP(H51,漢字書き!$A$2:$N$502,7,0)=0,"",VLOOKUP(H51,漢字書き!$A$2:$N$502,7,0))) ->  | I55: =IF(I51="","",IF(VLOOKUP(I51,漢字書き!$A$2:$N$502,7,0)=0,"",VLOOKUP(I51,漢字書き!$A$2:$N$502,7,0))) ->  | J55: =IF(J51="","",IF(VLOOKUP(J51,漢字書き!$A$2:$N$502,7,0)=0,"",VLOOKUP(J51,漢字書き!$A$2:$N$502,7,0))) ->  | K55: =IF(K51="","",IF(VLOOKUP(K51,漢字読み!$A$2:$O$502,7,0)=0,"",VLOOKUP(K51,漢字読み!$A$2:$O$502,7,0))) ->  | L55: =IF(L51="","",IF(VLOOKUP(L51,漢字読み!$A$2:$O$502,7,0)=0,"",VLOOKUP(L51,漢字読み!$A$2:$O$502,7,0))) ->  | M55: =IF(M51="","",IF(VLOOKUP(M51,漢字読み!$A$2:$O$502,7,0)=0,"",VLOOKUP(M51,漢字読み!$A$2:$O$502,7,0))) ->  | N55: =IF(N51="","",IF(VLOOKUP(N51,漢字読み!$A$2:$O$502,7,0)=0,"",VLOOKUP(N51,漢字読み!$A$2:$O$502,7,0))) ->  | O55: =IF(O51="","",IF(VLOOKUP(O51,漢字読み!$A$2:$O$502,7,0)=0,"",VLOOKUP(O51,漢字読み!$A$2:$O$502,7,0))) ->  | P55: =IF(P51="","",IF(VLOOKUP(P51,漢字読み!$A$2:$O$502,7,0)=0,"",VLOOKUP(P51,漢字読み!$A$2:$O$502,7,0))) ->  | Q55: =IF(Q51="","",IF(VLOOKUP(Q51,漢字読み!$A$2:$O$502,7,0)=0,"",VLOOKUP(Q51,漢字読み!$A$2:$O$502,7,0))) -> い | R55: =IF(R51="","",IF(VLOOKUP(R51,漢字読み!$A$2:$O$502,7,0)=0,"",VLOOKUP(R51,漢字読み!$A$2:$O$502,7,0))) ->  | S55: =IF(S51="","",IF(VLOOKUP(S51,漢字読み!$A$2:$O$502,7,0)=0,"",VLOOKUP(S51,漢字読み!$A$2:$O$502,7,0))) ->  | T55: =IF(T51="","",IF(VLOOKUP(T51,漢字読み!$A$2:$O$502,7,0)=0,"",VLOOKUP(T51,漢字読み!$A$2:$O$502,7,0))) ->  | W55: 和歌山県教育委員会
A56: =A46 -> 103 | B56: =B46 -> 109 | C56: =C46 -> 218 | D56: =D46 -> 170 | E56: =E46 -> 146 | F56: =F46 -> 70 | G56: =G46 -> 215 | H56: =H46 -> 188 | I56: =I46 -> 231 | J56: =J46 -> 154 | K56: =K46 -> 82 | L56: =L46 -> 147 | M56: =M46 -> 151 | N56: =N46 -> 33 | O56: =O46 -> 38 | P56: =P46 -> 160 | Q56: =Q46 -> 75 | R56: =R46 -> 28 | S56: =S46 -> 161 | T56: =T46 -> 171
A57: ⑳ | B57: ⑲ | C57: ⑱ | D57: ⑰ | E57: ⑯ | F57: ⑮ | G57: ⑭ | H57: ⑬ | I57: ⑫ | J57: ⑪ | K57: ⑩ | L57: ⑨ | M57: ⑧ | N57: ⑦ | O57: ⑥ | P57: ⑤ | Q57: ④ | R57: ③ | S57: ② | T57: ① | U57: 次の［ ］の部分の漢字には読みがなをひらがなで書き、カタカナは漢字に直しなさい。 | V57: 11 | W57: 「漢字の博士検定試験」練習問題
A58: =IF(A56="","",VLOOKUP(A56,漢字書き!$A$2:$N$506,6,0)) -> ［ヤクシャ］になる | B58: =IF(B56="","",VLOOKUP(B56,漢字書き!$A$2:$N$506,6,0)) -> 石炭と［セキユ］ | C58: =IF(C56="","",VLOOKUP(C56,漢字書き!$A$2:$N$506,6,0)) -> 消火[キ]の使い方 | D58: =IF(D56="","",VLOOKUP(D56,漢字書き!$A$2:$N$506,6,0)) -> 町が［サカ］える | E58: =IF(E56="","",VLOOKUP(E56,漢字書き!$A$2:$N$506,6,0)) -> ピアノの［レンシュウ］ | F58: =IF(F56="","",VLOOKUP(F56,漢字書き!$A$2:$N$506,6,0)) -> ［ヤキュウブ］の先ぱい | G58: =IF(G56="","",VLOOKUP(G56,漢字書き!$A$2:$N$506,6,0)) -> 日本の［コッキ］ | H58: =IF(H56="","",VLOOKUP(H56,漢字書き!$A$2:$N$506,6,0)) -> すなおに［アラタ］める | I58: =IF(I56="","",VLOOKUP(I56,漢字書き!$A$2:$N$506,6,0)) ->  | J58: =IF(J56="","",VLOOKUP(J56,漢字書き!$A$2:$N$506,6,0)) -> ［アイチケン］の出身 | K58: =IF(K56="","",VLOOKUP(K56,漢字読み!$A$2:$O$506,6,0)) -> ボールを［放］る | L58: =IF(L56="","",VLOOKUP(L56,漢字読み!$A$2:$O$506,6,0)) -> 家族から［愛］される | M58: =IF(M56="","",VLOOKUP(M56,漢字読み!$A$2:$O$506,6,0)) -> ［衣服］をたたむ | N58: =IF(N56="","",VLOOKUP(N56,漢字読み!$A$2:$O$506,6,0)) -> ［鉄板］でやいた肉 | O58: =IF(O56="","",VLOOKUP(O56,漢字読み!$A$2:$O$506,6,0)) -> ［悲］しい日々 | P58: =IF(P56="","",VLOOKUP(P56,漢字読み!$A$2:$O$506,6,0)) -> 国が［栄］える | Q58: =IF(Q56="","",VLOOKUP(Q56,漢字読み!$A$2:$O$506,6,0)) -> 気持ちのよい［返事］ | R58: =IF(R56="","",VLOOKUP(R56,漢字読み!$A$2:$O$506,6,0)) -> 考えを［発表］する | S58: =IF(S56="","",VLOOKUP(S56,漢字読み!$A$2:$O$506,6,0)) -> ［栄］ようをとる | T58: =IF(T56="","",VLOOKUP(T56,漢字読み!$A$2:$O$506,6,0)) -> ［課長］の仕事 | V58: 級
A59: =IF(A$16="","",VLOOKUP(A56,漢字書き!$A$2:$O$506,8,0)) -> 役者 | B59: =IF(B$16="","",VLOOKUP(B56,漢字書き!$A$2:$O$506,8,0)) -> 石油 | C59: =IF(C$16="","",VLOOKUP(C56,漢字書き!$A$2:$O$506,8,0)) -> 器 | D59: =IF(D$16="","",VLOOKUP(D56,漢字書き!$A$2:$O$506,8,0)) -> 栄 | E59: =IF(E$16="","",VLOOKUP(E56,漢字書き!$A$2:$O$506,8,0)) -> 練習 | F59: =IF(F$16="","",VLOOKUP(F56,漢字書き!$A$2:$O$506,8,0)) -> 野球部 | G59: =IF(G$16="","",VLOOKUP(G56,漢字書き!$A$2:$O$506,8,0)) -> 国旗 | H59: =IF(H$16="","",VLOOKUP(H56,漢字書き!$A$2:$O$506,8,0)) -> 改 | I59: =IF(I$16="","",VLOOKUP(I56,漢字書き!$A$2:$O$506,8,0)) ->  | J59: =IF(J$16="","",VLOOKUP(J56,漢字書き!$A$2:$O$506,8,0)) -> 愛知県 | K59: =IF(K$16="","",VLOOKUP(K56,漢字読み!$A$2:$O$506,8,0)) -> ほう | L59: =IF(L$16="","",VLOOKUP(L56,漢字読み!$A$2:$O$506,8,0)) -> あい | M59: =IF(M$16="","",VLOOKUP(M56,漢字読み!$A$2:$O$506,8,0)) -> いふく | N59: =IF(N$16="","",VLOOKUP(N56,漢字読み!$A$2:$O$506,8,0)) -> てっぱん | O59: =IF(O$16="","",VLOOKUP(O56,漢字読み!$A$2:$O$506,8,0)) -> かな | P59: =IF(P$16="","",VLOOKUP(P56,漢字読み!$A$2:$O$506,8,0)) -> さか | Q59: =IF(Q$16="","",VLOOKUP(Q56,漢字読み!$A$2:$O$506,8,0)) -> へんじ | R59: =IF(R$16="","",VLOOKUP(R56,漢字読み!$A$2:$O$506,8,0)) -> はっぴょう | S59: =IF(S$16="","",VLOOKUP(S56,漢字読み!$A$2:$O$506,8,0)) -> えい | T59: =IF(T$16="","",VLOOKUP(T56,漢字読み!$A$2:$O$506,8,0)) -> かちょう | V59: 名前
A60: =IF(A56="","",IF(VLOOKUP(A56,漢字書き!$A$2:$N$502,7,0)=0,"",VLOOKUP(A56,漢字書き!$A$2:$N$502,7,0))) ->  | B60: =IF(B56="","",IF(VLOOKUP(B56,漢字書き!$A$2:$N$502,7,0)=0,"",VLOOKUP(B56,漢字書き!$A$2:$N$502,7,0))) ->  | C60: =IF(C56="","",IF(VLOOKUP(C56,漢字書き!$A$2:$N$502,7,0)=0,"",VLOOKUP(C56,漢字書き!$A$2:$N$502,7,0))) ->  | D60: =IF(D56="","",IF(VLOOKUP(D56,漢字書き!$A$2:$N$502,7,0)=0,"",VLOOKUP(D56,漢字書き!$A$2:$N$502,7,0))) -> える | E60: =IF(E56="","",IF(VLOOKUP(E56,漢字書き!$A$2:$N$502,7,0)=0,"",VLOOKUP(E56,漢字書き!$A$2:$N$502,7,0))) ->  | F60: =IF(F56="","",IF(VLOOKUP(F56,漢字書き!$A$2:$N$502,7,0)=0,"",VLOOKUP(F56,漢字書き!$A$2:$N$502,7,0))) ->  | G60: =IF(G56="","",IF(VLOOKUP(G56,漢字書き!$A$2:$N$502,7,0)=0,"",VLOOKUP(G56,漢字書き!$A$2:$N$502,7,0))) ->  | H60: =IF(H56="","",IF(VLOOKUP(H56,漢字書き!$A$2:$N$502,7,0)=0,"",VLOOKUP(H56,漢字書き!$A$2:$N$502,7,0))) -> める | I60: =IF(I56="","",IF(VLOOKUP(I56,漢字書き!$A$2:$N$502,7,0)=0,"",VLOOKUP(I56,漢字書き!$A$2:$N$502,7,0))) ->  | J60: =IF(J56="","",IF(VLOOKUP(J56,漢字書き!$A$2:$N$502,7,0)=0,"",VLOOKUP(J56,漢字書き!$A$2:$N$502,7,0))) ->  | K60: =IF(K56="","",IF(VLOOKUP(K56,漢字読み!$A$2:$O$502,7,0)=0,"",VLOOKUP(K56,漢字読み!$A$2:$O$502,7,0))) -> る | L60: =IF(L56="","",IF(VLOOKUP(L56,漢字読み!$A$2:$O$502,7,0)=0,"",VLOOKUP(L56,漢字読み!$A$2:$O$502,7,0))) -> される | M60: =IF(M56="","",IF(VLOOKUP(M56,漢字読み!$A$2:$O$502,7,0)=0,"",VLOOKUP(M56,漢字読み!$A$2:$O$502,7,0))) ->  | N60: =IF(N56="","",IF(VLOOKUP(N56,漢字読み!$A$2:$O$502,7,0)=0,"",VLOOKUP(N56,漢字読み!$A$2:$O$502,7,0))) ->  | O60: =IF(O56="","",IF(VLOOKUP(O56,漢字読み!$A$2:$O$502,7,0)=0,"",VLOOKUP(O56,漢字読み!$A$2:$O$502,7,0))) -> しい | P60: =IF(P56="","",IF(VLOOKUP(P56,漢字読み!$A$2:$O$502,7,0)=0,"",VLOOKUP(P56,漢字読み!$A$2:$O$502,7,0))) -> える | Q60: =IF(Q56="","",IF(VLOOKUP(Q56,漢字読み!$A$2:$O$502,7,0)=0,"",VLOOKUP(Q56,漢字読み!$A$2:$O$502,7,0))) ->  | R60: =IF(R56="","",IF(VLOOKUP(R56,漢字読み!$A$2:$O$502,7,0)=0,"",VLOOKUP(R56,漢字読み!$A$2:$O$502,7,0))) -> する | S60: =IF(S56="","",IF(VLOOKUP(S56,漢字読み!$A$2:$O$502,7,0)=0,"",VLOOKUP(S56,漢字読み!$A$2:$O$502,7,0))) -> よう | T60: =IF(T56="","",IF(VLOOKUP(T56,漢字読み!$A$2:$O$502,7,0)=0,"",VLOOKUP(T56,漢字読み!$A$2:$O$502,7,0))) ->  | W60: 和歌山県教育委員会
A61: =INDIRECT("'関数（書き）'!C" & COLUMN(B$1)+SUM($AD$2:$AD62)) -> 87 | B61: =INDIRECT("'関数（書き）'!C" & COLUMN(C$1)+SUM($AD$2:$AD62)) -> 137 | C61: =INDIRECT("'関数（書き）'!C" & COLUMN(D$1)+SUM($AD$2:$AD62)) -> 205 | D61: =INDIRECT("'関数（書き）'!C" & COLUMN(E$1)+SUM($AD$2:$AD62)) -> 126 | E61: =INDIRECT("'関数（書き）'!C" & COLUMN(F$1)+SUM($AD$2:$AD62)) -> 144 | F61: =INDIRECT("'関数（書き）'!C" & COLUMN(G$1)+SUM($AD$2:$AD62)) -> 107 | G61: =INDIRECT("'関数（書き）'!C" & COLUMN(H$1)+SUM($AD$2:$AD62)) -> 49 | H61: =INDIRECT("'関数（書き）'!C" & COLUMN(I$1)+SUM($AD$2:$AD62)) -> 157 | I61: =INDIRECT("'関数（書き）'!C" & COLUMN(J$1)+SUM($AD$2:$AD62)) -> 52 | J61: =INDIRECT("'関数（書き）'!C" & COLUMN(K$1)+SUM($AD$2:$AD62)) -> 36 | K61: =INDIRECT("'関数（読み）'!C" & COLUMN(B$1)+SUM($AD$2:$AD62)) -> 183 | L61: =INDIRECT("'関数（読み）'!C" & COLUMN(C$1)+SUM($AD$2:$AD62)) -> 177 | M61: =INDIRECT("'関数（読み）'!C" & COLUMN(D$1)+SUM($AD$2:$AD62)) -> 20 | N61: =INDIRECT("'関数（読み）'!C" & COLUMN(E$1)+SUM($AD$2:$AD62)) -> 7 | O61: =INDIRECT("'関数（読み）'!C" & COLUMN(F$1)+SUM($AD$2:$AD62)) -> 192 | P61: =INDIRECT("'関数（読み）'!C" & COLUMN(G$1)+SUM($AD$2:$AD62)) -> 70 | Q61: =INDIRECT("'関数（読み）'!C" & COLUMN(H$1)+SUM($AD$2:$AD62)) -> 200 | R61: =INDIRECT("'関数（読み）'!C" & COLUMN(I$1)+SUM($AD$2:$AD62)) -> 34 | S61: =INDIRECT("'関数（読み）'!C" & COLUMN(J$1)+SUM($AD$2:$AD62)) -> 99 | T61: =INDIRECT("'関数（読み）'!C" & COLUMN(K$1)+SUM($AD$2:$AD62)) -> 41
A62: ⑳ | B62: ⑲ | C62: ⑱ | D62: ⑰ | E62: ⑯ | F62: ⑮ | G62: ⑭ | H62: ⑬ | I62: ⑫ | J62: ⑪ | K62: ⑩ | L62: ⑨ | M62: ⑧ | N62: ⑦ | O62: ⑥ | P62: ⑤ | Q62: ④ | R62: ③ | S62: ② | T62: ① | U62: 次の［ ］の部分の漢字には読みがなをひらがなで書き、カタカナは漢字に直しなさい。 | V62: 11 | W62: 「漢字の博士検定試験」練習問題 | AC62: ← | AD62: 10 | AE62: 問 | AF62: =AH47+1 -> 61 | AG62: ～ | AH62: =SUM($AD$2:$AD62)+10 -> 70 | AI62: 問まで | AJ62: =COUNTIF($A$1:$T$200,T63) -> 2
A63: =IF(A61="","",VLOOKUP(A61,漢字書き!$A$2:$N$506,6,0)) -> 学校を［カイホウ］する | B63: =IF(B61="","",VLOOKUP(B61,漢字書き!$A$2:$N$506,6,0)) -> ［リョウアシ］で立つ | C63: =IF(C61="","",VLOOKUP(C61,漢字書き!$A$2:$N$506,6,0)) -> ［カカ］わりを持つ | D63: =IF(D61="","",VLOOKUP(D61,漢字書き!$A$2:$N$506,6,0)) -> まわりの［ヨウス］ | E63: =IF(E61="","",VLOOKUP(E61,漢字書き!$A$2:$N$506,6,0)) -> ［レツ］に加わる | F63: =IF(F61="","",VLOOKUP(F61,漢字書き!$A$2:$N$506,6,0)) -> ［ユライ］をたずねる | G63: =IF(G61="","",VLOOKUP(G61,漢字書き!$A$2:$N$506,6,0)) -> ［モウヒツ］の時間 | H63: =IF(H61="","",VLOOKUP(H61,漢字書き!$A$2:$N$506,6,0)) -> ［イジョウ］で終わりです | I63: =IF(I61="","",VLOOKUP(I61,漢字書き!$A$2:$N$506,6,0)) -> つめたい［コオリ］ | J63: =IF(J61="","",VLOOKUP(J61,漢字書き!$A$2:$N$506,6,0)) -> ［コクバン］に書く | K63: =IF(K61="","",VLOOKUP(K61,漢字読み!$A$2:$O$506,6,0)) -> ［自覚］がない | L63: =IF(L61="","",VLOOKUP(L61,漢字読み!$A$2:$O$506,6,0)) -> 心を［改］める | M63: =IF(M61="","",VLOOKUP(M61,漢字読み!$A$2:$O$506,6,0)) -> 気を［配］る | N63: =IF(N61="","",VLOOKUP(N61,漢字読み!$A$2:$O$506,6,0)) -> ［平等］に分ける | O63: =IF(O61="","",VLOOKUP(O61,漢字読み!$A$2:$O$506,6,0)) -> ［関所］を通る | P63: =IF(P61="","",VLOOKUP(P61,漢字読み!$A$2:$O$506,6,0)) -> 世界の［平和］ | Q63: =IF(Q61="","",VLOOKUP(Q61,漢字読み!$A$2:$O$506,6,0)) -> 日本の［四季］ | R63: =IF(R61="","",VLOOKUP(R61,漢字読み!$A$2:$O$506,6,0)) -> かんなで［板］をけずる | S63: =IF(S61="","",VLOOKUP(S61,漢字読み!$A$2:$O$506,6,0)) -> ［薬局］に立ちよる | T63: =IF(T61="","",VLOOKUP(T61,漢字読み!$A$2:$O$506,6,0)) -> [鼻水]が出る | V63: 級
V64: 名前
A65: =IF(A61="","",IF(VLOOKUP(A61,漢字書き!$A$2:$N$502,7,0)=0,"",VLOOKUP(A61,漢字書き!$A$2:$N$502,7,0))) -> する | B65: =IF(B61="","",IF(VLOOKUP(B61,漢字書き!$A$2:$N$502,7,0)=0,"",VLOOKUP(B61,漢字書き!$A$2:$N$502,7,0))) ->  | C65: =IF(C61="","",IF(VLOOKUP(C61,漢字書き!$A$2:$N$502,7,0)=0,"",VLOOKUP(C61,漢字書き!$A$2:$N$502,7,0))) -> わり | D65: =IF(D61="","",IF(VLOOKUP(D61,漢字書き!$A$2:$N$502,7,0)=0,"",VLOOKUP(D61,漢字書き!$A$2:$N$502,7,0))) ->  | E65: =IF(E61="","",IF(VLOOKUP(E61,漢字書き!$A$2:$N$502,7,0)=0,"",VLOOKUP(E61,漢字書き!$A$2:$N$502,7,0))) ->  | F65: =IF(F61="","",IF(VLOOKUP(F61,漢字書き!$A$2:$N$502,7,0)=0,"",VLOOKUP(F61,漢字書き!$A$2:$N$502,7,0))) ->  | G65: =IF(G61="","",IF(VLOOKUP(G61,漢字書き!$A$2:$N$502,7,0)=0,"",VLOOKUP(G61,漢字書き!$A$2:$N$502,7,0))) ->  | H65: =IF(H61="","",IF(VLOOKUP(H61,漢字書き!$A$2:$N$502,7,0)=0,"",VLOOKUP(H61,漢字書き!$A$2:$N$502,7,0))) ->  | I65: =IF(I61="","",IF(VLOOKUP(I61,漢字書き!$A$2:$N$502,7,0)=0,"",VLOOKUP(I61,漢字書き!$A$2:$N$502,7,0))) ->  | J65: =IF(J61="","",IF(VLOOKUP(J61,漢字書き!$A$2:$N$502,7,0)=0,"",VLOOKUP(J61,漢字書き!$A$2:$N$502,7,0))) ->  | K65: =IF(K61="","",IF(VLOOKUP(K61,漢字読み!$A$2:$O$502,7,0)=0,"",VLOOKUP(K61,漢字読み!$A$2:$O$502,7,0))) ->  | L65: =IF(L61="","",IF(VLOOKUP(L61,漢字読み!$A$2:$O$502,7,0)=0,"",VLOOKUP(L61,漢字読み!$A$2:$O$502,7,0))) -> める | M65: =IF(M61="","",IF(VLOOKUP(M61,漢字読み!$A$2:$O$502,7,0)=0,"",VLOOKUP(M61,漢字読み!$A$2:$O$502,7,0))) -> る | N65: =IF(N61="","",IF(VLOOKUP(N61,漢字読み!$A$2:$O$502,7,0)=0,"",VLOOKUP(N61,漢字読み!$A$2:$O$502,7,0))) ->  | O65: =IF(O61="","",IF(VLOOKUP(O61,漢字読み!$A$2:$O$502,7,0)=0,"",VLOOKUP(O61,漢字読み!$A$2:$O$502,7,0))) ->  | P65: =IF(P61="","",IF(VLOOKUP(P61,漢字読み!$A$2:$O$502,7,0)=0,"",VLOOKUP(P61,漢字読み!$A$2:$O$502,7,0))) ->  | Q65: =IF(Q61="","",IF(VLOOKUP(Q61,漢字読み!$A$2:$O$502,7,0)=0,"",VLOOKUP(Q61,漢字読み!$A$2:$O$502,7,0))) ->  | R65: =IF(R61="","",IF(VLOOKUP(R61,漢字読み!$A$2:$O$502,7,0)=0,"",VLOOKUP(R61,漢字読み!$A$2:$O$502,7,0))) ->  | S65: =IF(S61="","",IF(VLOOKUP(S61,漢字読み!$A$2:$O$502,7,0)=0,"",VLOOKUP(S61,漢字読み!$A$2:$O$502,7,0))) ->  | T65: =IF(T61="","",IF(VLOOKUP(T61,漢字読み!$A$2:$O$502,7,0)=0,"",VLOOKUP(T61,漢字読み!$A$2:$O$502,7,0))) ->  | W65: 和歌山県教育委員会
A66: =INDIRECT("'関数（書き）'!C" & COLUMN(B$1)+SUM($AD$2:$AD67)) -> 204 | B66: =INDIRECT("'関数（書き）'!C" & COLUMN(C$1)+SUM($AD$2:$AD67)) -> 35 | C66: =INDIRECT("'関数（書き）'!C" & COLUMN(D$1)+SUM($AD$2:$AD67)) -> 172 | D66: =INDIRECT("'関数（書き）'!C" & COLUMN(E$1)+SUM($AD$2:$AD67)) -> 30 | E66: =INDIRECT("'関数（書き）'!C" & COLUMN(F$1)+SUM($AD$2:$AD67)) -> 28 | F66: =INDIRECT("'関数（書き）'!C" & COLUMN(G$1)+SUM($AD$2:$AD67)) -> 133 | G66: =INDIRECT("'関数（書き）'!C" & COLUMN(H$1)+SUM($AD$2:$AD67)) -> 202 | H66: =INDIRECT("'関数（書き）'!C" & COLUMN(I$1)+SUM($AD$2:$AD67)) -> 68 | I66: =INDIRECT("'関数（書き）'!C" & COLUMN(J$1)+SUM($AD$2:$AD67)) -> 165 | J66: =INDIRECT("'関数（書き）'!C" & COLUMN(K$1)+SUM($AD$2:$AD67)) -> 15 | K66: =INDIRECT("'関数（読み）'!C" & COLUMN(B$1)+SUM($AD$2:$AD67)) -> 139 | L66: =INDIRECT("'関数（読み）'!C" & COLUMN(C$1)+SUM($AD$2:$AD67)) -> 95 | M66: =INDIRECT("'関数（読み）'!C" & COLUMN(D$1)+SUM($AD$2:$AD67)) -> 48 | N66: =INDIRECT("'関数（読み）'!C" & COLUMN(E$1)+SUM($AD$2:$AD67)) -> 182 | O66: =INDIRECT("'関数（読み）'!C" & COLUMN(F$1)+SUM($AD$2:$AD67)) -> 52 | P66: =INDIRECT("'関数（読み）'!C" & COLUMN(G$1)+SUM($AD$2:$AD67)) -> 107 | Q66: =INDIRECT("'関数（読み）'!C" & COLUMN(H$1)+SUM($AD$2:$AD67)) -> 59 | R66: =INDIRECT("'関数（読み）'!C" & COLUMN(I$1)+SUM($AD$2:$AD67)) -> 144 | S66: =INDIRECT("'関数（読み）'!C" & COLUMN(J$1)+SUM($AD$2:$AD67)) -> 24 | T66: =INDIRECT("'関数（読み）'!C" & COLUMN(K$1)+SUM($AD$2:$AD67)) -> 77
A67: ⑳ | B67: ⑲ | C67: ⑱ | D67: ⑰ | E67: ⑯ | F67: ⑮ | G67: ⑭ | H67: ⑬ | I67: ⑫ | J67: ⑪ | K67: ⑩ | L67: ⑨ | M67: ⑧ | N67: ⑦ | O67: ⑥ | P67: ⑤ | Q67: ④ | R67: ③ | S67: ② | T67: ① | U67: 次の［ ］の部分の漢字には読みがなをひらがなで書き、カタカナは漢字に直しなさい。 | V67: 11 | W67: 「漢字の博士検定試験」練習問題 | AC67: ← | AD67: 10 | AE67: 問 | AF67: =AH62+1 -> 71 | AG67: ～ | AH67: =SUM($AD$2:$AD67)+10 -> 80 | AI67: 問まで | AJ67: =COUNTIF($A$1:$T$200,T68) -> 2
A68: =IF(A66="","",VLOOKUP(A66,漢字書き!$A$2:$N$506,6,0)) -> ［セキショ］を通る | B68: =IF(B66="","",VLOOKUP(B66,漢字書き!$A$2:$N$506,6,0)) -> ［サカミチ］を歩く | C68: =IF(C66="","",VLOOKUP(C66,漢字書き!$A$2:$N$506,6,0)) -> ［シオアジ］が足りない | D68: =IF(D66="","",VLOOKUP(D66,漢字書き!$A$2:$N$506,6,0)) -> ［ハンタイ］の意見 | E68: =IF(E66="","",VLOOKUP(E66,漢字書き!$A$2:$N$506,6,0)) -> 新星を[ハッケン]する | F68: =IF(F66="","",VLOOKUP(F66,漢字書き!$A$2:$N$506,6,0)) -> 急な［ナガ］れ | G68: =IF(G66="","",VLOOKUP(G66,漢字書き!$A$2:$N$506,6,0)) -> 親子の［カンケイ］ | H68: =IF(H66="","",VLOOKUP(H66,漢字書き!$A$2:$N$506,6,0)) -> ［ブシツ］をそうじする | I68: =IF(I66="","",VLOOKUP(I66,漢字書き!$A$2:$N$506,6,0)) -> ［イン］さつされた文字 | J68: =IF(J66="","",VLOOKUP(J66,漢字書き!$A$2:$N$506,6,0)) -> じ[ドウ]会の役員 | K68: =IF(K66="","",VLOOKUP(K66,漢字読み!$A$2:$O$506,6,0)) -> ［列］にくわわる | L68: =IF(L66="","",VLOOKUP(L66,漢字読み!$A$2:$O$506,6,0)) -> 魚のおろし［問屋］ | M68: =IF(M66="","",VLOOKUP(M66,漢字読み!$A$2:$O$506,6,0)) -> 当番［表］を見る | N68: =IF(N66="","",VLOOKUP(N66,漢字読み!$A$2:$O$506,6,0)) -> ［各自］で考える | O68: =IF(O66="","",VLOOKUP(O66,漢字読み!$A$2:$O$506,6,0)) -> ［病気］をなおす | P68: =IF(P66="","",VLOOKUP(P66,漢字読み!$A$2:$O$506,6,0)) -> 温せんで［有名］な土地 | Q68: =IF(Q66="","",VLOOKUP(Q66,漢字読み!$A$2:$O$506,6,0)) -> リュックをせ［負］う | R68: =IF(R66="","",VLOOKUP(R66,漢字読み!$A$2:$O$506,6,0)) -> ［道路］を工事する | S68: =IF(S66="","",VLOOKUP(S66,漢字読み!$A$2:$O$506,6,0)) -> ノアの［箱船］ | T68: =IF(T66="","",VLOOKUP(T66,漢字読み!$A$2:$O$506,6,0)) -> ［返］すことばがない | V68: 級
V69: 名前
A70: =IF(A66="","",IF(VLOOKUP(A66,漢字書き!$A$2:$N$502,7,0)=0,"",VLOOKUP(A66,漢字書き!$A$2:$N$502,7,0))) ->  | B70: =IF(B66="","",IF(VLOOKUP(B66,漢字書き!$A$2:$N$502,7,0)=0,"",VLOOKUP(B66,漢字書き!$A$2:$N$502,7,0))) ->  | C70: =IF(C66="","",IF(VLOOKUP(C66,漢字書き!$A$2:$N$502,7,0)=0,"",VLOOKUP(C66,漢字書き!$A$2:$N$502,7,0))) ->  | D70: =IF(D66="","",IF(VLOOKUP(D66,漢字書き!$A$2:$N$502,7,0)=0,"",VLOOKUP(D66,漢字書き!$A$2:$N$502,7,0))) ->  | E70: =IF(E66="","",IF(VLOOKUP(E66,漢字書き!$A$2:$N$502,7,0)=0,"",VLOOKUP(E66,漢字書き!$A$2:$N$502,7,0))) -> する | F70: =IF(F66="","",IF(VLOOKUP(F66,漢字書き!$A$2:$N$502,7,0)=0,"",VLOOKUP(F66,漢字書き!$A$2:$N$502,7,0))) -> れ | G70: =IF(G66="","",IF(VLOOKUP(G66,漢字書き!$A$2:$N$502,7,0)=0,"",VLOOKUP(G66,漢字書き!$A$2:$N$502,7,0))) ->  | H70: =IF(H66="","",IF(VLOOKUP(H66,漢字書き!$A$2:$N$502,7,0)=0,"",VLOOKUP(H66,漢字書き!$A$2:$N$502,7,0))) ->  | I70: =IF(I66="","",IF(VLOOKUP(I66,漢字書き!$A$2:$N$502,7,0)=0,"",VLOOKUP(I66,漢字書き!$A$2:$N$502,7,0))) -> さつ | J70: =IF(J66="","",IF(VLOOKUP(J66,漢字書き!$A$2:$N$502,7,0)=0,"",VLOOKUP(J66,漢字書き!$A$2:$N$502,7,0))) -> 会 | K70: =IF(K66="","",IF(VLOOKUP(K66,漢字読み!$A$2:$O$502,7,0)=0,"",VLOOKUP(K66,漢字読み!$A$2:$O$502,7,0))) ->  | L70: =IF(L66="","",IF(VLOOKUP(L66,漢字読み!$A$2:$O$502,7,0)=0,"",VLOOKUP(L66,漢字読み!$A$2:$O$502,7,0))) ->  | M70: =IF(M66="","",IF(VLOOKUP(M66,漢字読み!$A$2:$O$502,7,0)=0,"",VLOOKUP(M66,漢字読み!$A$2:$O$502,7,0))) ->  | N70: =IF(N66="","",IF(VLOOKUP(N66,漢字読み!$A$2:$O$502,7,0)=0,"",VLOOKUP(N66,漢字読み!$A$2:$O$502,7,0))) ->  | O70: =IF(O66="","",IF(VLOOKUP(O66,漢字読み!$A$2:$O$502,7,0)=0,"",VLOOKUP(O66,漢字読み!$A$2:$O$502,7,0))) ->  | P70: =IF(P66="","",IF(VLOOKUP(P66,漢字読み!$A$2:$O$502,7,0)=0,"",VLOOKUP(P66,漢字読み!$A$2:$O$502,7,0))) -> な | Q70: =IF(Q66="","",IF(VLOOKUP(Q66,漢字読み!$A$2:$O$502,7,0)=0,"",VLOOKUP(Q66,漢字読み!$A$2:$O$502,7,0))) -> う | R70: =IF(R66="","",IF(VLOOKUP(R66,漢字読み!$A$2:$O$502,7,0)=0,"",VLOOKUP(R66,漢字読み!$A$2:$O$502,7,0))) ->  | S70: =IF(S66="","",IF(VLOOKUP(S66,漢字読み!$A$2:$O$502,7,0)=0,"",VLOOKUP(S66,漢字読み!$A$2:$O$502,7,0))) ->  | T70: =IF(T66="","",IF(VLOOKUP(T66,漢字読み!$A$2:$O$502,7,0)=0,"",VLOOKUP(T66,漢字読み!$A$2:$O$502,7,0))) -> す | W70: 和歌山県教育委員会
A71: =A61 -> 87 | B71: =B61 -> 137 | C71: =C61 -> 205 | D71: =D61 -> 126 | E71: =E61 -> 144 | F71: =F61 -> 107 | G71: =G61 -> 49 | H71: =H61 -> 157 | I71: =I61 -> 52 | J71: =J61 -> 36 | K71: =K61 -> 183 | L71: =L61 -> 177 | M71: =M61 -> 20 | N71: =N61 -> 7 | O71: =O61 -> 192 | P71: =P61 -> 70 | Q71: =Q61 -> 200 | R71: =R61 -> 34 | S71: =S61 -> 99 | T71: =T61 -> 41
A72: ⑳ | B72: ⑲ | C72: ⑱ | D72: ⑰ | E72: ⑯ | F72: ⑮ | G72: ⑭ | H72: ⑬ | I72: ⑫ | J72: ⑪ | K72: ⑩ | L72: ⑨ | M72: ⑧ | N72: ⑦ | O72: ⑥ | P72: ⑤ | Q72: ④ | R72: ③ | S72: ② | T72: ① | U72: 次の［ ］の部分の漢字には読みがなをひらがなで書き、カタカナは漢字に直しなさい。 | V72: 11 | W72: 「漢字の博士検定試験」練習問題
A73: =IF(A71="","",VLOOKUP(A71,漢字書き!$A$2:$N$506,6,0)) -> 学校を［カイホウ］する | B73: =IF(B71="","",VLOOKUP(B71,漢字書き!$A$2:$N$506,6,0)) -> ［リョウアシ］で立つ | C73: =IF(C71="","",VLOOKUP(C71,漢字書き!$A$2:$N$506,6,0)) -> ［カカ］わりを持つ | D73: =IF(D71="","",VLOOKUP(D71,漢字書き!$A$2:$N$506,6,0)) -> まわりの［ヨウス］ | E73: =IF(E71="","",VLOOKUP(E71,漢字書き!$A$2:$N$506,6,0)) -> ［レツ］に加わる | F73: =IF(F71="","",VLOOKUP(F71,漢字書き!$A$2:$N$506,6,0)) -> ［ユライ］をたずねる | G73: =IF(G71="","",VLOOKUP(G71,漢字書き!$A$2:$N$506,6,0)) -> ［モウヒツ］の時間 | H73: =IF(H71="","",VLOOKUP(H71,漢字書き!$A$2:$N$506,6,0)) -> ［イジョウ］で終わりです | I73: =IF(I71="","",VLOOKUP(I71,漢字書き!$A$2:$N$506,6,0)) -> つめたい［コオリ］ | J73: =IF(J71="","",VLOOKUP(J71,漢字書き!$A$2:$N$506,6,0)) -> ［コクバン］に書く | K73: =IF(K71="","",VLOOKUP(K71,漢字読み!$A$2:$O$506,6,0)) -> ［自覚］がない | L73: =IF(L71="","",VLOOKUP(L71,漢字読み!$A$2:$O$506,6,0)) -> 心を［改］める | M73: =IF(M71="","",VLOOKUP(M71,漢字読み!$A$2:$O$506,6,0)) -> 気を［配］る | N73: =IF(N71="","",VLOOKUP(N71,漢字読み!$A$2:$O$506,6,0)) -> ［平等］に分ける | O73: =IF(O71="","",VLOOKUP(O71,漢字読み!$A$2:$O$506,6,0)) -> ［関所］を通る | P73: =IF(P71="","",VLOOKUP(P71,漢字読み!$A$2:$O$506,6,0)) -> 世界の［平和］ | Q73: =IF(Q71="","",VLOOKUP(Q71,漢字読み!$A$2:$O$506,6,0)) -> 日本の［四季］ | R73: =IF(R71="","",VLOOKUP(R71,漢字読み!$A$2:$O$506,6,0)) -> かんなで［板］をけずる | S73: =IF(S71="","",VLOOKUP(S71,漢字読み!$A$2:$O$506,6,0)) -> ［薬局］に立ちよる | T73: =IF(T71="","",VLOOKUP(T71,漢字読み!$A$2:$O$506,6,0)) -> [鼻水]が出る | V73: 級
A74: =IF(A$11="","",VLOOKUP(A71,漢字書き!$A$2:$O$506,8,0)) -> 開放 | B74: =IF(B$11="","",VLOOKUP(B71,漢字書き!$A$2:$O$506,8,0)) -> 両足 | C74: =IF(C$11="","",VLOOKUP(C71,漢字書き!$A$2:$O$506,8,0)) -> 関 | D74: =IF(D$11="","",VLOOKUP(D71,漢字書き!$A$2:$O$506,8,0)) -> 様子 | E74: =IF(E$11="","",VLOOKUP(E71,漢字書き!$A$2:$O$506,8,0)) -> 列 | F74: =IF(F$11="","",VLOOKUP(F71,漢字書き!$A$2:$O$506,8,0)) -> 由来 | G74: =IF(G$11="","",VLOOKUP(G71,漢字書き!$A$2:$O$506,8,0)) -> 毛筆 | H74: =IF(H$11="","",VLOOKUP(H71,漢字書き!$A$2:$O$506,8,0)) -> 以上 | I74: =IF(I$11="","",VLOOKUP(I71,漢字書き!$A$2:$O$506,8,0)) -> 氷 | J74: =IF(J$11="","",VLOOKUP(J71,漢字書き!$A$2:$O$506,8,0)) -> 黒板 | K74: =IF(K$11="","",VLOOKUP(K71,漢字読み!$A$2:$O$506,8,0)) -> じかく | L74: =IF(L$11="","",VLOOKUP(L71,漢字読み!$A$2:$O$506,8,0)) -> あらた | M74: =IF(M$11="","",VLOOKUP(M71,漢字読み!$A$2:$O$506,8,0)) -> くば | N74: =IF(N$11="","",VLOOKUP(N71,漢字読み!$A$2:$O$506,8,0)) -> びょうどう | O74: =IF(O$11="","",VLOOKUP(O71,漢字読み!$A$2:$O$506,8,0)) -> せきしょ | P74: =IF(P$11="","",VLOOKUP(P71,漢字読み!$A$2:$O$506,8,0)) -> へいわ | Q74: =IF(Q$11="","",VLOOKUP(Q71,漢字読み!$A$2:$O$506,8,0)) -> しき | R74: =IF(R$11="","",VLOOKUP(R71,漢字読み!$A$2:$O$506,8,0)) -> いた | S74: =IF(S$11="","",VLOOKUP(S71,漢字読み!$A$2:$O$506,8,0)) -> やっきょく | T74: =IF(T$11="","",VLOOKUP(T71,漢字読み!$A$2:$O$506,8,0)) -> はなみず | V74: 名前
A75: =IF(A71="","",IF(VLOOKUP(A71,漢字書き!$A$2:$N$502,7,0)=0,"",VLOOKUP(A71,漢字書き!$A$2:$N$502,7,0))) -> する | B75: =IF(B71="","",IF(VLOOKUP(B71,漢字書き!$A$2:$N$502,7,0)=0,"",VLOOKUP(B71,漢字書き!$A$2:$N$502,7,0))) ->  | C75: =IF(C71="","",IF(VLOOKUP(C71,漢字書き!$A$2:$N$502,7,0)=0,"",VLOOKUP(C71,漢字書き!$A$2:$N$502,7,0))) -> わり | D75: =IF(D71="","",IF(VLOOKUP(D71,漢字書き!$A$2:$N$502,7,0)=0,"",VLOOKUP(D71,漢字書き!$A$2:$N$502,7,0))) ->  | E75: =IF(E71="","",IF(VLOOKUP(E71,漢字書き!$A$2:$N$502,7,0)=0,"",VLOOKUP(E71,漢字書き!$A$2:$N$502,7,0))) ->  | F75: =IF(F71="","",IF(VLOOKUP(F71,漢字書き!$A$2:$N$502,7,0)=0,"",VLOOKUP(F71,漢字書き!$A$2:$N$502,7,0))) ->  | G75: =IF(G71="","",IF(VLOOKUP(G71,漢字書き!$A$2:$N$502,7,0)=0,"",VLOOKUP(G71,漢字書き!$A$2:$N$502,7,0))) ->  | H75: =IF(H71="","",IF(VLOOKUP(H71,漢字書き!$A$2:$N$502,7,0)=0,"",VLOOKUP(H71,漢字書き!$A$2:$N$502,7,0))) ->  | I75: =IF(I71="","",IF(VLOOKUP(I71,漢字書き!$A$2:$N$502,7,0)=0,"",VLOOKUP(I71,漢字書き!$A$2:$N$502,7,0))) ->  | J75: =IF(J71="","",IF(VLOOKUP(J71,漢字書き!$A$2:$N$502,7,0)=0,"",VLOOKUP(J71,漢字書き!$A$2:$N$502,7,0))) ->  | K75: =IF(K71="","",IF(VLOOKUP(K71,漢字読み!$A$2:$O$502,7,0)=0,"",VLOOKUP(K71,漢字読み!$A$2:$O$502,7,0))) ->  | L75: =IF(L71="","",IF(VLOOKUP(L71,漢字読み!$A$2:$O$502,7,0)=0,"",VLOOKUP(L71,漢字読み!$A$2:$O$502,7,0))) -> める | M75: =IF(M71="","",IF(VLOOKUP(M71,漢字読み!$A$2:$O$502,7,0)=0,"",VLOOKUP(M71,漢字読み!$A$2:$O$502,7,0))) -> る | N75: =IF(N71="","",IF(VLOOKUP(N71,漢字読み!$A$2:$O$502,7,0)=0,"",VLOOKUP(N71,漢字読み!$A$2:$O$502,7,0))) ->  | O75: =IF(O71="","",IF(VLOOKUP(O71,漢字読み!$A$2:$O$502,7,0)=0,"",VLOOKUP(O71,漢字読み!$A$2:$O$502,7,0))) ->  | P75: =IF(P71="","",IF(VLOOKUP(P71,漢字読み!$A$2:$O$502,7,0)=0,"",VLOOKUP(P71,漢字読み!$A$2:$O$502,7,0))) ->  | Q75: =IF(Q71="","",IF(VLOOKUP(Q71,漢字読み!$A$2:$O$502,7,0)=0,"",VLOOKUP(Q71,漢字読み!$A$2:$O$502,7,0))) ->  | R75: =IF(R71="","",IF(VLOOKUP(R71,漢字読み!$A$2:$O$502,7,0)=0,"",VLOOKUP(R71,漢字読み!$A$2:$O$502,7,0))) ->  | S75: =IF(S71="","",IF(VLOOKUP(S71,漢字読み!$A$2:$O$502,7,0)=0,"",VLOOKUP(S71,漢字読み!$A$2:$O$502,7,0))) ->  | T75: =IF(T71="","",IF(VLOOKUP(T71,漢字読み!$A$2:$O$502,7,0)=0,"",VLOOKUP(T71,漢字読み!$A$2:$O$502,7,0))) ->  | W75: 和歌山県教育委員会
A76: =A66 -> 204 | B76: =B66 -> 35 | C76: =C66 -> 172 | D76: =D66 -> 30 | E76: =E66 -> 28 | F76: =F66 -> 133 | G76: =G66 -> 202 | H76: =H66 -> 68 | I76: =I66 -> 165 | J76: =J66 -> 15 | K76: =K66 -> 139 | L76: =L66 -> 95 | M76: =M66 -> 48 | N76: =N66 -> 182 | O76: =O66 -> 52 | P76: =P66 -> 107 | Q76: =Q66 -> 59 | R76: =R66 -> 144 | S76: =S66 -> 24 | T76: =T66 -> 77
A77: ⑳ | B77: ⑲ | C77: ⑱ | D77: ⑰ | E77: ⑯ | F77: ⑮ | G77: ⑭ | H77: ⑬ | I77: ⑫ | J77: ⑪ | K77: ⑩ | L77: ⑨ | M77: ⑧ | N77: ⑦ | O77: ⑥ | P77: ⑤ | Q77: ④ | R77: ③ | S77: ② | T77: ① | U77: 次の［ ］の部分の漢字には読みがなをひらがなで書き、カタカナは漢字に直しなさい。 | V77: 11 | W77: 「漢字の博士検定試験」練習問題
A78: =IF(A76="","",VLOOKUP(A76,漢字書き!$A$2:$N$506,6,0)) -> ［セキショ］を通る | B78: =IF(B76="","",VLOOKUP(B76,漢字書き!$A$2:$N$506,6,0)) -> ［サカミチ］を歩く | C78: =IF(C76="","",VLOOKUP(C76,漢字書き!$A$2:$N$506,6,0)) -> ［シオアジ］が足りない | D78: =IF(D76="","",VLOOKUP(D76,漢字書き!$A$2:$N$506,6,0)) -> ［ハンタイ］の意見 | E78: =IF(E76="","",VLOOKUP(E76,漢字書き!$A$2:$N$506,6,0)) -> 新星を[ハッケン]する | F78: =IF(F76="","",VLOOKUP(F76,漢字書き!$A$2:$N$506,6,0)) -> 急な［ナガ］れ | G78: =IF(G76="","",VLOOKUP(G76,漢字書き!$A$2:$N$506,6,0)) -> 親子の［カンケイ］ | H78: =IF(H76="","",VLOOKUP(H76,漢字書き!$A$2:$N$506,6,0)) -> ［ブシツ］をそうじする | I78: =IF(I76="","",VLOOKUP(I76,漢字書き!$A$2:$N$506,6,0)) -> ［イン］さつされた文字 | J78: =IF(J76="","",VLOOKUP(J76,漢字書き!$A$2:$N$506,6,0)) -> じ[ドウ]会の役員 | K78: =IF(K76="","",VLOOKUP(K76,漢字読み!$A$2:$O$506,6,0)) -> ［列］にくわわる | L78: =IF(L76="","",VLOOKUP(L76,漢字読み!$A$2:$O$506,6,0)) -> 魚のおろし［問屋］ | M78: =IF(M76="","",VLOOKUP(M76,漢字読み!$A$2:$O$506,6,0)) -> 当番［表］を見る | N78: =IF(N76="","",VLOOKUP(N76,漢字読み!$A$2:$O$506,6,0)) -> ［各自］で考える | O78: =IF(O76="","",VLOOKUP(O76,漢字読み!$A$2:$O$506,6,0)) -> ［病気］をなおす | P78: =IF(P76="","",VLOOKUP(P76,漢字読み!$A$2:$O$506,6,0)) -> 温せんで［有名］な土地 | Q78: =IF(Q76="","",VLOOKUP(Q76,漢字読み!$A$2:$O$506,6,0)) -> リュックをせ［負］う | R78: =IF(R76="","",VLOOKUP(R76,漢字読み!$A$2:$O$506,6,0)) -> ［道路］を工事する | S78: =IF(S76="","",VLOOKUP(S76,漢字読み!$A$2:$O$506,6,0)) -> ノアの［箱船］ | T78: =IF(T76="","",VLOOKUP(T76,漢字読み!$A$2:$O$506,6,0)) -> ［返］すことばがない | V78: 級
A79: =IF(A$16="","",VLOOKUP(A76,漢字書き!$A$2:$O$506,8,0)) -> 関所 | B79: =IF(B$16="","",VLOOKUP(B76,漢字書き!$A$2:$O$506,8,0)) -> 坂道 | C79: =IF(C$16="","",VLOOKUP(C76,漢字書き!$A$2:$O$506,8,0)) -> 塩味 | D79: =IF(D$16="","",VLOOKUP(D76,漢字書き!$A$2:$O$506,8,0)) -> 反対 | E79: =IF(E$16="","",VLOOKUP(E76,漢字書き!$A$2:$O$506,8,0)) -> 発見 | F79: =IF(F$16="","",VLOOKUP(F76,漢字書き!$A$2:$O$506,8,0)) -> 流 | G79: =IF(G$16="","",VLOOKUP(G76,漢字書き!$A$2:$O$506,8,0)) -> 関係 | H79: =IF(H$16="","",VLOOKUP(H76,漢字書き!$A$2:$O$506,8,0)) -> 部室 | I79: =IF(I$16="","",VLOOKUP(I76,漢字書き!$A$2:$O$506,8,0)) -> 印 | J79: =IF(J$16="","",VLOOKUP(J76,漢字書き!$A$2:$O$506,8,0)) -> 童 | K79: =IF(K$16="","",VLOOKUP(K76,漢字読み!$A$2:$O$506,8,0)) -> れつ | L79: =IF(L$16="","",VLOOKUP(L76,漢字読み!$A$2:$O$506,8,0)) -> どんや | M79: =IF(M$16="","",VLOOKUP(M76,漢字読み!$A$2:$O$506,8,0)) -> ひょう | N79: =IF(N$16="","",VLOOKUP(N76,漢字読み!$A$2:$O$506,8,0)) -> かくじ | O79: =IF(O$16="","",VLOOKUP(O76,漢字読み!$A$2:$O$506,8,0)) -> びょうき | P79: =IF(P$16="","",VLOOKUP(P76,漢字読み!$A$2:$O$506,8,0)) -> ゆうめい | Q79: =IF(Q$16="","",VLOOKUP(Q76,漢字読み!$A$2:$O$506,8,0)) -> お | R79: =IF(R$16="","",VLOOKUP(R76,漢字読み!$A$2:$O$506,8,0)) -> どうろ | S79: =IF(S$16="","",VLOOKUP(S76,漢字読み!$A$2:$O$506,8,0)) -> はこぶね | T79: =IF(T$16="","",VLOOKUP(T76,漢字読み!$A$2:$O$506,8,0)) -> かえ | V79: 名前
A80: =IF(A76="","",IF(VLOOKUP(A76,漢字書き!$A$2:$N$502,7,0)=0,"",VLOOKUP(A76,漢字書き!$A$2:$N$502,7,0))) ->  | B80: =IF(B76="","",IF(VLOOKUP(B76,漢字書き!$A$2:$N$502,7,0)=0,"",VLOOKUP(B76,漢字書き!$A$2:$N$502,7,0))) ->  | C80: =IF(C76="","",IF(VLOOKUP(C76,漢字書き!$A$2:$N$502,7,0)=0,"",VLOOKUP(C76,漢字書き!$A$2:$N$502,7,0))) ->  | D80: =IF(D76="","",IF(VLOOKUP(D76,漢字書き!$A$2:$N$502,7,0)=0,"",VLOOKUP(D76,漢字書き!$A$2:$N$502,7,0))) ->  | E80: =IF(E76="","",IF(VLOOKUP(E76,漢字書き!$A$2:$N$502,7,0)=0,"",VLOOKUP(E76,漢字書き!$A$2:$N$502,7,0))) -> する | F80: =IF(F76="","",IF(VLOOKUP(F76,漢字書き!$A$2:$N$502,7,0)=0,"",VLOOKUP(F76,漢字書き!$A$2:$N$502,7,0))) -> れ | G80: =IF(G76="","",IF(VLOOKUP(G76,漢字書き!$A$2:$N$502,7,0)=0,"",VLOOKUP(G76,漢字書き!$A$2:$N$502,7,0))) ->  | H80: =IF(H76="","",IF(VLOOKUP(H76,漢字書き!$A$2:$N$502,7,0)=0,"",VLOOKUP(H76,漢字書き!$A$2:$N$502,7,0))) ->  | I80: =IF(I76="","",IF(VLOOKUP(I76,漢字書き!$A$2:$N$502,7,0)=0,"",VLOOKUP(I76,漢字書き!$A$2:$N$502,7,0))) -> さつ | J80: =IF(J76="","",IF(VLOOKUP(J76,漢字書き!$A$2:$N$502,7,0)=0,"",VLOOKUP(J76,漢字書き!$A$2:$N$502,7,0))) -> 会 | K80: =IF(K76="","",IF(VLOOKUP(K76,漢字読み!$A$2:$O$502,7,0)=0,"",VLOOKUP(K76,漢字読み!$A$2:$O$502,7,0))) ->  | L80: =IF(L76="","",IF(VLOOKUP(L76,漢字読み!$A$2:$O$502,7,0)=0,"",VLOOKUP(L76,漢字読み!$A$2:$O$502,7,0))) ->  | M80: =IF(M76="","",IF(VLOOKUP(M76,漢字読み!$A$2:$O$502,7,0)=0,"",VLOOKUP(M76,漢字読み!$A$2:$O$502,7,0))) ->  | N80: =IF(N76="","",IF(VLOOKUP(N76,漢字読み!$A$2:$O$502,7,0)=0,"",VLOOKUP(N76,漢字読み!$A$2:$O$502,7,0))) ->  | O80: =IF(O76="","",IF(VLOOKUP(O76,漢字読み!$A$2:$O$502,7,0)=0,"",VLOOKUP(O76,漢字読み!$A$2:$O$502,7,0))) ->  | P80: =IF(P76="","",IF(VLOOKUP(P76,漢字読み!$A$2:$O$502,7,0)=0,"",VLOOKUP(P76,漢字読み!$A$2:$O$502,7,0))) -> な | Q80: =IF(Q76="","",IF(VLOOKUP(Q76,漢字読み!$A$2:$O$502,7,0)=0,"",VLOOKUP(Q76,漢字読み!$A$2:$O$502,7,0))) -> う | R80: =IF(R76="","",IF(VLOOKUP(R76,漢字読み!$A$2:$O$502,7,0)=0,"",VLOOKUP(R76,漢字読み!$A$2:$O$502,7,0))) ->  | S80: =IF(S76="","",IF(VLOOKUP(S76,漢字読み!$A$2:$O$502,7,0)=0,"",VLOOKUP(S76,漢字読み!$A$2:$O$502,7,0))) ->  | T80: =IF(T76="","",IF(VLOOKUP(T76,漢字読み!$A$2:$O$502,7,0)=0,"",VLOOKUP(T76,漢字読み!$A$2:$O$502,7,0))) -> す | W80: 和歌山県教育委員会
A81: =INDIRECT("'関数（書き）'!C" & COLUMN(B$1)+SUM($AD$2:$AD82)) -> 31 | B81: =INDIRECT("'関数（書き）'!C" & COLUMN(C$1)+SUM($AD$2:$AD82)) -> 11 | C81: =INDIRECT("'関数（書き）'!C" & COLUMN(D$1)+SUM($AD$2:$AD82)) -> 41 | D81: =INDIRECT("'関数（書き）'!C" & COLUMN(E$1)+SUM($AD$2:$AD82)) -> 155 | E81: =INDIRECT("'関数（書き）'!C" & COLUMN(F$1)+SUM($AD$2:$AD82)) -> 199 | F81: =INDIRECT("'関数（書き）'!C" & COLUMN(G$1)+SUM($AD$2:$AD82)) -> 88 | G81: =INDIRECT("'関数（書き）'!C" & COLUMN(H$1)+SUM($AD$2:$AD82)) -> 13 | H81: =INDIRECT("'関数（書き）'!C" & COLUMN(I$1)+SUM($AD$2:$AD82)) -> 90 | I81: =INDIRECT("'関数（書き）'!C" & COLUMN(J$1)+SUM($AD$2:$AD82)) -> 211 | J81: =INDIRECT("'関数（書き）'!C" & COLUMN(K$1)+SUM($AD$2:$AD82)) -> 48 | K81: =INDIRECT("'関数（読み）'!C" & COLUMN(B$1)+SUM($AD$2:$AD82)) -> 143 | L81: =INDIRECT("'関数（読み）'!C" & COLUMN(C$1)+SUM($AD$2:$AD82)) -> 141 | M81: =INDIRECT("'関数（読み）'!C" & COLUMN(D$1)+SUM($AD$2:$AD82)) -> 88 | N81: =INDIRECT("'関数（読み）'!C" & COLUMN(E$1)+SUM($AD$2:$AD82)) -> 35 | O81: =INDIRECT("'関数（読み）'!C" & COLUMN(F$1)+SUM($AD$2:$AD82)) -> 25 | P81: =INDIRECT("'関数（読み）'!C" & COLUMN(G$1)+SUM($AD$2:$AD82)) -> 58 | Q81: =INDIRECT("'関数（読み）'!C" & COLUMN(H$1)+SUM($AD$2:$AD82)) -> 184 | R81: =INDIRECT("'関数（読み）'!C" & COLUMN(I$1)+SUM($AD$2:$AD82)) -> 36 | S81: =INDIRECT("'関数（読み）'!C" & COLUMN(J$1)+SUM($AD$2:$AD82)) -> 136 | T81: =INDIRECT("'関数（読み）'!C" & COLUMN(K$1)+SUM($AD$2:$AD82)) -> 142
A82: ⑳ | B82: ⑲ | C82: ⑱ | D82: ⑰ | E82: ⑯ | F82: ⑮ | G82: ⑭ | H82: ⑬ | I82: ⑫ | J82: ⑪ | K82: ⑩ | L82: ⑨ | M82: ⑧ | N82: ⑦ | O82: ⑥ | P82: ⑤ | Q82: ④ | R82: ③ | S82: ② | T82: ① | U82: 次の［ ］の部分の漢字には読みがなをひらがなで書き、カタカナは漢字に直しなさい。 | V82: 11 | W82: 「漢字の博士検定試験」練習問題 | AC82: ← | AD82: 10 | AE82: 問 | AF82: =AH67+1 -> 81 | AG82: ～ | AH82: =SUM($AD$2:$AD82)+10 -> 90 | AI82: 問まで | AJ82: =COUNTIF($A$1:$T$200,T83) -> 2
A83: =IF(A81="","",VLOOKUP(A81,漢字書き!$A$2:$N$506,6,0)) -> 親に［ハンパツ］する | B83: =IF(B81="","",VLOOKUP(B81,漢字書き!$A$2:$N$506,6,0)) -> 気持ちが［ウゴ］く | C83: =IF(C81="","",VLOOKUP(C81,漢字書き!$A$2:$N$506,6,0)) -> ［ケガワ］のコート | D83: =IF(D81="","",VLOOKUP(D81,漢字書き!$A$2:$N$506,6,0)) -> ［アンナイ］する | E83: =IF(E81="","",VLOOKUP(E81,漢字書き!$A$2:$N$506,6,0)) -> けいさつ［カン］になる | F83: =IF(F81="","",VLOOKUP(F81,漢字書き!$A$2:$N$506,6,0)) -> ［ハナ］しがいにする | G83: =IF(G81="","",VLOOKUP(G81,漢字書き!$A$2:$N$506,6,0)) -> 日本の［ドウワ］を読む | H83: =IF(H81="","",VLOOKUP(H81,漢字書き!$A$2:$N$506,6,0)) -> ［ホウ］っておけない物 | I83: =IF(I81="","",VLOOKUP(I81,漢字書き!$A$2:$N$506,6,0)) -> ［キ］ぼうをもつ | J83: =IF(J81="","",VLOOKUP(J81,漢字書き!$A$2:$N$506,6,0)) -> 本の［ヒッシャ］ | K83: =IF(K81="","",VLOOKUP(K81,漢字読み!$A$2:$O$506,6,0)) -> ［路線］が変わる | L83: =IF(L81="","",VLOOKUP(L81,漢字読み!$A$2:$O$506,6,0)) -> 考えを［練］る | M83: =IF(M81="","",VLOOKUP(M81,漢字読み!$A$2:$O$506,6,0)) -> 月の［表面］の写真 | N83: =IF(N81="","",VLOOKUP(N81,漢字読み!$A$2:$O$506,6,0)) -> ［表皮］をけずる | O83: =IF(O81="","",VLOOKUP(O81,漢字読み!$A$2:$O$506,6,0)) -> ［田畑］をたがやす | P83: =IF(P81="","",VLOOKUP(P81,漢字読み!$A$2:$O$506,6,0)) -> ［勝負］にかける | Q83: =IF(Q81="","",VLOOKUP(Q81,漢字読み!$A$2:$O$506,6,0)) -> ［目覚］まし時計が鳴る | R83: =IF(R81="","",VLOOKUP(R81,漢字読み!$A$2:$O$506,6,0)) -> ［毛皮］を着る | S83: =IF(S81="","",VLOOKUP(S81,漢字読み!$A$2:$O$506,6,0)) -> ［緑地］公園に行く | T83: =IF(T81="","",VLOOKUP(T81,漢字読み!$A$2:$O$506,6,0)) -> 汽車の［線路］ | V83: 級
V84: 名前
A85: =IF(A81="","",IF(VLOOKUP(A81,漢字書き!$A$2:$N$502,7,0)=0,"",VLOOKUP(A81,漢字書き!$A$2:$N$502,7,0))) -> する | B85: =IF(B81="","",IF(VLOOKUP(B81,漢字書き!$A$2:$N$502,7,0)=0,"",VLOOKUP(B81,漢字書き!$A$2:$N$502,7,0))) -> く | C85: =IF(C81="","",IF(VLOOKUP(C81,漢字書き!$A$2:$N$502,7,0)=0,"",VLOOKUP(C81,漢字書き!$A$2:$N$502,7,0))) ->  | D85: =IF(D81="","",IF(VLOOKUP(D81,漢字書き!$A$2:$N$502,7,0)=0,"",VLOOKUP(D81,漢字書き!$A$2:$N$502,7,0))) -> する | E85: =IF(E81="","",IF(VLOOKUP(E81,漢字書き!$A$2:$N$502,7,0)=0,"",VLOOKUP(E81,漢字書き!$A$2:$N$502,7,0))) ->  | F85: =IF(F81="","",IF(VLOOKUP(F81,漢字書き!$A$2:$N$502,7,0)=0,"",VLOOKUP(F81,漢字書き!$A$2:$N$502,7,0))) -> しがい | G85: =IF(G81="","",IF(VLOOKUP(G81,漢字書き!$A$2:$N$502,7,0)=0,"",VLOOKUP(G81,漢字書き!$A$2:$N$502,7,0))) ->  | H85: =IF(H81="","",IF(VLOOKUP(H81,漢字書き!$A$2:$N$502,7,0)=0,"",VLOOKUP(H81,漢字書き!$A$2:$N$502,7,0))) -> って | I85: =IF(I81="","",IF(VLOOKUP(I81,漢字書き!$A$2:$N$502,7,0)=0,"",VLOOKUP(I81,漢字書き!$A$2:$N$502,7,0))) -> ぼう | J85: =IF(J81="","",IF(VLOOKUP(J81,漢字書き!$A$2:$N$502,7,0)=0,"",VLOOKUP(J81,漢字書き!$A$2:$N$502,7,0))) ->  | K85: =IF(K81="","",IF(VLOOKUP(K81,漢字読み!$A$2:$O$502,7,0)=0,"",VLOOKUP(K81,漢字読み!$A$2:$O$502,7,0))) ->  | L85: =IF(L81="","",IF(VLOOKUP(L81,漢字読み!$A$2:$O$502,7,0)=0,"",VLOOKUP(L81,漢字読み!$A$2:$O$502,7,0))) -> る | M85: =IF(M81="","",IF(VLOOKUP(M81,漢字読み!$A$2:$O$502,7,0)=0,"",VLOOKUP(M81,漢字読み!$A$2:$O$502,7,0))) ->  | N85: =IF(N81="","",IF(VLOOKUP(N81,漢字読み!$A$2:$O$502,7,0)=0,"",VLOOKUP(N81,漢字読み!$A$2:$O$502,7,0))) ->  | O85: =IF(O81="","",IF(VLOOKUP(O81,漢字読み!$A$2:$O$502,7,0)=0,"",VLOOKUP(O81,漢字読み!$A$2:$O$502,7,0))) ->  | P85: =IF(P81="","",IF(VLOOKUP(P81,漢字読み!$A$2:$O$502,7,0)=0,"",VLOOKUP(P81,漢字読み!$A$2:$O$502,7,0))) ->  | Q85: =IF(Q81="","",IF(VLOOKUP(Q81,漢字読み!$A$2:$O$502,7,0)=0,"",VLOOKUP(Q81,漢字読み!$A$2:$O$502,7,0))) -> まし | R85: =IF(R81="","",IF(VLOOKUP(R81,漢字読み!$A$2:$O$502,7,0)=0,"",VLOOKUP(R81,漢字読み!$A$2:$O$502,7,0))) ->  | S85: =IF(S81="","",IF(VLOOKUP(S81,漢字読み!$A$2:$O$502,7,0)=0,"",VLOOKUP(S81,漢字読み!$A$2:$O$502,7,0))) ->  | T85: =IF(T81="","",IF(VLOOKUP(T81,漢字読み!$A$2:$O$502,7,0)=0,"",VLOOKUP(T81,漢字読み!$A$2:$O$502,7,0))) ->  | W85: 和歌山県教育委員会
A86: =INDIRECT("'関数（書き）'!C" & COLUMN(B$1)+SUM($AD$2:$AD87)) -> 227 | B86: =INDIRECT("'関数（書き）'!C" & COLUMN(C$1)+SUM($AD$2:$AD87)) -> 47 | C86: =INDIRECT("'関数（書き）'!C" & COLUMN(D$1)+SUM($AD$2:$AD87)) -> 33 | D86: =INDIRECT("'関数（書き）'!C" & COLUMN(E$1)+SUM($AD$2:$AD87)) -> 27 | E86: =INDIRECT("'関数（書き）'!C" & COLUMN(F$1)+SUM($AD$2:$AD87)) -> 63 | F86: =INDIRECT("'関数（書き）'!C" & COLUMN(G$1)+SUM($AD$2:$AD87)) -> 192 | G86: =INDIRECT("'関数（書き）'!C" & COLUMN(H$1)+SUM($AD$2:$AD87)) -> 173 | H86: =INDIRECT("'関数（書き）'!C" & COLUMN(I$1)+SUM($AD$2:$AD87)) -> 153 | I86: =INDIRECT("'関数（書き）'!C" & COLUMN(J$1)+SUM($AD$2:$AD87)) -> 176 | J86: =INDIRECT("'関数（書き）'!C" & COLUMN(K$1)+SUM($AD$2:$AD87)) -> 148 | K86: =INDIRECT("'関数（読み）'!C" & COLUMN(B$1)+SUM($AD$2:$AD87)) -> 146 | L86: =INDIRECT("'関数（読み）'!C" & COLUMN(C$1)+SUM($AD$2:$AD87)) -> 163 | M86: =INDIRECT("'関数（読み）'!C" & COLUMN(D$1)+SUM($AD$2:$AD87)) -> 50 | N86: =INDIRECT("'関数（読み）'!C" & COLUMN(E$1)+SUM($AD$2:$AD87)) -> 133 | O86: =INDIRECT("'関数（読み）'!C" & COLUMN(F$1)+SUM($AD$2:$AD87)) -> 201 | P86: =INDIRECT("'関数（読み）'!C" & COLUMN(G$1)+SUM($AD$2:$AD87)) -> 44 | Q86: =INDIRECT("'関数（読み）'!C" & COLUMN(H$1)+SUM($AD$2:$AD87)) -> 126 | R86: =INDIRECT("'関数（読み）'!C" & COLUMN(I$1)+SUM($AD$2:$AD87)) -> 178 | S86: =INDIRECT("'関数（読み）'!C" & COLUMN(J$1)+SUM($AD$2:$AD87)) -> 63 | T86: =INDIRECT("'関数（読み）'!C" & COLUMN(K$1)+SUM($AD$2:$AD87)) -> 97
A87: ⑳ | B87: ⑲ | C87: ⑱ | D87: ⑰ | E87: ⑯ | F87: ⑮ | G87: ⑭ | H87: ⑬ | I87: ⑫ | J87: ⑪ | K87: ⑩ | L87: ⑨ | M87: ⑧ | N87: ⑦ | O87: ⑥ | P87: ⑤ | Q87: ④ | R87: ③ | S87: ② | T87: ① | U87: 次の［ ］の部分の漢字には読みがなをひらがなで書き、カタカナは漢字に直しなさい。 | V87: 11 | W87: 「漢字の博士検定試験」練習問題 | AC87: ← | AD87: 10 | AE87: 問 | AF87: =AH82+1 -> 91 | AG87: ～ | AH87: =SUM($AD$2:$AD87)+10 -> 100 | AI87: 問まで | AJ87: =COUNTIF($A$1:$T$200,T88) -> 2
A88: =IF(A86="","",VLOOKUP(A86,漢字書き!$A$2:$N$506,6,0)) -> ［トヤマケン］のおみやげ | B88: =IF(B86="","",VLOOKUP(B86,漢字書き!$A$2:$N$506,6,0)) -> ［ハナミズ］が出る | C88: =IF(C86="","",VLOOKUP(C86,漢字書き!$A$2:$N$506,6,0)) -> 表紙が［ソ］る | D88: =IF(D86="","",VLOOKUP(D86,漢字書き!$A$2:$N$506,6,0)) -> ［ハッセイ］練習 | E88: =IF(E86="","",VLOOKUP(E86,漢字書き!$A$2:$N$506,6,0)) -> ［テジナ］は楽しい | F88: =IF(F86="","",VLOOKUP(F86,漢字書き!$A$2:$N$506,6,0)) -> 商店［ガイ］を歩く | G88: =IF(G86="","",VLOOKUP(G86,漢字書き!$A$2:$N$506,6,0)) -> さとうと［シオ］ | H88: =IF(H86="","",VLOOKUP(H86,漢字書き!$A$2:$N$506,6,0)) -> ［アイ］とゆう気 | I88: =IF(I86="","",VLOOKUP(I86,漢字書き!$A$2:$N$506,6,0)) -> みんなでさん［カ］する | J88: =IF(J86="","",VLOOKUP(J86,漢字書き!$A$2:$N$506,6,0)) -> 汽車の［センロ］ | K88: =IF(K86="","",VLOOKUP(K86,漢字読み!$A$2:$O$506,6,0)) -> [和紙]でつつむ | L88: =IF(L86="","",VLOOKUP(L86,漢字読み!$A$2:$O$506,6,0)) -> てきに［塩］をおくる | M88: =IF(M86="","",VLOOKUP(M86,漢字読み!$A$2:$O$506,6,0)) -> 図やグラフで［表］す | N88: =IF(N86="","",VLOOKUP(N86,漢字読み!$A$2:$O$506,6,0)) -> 海外［旅行］ | O88: =IF(O86="","",VLOOKUP(O86,漢字読み!$A$2:$O$506,6,0)) -> ［年賀］はがきを出す | P88: =IF(P86="","",VLOOKUP(P86,漢字読み!$A$2:$O$506,6,0)) -> ［毛筆］を使う | Q88: =IF(Q86="","",VLOOKUP(Q86,漢字読み!$A$2:$O$506,6,0)) -> ［落石］に注意 | R88: =IF(R86="","",VLOOKUP(R86,漢字読み!$A$2:$O$506,6,0)) -> ［機械］を使う | S88: =IF(S86="","",VLOOKUP(S86,漢字読み!$A$2:$O$506,6,0)) -> ［服］を着る | T88: =IF(T86="","",VLOOKUP(T86,漢字読み!$A$2:$O$506,6,0)) -> ［役目］を果たす | V88: 級
V89: 名前
A90: =IF(A86="","",IF(VLOOKUP(A86,漢字書き!$A$2:$N$502,7,0)=0,"",VLOOKUP(A86,漢字書き!$A$2:$N$502,7,0))) ->  | B90: =IF(B86="","",IF(VLOOKUP(B86,漢字書き!$A$2:$N$502,7,0)=0,"",VLOOKUP(B86,漢字書き!$A$2:$N$502,7,0))) ->  | C90: =IF(C86="","",IF(VLOOKUP(C86,漢字書き!$A$2:$N$502,7,0)=0,"",VLOOKUP(C86,漢字書き!$A$2:$N$502,7,0))) -> る | D90: =IF(D86="","",IF(VLOOKUP(D86,漢字書き!$A$2:$N$502,7,0)=0,"",VLOOKUP(D86,漢字書き!$A$2:$N$502,7,0))) ->  | E90: =IF(E86="","",IF(VLOOKUP(E86,漢字書き!$A$2:$N$502,7,0)=0,"",VLOOKUP(E86,漢字書き!$A$2:$N$502,7,0))) ->  | F90: =IF(F86="","",IF(VLOOKUP(F86,漢字書き!$A$2:$N$502,7,0)=0,"",VLOOKUP(F86,漢字書き!$A$2:$N$502,7,0))) ->  | G90: =IF(G86="","",IF(VLOOKUP(G86,漢字書き!$A$2:$N$502,7,0)=0,"",VLOOKUP(G86,漢字書き!$A$2:$N$502,7,0))) ->  | H90: =IF(H86="","",IF(VLOOKUP(H86,漢字書き!$A$2:$N$502,7,0)=0,"",VLOOKUP(H86,漢字書き!$A$2:$N$502,7,0))) ->  | I90: =IF(I86="","",IF(VLOOKUP(I86,漢字書き!$A$2:$N$502,7,0)=0,"",VLOOKUP(I86,漢字書き!$A$2:$N$502,7,0))) -> する | J90: =IF(J86="","",IF(VLOOKUP(J86,漢字書き!$A$2:$N$502,7,0)=0,"",VLOOKUP(J86,漢字書き!$A$2:$N$502,7,0))) ->  | K90: =IF(K86="","",IF(VLOOKUP(K86,漢字読み!$A$2:$O$502,7,0)=0,"",VLOOKUP(K86,漢字読み!$A$2:$O$502,7,0))) ->  | L90: =IF(L86="","",IF(VLOOKUP(L86,漢字読み!$A$2:$O$502,7,0)=0,"",VLOOKUP(L86,漢字読み!$A$2:$O$502,7,0))) ->  | M90: =IF(M86="","",IF(VLOOKUP(M86,漢字読み!$A$2:$O$502,7,0)=0,"",VLOOKUP(M86,漢字読み!$A$2:$O$502,7,0))) -> す | N90: =IF(N86="","",IF(VLOOKUP(N86,漢字読み!$A$2:$O$502,7,0)=0,"",VLOOKUP(N86,漢字読み!$A$2:$O$502,7,0))) ->  | O90: =IF(O86="","",IF(VLOOKUP(O86,漢字読み!$A$2:$O$502,7,0)=0,"",VLOOKUP(O86,漢字読み!$A$2:$O$502,7,0))) -> はがき | P90: =IF(P86="","",IF(VLOOKUP(P86,漢字読み!$A$2:$O$502,7,0)=0,"",VLOOKUP(P86,漢字読み!$A$2:$O$502,7,0))) ->  | Q90: =IF(Q86="","",IF(VLOOKUP(Q86,漢字読み!$A$2:$O$502,7,0)=0,"",VLOOKUP(Q86,漢字読み!$A$2:$O$502,7,0))) ->  | R90: =IF(R86="","",IF(VLOOKUP(R86,漢字読み!$A$2:$O$502,7,0)=0,"",VLOOKUP(R86,漢字読み!$A$2:$O$502,7,0))) ->  | S90: =IF(S86="","",IF(VLOOKUP(S86,漢字読み!$A$2:$O$502,7,0)=0,"",VLOOKUP(S86,漢字読み!$A$2:$O$502,7,0))) ->  | T90: =IF(T86="","",IF(VLOOKUP(T86,漢字読み!$A$2:$O$502,7,0)=0,"",VLOOKUP(T86,漢字読み!$A$2:$O$502,7,0))) ->  | W90: 和歌山県教育委員会
A91: =A81 -> 31 | B91: =B81 -> 11 | C91: =C81 -> 41 | D91: =D81 -> 155 | E91: =E81 -> 199 | F91: =F81 -> 88 | G91: =G81 -> 13 | H91: =H81 -> 90 | I91: =I81 -> 211 | J91: =J81 -> 48 | K91: =K81 -> 143 | L91: =L81 -> 141 | M91: =M81 -> 88 | N91: =N81 -> 35 | O91: =O81 -> 25 | P91: =P81 -> 58 | Q91: =Q81 -> 184 | R91: =R81 -> 36 | S91: =S81 -> 136 | T91: =T81 -> 142
A92: ⑳ | B92: ⑲ | C92: ⑱ | D92: ⑰ | E92: ⑯ | F92: ⑮ | G92: ⑭ | H92: ⑬ | I92: ⑫ | J92: ⑪ | K92: ⑩ | L92: ⑨ | M92: ⑧ | N92: ⑦ | O92: ⑥ | P92: ⑤ | Q92: ④ | R92: ③ | S92: ② | T92: ① | U92: 次の［ ］の部分の漢字には読みがなをひらがなで書き、カタカナは漢字に直しなさい。 | V92: 11 | W92: 「漢字の博士検定試験」練習問題
A93: =IF(A91="","",VLOOKUP(A91,漢字書き!$A$2:$N$506,6,0)) -> 親に［ハンパツ］する | B93: =IF(B91="","",VLOOKUP(B91,漢字書き!$A$2:$N$506,6,0)) -> 気持ちが［ウゴ］く | C93: =IF(C91="","",VLOOKUP(C91,漢字書き!$A$2:$N$506,6,0)) -> ［ケガワ］のコート | D93: =IF(D91="","",VLOOKUP(D91,漢字書き!$A$2:$N$506,6,0)) -> ［アンナイ］する | E93: =IF(E91="","",VLOOKUP(E91,漢字書き!$A$2:$N$506,6,0)) -> けいさつ［カン］になる | F93: =IF(F91="","",VLOOKUP(F91,漢字書き!$A$2:$N$506,6,0)) -> ［ハナ］しがいにする | G93: =IF(G91="","",VLOOKUP(G91,漢字書き!$A$2:$N$506,6,0)) -> 日本の［ドウワ］を読む | H93: =IF(H91="","",VLOOKUP(H91,漢字書き!$A$2:$N$506,6,0)) -> ［ホウ］っておけない物 | I93: =IF(I91="","",VLOOKUP(I91,漢字書き!$A$2:$N$506,6,0)) -> ［キ］ぼうをもつ | J93: =IF(J91="","",VLOOKUP(J91,漢字書き!$A$2:$N$506,6,0)) -> 本の［ヒッシャ］ | K93: =IF(K91="","",VLOOKUP(K91,漢字読み!$A$2:$O$506,6,0)) -> ［路線］が変わる | L93: =IF(L91="","",VLOOKUP(L91,漢字読み!$A$2:$O$506,6,0)) -> 考えを［練］る | M93: =IF(M91="","",VLOOKUP(M91,漢字読み!$A$2:$O$506,6,0)) -> 月の［表面］の写真 | N93: =IF(N91="","",VLOOKUP(N91,漢字読み!$A$2:$O$506,6,0)) -> ［表皮］をけずる | O93: =IF(O91="","",VLOOKUP(O91,漢字読み!$A$2:$O$506,6,0)) -> ［田畑］をたがやす | P93: =IF(P91="","",VLOOKUP(P91,漢字読み!$A$2:$O$506,6,0)) -> ［勝負］にかける | Q93: =IF(Q91="","",VLOOKUP(Q91,漢字読み!$A$2:$O$506,6,0)) -> ［目覚］まし時計が鳴る | R93: =IF(R91="","",VLOOKUP(R91,漢字読み!$A$2:$O$506,6,0)) -> ［毛皮］を着る | S93: =IF(S91="","",VLOOKUP(S91,漢字読み!$A$2:$O$506,6,0)) -> ［緑地］公園に行く | T93: =IF(T91="","",VLOOKUP(T91,漢字読み!$A$2:$O$506,6,0)) -> 汽車の［線路］ | V93: 級
A94: =IF(A$11="","",VLOOKUP(A91,漢字書き!$A$2:$O$506,8,0)) -> 反発 | B94: =IF(B$11="","",VLOOKUP(B91,漢字書き!$A$2:$O$506,8,0)) -> 動 | C94: =IF(C$11="","",VLOOKUP(C91,漢字書き!$A$2:$O$506,8,0)) -> 毛皮 | D94: =IF(D$11="","",VLOOKUP(D91,漢字書き!$A$2:$O$506,8,0)) -> 案内 | E94: =IF(E$11="","",VLOOKUP(E91,漢字書き!$A$2:$O$506,8,0)) -> 官 | F94: =IF(F$11="","",VLOOKUP(F91,漢字書き!$A$2:$O$506,8,0)) -> 放 | G94: =IF(G$11="","",VLOOKUP(G91,漢字書き!$A$2:$O$506,8,0)) -> 童話 | H94: =IF(H$11="","",VLOOKUP(H91,漢字書き!$A$2:$O$506,8,0)) -> 放 | I94: =IF(I$11="","",VLOOKUP(I91,漢字書き!$A$2:$O$506,8,0)) -> 希 | J94: =IF(J$11="","",VLOOKUP(J91,漢字書き!$A$2:$O$506,8,0)) -> 筆者 | K94: =IF(K$11="","",VLOOKUP(K91,漢字読み!$A$2:$O$506,8,0)) -> ろせん | L94: =IF(L$11="","",VLOOKUP(L91,漢字読み!$A$2:$O$506,8,0)) -> ね | M94: =IF(M$11="","",VLOOKUP(M91,漢字読み!$A$2:$O$506,8,0)) -> ひょうめん | N94: =IF(N$11="","",VLOOKUP(N91,漢字読み!$A$2:$O$506,8,0)) -> ひょうひ | O94: =IF(O$11="","",VLOOKUP(O91,漢字読み!$A$2:$O$506,8,0)) -> たはた | P94: =IF(P$11="","",VLOOKUP(P91,漢字読み!$A$2:$O$506,8,0)) -> しょうぶ | Q94: =IF(Q$11="","",VLOOKUP(Q91,漢字読み!$A$2:$O$506,8,0)) -> めざ | R94: =IF(R$11="","",VLOOKUP(R91,漢字読み!$A$2:$O$506,8,0)) -> けがわ | S94: =IF(S$11="","",VLOOKUP(S91,漢字読み!$A$2:$O$506,8,0)) -> りょくち | T94: =IF(T$11="","",VLOOKUP(T91,漢字読み!$A$2:$O$506,8,0)) -> せんろ | V94: 名前
A95: =IF(A91="","",IF(VLOOKUP(A91,漢字書き!$A$2:$N$502,7,0)=0,"",VLOOKUP(A91,漢字書き!$A$2:$N$502,7,0))) -> する | B95: =IF(B91="","",IF(VLOOKUP(B91,漢字書き!$A$2:$N$502,7,0)=0,"",VLOOKUP(B91,漢字書き!$A$2:$N$502,7,0))) -> く | C95: =IF(C91="","",IF(VLOOKUP(C91,漢字書き!$A$2:$N$502,7,0)=0,"",VLOOKUP(C91,漢字書き!$A$2:$N$502,7,0))) ->  | D95: =IF(D91="","",IF(VLOOKUP(D91,漢字書き!$A$2:$N$502,7,0)=0,"",VLOOKUP(D91,漢字書き!$A$2:$N$502,7,0))) -> する | E95: =IF(E91="","",IF(VLOOKUP(E91,漢字書き!$A$2:$N$502,7,0)=0,"",VLOOKUP(E91,漢字書き!$A$2:$N$502,7,0))) ->  | F95: =IF(F91="","",IF(VLOOKUP(F91,漢字書き!$A$2:$N$502,7,0)=0,"",VLOOKUP(F91,漢字書き!$A$2:$N$502,7,0))) -> しがい | G95: =IF(G91="","",IF(VLOOKUP(G91,漢字書き!$A$2:$N$502,7,0)=0,"",VLOOKUP(G91,漢字書き!$A$2:$N$502,7,0))) ->  | H95: =IF(H91="","",IF(VLOOKUP(H91,漢字書き!$A$2:$N$502,7,0)=0,"",VLOOKUP(H91,漢字書き!$A$2:$N$502,7,0))) -> って | I95: =IF(I91="","",IF(VLOOKUP(I91,漢字書き!$A$2:$N$502,7,0)=0,"",VLOOKUP(I91,漢字書き!$A$2:$N$502,7,0))) -> ぼう | J95: =IF(J91="","",IF(VLOOKUP(J91,漢字書き!$A$2:$N$502,7,0)=0,"",VLOOKUP(J91,漢字書き!$A$2:$N$502,7,0))) ->  | K95: =IF(K91="","",IF(VLOOKUP(K91,漢字読み!$A$2:$O$502,7,0)=0,"",VLOOKUP(K91,漢字読み!$A$2:$O$502,7,0))) ->  | L95: =IF(L91="","",IF(VLOOKUP(L91,漢字読み!$A$2:$O$502,7,0)=0,"",VLOOKUP(L91,漢字読み!$A$2:$O$502,7,0))) -> る | M95: =IF(M91="","",IF(VLOOKUP(M91,漢字読み!$A$2:$O$502,7,0)=0,"",VLOOKUP(M91,漢字読み!$A$2:$O$502,7,0))) ->  | N95: =IF(N91="","",IF(VLOOKUP(N91,漢字読み!$A$2:$O$502,7,0)=0,"",VLOOKUP(N91,漢字読み!$A$2:$O$502,7,0))) ->  | O95: =IF(O91="","",IF(VLOOKUP(O91,漢字読み!$A$2:$O$502,7,0)=0,"",VLOOKUP(O91,漢字読み!$A$2:$O$502,7,0))) ->  | P95: =IF(P91="","",IF(VLOOKUP(P91,漢字読み!$A$2:$O$502,7,0)=0,"",VLOOKUP(P91,漢字読み!$A$2:$O$502,7,0))) ->  | Q95: =IF(Q91="","",IF(VLOOKUP(Q91,漢字読み!$A$2:$O$502,7,0)=0,"",VLOOKUP(Q91,漢字読み!$A$2:$O$502,7,0))) -> まし | R95: =IF(R91="","",IF(VLOOKUP(R91,漢字読み!$A$2:$O$502,7,0)=0,"",VLOOKUP(R91,漢字読み!$A$2:$O$502,7,0))) ->  | S95: =IF(S91="","",IF(VLOOKUP(S91,漢字読み!$A$2:$O$502,7,0)=0,"",VLOOKUP(S91,漢字読み!$A$2:$O$502,7,0))) ->  | T95: =IF(T91="","",IF(VLOOKUP(T91,漢字読み!$A$2:$O$502,7,0)=0,"",VLOOKUP(T91,漢字読み!$A$2:$O$502,7,0))) ->  | W95: 和歌山県教育委員会
A96: =A86 -> 227 | B96: =B86 -> 47 | C96: =C86 -> 33 | D96: =D86 -> 27 | E96: =E86 -> 63 | F96: =F86 -> 192 | G96: =G86 -> 173 | H96: =H86 -> 153 | I96: =I86 -> 176 | J96: =J86 -> 148 | K96: =K86 -> 146 | L96: =L86 -> 163 | M96: =M86 -> 50 | N96: =N86 -> 133 | O96: =O86 -> 201 | P96: =P86 -> 44 | Q96: =Q86 -> 126 | R96: =R86 -> 178 | S96: =S86 -> 63 | T96: =T86 -> 97
A97: ⑳ | B97: ⑲ | C97: ⑱ | D97: ⑰ | E97: ⑯ | F97: ⑮ | G97: ⑭ | H97: ⑬ | I97: ⑫ | J97: ⑪ | K97: ⑩ | L97: ⑨ | M97: ⑧ | N97: ⑦ | O97: ⑥ | P97: ⑤ | Q97: ④ | R97: ③ | S97: ② | T97: ① | U97: 次の［ ］の部分の漢字には読みがなをひらがなで書き、カタカナは漢字に直しなさい。 | V97: 11 | W97: 「漢字の博士検定試験」練習問題
A98: =IF(A96="","",VLOOKUP(A96,漢字書き!$A$2:$N$506,6,0)) -> ［トヤマケン］のおみやげ | B98: =IF(B96="","",VLOOKUP(B96,漢字書き!$A$2:$N$506,6,0)) -> ［ハナミズ］が出る | C98: =IF(C96="","",VLOOKUP(C96,漢字書き!$A$2:$N$506,6,0)) -> 表紙が［ソ］る | D98: =IF(D96="","",VLOOKUP(D96,漢字書き!$A$2:$N$506,6,0)) -> ［ハッセイ］練習 | E98: =IF(E96="","",VLOOKUP(E96,漢字書き!$A$2:$N$506,6,0)) -> ［テジナ］は楽しい | F98: =IF(F96="","",VLOOKUP(F96,漢字書き!$A$2:$N$506,6,0)) -> 商店［ガイ］を歩く | G98: =IF(G96="","",VLOOKUP(G96,漢字書き!$A$2:$N$506,6,0)) -> さとうと［シオ］ | H98: =IF(H96="","",VLOOKUP(H96,漢字書き!$A$2:$N$506,6,0)) -> ［アイ］とゆう気 | I98: =IF(I96="","",VLOOKUP(I96,漢字書き!$A$2:$N$506,6,0)) -> みんなでさん［カ］する | J98: =IF(J96="","",VLOOKUP(J96,漢字書き!$A$2:$N$506,6,0)) -> 汽車の［センロ］ | K98: =IF(K96="","",VLOOKUP(K96,漢字読み!$A$2:$O$506,6,0)) -> [和紙]でつつむ | L98: =IF(L96="","",VLOOKUP(L96,漢字読み!$A$2:$O$506,6,0)) -> てきに［塩］をおくる | M98: =IF(M96="","",VLOOKUP(M96,漢字読み!$A$2:$O$506,6,0)) -> 図やグラフで［表］す | N98: =IF(N96="","",VLOOKUP(N96,漢字読み!$A$2:$O$506,6,0)) -> 海外［旅行］ | O98: =IF(O96="","",VLOOKUP(O96,漢字読み!$A$2:$O$506,6,0)) -> ［年賀］はがきを出す | P98: =IF(P96="","",VLOOKUP(P96,漢字読み!$A$2:$O$506,6,0)) -> ［毛筆］を使う | Q98: =IF(Q96="","",VLOOKUP(Q96,漢字読み!$A$2:$O$506,6,0)) -> ［落石］に注意 | R98: =IF(R96="","",VLOOKUP(R96,漢字読み!$A$2:$O$506,6,0)) -> ［機械］を使う | S98: =IF(S96="","",VLOOKUP(S96,漢字読み!$A$2:$O$506,6,0)) -> ［服］を着る | T98: =IF(T96="","",VLOOKUP(T96,漢字読み!$A$2:$O$506,6,0)) -> ［役目］を果たす | V98: 級
A99: =IF(A$16="","",VLOOKUP(A96,漢字書き!$A$2:$O$506,8,0)) -> 富山県 | B99: =IF(B$16="","",VLOOKUP(B96,漢字書き!$A$2:$O$506,8,0)) -> 鼻水 | C99: =IF(C$16="","",VLOOKUP(C96,漢字書き!$A$2:$O$506,8,0)) -> 反 | D99: =IF(D$16="","",VLOOKUP(D96,漢字書き!$A$2:$O$506,8,0)) -> 発声 | E99: =IF(E$16="","",VLOOKUP(E96,漢字書き!$A$2:$O$506,8,0)) -> 手品 | F99: =IF(F$16="","",VLOOKUP(F96,漢字書き!$A$2:$O$506,8,0)) -> 街 | G99: =IF(G$16="","",VLOOKUP(G96,漢字書き!$A$2:$O$506,8,0)) -> 塩 | H99: =IF(H$16="","",VLOOKUP(H96,漢字書き!$A$2:$O$506,8,0)) -> 愛 | I99: =IF(I$16="","",VLOOKUP(I96,漢字書き!$A$2:$O$506,8,0)) -> 加 | J99: =IF(J$16="","",VLOOKUP(J96,漢字書き!$A$2:$O$506,8,0)) -> 線路 | K99: =IF(K$16="","",VLOOKUP(K96,漢字読み!$A$2:$O$506,8,0)) -> わし | L99: =IF(L$16="","",VLOOKUP(L96,漢字読み!$A$2:$O$506,8,0)) -> しお | M99: =IF(M$16="","",VLOOKUP(M96,漢字読み!$A$2:$O$506,8,0)) -> あらわ | N99: =IF(N$16="","",VLOOKUP(N96,漢字読み!$A$2:$O$506,8,0)) -> りょこう | O99: =IF(O$16="","",VLOOKUP(O96,漢字読み!$A$2:$O$506,8,0)) -> ねんが | P99: =IF(P$16="","",VLOOKUP(P96,漢字読み!$A$2:$O$506,8,0)) -> もうひつ | Q99: =IF(Q$16="","",VLOOKUP(Q96,漢字読み!$A$2:$O$506,8,0)) -> らくせき | R99: =IF(R$16="","",VLOOKUP(R96,漢字読み!$A$2:$O$506,8,0)) -> きかい | S99: =IF(S$16="","",VLOOKUP(S96,漢字読み!$A$2:$O$506,8,0)) -> ふく | T99: =IF(T$16="","",VLOOKUP(T96,漢字読み!$A$2:$O$506,8,0)) -> やくめ | V99: 名前
A100: =IF(A96="","",IF(VLOOKUP(A96,漢字書き!$A$2:$N$502,7,0)=0,"",VLOOKUP(A96,漢字書き!$A$2:$N$502,7,0))) ->  | B100: =IF(B96="","",IF(VLOOKUP(B96,漢字書き!$A$2:$N$502,7,0)=0,"",VLOOKUP(B96,漢字書き!$A$2:$N$502,7,0))) ->  | C100: =IF(C96="","",IF(VLOOKUP(C96,漢字書き!$A$2:$N$502,7,0)=0,"",VLOOKUP(C96,漢字書き!$A$2:$N$502,7,0))) -> る | D100: =IF(D96="","",IF(VLOOKUP(D96,漢字書き!$A$2:$N$502,7,0)=0,"",VLOOKUP(D96,漢字書き!$A$2:$N$502,7,0))) ->  | E100: =IF(E96="","",IF(VLOOKUP(E96,漢字書き!$A$2:$N$502,7,0)=0,"",VLOOKUP(E96,漢字書き!$A$2:$N$502,7,0))) ->  | F100: =IF(F96="","",IF(VLOOKUP(F96,漢字書き!$A$2:$N$502,7,0)=0,"",VLOOKUP(F96,漢字書き!$A$2:$N$502,7,0))) ->  | G100: =IF(G96="","",IF(VLOOKUP(G96,漢字書き!$A$2:$N$502,7,0)=0,"",VLOOKUP(G96,漢字書き!$A$2:$N$502,7,0))) ->  | H100: =IF(H96="","",IF(VLOOKUP(H96,漢字書き!$A$2:$N$502,7,0)=0,"",VLOOKUP(H96,漢字書き!$A$2:$N$502,7,0))) ->  | I100: =IF(I96="","",IF(VLOOKUP(I96,漢字書き!$A$2:$N$502,7,0)=0,"",VLOOKUP(I96,漢字書き!$A$2:$N$502,7,0))) -> する | J100: =IF(J96="","",IF(VLOOKUP(J96,漢字書き!$A$2:$N$502,7,0)=0,"",VLOOKUP(J96,漢字書き!$A$2:$N$502,7,0))) ->  | K100: =IF(K96="","",IF(VLOOKUP(K96,漢字読み!$A$2:$O$502,7,0)=0,"",VLOOKUP(K96,漢字読み!$A$2:$O$502,7,0))) ->  | L100: =IF(L96="","",IF(VLOOKUP(L96,漢字読み!$A$2:$O$502,7,0)=0,"",VLOOKUP(L96,漢字読み!$A$2:$O$502,7,0))) ->  | M100: =IF(M96="","",IF(VLOOKUP(M96,漢字読み!$A$2:$O$502,7,0)=0,"",VLOOKUP(M96,漢字読み!$A$2:$O$502,7,0))) -> す | N100: =IF(N96="","",IF(VLOOKUP(N96,漢字読み!$A$2:$O$502,7,0)=0,"",VLOOKUP(N96,漢字読み!$A$2:$O$502,7,0))) ->  | O100: =IF(O96="","",IF(VLOOKUP(O96,漢字読み!$A$2:$O$502,7,0)=0,"",VLOOKUP(O96,漢字読み!$A$2:$O$502,7,0))) -> はがき | P100: =IF(P96="","",IF(VLOOKUP(P96,漢字読み!$A$2:$O$502,7,0)=0,"",VLOOKUP(P96,漢字読み!$A$2:$O$502,7,0))) ->  | Q100: =IF(Q96="","",IF(VLOOKUP(Q96,漢字読み!$A$2:$O$502,7,0)=0,"",VLOOKUP(Q96,漢字読み!$A$2:$O$502,7,0))) ->  | R100: =IF(R96="","",IF(VLOOKUP(R96,漢字読み!$A$2:$O$502,7,0)=0,"",VLOOKUP(R96,漢字読み!$A$2:$O$502,7,0))) ->  | S100: =IF(S96="","",IF(VLOOKUP(S96,漢字読み!$A$2:$O$502,7,0)=0,"",VLOOKUP(S96,漢字読み!$A$2:$O$502,7,0))) ->  | T100: =IF(T96="","",IF(VLOOKUP(T96,漢字読み!$A$2:$O$502,7,0)=0,"",VLOOKUP(T96,漢字読み!$A$2:$O$502,7,0))) ->  | W100: 和歌山県教育委員会
A101: =INDIRECT("'関数（書き）'!C" & COLUMN(B$1)+SUM($AD$2:$AD102)) -> 150 | B101: =INDIRECT("'関数（書き）'!C" & COLUMN(C$1)+SUM($AD$2:$AD102)) -> 217 | C101: =INDIRECT("'関数（書き）'!C" & COLUMN(D$1)+SUM($AD$2:$AD102)) -> 58 | D101: =INDIRECT("'関数（書き）'!C" & COLUMN(E$1)+SUM($AD$2:$AD102)) -> 200 | E101: =INDIRECT("'関数（書き）'!C" & COLUMN(F$1)+SUM($AD$2:$AD102)) -> 84 | F101: =INDIRECT("'関数（書き）'!C" & COLUMN(G$1)+SUM($AD$2:$AD102)) -> 51 | G101: =INDIRECT("'関数（書き）'!C" & COLUMN(H$1)+SUM($AD$2:$AD102)) -> 76 | H101: =INDIRECT("'関数（書き）'!C" & COLUMN(I$1)+SUM($AD$2:$AD102)) -> 191 | I101: =INDIRECT("'関数（書き）'!C" & COLUMN(J$1)+SUM($AD$2:$AD102)) -> 100 | J101: =INDIRECT("'関数（書き）'!C" & COLUMN(K$1)+SUM($AD$2:$AD102)) -> 149 | K101: =INDIRECT("'関数（読み）'!C" & COLUMN(B$1)+SUM($AD$2:$AD102)) -> 168 | L101: =INDIRECT("'関数（読み）'!C" & COLUMN(C$1)+SUM($AD$2:$AD102)) -> 8 | M101: =INDIRECT("'関数（読み）'!C" & COLUMN(D$1)+SUM($AD$2:$AD102)) -> 89 | N101: =INDIRECT("'関数（読み）'!C" & COLUMN(E$1)+SUM($AD$2:$AD102)) -> 90 | O101: =INDIRECT("'関数（読み）'!C" & COLUMN(F$1)+SUM($AD$2:$AD102)) -> 54 | P101: =INDIRECT("'関数（読み）'!C" & COLUMN(G$1)+SUM($AD$2:$AD102)) -> 74 | Q101: =INDIRECT("'関数（読み）'!C" & COLUMN(H$1)+SUM($AD$2:$AD102)) -> 56 | R101: =INDIRECT("'関数（読み）'!C" & COLUMN(I$1)+SUM($AD$2:$AD102)) -> 180 | S101: =INDIRECT("'関数（読み）'!C" & COLUMN(J$1)+SUM($AD$2:$AD102)) -> 145 | T101: =INDIRECT("'関数（読み）'!C" & COLUMN(K$1)+SUM($AD$2:$AD102)) -> 125
A102: ⑳ | B102: ⑲ | C102: ⑱ | D102: ⑰ | E102: ⑯ | F102: ⑮ | G102: ⑭ | H102: ⑬ | I102: ⑫ | J102: ⑪ | K102: ⑩ | L102: ⑨ | M102: ⑧ | N102: ⑦ | O102: ⑥ | P102: ⑤ | Q102: ④ | R102: ③ | S102: ② | T102: ① | U102: 次の［ ］の部分の漢字には読みがなをひらがなで書き、カタカナは漢字に直しなさい。 | V102: 11 | W102: 「漢字の博士検定試験」練習問題 | AC102: ← | AD102: 10 | AE102: 問 | AF102: =AH87+1 -> 101 | AG102: ～ | AH102: =SUM($AD$2:$AD102)+10 -> 110 | AI102: 問まで | AJ102: =COUNTIF($A$1:$T$200,T103) -> 2
A103: =IF(A101="","",VLOOKUP(A101,漢字書き!$A$2:$N$506,6,0)) -> 平安時代の［ワカ］を読む | B103: =IF(B101="","",VLOOKUP(B101,漢字書き!$A$2:$N$506,6,0)) -> 手先が［キヨウ］だ | C103: =IF(C101="","",VLOOKUP(C101,漢字書き!$A$2:$N$506,6,0)) -> ［ビョウイン］に通う | D103: =IF(D101="","",VLOOKUP(D101,漢字書き!$A$2:$N$506,6,0)) -> 公園の［カンリ］ | E103: =IF(E101="","",VLOOKUP(E101,漢字書き!$A$2:$N$506,6,0)) -> 本を［カエ］す | F103: =IF(F101="","",VLOOKUP(F101,漢字書き!$A$2:$N$506,6,0)) -> ［ヒョウザン］の一角 | G103: =IF(G101="","",VLOOKUP(G101,漢字書き!$A$2:$N$506,6,0)) -> ［ニモツ］を運ぶ | H103: =IF(H101="","",VLOOKUP(H101,漢字書き!$A$2:$N$506,6,0)) -> ［ガイ］のある食べ物 | I103: =IF(I101="","",VLOOKUP(I101,漢字書き!$A$2:$N$506,6,0)) -> かれに［ト］う | J103: =IF(J101="","",VLOOKUP(J101,漢字書き!$A$2:$N$506,6,0)) -> ［ロジ］うらのお店 | K103: =IF(K101="","",VLOOKUP(K101,漢字読み!$A$2:$O$506,6,0)) -> やくそくを［果］たす | L103: =IF(L101="","",VLOOKUP(L101,漢字読み!$A$2:$O$506,6,0)) -> 三人に［等］しく分ける | M103: =IF(M101="","",VLOOKUP(M101,漢字読み!$A$2:$O$506,6,0)) -> ［顔面］がこわばる | N103: =IF(N101="","",VLOOKUP(N101,漢字読み!$A$2:$O$506,6,0)) -> [面]と向かって言う | O103: =IF(O101="","",VLOOKUP(O101,漢字読み!$A$2:$O$506,6,0)) -> ［病］にたおれる | P103: =IF(P101="","",VLOOKUP(P101,漢字読み!$A$2:$O$506,6,0)) -> ［平］たい皿を買う | Q103: =IF(Q101="","",VLOOKUP(Q101,漢字読み!$A$2:$O$506,6,0)) -> ［上品］なおばあさん | R103: =IF(R101="","",VLOOKUP(R101,漢字読み!$A$2:$O$506,6,0)) -> ［街道］ぞいの店 | S103: =IF(S101="","",VLOOKUP(S101,漢字読み!$A$2:$O$506,6,0)) -> ［平和］な国 | T103: =IF(T101="","",VLOOKUP(T101,漢字読み!$A$2:$O$506,6,0)) -> ［様］になっている | V103: 級
V104: 名前
A105: =IF(A101="","",IF(VLOOKUP(A101,漢字書き!$A$2:$N$502,7,0)=0,"",VLOOKUP(A101,漢字書き!$A$2:$N$502,7,0))) ->  | B105: =IF(B101="","",IF(VLOOKUP(B101,漢字書き!$A$2:$N$502,7,0)=0,"",VLOOKUP(B101,漢字書き!$A$2:$N$502,7,0))) -> だ | C105: =IF(C101="","",IF(VLOOKUP(C101,漢字書き!$A$2:$N$502,7,0)=0,"",VLOOKUP(C101,漢字書き!$A$2:$N$502,7,0))) ->  | D105: =IF(D101="","",IF(VLOOKUP(D101,漢字書き!$A$2:$N$502,7,0)=0,"",VLOOKUP(D101,漢字書き!$A$2:$N$502,7,0))) ->  | E105: =IF(E101="","",IF(VLOOKUP(E101,漢字書き!$A$2:$N$502,7,0)=0,"",VLOOKUP(E101,漢字書き!$A$2:$N$502,7,0))) -> す | F105: =IF(F101="","",IF(VLOOKUP(F101,漢字書き!$A$2:$N$502,7,0)=0,"",VLOOKUP(F101,漢字書き!$A$2:$N$502,7,0))) ->  | G105: =IF(G101="","",IF(VLOOKUP(G101,漢字書き!$A$2:$N$502,7,0)=0,"",VLOOKUP(G101,漢字書き!$A$2:$N$502,7,0))) ->  | H105: =IF(H101="","",IF(VLOOKUP(H101,漢字書き!$A$2:$N$502,7,0)=0,"",VLOOKUP(H101,漢字書き!$A$2:$N$502,7,0))) ->  | I105: =IF(I101="","",IF(VLOOKUP(I101,漢字書き!$A$2:$N$502,7,0)=0,"",VLOOKUP(I101,漢字書き!$A$2:$N$502,7,0))) -> う | J105: =IF(J101="","",IF(VLOOKUP(J101,漢字書き!$A$2:$N$502,7,0)=0,"",VLOOKUP(J101,漢字書き!$A$2:$N$502,7,0))) -> うら | K105: =IF(K101="","",IF(VLOOKUP(K101,漢字読み!$A$2:$O$502,7,0)=0,"",VLOOKUP(K101,漢字読み!$A$2:$O$502,7,0))) -> たす | L105: =IF(L101="","",IF(VLOOKUP(L101,漢字読み!$A$2:$O$502,7,0)=0,"",VLOOKUP(L101,漢字読み!$A$2:$O$502,7,0))) -> しく | M105: =IF(M101="","",IF(VLOOKUP(M101,漢字読み!$A$2:$O$502,7,0)=0,"",VLOOKUP(M101,漢字読み!$A$2:$O$502,7,0))) ->  | N105: =IF(N101="","",IF(VLOOKUP(N101,漢字読み!$A$2:$O$502,7,0)=0,"",VLOOKUP(N101,漢字読み!$A$2:$O$502,7,0))) ->  | O105: =IF(O101="","",IF(VLOOKUP(O101,漢字読み!$A$2:$O$502,7,0)=0,"",VLOOKUP(O101,漢字読み!$A$2:$O$502,7,0))) ->  | P105: =IF(P101="","",IF(VLOOKUP(P101,漢字読み!$A$2:$O$502,7,0)=0,"",VLOOKUP(P101,漢字読み!$A$2:$O$502,7,0))) -> たい | Q105: =IF(Q101="","",IF(VLOOKUP(Q101,漢字読み!$A$2:$O$502,7,0)=0,"",VLOOKUP(Q101,漢字読み!$A$2:$O$502,7,0))) -> な | R105: =IF(R101="","",IF(VLOOKUP(R101,漢字読み!$A$2:$O$502,7,0)=0,"",VLOOKUP(R101,漢字読み!$A$2:$O$502,7,0))) -> ぞい | S105: =IF(S101="","",IF(VLOOKUP(S101,漢字読み!$A$2:$O$502,7,0)=0,"",VLOOKUP(S101,漢字読み!$A$2:$O$502,7,0))) -> な | T105: =IF(T101="","",IF(VLOOKUP(T101,漢字読み!$A$2:$O$502,7,0)=0,"",VLOOKUP(T101,漢字読み!$A$2:$O$502,7,0))) ->  | W105: 和歌山県教育委員会
A106: =INDIRECT("'関数（書き）'!C" & COLUMN(B$1)+SUM($AD$2:$AD107)) -> 44 | B106: =INDIRECT("'関数（書き）'!C" & COLUMN(C$1)+SUM($AD$2:$AD107)) -> 74 | C106: =INDIRECT("'関数（書き）'!C" & COLUMN(D$1)+SUM($AD$2:$AD107)) -> 80 | D106: =INDIRECT("'関数（書き）'!C" & COLUMN(E$1)+SUM($AD$2:$AD107)) -> 185 | E106: =INDIRECT("'関数（書き）'!C" & COLUMN(F$1)+SUM($AD$2:$AD107)) -> 21 | F106: =INDIRECT("'関数（書き）'!C" & COLUMN(G$1)+SUM($AD$2:$AD107)) -> 59 | G106: =INDIRECT("'関数（書き）'!C" & COLUMN(H$1)+SUM($AD$2:$AD107)) -> 228 | H106: =INDIRECT("'関数（書き）'!C" & COLUMN(I$1)+SUM($AD$2:$AD107)) -> 56 | I106: =INDIRECT("'関数（書き）'!C" & COLUMN(J$1)+SUM($AD$2:$AD107)) -> 230 | J106: =INDIRECT("'関数（書き）'!C" & COLUMN(K$1)+SUM($AD$2:$AD107)) -> 16 | K106: =INDIRECT("'関数（読み）'!C" & COLUMN(B$1)+SUM($AD$2:$AD107)) -> 108 | L106: =INDIRECT("'関数（読み）'!C" & COLUMN(C$1)+SUM($AD$2:$AD107)) -> 137 | M106: =INDIRECT("'関数（読み）'!C" & COLUMN(D$1)+SUM($AD$2:$AD107)) -> 67 | N106: =INDIRECT("'関数（読み）'!C" & COLUMN(E$1)+SUM($AD$2:$AD107)) -> 14 | O106: =INDIRECT("'関数（読み）'!C" & COLUMN(F$1)+SUM($AD$2:$AD107)) -> 119 | P106: =INDIRECT("'関数（読み）'!C" & COLUMN(G$1)+SUM($AD$2:$AD107)) -> 207 | Q106: =INDIRECT("'関数（読み）'!C" & COLUMN(H$1)+SUM($AD$2:$AD107)) -> 73 | R106: =INDIRECT("'関数（読み）'!C" & COLUMN(I$1)+SUM($AD$2:$AD107)) -> 105 | S106: =INDIRECT("'関数（読み）'!C" & COLUMN(J$1)+SUM($AD$2:$AD107)) -> 64 | T106: =INDIRECT("'関数（読み）'!C" & COLUMN(K$1)+SUM($AD$2:$AD107)) -> 114
A107: ⑳ | B107: ⑲ | C107: ⑱ | D107: ⑰ | E107: ⑯ | F107: ⑮ | G107: ⑭ | H107: ⑬ | I107: ⑫ | J107: ⑪ | K107: ⑩ | L107: ⑨ | M107: ⑧ | N107: ⑦ | O107: ⑥ | P107: ⑤ | Q107: ④ | R107: ③ | S107: ② | T107: ① | U107: 次の［ ］の部分の漢字には読みがなをひらがなで書き、カタカナは漢字に直しなさい。 | V107: 11 | W107: 「漢字の博士検定試験」練習問題 | AC107: ← | AD107: 10 | AE107: 問 | AF107: =AH102+1 -> 111 | AG107: ～ | AH107: =SUM($AD$2:$AD107)+10 -> 120 | AI107: 問まで | AJ107: =COUNTIF($A$1:$T$200,T108) -> 2
A108: =IF(A106="","",VLOOKUP(A106,漢字書き!$A$2:$N$506,6,0)) -> ［カナ］しい気持ちになる | B108: =IF(B106="","",VLOOKUP(B106,漢字書き!$A$2:$N$506,6,0)) -> ［コウフク］の王子 | C108: =IF(C106="","",VLOOKUP(C106,漢字書き!$A$2:$N$506,6,0)) -> ［ビョウドウ］にあつかう | D108: =IF(D106="","",VLOOKUP(D106,漢字書き!$A$2:$N$506,6,0)) -> たねが［ハツガ］する | E108: =IF(E106="","",VLOOKUP(E106,漢字書き!$A$2:$N$506,6,0)) -> きゅう食を［クバ］る | F108: =IF(F106="","",VLOOKUP(F106,漢字書き!$A$2:$N$506,6,0)) -> [ビョウジャク]な人 | G108: =IF(G106="","",VLOOKUP(G106,漢字書き!$A$2:$N$506,6,0)) -> ［フ］じ山に登る | H108: =IF(H106="","",VLOOKUP(H106,漢字書き!$A$2:$N$506,6,0)) -> 時計の［ビョウ］しん | I108: =IF(I106="","",VLOOKUP(I106,漢字書き!$A$2:$N$506,6,0)) -> 活動力に［ト］む | J108: =IF(J106="","",VLOOKUP(J106,漢字書き!$A$2:$N$506,6,0)) -> ［ノウカ］の庭先 | K108: =IF(K106="","",VLOOKUP(K106,漢字読み!$A$2:$O$506,6,0)) -> ［有］るかないか調べる | L108: =IF(L106="","",VLOOKUP(L106,漢字読み!$A$2:$O$506,6,0)) -> 山の［緑］がきれいだ | M108: =IF(M106="","",VLOOKUP(M106,漢字読み!$A$2:$O$506,6,0)) -> ［荷物］を運ぶ | N108: =IF(N106="","",VLOOKUP(N106,漢字読み!$A$2:$O$506,6,0)) -> ［農業］を始める | O108: =IF(O106="","",VLOOKUP(O106,漢字読み!$A$2:$O$506,6,0)) -> モミジの［葉］のような手 | P108: =IF(P106="","",VLOOKUP(P106,漢字読み!$A$2:$O$506,6,0)) -> ［機械］がこわれる | Q108: =IF(Q106="","",VLOOKUP(Q106,漢字読み!$A$2:$O$506,6,0)) -> ［平］らな土地 | R108: =IF(R106="","",VLOOKUP(R106,漢字読み!$A$2:$O$506,6,0)) -> ［油田］を見つける | S108: =IF(S106="","",VLOOKUP(S106,漢字読み!$A$2:$O$506,6,0)) -> 薬を［服用］する | T108: =IF(T106="","",VLOOKUP(T106,漢字読み!$A$2:$O$506,6,0)) -> かわいい［羊］ | V108: 級
V109: 名前
A110: =IF(A106="","",IF(VLOOKUP(A106,漢字書き!$A$2:$N$502,7,0)=0,"",VLOOKUP(A106,漢字書き!$A$2:$N$502,7,0))) -> しい | B110: =IF(B106="","",IF(VLOOKUP(B106,漢字書き!$A$2:$N$502,7,0)=0,"",VLOOKUP(B106,漢字書き!$A$2:$N$502,7,0))) ->  | C110: =IF(C106="","",IF(VLOOKUP(C106,漢字書き!$A$2:$N$502,7,0)=0,"",VLOOKUP(C106,漢字書き!$A$2:$N$502,7,0))) -> に | D110: =IF(D106="","",IF(VLOOKUP(D106,漢字書き!$A$2:$N$502,7,0)=0,"",VLOOKUP(D106,漢字書き!$A$2:$N$502,7,0))) -> する | E110: =IF(E106="","",IF(VLOOKUP(E106,漢字書き!$A$2:$N$502,7,0)=0,"",VLOOKUP(E106,漢字書き!$A$2:$N$502,7,0))) -> る | F110: =IF(F106="","",IF(VLOOKUP(F106,漢字書き!$A$2:$N$502,7,0)=0,"",VLOOKUP(F106,漢字書き!$A$2:$N$502,7,0))) -> な | G110: =IF(G106="","",IF(VLOOKUP(G106,漢字書き!$A$2:$N$502,7,0)=0,"",VLOOKUP(G106,漢字書き!$A$2:$N$502,7,0))) -> じ山 | H110: =IF(H106="","",IF(VLOOKUP(H106,漢字書き!$A$2:$N$502,7,0)=0,"",VLOOKUP(H106,漢字書き!$A$2:$N$502,7,0))) -> しん | I110: =IF(I106="","",IF(VLOOKUP(I106,漢字書き!$A$2:$N$502,7,0)=0,"",VLOOKUP(I106,漢字書き!$A$2:$N$502,7,0))) -> む | J110: =IF(J106="","",IF(VLOOKUP(J106,漢字書き!$A$2:$N$502,7,0)=0,"",VLOOKUP(J106,漢字書き!$A$2:$N$502,7,0))) ->  | K110: =IF(K106="","",IF(VLOOKUP(K106,漢字読み!$A$2:$O$502,7,0)=0,"",VLOOKUP(K106,漢字読み!$A$2:$O$502,7,0))) -> るか | L110: =IF(L106="","",IF(VLOOKUP(L106,漢字読み!$A$2:$O$502,7,0)=0,"",VLOOKUP(L106,漢字読み!$A$2:$O$502,7,0))) ->  | M110: =IF(M106="","",IF(VLOOKUP(M106,漢字読み!$A$2:$O$502,7,0)=0,"",VLOOKUP(M106,漢字読み!$A$2:$O$502,7,0))) ->  | N110: =IF(N106="","",IF(VLOOKUP(N106,漢字読み!$A$2:$O$502,7,0)=0,"",VLOOKUP(N106,漢字読み!$A$2:$O$502,7,0))) ->  | O110: =IF(O106="","",IF(VLOOKUP(O106,漢字読み!$A$2:$O$502,7,0)=0,"",VLOOKUP(O106,漢字読み!$A$2:$O$502,7,0))) ->  | P110: =IF(P106="","",IF(VLOOKUP(P106,漢字読み!$A$2:$O$502,7,0)=0,"",VLOOKUP(P106,漢字読み!$A$2:$O$502,7,0))) ->  | Q110: =IF(Q106="","",IF(VLOOKUP(Q106,漢字読み!$A$2:$O$502,7,0)=0,"",VLOOKUP(Q106,漢字読み!$A$2:$O$502,7,0))) -> らな | R110: =IF(R106="","",IF(VLOOKUP(R106,漢字読み!$A$2:$O$502,7,0)=0,"",VLOOKUP(R106,漢字読み!$A$2:$O$502,7,0))) ->  | S110: =IF(S106="","",IF(VLOOKUP(S106,漢字読み!$A$2:$O$502,7,0)=0,"",VLOOKUP(S106,漢字読み!$A$2:$O$502,7,0))) -> する | T110: =IF(T106="","",IF(VLOOKUP(T106,漢字読み!$A$2:$O$502,7,0)=0,"",VLOOKUP(T106,漢字読み!$A$2:$O$502,7,0))) ->  | W110: 和歌山県教育委員会
A111: =A101 -> 150 | B111: =B101 -> 217 | C111: =C101 -> 58 | D111: =D101 -> 200 | E111: =E101 -> 84 | F111: =F101 -> 51 | G111: =G101 -> 76 | H111: =H101 -> 191 | I111: =I101 -> 100 | J111: =J101 -> 149 | K111: =K101 -> 168 | L111: =L101 -> 8 | M111: =M101 -> 89 | N111: =N101 -> 90 | O111: =O101 -> 54 | P111: =P101 -> 74 | Q111: =Q101 -> 56 | R111: =R101 -> 180 | S111: =S101 -> 145 | T111: =T101 -> 125
A112: ⑳ | B112: ⑲ | C112: ⑱ | D112: ⑰ | E112: ⑯ | F112: ⑮ | G112: ⑭ | H112: ⑬ | I112: ⑫ | J112: ⑪ | K112: ⑩ | L112: ⑨ | M112: ⑧ | N112: ⑦ | O112: ⑥ | P112: ⑤ | Q112: ④ | R112: ③ | S112: ② | T112: ① | U112: 次の［ ］の部分の漢字には読みがなをひらがなで書き、カタカナは漢字に直しなさい。 | V112: 11 | W112: 「漢字の博士検定試験」練習問題
A113: =IF(A111="","",VLOOKUP(A111,漢字書き!$A$2:$N$506,6,0)) -> 平安時代の［ワカ］を読む | B113: =IF(B111="","",VLOOKUP(B111,漢字書き!$A$2:$N$506,6,0)) -> 手先が［キヨウ］だ | C113: =IF(C111="","",VLOOKUP(C111,漢字書き!$A$2:$N$506,6,0)) -> ［ビョウイン］に通う | D113: =IF(D111="","",VLOOKUP(D111,漢字書き!$A$2:$N$506,6,0)) -> 公園の［カンリ］ | E113: =IF(E111="","",VLOOKUP(E111,漢字書き!$A$2:$N$506,6,0)) -> 本を［カエ］す | F113: =IF(F111="","",VLOOKUP(F111,漢字書き!$A$2:$N$506,6,0)) -> ［ヒョウザン］の一角 | G113: =IF(G111="","",VLOOKUP(G111,漢字書き!$A$2:$N$506,6,0)) -> ［ニモツ］を運ぶ | H113: =IF(H111="","",VLOOKUP(H111,漢字書き!$A$2:$N$506,6,0)) -> ［ガイ］のある食べ物 | I113: =IF(I111="","",VLOOKUP(I111,漢字書き!$A$2:$N$506,6,0)) -> かれに［ト］う | J113: =IF(J111="","",VLOOKUP(J111,漢字書き!$A$2:$N$506,6,0)) -> ［ロジ］うらのお店 | K113: =IF(K111="","",VLOOKUP(K111,漢字読み!$A$2:$O$506,6,0)) -> やくそくを［果］たす | L113: =IF(L111="","",VLOOKUP(L111,漢字読み!$A$2:$O$506,6,0)) -> 三人に［等］しく分ける | M113: =IF(M111="","",VLOOKUP(M111,漢字読み!$A$2:$O$506,6,0)) -> ［顔面］がこわばる | N113: =IF(N111="","",VLOOKUP(N111,漢字読み!$A$2:$O$506,6,0)) -> [面]と向かって言う | O113: =IF(O111="","",VLOOKUP(O111,漢字読み!$A$2:$O$506,6,0)) -> ［病］にたおれる | P113: =IF(P111="","",VLOOKUP(P111,漢字読み!$A$2:$O$506,6,0)) -> ［平］たい皿を買う | Q113: =IF(Q111="","",VLOOKUP(Q111,漢字読み!$A$2:$O$506,6,0)) -> ［上品］なおばあさん | R113: =IF(R111="","",VLOOKUP(R111,漢字読み!$A$2:$O$506,6,0)) -> ［街道］ぞいの店 | S113: =IF(S111="","",VLOOKUP(S111,漢字読み!$A$2:$O$506,6,0)) -> ［平和］な国 | T113: =IF(T111="","",VLOOKUP(T111,漢字読み!$A$2:$O$506,6,0)) -> ［様］になっている | V113: 級
A114: =IF(A$11="","",VLOOKUP(A111,漢字書き!$A$2:$O$506,8,0)) -> 和歌 | B114: =IF(B$11="","",VLOOKUP(B111,漢字書き!$A$2:$O$506,8,0)) -> 器用 | C114: =IF(C$11="","",VLOOKUP(C111,漢字書き!$A$2:$O$506,8,0)) -> 病院 | D114: =IF(D$11="","",VLOOKUP(D111,漢字書き!$A$2:$O$506,8,0)) -> 管理 | E114: =IF(E$11="","",VLOOKUP(E111,漢字書き!$A$2:$O$506,8,0)) -> 返 | F114: =IF(F$11="","",VLOOKUP(F111,漢字書き!$A$2:$O$506,8,0)) -> 氷山 | G114: =IF(G$11="","",VLOOKUP(G111,漢字書き!$A$2:$O$506,8,0)) -> 荷物 | H114: =IF(H$11="","",VLOOKUP(H111,漢字書き!$A$2:$O$506,8,0)) -> 害 | I114: =IF(I$11="","",VLOOKUP(I111,漢字書き!$A$2:$O$506,8,0)) -> 問 | J114: =IF(J$11="","",VLOOKUP(J111,漢字書き!$A$2:$O$506,8,0)) -> 路地 | K114: =IF(K$11="","",VLOOKUP(K111,漢字読み!$A$2:$O$506,8,0)) -> は | L114: =IF(L$11="","",VLOOKUP(L111,漢字読み!$A$2:$O$506,8,0)) -> ひと | M114: =IF(M$11="","",VLOOKUP(M111,漢字読み!$A$2:$O$506,8,0)) -> がんめん | N114: =IF(N$11="","",VLOOKUP(N111,漢字読み!$A$2:$O$506,8,0)) -> めん | O114: =IF(O$11="","",VLOOKUP(O111,漢字読み!$A$2:$O$506,8,0)) -> やまい | P114: =IF(P$11="","",VLOOKUP(P111,漢字読み!$A$2:$O$506,8,0)) -> ひら | Q114: =IF(Q$11="","",VLOOKUP(Q111,漢字読み!$A$2:$O$506,8,0)) -> じょうひん | R114: =IF(R$11="","",VLOOKUP(R111,漢字読み!$A$2:$O$506,8,0)) -> かいどう | S114: =IF(S$11="","",VLOOKUP(S111,漢字読み!$A$2:$O$506,8,0)) -> へいわ | T114: =IF(T$11="","",VLOOKUP(T111,漢字読み!$A$2:$O$506,8,0)) -> さま | V114: 名前
A115: =IF(A111="","",IF(VLOOKUP(A111,漢字書き!$A$2:$N$502,7,0)=0,"",VLOOKUP(A111,漢字書き!$A$2:$N$502,7,0))) ->  | B115: =IF(B111="","",IF(VLOOKUP(B111,漢字書き!$A$2:$N$502,7,0)=0,"",VLOOKUP(B111,漢字書き!$A$2:$N$502,7,0))) -> だ | C115: =IF(C111="","",IF(VLOOKUP(C111,漢字書き!$A$2:$N$502,7,0)=0,"",VLOOKUP(C111,漢字書き!$A$2:$N$502,7,0))) ->  | D115: =IF(D111="","",IF(VLOOKUP(D111,漢字書き!$A$2:$N$502,7,0)=0,"",VLOOKUP(D111,漢字書き!$A$2:$N$502,7,0))) ->  | E115: =IF(E111="","",IF(VLOOKUP(E111,漢字書き!$A$2:$N$502,7,0)=0,"",VLOOKUP(E111,漢字書き!$A$2:$N$502,7,0))) -> す | F115: =IF(F111="","",IF(VLOOKUP(F111,漢字書き!$A$2:$N$502,7,0)=0,"",VLOOKUP(F111,漢字書き!$A$2:$N$502,7,0))) ->  | G115: =IF(G111="","",IF(VLOOKUP(G111,漢字書き!$A$2:$N$502,7,0)=0,"",VLOOKUP(G111,漢字書き!$A$2:$N$502,7,0))) ->  | H115: =IF(H111="","",IF(VLOOKUP(H111,漢字書き!$A$2:$N$502,7,0)=0,"",VLOOKUP(H111,漢字書き!$A$2:$N$502,7,0))) ->  | I115: =IF(I111="","",IF(VLOOKUP(I111,漢字書き!$A$2:$N$502,7,0)=0,"",VLOOKUP(I111,漢字書き!$A$2:$N$502,7,0))) -> う | J115: =IF(J111="","",IF(VLOOKUP(J111,漢字書き!$A$2:$N$502,7,0)=0,"",VLOOKUP(J111,漢字書き!$A$2:$N$502,7,0))) -> うら | K115: =IF(K111="","",IF(VLOOKUP(K111,漢字読み!$A$2:$O$502,7,0)=0,"",VLOOKUP(K111,漢字読み!$A$2:$O$502,7,0))) -> たす | L115: =IF(L111="","",IF(VLOOKUP(L111,漢字読み!$A$2:$O$502,7,0)=0,"",VLOOKUP(L111,漢字読み!$A$2:$O$502,7,0))) -> しく | M115: =IF(M111="","",IF(VLOOKUP(M111,漢字読み!$A$2:$O$502,7,0)=0,"",VLOOKUP(M111,漢字読み!$A$2:$O$502,7,0))) ->  | N115: =IF(N111="","",IF(VLOOKUP(N111,漢字読み!$A$2:$O$502,7,0)=0,"",VLOOKUP(N111,漢字読み!$A$2:$O$502,7,0))) ->  | O115: =IF(O111="","",IF(VLOOKUP(O111,漢字読み!$A$2:$O$502,7,0)=0,"",VLOOKUP(O111,漢字読み!$A$2:$O$502,7,0))) ->  | P115: =IF(P111="","",IF(VLOOKUP(P111,漢字読み!$A$2:$O$502,7,0)=0,"",VLOOKUP(P111,漢字読み!$A$2:$O$502,7,0))) -> たい | Q115: =IF(Q111="","",IF(VLOOKUP(Q111,漢字読み!$A$2:$O$502,7,0)=0,"",VLOOKUP(Q111,漢字読み!$A$2:$O$502,7,0))) -> な | R115: =IF(R111="","",IF(VLOOKUP(R111,漢字読み!$A$2:$O$502,7,0)=0,"",VLOOKUP(R111,漢字読み!$A$2:$O$502,7,0))) -> ぞい | S115: =IF(S111="","",IF(VLOOKUP(S111,漢字読み!$A$2:$O$502,7,0)=0,"",VLOOKUP(S111,漢字読み!$A$2:$O$502,7,0))) -> な | T115: =IF(T111="","",IF(VLOOKUP(T111,漢字読み!$A$2:$O$502,7,0)=0,"",VLOOKUP(T111,漢字読み!$A$2:$O$502,7,0))) ->  | W115: 和歌山県教育委員会
A116: =A106 -> 44 | B116: =B106 -> 74 | C116: =C106 -> 80 | D116: =D106 -> 185 | E116: =E106 -> 21 | F116: =F106 -> 59 | G116: =G106 -> 228 | H116: =H106 -> 56 | I116: =I106 -> 230 | J116: =J106 -> 16 | K116: =K106 -> 108 | L116: =L106 -> 137 | M116: =M106 -> 67 | N116: =N106 -> 14 | O116: =O106 -> 119 | P116: =P106 -> 207 | Q116: =Q106 -> 73 | R116: =R106 -> 105 | S116: =S106 -> 64 | T116: =T106 -> 114
A117: ⑳ | B117: ⑲ | C117: ⑱ | D117: ⑰ | E117: ⑯ | F117: ⑮ | G117: ⑭ | H117: ⑬ | I117: ⑫ | J117: ⑪ | K117: ⑩ | L117: ⑨ | M117: ⑧ | N117: ⑦ | O117: ⑥ | P117: ⑤ | Q117: ④ | R117: ③ | S117: ② | T117: ① | U117: 次の［ ］の部分の漢字には読みがなをひらがなで書き、カタカナは漢字に直しなさい。 | V117: 11 | W117: 「漢字の博士検定試験」練習問題
A118: =IF(A116="","",VLOOKUP(A116,漢字書き!$A$2:$N$506,6,0)) -> ［カナ］しい気持ちになる | B118: =IF(B116="","",VLOOKUP(B116,漢字書き!$A$2:$N$506,6,0)) -> ［コウフク］の王子 | C118: =IF(C116="","",VLOOKUP(C116,漢字書き!$A$2:$N$506,6,0)) -> ［ビョウドウ］にあつかう | D118: =IF(D116="","",VLOOKUP(D116,漢字書き!$A$2:$N$506,6,0)) -> たねが［ハツガ］する | E118: =IF(E116="","",VLOOKUP(E116,漢字書き!$A$2:$N$506,6,0)) -> きゅう食を［クバ］る | F118: =IF(F116="","",VLOOKUP(F116,漢字書き!$A$2:$N$506,6,0)) -> [ビョウジャク]な人 | G118: =IF(G116="","",VLOOKUP(G116,漢字書き!$A$2:$N$506,6,0)) -> ［フ］じ山に登る | H118: =IF(H116="","",VLOOKUP(H116,漢字書き!$A$2:$N$506,6,0)) -> 時計の［ビョウ］しん | I118: =IF(I116="","",VLOOKUP(I116,漢字書き!$A$2:$N$506,6,0)) -> 活動力に［ト］む | J118: =IF(J116="","",VLOOKUP(J116,漢字書き!$A$2:$N$506,6,0)) -> ［ノウカ］の庭先 | K118: =IF(K116="","",VLOOKUP(K116,漢字読み!$A$2:$O$506,6,0)) -> ［有］るかないか調べる | L118: =IF(L116="","",VLOOKUP(L116,漢字読み!$A$2:$O$506,6,0)) -> 山の［緑］がきれいだ | M118: =IF(M116="","",VLOOKUP(M116,漢字読み!$A$2:$O$506,6,0)) -> ［荷物］を運ぶ | N118: =IF(N116="","",VLOOKUP(N116,漢字読み!$A$2:$O$506,6,0)) -> ［農業］を始める | O118: =IF(O116="","",VLOOKUP(O116,漢字読み!$A$2:$O$506,6,0)) -> モミジの［葉］のような手 | P118: =IF(P116="","",VLOOKUP(P116,漢字読み!$A$2:$O$506,6,0)) -> ［機械］がこわれる | Q118: =IF(Q116="","",VLOOKUP(Q116,漢字読み!$A$2:$O$506,6,0)) -> ［平］らな土地 | R118: =IF(R116="","",VLOOKUP(R116,漢字読み!$A$2:$O$506,6,0)) -> ［油田］を見つける | S118: =IF(S116="","",VLOOKUP(S116,漢字読み!$A$2:$O$506,6,0)) -> 薬を［服用］する | T118: =IF(T116="","",VLOOKUP(T116,漢字読み!$A$2:$O$506,6,0)) -> かわいい［羊］ | V118: 級
A119: =IF(A$16="","",VLOOKUP(A116,漢字書き!$A$2:$O$506,8,0)) -> 悲 | B119: =IF(B$16="","",VLOOKUP(B116,漢字書き!$A$2:$O$506,8,0)) -> 幸福 | C119: =IF(C$16="","",VLOOKUP(C116,漢字書き!$A$2:$O$506,8,0)) -> 平等 | D119: =IF(D$16="","",VLOOKUP(D116,漢字書き!$A$2:$O$506,8,0)) -> 発芽 | E119: =IF(E$16="","",VLOOKUP(E116,漢字書き!$A$2:$O$506,8,0)) -> 配 | F119: =IF(F$16="","",VLOOKUP(F116,漢字書き!$A$2:$O$506,8,0)) -> 病弱 | G119: =IF(G$16="","",VLOOKUP(G116,漢字書き!$A$2:$O$506,8,0)) -> 富 | H119: =IF(H$16="","",VLOOKUP(H116,漢字書き!$A$2:$O$506,8,0)) -> 秒 | I119: =IF(I$16="","",VLOOKUP(I116,漢字書き!$A$2:$O$506,8,0)) -> 富 | J119: =IF(J$16="","",VLOOKUP(J116,漢字書き!$A$2:$O$506,8,0)) -> 農家 | K119: =IF(K$16="","",VLOOKUP(K116,漢字読み!$A$2:$O$506,8,0)) -> あ | L119: =IF(L$16="","",VLOOKUP(L116,漢字読み!$A$2:$O$506,8,0)) -> みどり | M119: =IF(M$16="","",VLOOKUP(M116,漢字読み!$A$2:$O$506,8,0)) -> にもつ | N119: =IF(N$16="","",VLOOKUP(N116,漢字読み!$A$2:$O$506,8,0)) -> のうぎょう | O119: =IF(O$16="","",VLOOKUP(O116,漢字読み!$A$2:$O$506,8,0)) -> は | P119: =IF(P$16="","",VLOOKUP(P116,漢字読み!$A$2:$O$506,8,0)) -> きかい | Q119: =IF(Q$16="","",VLOOKUP(Q116,漢字読み!$A$2:$O$506,8,0)) -> たい | R119: =IF(R$16="","",VLOOKUP(R116,漢字読み!$A$2:$O$506,8,0)) -> ゆでん | S119: =IF(S$16="","",VLOOKUP(S116,漢字読み!$A$2:$O$506,8,0)) -> ふくよう | T119: =IF(T$16="","",VLOOKUP(T116,漢字読み!$A$2:$O$506,8,0)) -> ひつじ | V119: 名前
A120: =IF(A116="","",IF(VLOOKUP(A116,漢字書き!$A$2:$N$502,7,0)=0,"",VLOOKUP(A116,漢字書き!$A$2:$N$502,7,0))) -> しい | B120: =IF(B116="","",IF(VLOOKUP(B116,漢字書き!$A$2:$N$502,7,0)=0,"",VLOOKUP(B116,漢字書き!$A$2:$N$502,7,0))) ->  | C120: =IF(C116="","",IF(VLOOKUP(C116,漢字書き!$A$2:$N$502,7,0)=0,"",VLOOKUP(C116,漢字書き!$A$2:$N$502,7,0))) -> に | D120: =IF(D116="","",IF(VLOOKUP(D116,漢字書き!$A$2:$N$502,7,0)=0,"",VLOOKUP(D116,漢字書き!$A$2:$N$502,7,0))) -> する | E120: =IF(E116="","",IF(VLOOKUP(E116,漢字書き!$A$2:$N$502,7,0)=0,"",VLOOKUP(E116,漢字書き!$A$2:$N$502,7,0))) -> る | F120: =IF(F116="","",IF(VLOOKUP(F116,漢字書き!$A$2:$N$502,7,0)=0,"",VLOOKUP(F116,漢字書き!$A$2:$N$502,7,0))) -> な | G120: =IF(G116="","",IF(VLOOKUP(G116,漢字書き!$A$2:$N$502,7,0)=0,"",VLOOKUP(G116,漢字書き!$A$2:$N$502,7,0))) -> じ山 | H120: =IF(H116="","",IF(VLOOKUP(H116,漢字書き!$A$2:$N$502,7,0)=0,"",VLOOKUP(H116,漢字書き!$A$2:$N$502,7,0))) -> しん | I120: =IF(I116="","",IF(VLOOKUP(I116,漢字書き!$A$2:$N$502,7,0)=0,"",VLOOKUP(I116,漢字書き!$A$2:$N$502,7,0))) -> む | J120: =IF(J116="","",IF(VLOOKUP(J116,漢字書き!$A$2:$N$502,7,0)=0,"",VLOOKUP(J116,漢字書き!$A$2:$N$502,7,0))) ->  | K120: =IF(K116="","",IF(VLOOKUP(K116,漢字読み!$A$2:$O$502,7,0)=0,"",VLOOKUP(K116,漢字読み!$A$2:$O$502,7,0))) -> るか | L120: =IF(L116="","",IF(VLOOKUP(L116,漢字読み!$A$2:$O$502,7,0)=0,"",VLOOKUP(L116,漢字読み!$A$2:$O$502,7,0))) ->  | M120: =IF(M116="","",IF(VLOOKUP(M116,漢字読み!$A$2:$O$502,7,0)=0,"",VLOOKUP(M116,漢字読み!$A$2:$O$502,7,0))) ->  | N120: =IF(N116="","",IF(VLOOKUP(N116,漢字読み!$A$2:$O$502,7,0)=0,"",VLOOKUP(N116,漢字読み!$A$2:$O$502,7,0))) ->  | O120: =IF(O116="","",IF(VLOOKUP(O116,漢字読み!$A$2:$O$502,7,0)=0,"",VLOOKUP(O116,漢字読み!$A$2:$O$502,7,0))) ->  | P120: =IF(P116="","",IF(VLOOKUP(P116,漢字読み!$A$2:$O$502,7,0)=0,"",VLOOKUP(P116,漢字読み!$A$2:$O$502,7,0))) ->  | Q120: =IF(Q116="","",IF(VLOOKUP(Q116,漢字読み!$A$2:$O$502,7,0)=0,"",VLOOKUP(Q116,漢字読み!$A$2:$O$502,7,0))) -> らな | R120: =IF(R116="","",IF(VLOOKUP(R116,漢字読み!$A$2:$O$502,7,0)=0,"",VLOOKUP(R116,漢字読み!$A$2:$O$502,7,0))) ->  | S120: =IF(S116="","",IF(VLOOKUP(S116,漢字読み!$A$2:$O$502,7,0)=0,"",VLOOKUP(S116,漢字読み!$A$2:$O$502,7,0))) -> する | T120: =IF(T116="","",IF(VLOOKUP(T116,漢字読み!$A$2:$O$502,7,0)=0,"",VLOOKUP(T116,漢字読み!$A$2:$O$502,7,0))) ->  | W120: 和歌山県教育委員会
A121: =INDIRECT("'関数（書き）'!C" & COLUMN(B$1)+SUM($AD$2:$AD122)) -> 182 | B121: =INDIRECT("'関数（書き）'!C" & COLUMN(C$1)+SUM($AD$2:$AD122)) -> 77 | C121: =INDIRECT("'関数（書き）'!C" & COLUMN(D$1)+SUM($AD$2:$AD122)) -> 39 | D121: =INDIRECT("'関数（書き）'!C" & COLUMN(E$1)+SUM($AD$2:$AD122)) -> 159 | E121: =INDIRECT("'関数（書き）'!C" & COLUMN(F$1)+SUM($AD$2:$AD122)) -> 67 | F121: =INDIRECT("'関数（書き）'!C" & COLUMN(G$1)+SUM($AD$2:$AD122)) -> 222 | G121: =INDIRECT("'関数（書き）'!C" & COLUMN(H$1)+SUM($AD$2:$AD122)) -> 110 | H121: =INDIRECT("'関数（書き）'!C" & COLUMN(I$1)+SUM($AD$2:$AD122)) -> 71 | I121: =INDIRECT("'関数（書き）'!C" & COLUMN(J$1)+SUM($AD$2:$AD122)) -> 60 | J121: =INDIRECT("'関数（書き）'!C" & COLUMN(K$1)+SUM($AD$2:$AD122)) -> 57 | K121: =INDIRECT("'関数（読み）'!C" & COLUMN(B$1)+SUM($AD$2:$AD122)) -> 120 | L121: =INDIRECT("'関数（読み）'!C" & COLUMN(C$1)+SUM($AD$2:$AD122)) -> 187 | M121: =INDIRECT("'関数（読み）'!C" & COLUMN(D$1)+SUM($AD$2:$AD122)) -> 79 | N121: =INDIRECT("'関数（読み）'!C" & COLUMN(E$1)+SUM($AD$2:$AD122)) -> 169 | O121: =INDIRECT("'関数（読み）'!C" & COLUMN(F$1)+SUM($AD$2:$AD122)) -> 81 | P121: =INDIRECT("'関数（読み）'!C" & COLUMN(G$1)+SUM($AD$2:$AD122)) -> 84 | Q121: =INDIRECT("'関数（読み）'!C" & COLUMN(H$1)+SUM($AD$2:$AD122)) -> 101 | R121: =INDIRECT("'関数（読み）'!C" & COLUMN(I$1)+SUM($AD$2:$AD122)) -> 16 | S121: =INDIRECT("'関数（読み）'!C" & COLUMN(J$1)+SUM($AD$2:$AD122)) -> 186 | T121: =INDIRECT("'関数（読み）'!C" & COLUMN(K$1)+SUM($AD$2:$AD122)) -> 117
A122: ⑳ | B122: ⑲ | C122: ⑱ | D122: ⑰ | E122: ⑯ | F122: ⑮ | G122: ⑭ | H122: ⑬ | I122: ⑫ | J122: ⑪ | K122: ⑩ | L122: ⑨ | M122: ⑧ | N122: ⑦ | O122: ⑥ | P122: ⑤ | Q122: ④ | R122: ③ | S122: ② | T122: ① | U122: 次の［ ］の部分の漢字には読みがなをひらがなで書き、カタカナは漢字に直しなさい。 | V122: 11 | W122: 「漢字の博士検定試験」練習問題 | AC122: ← | AD122: 10 | AE122: 問 | AF122: =AH107+1 -> 121 | AG122: ～ | AH122: =SUM($AD$2:$AD122)+10 -> 130 | AI122: 問まで | AJ122: =COUNTIF($A$1:$T$200,T123) -> 2
A123: =IF(A121="","",VLOOKUP(A121,漢字書き!$A$2:$N$506,6,0)) -> ［キンカ］を手に入れる | B123: =IF(B121="","",VLOOKUP(B121,漢字書き!$A$2:$N$506,6,0)) -> ［シナモノ］をならべる | C123: =IF(C121="","",VLOOKUP(C121,漢字書き!$A$2:$N$506,6,0)) -> 日にやけた［ヒ］ふ | D123: =IF(D121="","",VLOOKUP(D121,漢字書き!$A$2:$N$506,6,0)) -> 夏物の[イ]るい | E123: =IF(E121="","",VLOOKUP(E121,漢字書き!$A$2:$N$506,6,0)) -> 勝ったり［マ］けたりする | F123: =IF(F121="","",VLOOKUP(F121,漢字書き!$A$2:$N$506,6,0)) -> ［カイギ］で話し合う | G123: =IF(G121="","",VLOOKUP(G121,漢字書き!$A$2:$N$506,6,0)) -> ［アブラ］がこぼれる | H123: =IF(H121="","",VLOOKUP(H121,漢字書き!$A$2:$N$506,6,0)) -> ［イフク］をそろえる | I123: =IF(I121="","",VLOOKUP(I121,漢字書き!$A$2:$N$506,6,0)) -> ［ヤマイ］は気から | J123: =IF(J121="","",VLOOKUP(J121,漢字書き!$A$2:$N$506,6,0)) -> ［ジュウゴビョウ］の動画 | K123: =IF(K121="","",VLOOKUP(K121,漢字読み!$A$2:$O$506,6,0)) -> 気持ちのいい［陽気］ | L123: =IF(L121="","",VLOOKUP(L121,漢字読み!$A$2:$O$506,6,0)) -> けいさつ［官］になる | M123: =IF(M121="","",VLOOKUP(M121,漢字読み!$A$2:$O$506,6,0)) -> ［勉学］にはげむ | N123: =IF(N121="","",VLOOKUP(N121,漢字読み!$A$2:$O$506,6,0)) -> ［貨物］を運ぶ列車 | O123: =IF(O121="","",VLOOKUP(O121,漢字読み!$A$2:$O$506,6,0)) -> ち魚を［放］す | P123: =IF(P121="","",VLOOKUP(P121,漢字読み!$A$2:$O$506,6,0)) -> ［塩味］が強い | Q123: =IF(Q121="","",VLOOKUP(Q121,漢字読み!$A$2:$O$506,6,0)) -> ［自由］をうばわれる | R123: =IF(R121="","",VLOOKUP(R121,漢字読み!$A$2:$O$506,6,0)) -> ［音波］を計算する | S123: =IF(S121="","",VLOOKUP(S121,漢字読み!$A$2:$O$506,6,0)) -> ［完全］に仕上げる | T123: =IF(T121="","",VLOOKUP(T121,漢字読み!$A$2:$O$506,6,0)) -> ［大西洋］の海 | V123: 級
V124: 名前
A125: =IF(A121="","",IF(VLOOKUP(A121,漢字書き!$A$2:$N$502,7,0)=0,"",VLOOKUP(A121,漢字書き!$A$2:$N$502,7,0))) ->  | B125: =IF(B121="","",IF(VLOOKUP(B121,漢字書き!$A$2:$N$502,7,0)=0,"",VLOOKUP(B121,漢字書き!$A$2:$N$502,7,0))) ->  | C125: =IF(C121="","",IF(VLOOKUP(C121,漢字書き!$A$2:$N$502,7,0)=0,"",VLOOKUP(C121,漢字書き!$A$2:$N$502,7,0))) -> ふ | D125: =IF(D121="","",IF(VLOOKUP(D121,漢字書き!$A$2:$N$502,7,0)=0,"",VLOOKUP(D121,漢字書き!$A$2:$N$502,7,0))) -> るい | E125: =IF(E121="","",IF(VLOOKUP(E121,漢字書き!$A$2:$N$502,7,0)=0,"",VLOOKUP(E121,漢字書き!$A$2:$N$502,7,0))) -> け | F125: =IF(F121="","",IF(VLOOKUP(F121,漢字書き!$A$2:$N$502,7,0)=0,"",VLOOKUP(F121,漢字書き!$A$2:$N$502,7,0))) ->  | G125: =IF(G121="","",IF(VLOOKUP(G121,漢字書き!$A$2:$N$502,7,0)=0,"",VLOOKUP(G121,漢字書き!$A$2:$N$502,7,0))) ->  | H125: =IF(H121="","",IF(VLOOKUP(H121,漢字書き!$A$2:$N$502,7,0)=0,"",VLOOKUP(H121,漢字書き!$A$2:$N$502,7,0))) ->  | I125: =IF(I121="","",IF(VLOOKUP(I121,漢字書き!$A$2:$N$502,7,0)=0,"",VLOOKUP(I121,漢字書き!$A$2:$N$502,7,0))) ->  | J125: =IF(J121="","",IF(VLOOKUP(J121,漢字書き!$A$2:$N$502,7,0)=0,"",VLOOKUP(J121,漢字書き!$A$2:$N$502,7,0))) ->  | K125: =IF(K121="","",IF(VLOOKUP(K121,漢字読み!$A$2:$O$502,7,0)=0,"",VLOOKUP(K121,漢字読み!$A$2:$O$502,7,0))) ->  | L125: =IF(L121="","",IF(VLOOKUP(L121,漢字読み!$A$2:$O$502,7,0)=0,"",VLOOKUP(L121,漢字読み!$A$2:$O$502,7,0))) ->  | M125: =IF(M121="","",IF(VLOOKUP(M121,漢字読み!$A$2:$O$502,7,0)=0,"",VLOOKUP(M121,漢字読み!$A$2:$O$502,7,0))) ->  | N125: =IF(N121="","",IF(VLOOKUP(N121,漢字読み!$A$2:$O$502,7,0)=0,"",VLOOKUP(N121,漢字読み!$A$2:$O$502,7,0))) ->  | O125: =IF(O121="","",IF(VLOOKUP(O121,漢字読み!$A$2:$O$502,7,0)=0,"",VLOOKUP(O121,漢字読み!$A$2:$O$502,7,0))) -> す | P125: =IF(P121="","",IF(VLOOKUP(P121,漢字読み!$A$2:$O$502,7,0)=0,"",VLOOKUP(P121,漢字読み!$A$2:$O$502,7,0))) ->  | Q125: =IF(Q121="","",IF(VLOOKUP(Q121,漢字読み!$A$2:$O$502,7,0)=0,"",VLOOKUP(Q121,漢字読み!$A$2:$O$502,7,0))) ->  | R125: =IF(R121="","",IF(VLOOKUP(R121,漢字読み!$A$2:$O$502,7,0)=0,"",VLOOKUP(R121,漢字読み!$A$2:$O$502,7,0))) ->  | S125: =IF(S121="","",IF(VLOOKUP(S121,漢字読み!$A$2:$O$502,7,0)=0,"",VLOOKUP(S121,漢字読み!$A$2:$O$502,7,0))) ->  | T125: =IF(T121="","",IF(VLOOKUP(T121,漢字読み!$A$2:$O$502,7,0)=0,"",VLOOKUP(T121,漢字読み!$A$2:$O$502,7,0))) ->  | W125: 和歌山県教育委員会
A126: =INDIRECT("'関数（書き）'!C" & COLUMN(B$1)+SUM($AD$2:$AD127)) -> 174 | B126: =INDIRECT("'関数（書き）'!C" & COLUMN(C$1)+SUM($AD$2:$AD127)) -> 7 | C126: =INDIRECT("'関数（書き）'!C" & COLUMN(D$1)+SUM($AD$2:$AD127)) -> 129 | D126: =INDIRECT("'関数（書き）'!C" & COLUMN(E$1)+SUM($AD$2:$AD127)) -> 95 | E126: =INDIRECT("'関数（書き）'!C" & COLUMN(F$1)+SUM($AD$2:$AD127)) -> 37 | F126: =INDIRECT("'関数（書き）'!C" & COLUMN(G$1)+SUM($AD$2:$AD127)) -> 101 | G126: =INDIRECT("'関数（書き）'!C" & COLUMN(H$1)+SUM($AD$2:$AD127)) -> 1 | H126: =INDIRECT("'関数（書き）'!C" & COLUMN(I$1)+SUM($AD$2:$AD127)) -> 66 | I126: =INDIRECT("'関数（書き）'!C" & COLUMN(J$1)+SUM($AD$2:$AD127)) -> 162 | J126: =INDIRECT("'関数（書き）'!C" & COLUMN(K$1)+SUM($AD$2:$AD127)) -> 143 | K126: =INDIRECT("'関数（読み）'!C" & COLUMN(B$1)+SUM($AD$2:$AD127)) -> 138 | L126: =INDIRECT("'関数（読み）'!C" & COLUMN(C$1)+SUM($AD$2:$AD127)) -> 121 | M126: =INDIRECT("'関数（読み）'!C" & COLUMN(D$1)+SUM($AD$2:$AD127)) -> 128 | N126: =INDIRECT("'関数（読み）'!C" & COLUMN(E$1)+SUM($AD$2:$AD127)) -> 39 | O126: =INDIRECT("'関数（読み）'!C" & COLUMN(F$1)+SUM($AD$2:$AD127)) -> 17 | P126: =INDIRECT("'関数（読み）'!C" & COLUMN(G$1)+SUM($AD$2:$AD127)) -> 195 | Q126: =INDIRECT("'関数（読み）'!C" & COLUMN(H$1)+SUM($AD$2:$AD127)) -> 23 | R126: =INDIRECT("'関数（読み）'!C" & COLUMN(I$1)+SUM($AD$2:$AD127)) -> 86 | S126: =INDIRECT("'関数（読み）'!C" & COLUMN(J$1)+SUM($AD$2:$AD127)) -> 150 | T126: =INDIRECT("'関数（読み）'!C" & COLUMN(K$1)+SUM($AD$2:$AD127)) -> 66
A127: ⑳ | B127: ⑲ | C127: ⑱ | D127: ⑰ | E127: ⑯ | F127: ⑮ | G127: ⑭ | H127: ⑬ | I127: ⑫ | J127: ⑪ | K127: ⑩ | L127: ⑨ | M127: ⑧ | N127: ⑦ | O127: ⑥ | P127: ⑤ | Q127: ④ | R127: ③ | S127: ② | T127: ① | U127: 次の［ ］の部分の漢字には読みがなをひらがなで書き、カタカナは漢字に直しなさい。 | V127: 11 | W127: 「漢字の博士検定試験」練習問題 | AC127: ← | AD127: 10 | AE127: 問 | AF127: =AH122+1 -> 131 | AG127: ～ | AH127: =SUM($AD$2:$AD127)+10 -> 140 | AI127: 問まで | AJ127: =COUNTIF($A$1:$T$200,T128) -> 2
A128: =IF(A126="","",VLOOKUP(A126,漢字書き!$A$2:$N$506,6,0)) -> ［オクマン］長者 | B128: =IF(B126="","",VLOOKUP(B126,漢字書き!$A$2:$N$506,6,0)) -> ［ビョウドウ］にあつかう | C128: =IF(C126="","",VLOOKUP(C126,漢字書き!$A$2:$N$506,6,0)) -> 水が［オ］ちる | D128: =IF(D126="","",VLOOKUP(D126,漢字書き!$A$2:$N$506,6,0)) -> ［イノチ］を大切にする | E128: =IF(E126="","",VLOOKUP(E126,漢字書き!$A$2:$N$506,6,0)) -> ［テッパン］で肉をやく | F128: =IF(F126="","",VLOOKUP(F126,漢字書き!$A$2:$N$506,6,0)) -> 商品の［トンヤ］ | G128: =IF(G126="","",VLOOKUP(G126,漢字書き!$A$2:$N$506,6,0)) -> ねっ［トウ］をかける | H128: =IF(H126="","",VLOOKUP(H126,漢字書き!$A$2:$N$506,6,0)) -> 妹に［マ］かされる | I128: =IF(I126="","",VLOOKUP(I126,漢字書き!$A$2:$N$506,6,0)) -> ［エヒメケン］に行く | J128: =IF(J126="","",VLOOKUP(J126,漢字書き!$A$2:$N$506,6,0)) -> ［レッシャ］に乗る | K128: =IF(K126="","",VLOOKUP(K126,漢字読み!$A$2:$O$506,6,0)) -> ［礼］を言う | L128: =IF(L126="","",VLOOKUP(L126,漢字読み!$A$2:$O$506,6,0)) -> ［陽光］がさす | M128: =IF(M126="","",VLOOKUP(M126,漢字読み!$A$2:$O$506,6,0)) -> よごれを［落］とす | N128: =IF(N126="","",VLOOKUP(N126,漢字読み!$A$2:$O$506,6,0)) -> 有終の［美］をかざる | O128: =IF(O126="","",VLOOKUP(O126,漢字読み!$A$2:$O$506,6,0)) -> ［波］の音が聞こえる | P128: =IF(P126="","",VLOOKUP(P126,漢字読み!$A$2:$O$506,6,0)) -> たくさんの［観客］がいる | Q128: =IF(Q126="","",VLOOKUP(Q126,漢字読み!$A$2:$O$506,6,0)) -> ［箱］を開ける | R128: =IF(R126="","",VLOOKUP(R126,漢字読み!$A$2:$O$506,6,0)) -> ［命題］をあたえられる | S128: =IF(S126="","",VLOOKUP(S126,漢字読み!$A$2:$O$506,6,0)) -> 百万人［以上］の都市 | T128: =IF(T126="","",VLOOKUP(T126,漢字読み!$A$2:$O$506,6,0)) -> ［福］をよぶ鳥 | V128: 級
V129: 名前
A130: =IF(A126="","",IF(VLOOKUP(A126,漢字書き!$A$2:$N$502,7,0)=0,"",VLOOKUP(A126,漢字書き!$A$2:$N$502,7,0))) -> 長者 | B130: =IF(B126="","",IF(VLOOKUP(B126,漢字書き!$A$2:$N$502,7,0)=0,"",VLOOKUP(B126,漢字書き!$A$2:$N$502,7,0))) -> に | C130: =IF(C126="","",IF(VLOOKUP(C126,漢字書き!$A$2:$N$502,7,0)=0,"",VLOOKUP(C126,漢字書き!$A$2:$N$502,7,0))) -> ちる | D130: =IF(D126="","",IF(VLOOKUP(D126,漢字書き!$A$2:$N$502,7,0)=0,"",VLOOKUP(D126,漢字書き!$A$2:$N$502,7,0))) ->  | E130: =IF(E126="","",IF(VLOOKUP(E126,漢字書き!$A$2:$N$502,7,0)=0,"",VLOOKUP(E126,漢字書き!$A$2:$N$502,7,0))) ->  | F130: =IF(F126="","",IF(VLOOKUP(F126,漢字書き!$A$2:$N$502,7,0)=0,"",VLOOKUP(F126,漢字書き!$A$2:$N$502,7,0))) ->  | G130: =IF(G126="","",IF(VLOOKUP(G126,漢字書き!$A$2:$N$502,7,0)=0,"",VLOOKUP(G126,漢字書き!$A$2:$N$502,7,0))) ->  | H130: =IF(H126="","",IF(VLOOKUP(H126,漢字書き!$A$2:$N$502,7,0)=0,"",VLOOKUP(H126,漢字書き!$A$2:$N$502,7,0))) -> かされる | I130: =IF(I126="","",IF(VLOOKUP(I126,漢字書き!$A$2:$N$502,7,0)=0,"",VLOOKUP(I126,漢字書き!$A$2:$N$502,7,0))) ->  | J130: =IF(J126="","",IF(VLOOKUP(J126,漢字書き!$A$2:$N$502,7,0)=0,"",VLOOKUP(J126,漢字書き!$A$2:$N$502,7,0))) ->  | K130: =IF(K126="","",IF(VLOOKUP(K126,漢字読み!$A$2:$O$502,7,0)=0,"",VLOOKUP(K126,漢字読み!$A$2:$O$502,7,0))) ->  | L130: =IF(L126="","",IF(VLOOKUP(L126,漢字読み!$A$2:$O$502,7,0)=0,"",VLOOKUP(L126,漢字読み!$A$2:$O$502,7,0))) ->  | M130: =IF(M126="","",IF(VLOOKUP(M126,漢字読み!$A$2:$O$502,7,0)=0,"",VLOOKUP(M126,漢字読み!$A$2:$O$502,7,0))) -> とす | N130: =IF(N126="","",IF(VLOOKUP(N126,漢字読み!$A$2:$O$502,7,0)=0,"",VLOOKUP(N126,漢字読み!$A$2:$O$502,7,0))) ->  | O130: =IF(O126="","",IF(VLOOKUP(O126,漢字読み!$A$2:$O$502,7,0)=0,"",VLOOKUP(O126,漢字読み!$A$2:$O$502,7,0))) ->  | P130: =IF(P126="","",IF(VLOOKUP(P126,漢字読み!$A$2:$O$502,7,0)=0,"",VLOOKUP(P126,漢字読み!$A$2:$O$502,7,0))) ->  | Q130: =IF(Q126="","",IF(VLOOKUP(Q126,漢字読み!$A$2:$O$502,7,0)=0,"",VLOOKUP(Q126,漢字読み!$A$2:$O$502,7,0))) ->  | R130: =IF(R126="","",IF(VLOOKUP(R126,漢字読み!$A$2:$O$502,7,0)=0,"",VLOOKUP(R126,漢字読み!$A$2:$O$502,7,0))) ->  | S130: =IF(S126="","",IF(VLOOKUP(S126,漢字読み!$A$2:$O$502,7,0)=0,"",VLOOKUP(S126,漢字読み!$A$2:$O$502,7,0))) ->  | T130: =IF(T126="","",IF(VLOOKUP(T126,漢字読み!$A$2:$O$502,7,0)=0,"",VLOOKUP(T126,漢字読み!$A$2:$O$502,7,0))) ->  | W130: 和歌山県教育委員会
A131: =A121 -> 182 | B131: =B121 -> 77 | C131: =C121 -> 39 | D131: =D121 -> 159 | E131: =E121 -> 67 | F131: =F121 -> 222 | G131: =G121 -> 110 | H131: =H121 -> 71 | I131: =I121 -> 60 | J131: =J121 -> 57 | K131: =K121 -> 120 | L131: =L121 -> 187 | M131: =M121 -> 79 | N131: =N121 -> 169 | O131: =O121 -> 81 | P131: =P121 -> 84 | Q131: =Q121 -> 101 | R131: =R121 -> 16 | S131: =S121 -> 186 | T131: =T121 -> 117
A132: ⑳ | B132: ⑲ | C132: ⑱ | D132: ⑰ | E132: ⑯ | F132: ⑮ | G132: ⑭ | H132: ⑬ | I132: ⑫ | J132: ⑪ | K132: ⑩ | L132: ⑨ | M132: ⑧ | N132: ⑦ | O132: ⑥ | P132: ⑤ | Q132: ④ | R132: ③ | S132: ② | T132: ① | U132: 次の［ ］の部分の漢字には読みがなをひらがなで書き、カタカナは漢字に直しなさい。 | V132: 11 | W132: 「漢字の博士検定試験」練習問題
A133: =IF(A131="","",VLOOKUP(A131,漢字書き!$A$2:$N$506,6,0)) -> ［キンカ］を手に入れる | B133: =IF(B131="","",VLOOKUP(B131,漢字書き!$A$2:$N$506,6,0)) -> ［シナモノ］をならべる | C133: =IF(C131="","",VLOOKUP(C131,漢字書き!$A$2:$N$506,6,0)) -> 日にやけた［ヒ］ふ | D133: =IF(D131="","",VLOOKUP(D131,漢字書き!$A$2:$N$506,6,0)) -> 夏物の[イ]るい | E133: =IF(E131="","",VLOOKUP(E131,漢字書き!$A$2:$N$506,6,0)) -> 勝ったり［マ］けたりする | F133: =IF(F131="","",VLOOKUP(F131,漢字書き!$A$2:$N$506,6,0)) -> ［カイギ］で話し合う | G133: =IF(G131="","",VLOOKUP(G131,漢字書き!$A$2:$N$506,6,0)) -> ［アブラ］がこぼれる | H133: =IF(H131="","",VLOOKUP(H131,漢字書き!$A$2:$N$506,6,0)) -> ［イフク］をそろえる | I133: =IF(I131="","",VLOOKUP(I131,漢字書き!$A$2:$N$506,6,0)) -> ［ヤマイ］は気から | J133: =IF(J131="","",VLOOKUP(J131,漢字書き!$A$2:$N$506,6,0)) -> ［ジュウゴビョウ］の動画 | K133: =IF(K131="","",VLOOKUP(K131,漢字読み!$A$2:$O$506,6,0)) -> 気持ちのいい［陽気］ | L133: =IF(L131="","",VLOOKUP(L131,漢字読み!$A$2:$O$506,6,0)) -> けいさつ［官］になる | M133: =IF(M131="","",VLOOKUP(M131,漢字読み!$A$2:$O$506,6,0)) -> ［勉学］にはげむ | N133: =IF(N131="","",VLOOKUP(N131,漢字読み!$A$2:$O$506,6,0)) -> ［貨物］を運ぶ列車 | O133: =IF(O131="","",VLOOKUP(O131,漢字読み!$A$2:$O$506,6,0)) -> ち魚を［放］す | P133: =IF(P131="","",VLOOKUP(P131,漢字読み!$A$2:$O$506,6,0)) -> ［塩味］が強い | Q133: =IF(Q131="","",VLOOKUP(Q131,漢字読み!$A$2:$O$506,6,0)) -> ［自由］をうばわれる | R133: =IF(R131="","",VLOOKUP(R131,漢字読み!$A$2:$O$506,6,0)) -> ［音波］を計算する | S133: =IF(S131="","",VLOOKUP(S131,漢字読み!$A$2:$O$506,6,0)) -> ［完全］に仕上げる | T133: =IF(T131="","",VLOOKUP(T131,漢字読み!$A$2:$O$506,6,0)) -> ［大西洋］の海 | V133: 級
A134: =IF(A$11="","",VLOOKUP(A131,漢字書き!$A$2:$O$506,8,0)) -> 金貨 | B134: =IF(B$11="","",VLOOKUP(B131,漢字書き!$A$2:$O$506,8,0)) -> 品物 | C134: =IF(C$11="","",VLOOKUP(C131,漢字書き!$A$2:$O$506,8,0)) -> 皮 | D134: =IF(D$11="","",VLOOKUP(D131,漢字書き!$A$2:$O$506,8,0)) -> 衣 | E134: =IF(E$11="","",VLOOKUP(E131,漢字書き!$A$2:$O$506,8,0)) -> 負 | F134: =IF(F$11="","",VLOOKUP(F131,漢字書き!$A$2:$O$506,8,0)) -> 会議 | G134: =IF(G$11="","",VLOOKUP(G131,漢字書き!$A$2:$O$506,8,0)) -> 油 | H134: =IF(H$11="","",VLOOKUP(H131,漢字書き!$A$2:$O$506,8,0)) -> 衣服 | I134: =IF(I$11="","",VLOOKUP(I131,漢字書き!$A$2:$O$506,8,0)) -> 病 | J134: =IF(J$11="","",VLOOKUP(J131,漢字書き!$A$2:$O$506,8,0)) -> 十五秒 | K134: =IF(K$11="","",VLOOKUP(K131,漢字読み!$A$2:$O$506,8,0)) -> ようき | L134: =IF(L$11="","",VLOOKUP(L131,漢字読み!$A$2:$O$506,8,0)) -> かん | M134: =IF(M$11="","",VLOOKUP(M131,漢字読み!$A$2:$O$506,8,0)) -> べんがく | N134: =IF(N$11="","",VLOOKUP(N131,漢字読み!$A$2:$O$506,8,0)) -> かもつ | O134: =IF(O$11="","",VLOOKUP(O131,漢字読み!$A$2:$O$506,8,0)) -> はな | P134: =IF(P$11="","",VLOOKUP(P131,漢字読み!$A$2:$O$506,8,0)) -> しおあじ | Q134: =IF(Q$11="","",VLOOKUP(Q131,漢字読み!$A$2:$O$506,8,0)) -> じゆう | R134: =IF(R$11="","",VLOOKUP(R131,漢字読み!$A$2:$O$506,8,0)) -> おんぱ | S134: =IF(S$11="","",VLOOKUP(S131,漢字読み!$A$2:$O$506,8,0)) -> かんぜん | T134: =IF(T$11="","",VLOOKUP(T131,漢字読み!$A$2:$O$506,8,0)) -> たいせいよう | V134: 名前
A135: =IF(A131="","",IF(VLOOKUP(A131,漢字書き!$A$2:$N$502,7,0)=0,"",VLOOKUP(A131,漢字書き!$A$2:$N$502,7,0))) ->  | B135: =IF(B131="","",IF(VLOOKUP(B131,漢字書き!$A$2:$N$502,7,0)=0,"",VLOOKUP(B131,漢字書き!$A$2:$N$502,7,0))) ->  | C135: =IF(C131="","",IF(VLOOKUP(C131,漢字書き!$A$2:$N$502,7,0)=0,"",VLOOKUP(C131,漢字書き!$A$2:$N$502,7,0))) -> ふ | D135: =IF(D131="","",IF(VLOOKUP(D131,漢字書き!$A$2:$N$502,7,0)=0,"",VLOOKUP(D131,漢字書き!$A$2:$N$502,7,0))) -> るい | E135: =IF(E131="","",IF(VLOOKUP(E131,漢字書き!$A$2:$N$502,7,0)=0,"",VLOOKUP(E131,漢字書き!$A$2:$N$502,7,0))) -> け | F135: =IF(F131="","",IF(VLOOKUP(F131,漢字書き!$A$2:$N$502,7,0)=0,"",VLOOKUP(F131,漢字書き!$A$2:$N$502,7,0))) ->  | G135: =IF(G131="","",IF(VLOOKUP(G131,漢字書き!$A$2:$N$502,7,0)=0,"",VLOOKUP(G131,漢字書き!$A$2:$N$502,7,0))) ->  | H135: =IF(H131="","",IF(VLOOKUP(H131,漢字書き!$A$2:$N$502,7,0)=0,"",VLOOKUP(H131,漢字書き!$A$2:$N$502,7,0))) ->  | I135: =IF(I131="","",IF(VLOOKUP(I131,漢字書き!$A$2:$N$502,7,0)=0,"",VLOOKUP(I131,漢字書き!$A$2:$N$502,7,0))) ->  | J135: =IF(J131="","",IF(VLOOKUP(J131,漢字書き!$A$2:$N$502,7,0)=0,"",VLOOKUP(J131,漢字書き!$A$2:$N$502,7,0))) ->  | K135: =IF(K131="","",IF(VLOOKUP(K131,漢字読み!$A$2:$O$502,7,0)=0,"",VLOOKUP(K131,漢字読み!$A$2:$O$502,7,0))) ->  | L135: =IF(L131="","",IF(VLOOKUP(L131,漢字読み!$A$2:$O$502,7,0)=0,"",VLOOKUP(L131,漢字読み!$A$2:$O$502,7,0))) ->  | M135: =IF(M131="","",IF(VLOOKUP(M131,漢字読み!$A$2:$O$502,7,0)=0,"",VLOOKUP(M131,漢字読み!$A$2:$O$502,7,0))) ->  | N135: =IF(N131="","",IF(VLOOKUP(N131,漢字読み!$A$2:$O$502,7,0)=0,"",VLOOKUP(N131,漢字読み!$A$2:$O$502,7,0))) ->  | O135: =IF(O131="","",IF(VLOOKUP(O131,漢字読み!$A$2:$O$502,7,0)=0,"",VLOOKUP(O131,漢字読み!$A$2:$O$502,7,0))) -> す | P135: =IF(P131="","",IF(VLOOKUP(P131,漢字読み!$A$2:$O$502,7,0)=0,"",VLOOKUP(P131,漢字読み!$A$2:$O$502,7,0))) ->  | Q135: =IF(Q131="","",IF(VLOOKUP(Q131,漢字読み!$A$2:$O$502,7,0)=0,"",VLOOKUP(Q131,漢字読み!$A$2:$O$502,7,0))) ->  | R135: =IF(R131="","",IF(VLOOKUP(R131,漢字読み!$A$2:$O$502,7,0)=0,"",VLOOKUP(R131,漢字読み!$A$2:$O$502,7,0))) ->  | S135: =IF(S131="","",IF(VLOOKUP(S131,漢字読み!$A$2:$O$502,7,0)=0,"",VLOOKUP(S131,漢字読み!$A$2:$O$502,7,0))) ->  | T135: =IF(T131="","",IF(VLOOKUP(T131,漢字読み!$A$2:$O$502,7,0)=0,"",VLOOKUP(T131,漢字読み!$A$2:$O$502,7,0))) ->  | W135: 和歌山県教育委員会
A136: =A126 -> 174 | B136: =B126 -> 7 | C136: =C126 -> 129 | D136: =D126 -> 95 | E136: =E126 -> 37 | F136: =F126 -> 101 | G136: =G126 -> 1 | H136: =H126 -> 66 | I136: =I126 -> 162 | J136: =J126 -> 143 | K136: =K126 -> 138 | L136: =L126 -> 121 | M136: =M126 -> 128 | N136: =N126 -> 39 | O136: =O126 -> 17 | P136: =P126 -> 195 | Q136: =Q126 -> 23 | R136: =R126 -> 86 | S136: =S126 -> 150 | T136: =T126 -> 66
A137: ⑳ | B137: ⑲ | C137: ⑱ | D137: ⑰ | E137: ⑯ | F137: ⑮ | G137: ⑭ | H137: ⑬ | I137: ⑫ | J137: ⑪ | K137: ⑩ | L137: ⑨ | M137: ⑧ | N137: ⑦ | O137: ⑥ | P137: ⑤ | Q137: ④ | R137: ③ | S137: ② | T137: ① | U137: 次の［ ］の部分の漢字には読みがなをひらがなで書き、カタカナは漢字に直しなさい。 | V137: 11 | W137: 「漢字の博士検定試験」練習問題
A138: =IF(A136="","",VLOOKUP(A136,漢字書き!$A$2:$N$506,6,0)) -> ［オクマン］長者 | B138: =IF(B136="","",VLOOKUP(B136,漢字書き!$A$2:$N$506,6,0)) -> ［ビョウドウ］にあつかう | C138: =IF(C136="","",VLOOKUP(C136,漢字書き!$A$2:$N$506,6,0)) -> 水が［オ］ちる | D138: =IF(D136="","",VLOOKUP(D136,漢字書き!$A$2:$N$506,6,0)) -> ［イノチ］を大切にする | E138: =IF(E136="","",VLOOKUP(E136,漢字書き!$A$2:$N$506,6,0)) -> ［テッパン］で肉をやく | F138: =IF(F136="","",VLOOKUP(F136,漢字書き!$A$2:$N$506,6,0)) -> 商品の［トンヤ］ | G138: =IF(G136="","",VLOOKUP(G136,漢字書き!$A$2:$N$506,6,0)) -> ねっ［トウ］をかける | H138: =IF(H136="","",VLOOKUP(H136,漢字書き!$A$2:$N$506,6,0)) -> 妹に［マ］かされる | I138: =IF(I136="","",VLOOKUP(I136,漢字書き!$A$2:$N$506,6,0)) -> ［エヒメケン］に行く | J138: =IF(J136="","",VLOOKUP(J136,漢字書き!$A$2:$N$506,6,0)) -> ［レッシャ］に乗る | K138: =IF(K136="","",VLOOKUP(K136,漢字読み!$A$2:$O$506,6,0)) -> ［礼］を言う | L138: =IF(L136="","",VLOOKUP(L136,漢字読み!$A$2:$O$506,6,0)) -> ［陽光］がさす | M138: =IF(M136="","",VLOOKUP(M136,漢字読み!$A$2:$O$506,6,0)) -> よごれを［落］とす | N138: =IF(N136="","",VLOOKUP(N136,漢字読み!$A$2:$O$506,6,0)) -> 有終の［美］をかざる | O138: =IF(O136="","",VLOOKUP(O136,漢字読み!$A$2:$O$506,6,0)) -> ［波］の音が聞こえる | P138: =IF(P136="","",VLOOKUP(P136,漢字読み!$A$2:$O$506,6,0)) -> たくさんの［観客］がいる | Q138: =IF(Q136="","",VLOOKUP(Q136,漢字読み!$A$2:$O$506,6,0)) -> ［箱］を開ける | R138: =IF(R136="","",VLOOKUP(R136,漢字読み!$A$2:$O$506,6,0)) -> ［命題］をあたえられる | S138: =IF(S136="","",VLOOKUP(S136,漢字読み!$A$2:$O$506,6,0)) -> 百万人［以上］の都市 | T138: =IF(T136="","",VLOOKUP(T136,漢字読み!$A$2:$O$506,6,0)) -> ［福］をよぶ鳥 | V138: 級
A139: =IF(A$16="","",VLOOKUP(A136,漢字書き!$A$2:$O$506,8,0)) -> 億万 | B139: =IF(B$16="","",VLOOKUP(B136,漢字書き!$A$2:$O$506,8,0)) -> 平等 | C139: =IF(C$16="","",VLOOKUP(C136,漢字書き!$A$2:$O$506,8,0)) -> 落 | D139: =IF(D$16="","",VLOOKUP(D136,漢字書き!$A$2:$O$506,8,0)) -> 命 | E139: =IF(E$16="","",VLOOKUP(E136,漢字書き!$A$2:$O$506,8,0)) -> 鉄板 | F139: =IF(F$16="","",VLOOKUP(F136,漢字書き!$A$2:$O$506,8,0)) -> 問屋 | G139: =IF(G$16="","",VLOOKUP(G136,漢字書き!$A$2:$O$506,8,0)) -> 湯 | H139: =IF(H$16="","",VLOOKUP(H136,漢字書き!$A$2:$O$506,8,0)) -> 負 | I139: =IF(I$16="","",VLOOKUP(I136,漢字書き!$A$2:$O$506,8,0)) -> 愛媛県 | J139: =IF(J$16="","",VLOOKUP(J136,漢字書き!$A$2:$O$506,8,0)) -> 列車 | K139: =IF(K$16="","",VLOOKUP(K136,漢字読み!$A$2:$O$506,8,0)) -> れい | L139: =IF(L$16="","",VLOOKUP(L136,漢字読み!$A$2:$O$506,8,0)) -> ようこう | M139: =IF(M$16="","",VLOOKUP(M136,漢字読み!$A$2:$O$506,8,0)) -> お | N139: =IF(N$16="","",VLOOKUP(N136,漢字読み!$A$2:$O$506,8,0)) -> び | O139: =IF(O$16="","",VLOOKUP(O136,漢字読み!$A$2:$O$506,8,0)) -> なみ | P139: =IF(P$16="","",VLOOKUP(P136,漢字読み!$A$2:$O$506,8,0)) -> かんきゃく | Q139: =IF(Q$16="","",VLOOKUP(Q136,漢字読み!$A$2:$O$506,8,0)) -> はこ | R139: =IF(R$16="","",VLOOKUP(R136,漢字読み!$A$2:$O$506,8,0)) -> めいだい | S139: =IF(S$16="","",VLOOKUP(S136,漢字読み!$A$2:$O$506,8,0)) -> いじょう | T139: =IF(T$16="","",VLOOKUP(T136,漢字読み!$A$2:$O$506,8,0)) -> ふく | V139: 名前
A140: =IF(A136="","",IF(VLOOKUP(A136,漢字書き!$A$2:$N$502,7,0)=0,"",VLOOKUP(A136,漢字書き!$A$2:$N$502,7,0))) -> 長者 | B140: =IF(B136="","",IF(VLOOKUP(B136,漢字書き!$A$2:$N$502,7,0)=0,"",VLOOKUP(B136,漢字書き!$A$2:$N$502,7,0))) -> に | C140: =IF(C136="","",IF(VLOOKUP(C136,漢字書き!$A$2:$N$502,7,0)=0,"",VLOOKUP(C136,漢字書き!$A$2:$N$502,7,0))) -> ちる | D140: =IF(D136="","",IF(VLOOKUP(D136,漢字書き!$A$2:$N$502,7,0)=0,"",VLOOKUP(D136,漢字書き!$A$2:$N$502,7,0))) ->  | E140: =IF(E136="","",IF(VLOOKUP(E136,漢字書き!$A$2:$N$502,7,0)=0,"",VLOOKUP(E136,漢字書き!$A$2:$N$502,7,0))) ->  | F140: =IF(F136="","",IF(VLOOKUP(F136,漢字書き!$A$2:$N$502,7,0)=0,"",VLOOKUP(F136,漢字書き!$A$2:$N$502,7,0))) ->  | G140: =IF(G136="","",IF(VLOOKUP(G136,漢字書き!$A$2:$N$502,7,0)=0,"",VLOOKUP(G136,漢字書き!$A$2:$N$502,7,0))) ->  | H140: =IF(H136="","",IF(VLOOKUP(H136,漢字書き!$A$2:$N$502,7,0)=0,"",VLOOKUP(H136,漢字書き!$A$2:$N$502,7,0))) -> かされる | I140: =IF(I136="","",IF(VLOOKUP(I136,漢字書き!$A$2:$N$502,7,0)=0,"",VLOOKUP(I136,漢字書き!$A$2:$N$502,7,0))) ->  | J140: =IF(J136="","",IF(VLOOKUP(J136,漢字書き!$A$2:$N$502,7,0)=0,"",VLOOKUP(J136,漢字書き!$A$2:$N$502,7,0))) ->  | K140: =IF(K136="","",IF(VLOOKUP(K136,漢字読み!$A$2:$O$502,7,0)=0,"",VLOOKUP(K136,漢字読み!$A$2:$O$502,7,0))) ->  | L140: =IF(L136="","",IF(VLOOKUP(L136,漢字読み!$A$2:$O$502,7,0)=0,"",VLOOKUP(L136,漢字読み!$A$2:$O$502,7,0))) ->  | M140: =IF(M136="","",IF(VLOOKUP(M136,漢字読み!$A$2:$O$502,7,0)=0,"",VLOOKUP(M136,漢字読み!$A$2:$O$502,7,0))) -> とす | N140: =IF(N136="","",IF(VLOOKUP(N136,漢字読み!$A$2:$O$502,7,0)=0,"",VLOOKUP(N136,漢字読み!$A$2:$O$502,7,0))) ->  | O140: =IF(O136="","",IF(VLOOKUP(O136,漢字読み!$A$2:$O$502,7,0)=0,"",VLOOKUP(O136,漢字読み!$A$2:$O$502,7,0))) ->  | P140: =IF(P136="","",IF(VLOOKUP(P136,漢字読み!$A$2:$O$502,7,0)=0,"",VLOOKUP(P136,漢字読み!$A$2:$O$502,7,0))) ->  | Q140: =IF(Q136="","",IF(VLOOKUP(Q136,漢字読み!$A$2:$O$502,7,0)=0,"",VLOOKUP(Q136,漢字読み!$A$2:$O$502,7,0))) ->  | R140: =IF(R136="","",IF(VLOOKUP(R136,漢字読み!$A$2:$O$502,7,0)=0,"",VLOOKUP(R136,漢字読み!$A$2:$O$502,7,0))) ->  | S140: =IF(S136="","",IF(VLOOKUP(S136,漢字読み!$A$2:$O$502,7,0)=0,"",VLOOKUP(S136,漢字読み!$A$2:$O$502,7,0))) ->  | T140: =IF(T136="","",IF(VLOOKUP(T136,漢字読み!$A$2:$O$502,7,0)=0,"",VLOOKUP(T136,漢字読み!$A$2:$O$502,7,0))) ->  | W140: 和歌山県教育委員会
A141: =INDIRECT("'関数（書き）'!C" & COLUMN(B$1)+SUM($AD$2:$AD142)) -> 83 | B141: =INDIRECT("'関数（書き）'!C" & COLUMN(C$1)+SUM($AD$2:$AD142)) -> 55 | C141: =INDIRECT("'関数（書き）'!C" & COLUMN(D$1)+SUM($AD$2:$AD142)) -> 190 | D141: =INDIRECT("'関数（書き）'!C" & COLUMN(E$1)+SUM($AD$2:$AD142)) -> 102 | E141: =INDIRECT("'関数（書き）'!C" & COLUMN(F$1)+SUM($AD$2:$AD142)) -> 24 | F141: =INDIRECT("'関数（書き）'!C" & COLUMN(G$1)+SUM($AD$2:$AD142)) -> 105 | G141: =INDIRECT("'関数（書き）'!C" & COLUMN(H$1)+SUM($AD$2:$AD142)) -> 117 | H141: =INDIRECT("'関数（書き）'!C" & COLUMN(I$1)+SUM($AD$2:$AD142)) -> 118 | I141: =INDIRECT("'関数（書き）'!C" & COLUMN(J$1)+SUM($AD$2:$AD142)) -> 220 | J141: =INDIRECT("'関数（書き）'!C" & COLUMN(K$1)+SUM($AD$2:$AD142)) -> 175 | K141: =INDIRECT("'関数（読み）'!C" & COLUMN(B$1)+SUM($AD$2:$AD142)) -> 205 | L141: =INDIRECT("'関数（読み）'!C" & COLUMN(C$1)+SUM($AD$2:$AD142)) -> 198 | M141: =INDIRECT("'関数（読み）'!C" & COLUMN(D$1)+SUM($AD$2:$AD142)) -> 167 | N141: =INDIRECT("'関数（読み）'!C" & COLUMN(E$1)+SUM($AD$2:$AD142)) -> 57 | O141: =INDIRECT("'関数（読み）'!C" & COLUMN(F$1)+SUM($AD$2:$AD142)) -> 72 | P141: =INDIRECT("'関数（読み）'!C" & COLUMN(G$1)+SUM($AD$2:$AD142)) -> 166 | Q141: =INDIRECT("'関数（読み）'!C" & COLUMN(H$1)+SUM($AD$2:$AD142)) -> 110 | R141: =INDIRECT("'関数（読み）'!C" & COLUMN(I$1)+SUM($AD$2:$AD142)) -> 26 | S141: =INDIRECT("'関数（読み）'!C" & COLUMN(J$1)+SUM($AD$2:$AD142)) -> 96 | T141: =INDIRECT("'関数（読み）'!C" & COLUMN(K$1)+SUM($AD$2:$AD142)) -> 209
A142: ⑳ | B142: ⑲ | C142: ⑱ | D142: ⑰ | E142: ⑯ | F142: ⑮ | G142: ⑭ | H142: ⑬ | I142: ⑫ | J142: ⑪ | K142: ⑩ | L142: ⑨ | M142: ⑧ | N142: ⑦ | O142: ⑥ | P142: ⑤ | Q142: ④ | R142: ③ | S142: ② | T142: ① | U142: 次の［ ］の部分の漢字には読みがなをひらがなで書き、カタカナは漢字に直しなさい。 | V142: 11 | W142: 「漢字の博士検定試験」練習問題 | AC142: ← | AD142: 10 | AE142: 問 | AF142: =AH127+1 -> 141 | AG142: ～ | AH142: =SUM($AD$2:$AD142)+10 -> 150 | AI142: 問まで | AJ142: =COUNTIF($A$1:$T$200,T143) -> 2
A143: =IF(A141="","",VLOOKUP(A141,漢字書き!$A$2:$N$506,6,0)) -> 手紙の［ヘンジ］を書く | B143: =IF(B141="","",VLOOKUP(B141,漢字書き!$A$2:$N$506,6,0)) -> ［オモテ］とうら | C143: =IF(C141="","",VLOOKUP(C141,漢字書き!$A$2:$N$506,6,0)) -> ［キカイ］をしゅう理する | D143: =IF(D141="","",VLOOKUP(D141,漢字書き!$A$2:$N$506,6,0)) -> クラスの［ヤクイン］になる | E143: =IF(E141="","",VLOOKUP(E141,漢字書き!$A$2:$N$506,6,0)) -> 大きな［ハコ］ | F143: =IF(F141="","",VLOOKUP(F141,漢字書き!$A$2:$N$506,6,0)) -> ［ヤクソウ］をさがす | G143: =IF(G141="","",VLOOKUP(G141,漢字書き!$A$2:$N$506,6,0)) -> ［ヨテイ］がある | H143: =IF(H141="","",VLOOKUP(H141,漢字書き!$A$2:$N$506,6,0)) -> ［ヨウモウ］のセーター | I143: =IF(I141="","",VLOOKUP(I141,漢字書き!$A$2:$N$506,6,0)) -> ぜっこうの［キカイ］ | J143: =IF(J141="","",VLOOKUP(J141,漢字書き!$A$2:$N$506,6,0)) -> ［イチオク］の人口 | K143: =IF(K141="","",VLOOKUP(K141,漢字読み!$A$2:$O$506,6,0)) -> 木の［器］を使う | L143: =IF(L141="","",VLOOKUP(L141,漢字読み!$A$2:$O$506,6,0)) -> 平和を［希求］する | M143: =IF(M141="","",VLOOKUP(M141,漢字読み!$A$2:$O$506,6,0)) -> ［果実］のめぐみ | N143: =IF(N141="","",VLOOKUP(N141,漢字読み!$A$2:$O$506,6,0)) -> かれは［手品］がうまい | O143: =IF(O141="","",VLOOKUP(O141,漢字読み!$A$2:$O$506,6,0)) -> ［平日］のダイヤ | P143: =IF(P141="","",VLOOKUP(P141,漢字読み!$A$2:$O$506,6,0)) -> ルールを［追加］する | Q143: =IF(Q141="","",VLOOKUP(Q141,漢字読み!$A$2:$O$506,6,0)) -> ［遊］びに行こう | R143: =IF(R141="","",VLOOKUP(R141,漢字読み!$A$2:$O$506,6,0)) -> ［畑］で野さいをつくる | S143: =IF(S141="","",VLOOKUP(S141,漢字読み!$A$2:$O$506,6,0)) -> ［役場］につとめる | T143: =IF(T141="","",VLOOKUP(T141,漢字読み!$A$2:$O$506,6,0)) -> ［求人］の広こく | V143: 級
V144: 名前
A145: =IF(A141="","",IF(VLOOKUP(A141,漢字書き!$A$2:$N$502,7,0)=0,"",VLOOKUP(A141,漢字書き!$A$2:$N$502,7,0))) ->  | B145: =IF(B141="","",IF(VLOOKUP(B141,漢字書き!$A$2:$N$502,7,0)=0,"",VLOOKUP(B141,漢字書き!$A$2:$N$502,7,0))) ->  | C145: =IF(C141="","",IF(VLOOKUP(C141,漢字書き!$A$2:$N$502,7,0)=0,"",VLOOKUP(C141,漢字書き!$A$2:$N$502,7,0))) ->  | D145: =IF(D141="","",IF(VLOOKUP(D141,漢字書き!$A$2:$N$502,7,0)=0,"",VLOOKUP(D141,漢字書き!$A$2:$N$502,7,0))) ->  | E145: =IF(E141="","",IF(VLOOKUP(E141,漢字書き!$A$2:$N$502,7,0)=0,"",VLOOKUP(E141,漢字書き!$A$2:$N$502,7,0))) ->  | F145: =IF(F141="","",IF(VLOOKUP(F141,漢字書き!$A$2:$N$502,7,0)=0,"",VLOOKUP(F141,漢字書き!$A$2:$N$502,7,0))) ->  | G145: =IF(G141="","",IF(VLOOKUP(G141,漢字書き!$A$2:$N$502,7,0)=0,"",VLOOKUP(G141,漢字書き!$A$2:$N$502,7,0))) ->  | H145: =IF(H141="","",IF(VLOOKUP(H141,漢字書き!$A$2:$N$502,7,0)=0,"",VLOOKUP(H141,漢字書き!$A$2:$N$502,7,0))) ->  | I145: =IF(I141="","",IF(VLOOKUP(I141,漢字書き!$A$2:$N$502,7,0)=0,"",VLOOKUP(I141,漢字書き!$A$2:$N$502,7,0))) ->  | J145: =IF(J141="","",IF(VLOOKUP(J141,漢字書き!$A$2:$N$502,7,0)=0,"",VLOOKUP(J141,漢字書き!$A$2:$N$502,7,0))) ->  | K145: =IF(K141="","",IF(VLOOKUP(K141,漢字読み!$A$2:$O$502,7,0)=0,"",VLOOKUP(K141,漢字読み!$A$2:$O$502,7,0))) ->  | L145: =IF(L141="","",IF(VLOOKUP(L141,漢字読み!$A$2:$O$502,7,0)=0,"",VLOOKUP(L141,漢字読み!$A$2:$O$502,7,0))) -> する | M145: =IF(M141="","",IF(VLOOKUP(M141,漢字読み!$A$2:$O$502,7,0)=0,"",VLOOKUP(M141,漢字読み!$A$2:$O$502,7,0))) ->  | N145: =IF(N141="","",IF(VLOOKUP(N141,漢字読み!$A$2:$O$502,7,0)=0,"",VLOOKUP(N141,漢字読み!$A$2:$O$502,7,0))) ->  | O145: =IF(O141="","",IF(VLOOKUP(O141,漢字読み!$A$2:$O$502,7,0)=0,"",VLOOKUP(O141,漢字読み!$A$2:$O$502,7,0))) ->  | P145: =IF(P141="","",IF(VLOOKUP(P141,漢字読み!$A$2:$O$502,7,0)=0,"",VLOOKUP(P141,漢字読み!$A$2:$O$502,7,0))) -> する | Q145: =IF(Q141="","",IF(VLOOKUP(Q141,漢字読み!$A$2:$O$502,7,0)=0,"",VLOOKUP(Q141,漢字読み!$A$2:$O$502,7,0))) -> び | R145: =IF(R141="","",IF(VLOOKUP(R141,漢字読み!$A$2:$O$502,7,0)=0,"",VLOOKUP(R141,漢字読み!$A$2:$O$502,7,0))) ->  | S145: =IF(S141="","",IF(VLOOKUP(S141,漢字読み!$A$2:$O$502,7,0)=0,"",VLOOKUP(S141,漢字読み!$A$2:$O$502,7,0))) ->  | T145: =IF(T141="","",IF(VLOOKUP(T141,漢字読み!$A$2:$O$502,7,0)=0,"",VLOOKUP(T141,漢字読み!$A$2:$O$502,7,0))) ->  | W145: 和歌山県教育委員会
A146: =INDIRECT("'関数（書き）'!C" & COLUMN(B$1)+SUM($AD$2:$AD147)) -> 18 | B146: =INDIRECT("'関数（書き）'!C" & COLUMN(C$1)+SUM($AD$2:$AD147)) -> 46 | C146: =INDIRECT("'関数（書き）'!C" & COLUMN(D$1)+SUM($AD$2:$AD147)) -> 132 | D146: =INDIRECT("'関数（書き）'!C" & COLUMN(E$1)+SUM($AD$2:$AD147)) -> 219 | E146: =INDIRECT("'関数（書き）'!C" & COLUMN(F$1)+SUM($AD$2:$AD147)) -> 25 | F146: =INDIRECT("'関数（書き）'!C" & COLUMN(G$1)+SUM($AD$2:$AD147)) -> 4 | G146: =INDIRECT("'関数（書き）'!C" & COLUMN(H$1)+SUM($AD$2:$AD147)) -> 138 | H146: =INDIRECT("'関数（書き）'!C" & COLUMN(I$1)+SUM($AD$2:$AD147)) -> 62 | I146: =INDIRECT("'関数（書き）'!C" & COLUMN(J$1)+SUM($AD$2:$AD147)) -> 229 | J146: =INDIRECT("'関数（書き）'!C" & COLUMN(K$1)+SUM($AD$2:$AD147)) -> 147 | K146: =INDIRECT("'関数（読み）'!C" & COLUMN(B$1)+SUM($AD$2:$AD147)) -> 191 | L146: =INDIRECT("'関数（読み）'!C" & COLUMN(C$1)+SUM($AD$2:$AD147)) -> 202 | M146: =INDIRECT("'関数（読み）'!C" & COLUMN(D$1)+SUM($AD$2:$AD147)) -> 32 | N146: =INDIRECT("'関数（読み）'!C" & COLUMN(E$1)+SUM($AD$2:$AD147)) -> 85 | O146: =INDIRECT("'関数（読み）'!C" & COLUMN(F$1)+SUM($AD$2:$AD147)) -> 175 | P146: =INDIRECT("'関数（読み）'!C" & COLUMN(G$1)+SUM($AD$2:$AD147)) -> 122 | Q146: =INDIRECT("'関数（読み）'!C" & COLUMN(H$1)+SUM($AD$2:$AD147)) -> 129 | R146: =INDIRECT("'関数（読み）'!C" & COLUMN(I$1)+SUM($AD$2:$AD147)) -> 212 | S146: =INDIRECT("'関数（読み）'!C" & COLUMN(J$1)+SUM($AD$2:$AD147)) -> 103 | T146: =INDIRECT("'関数（読み）'!C" & COLUMN(K$1)+SUM($AD$2:$AD147)) -> 157
A147: ⑳ | B147: ⑲ | C147: ⑱ | D147: ⑰ | E147: ⑯ | F147: ⑮ | G147: ⑭ | H147: ⑬ | I147: ⑫ | J147: ⑪ | K147: ⑩ | L147: ⑨ | M147: ⑧ | N147: ⑦ | O147: ⑥ | P147: ⑤ | Q147: ④ | R147: ③ | S147: ② | T147: ① | U147: 次の［ ］の部分の漢字には読みがなをひらがなで書き、カタカナは漢字に直しなさい。 | V147: 11 | W147: 「漢字の博士検定試験」練習問題 | AC147: ← | AD147: 10 | AE147: 問 | AF147: =AH142+1 -> 151 | AG147: ～ | AH147: =SUM($AD$2:$AD147)+10 -> 160 | AI147: 問まで | AJ147: =COUNTIF($A$1:$T$200,T148) -> 2
A148: =IF(A146="","",VLOOKUP(A146,漢字書き!$A$2:$N$506,6,0)) -> ［ナミ］が高い海 | B148: =IF(B146="","",VLOOKUP(B146,漢字書き!$A$2:$N$506,6,0)) -> 夕日が［ウツク］しい | C148: =IF(C146="","",VLOOKUP(C146,漢字書き!$A$2:$N$506,6,0)) -> ［ナガ］れの速い川 | D148: =IF(D146="","",VLOOKUP(D146,漢字書き!$A$2:$N$506,6,0)) -> [ショッキ]をあらう | E148: =IF(E146="","",VLOOKUP(E146,漢字書き!$A$2:$N$506,6,0)) -> ［ハタケ］の土 | F148: =IF(F146="","",VLOOKUP(F146,漢字書き!$A$2:$N$506,6,0)) -> ［トウコウ］中の学生 | G148: =IF(G146="","",VLOOKUP(G146,漢字書き!$A$2:$N$506,6,0)) -> ［リョクチャ］を飲む | H148: =IF(H146="","",VLOOKUP(H146,漢字書き!$A$2:$N$506,6,0)) -> ［ヒン］がよい人 | I148: =IF(I146="","",VLOOKUP(I146,漢字書き!$A$2:$N$506,6,0)) -> ［トミ］をたくわえる | J148: =IF(J146="","",VLOOKUP(J146,漢字書き!$A$2:$N$506,6,0)) -> あんこを［ネ］る | K148: =IF(K146="","",VLOOKUP(K146,漢字読み!$A$2:$O$506,6,0)) -> 自分は［関係］ない | L148: =IF(L146="","",VLOOKUP(L146,漢字読み!$A$2:$O$506,6,0)) -> ［新潟県］の米づくり | M148: =IF(M146="","",VLOOKUP(M146,漢字読み!$A$2:$O$506,6,0)) -> 急な［坂］にさしかかる | N148: =IF(N146="","",VLOOKUP(N146,漢字読み!$A$2:$O$506,6,0)) -> ゆっくり［味］わう | O148: =IF(O146="","",VLOOKUP(O146,漢字読み!$A$2:$O$506,6,0)) -> 草木が［芽生］える | P148: =IF(P146="","",VLOOKUP(P146,漢字読み!$A$2:$O$506,6,0)) -> ［太陽］の光 | Q148: =IF(Q146="","",VLOOKUP(Q146,漢字読み!$A$2:$O$506,6,0)) -> ［上流］の水 | R148: =IF(R146="","",VLOOKUP(R146,漢字読み!$A$2:$O$506,6,0)) -> ［富山県］に行く | S148: =IF(S146="","",VLOOKUP(S146,漢字読み!$A$2:$O$506,6,0)) -> ［油］がもれる | T148: =IF(T146="","",VLOOKUP(T146,漢字読み!$A$2:$O$506,6,0)) -> ［印字］された文 | V148: 級
V149: 名前
A150: =IF(A146="","",IF(VLOOKUP(A146,漢字書き!$A$2:$N$502,7,0)=0,"",VLOOKUP(A146,漢字書き!$A$2:$N$502,7,0))) ->  | B150: =IF(B146="","",IF(VLOOKUP(B146,漢字書き!$A$2:$N$502,7,0)=0,"",VLOOKUP(B146,漢字書き!$A$2:$N$502,7,0))) -> しい | C150: =IF(C146="","",IF(VLOOKUP(C146,漢字書き!$A$2:$N$502,7,0)=0,"",VLOOKUP(C146,漢字書き!$A$2:$N$502,7,0))) -> れ | D150: =IF(D146="","",IF(VLOOKUP(D146,漢字書き!$A$2:$N$502,7,0)=0,"",VLOOKUP(D146,漢字書き!$A$2:$N$502,7,0))) ->  | E150: =IF(E146="","",IF(VLOOKUP(E146,漢字書き!$A$2:$N$502,7,0)=0,"",VLOOKUP(E146,漢字書き!$A$2:$N$502,7,0))) ->  | F150: =IF(F146="","",IF(VLOOKUP(F146,漢字書き!$A$2:$N$502,7,0)=0,"",VLOOKUP(F146,漢字書き!$A$2:$N$502,7,0))) -> 中 | G150: =IF(G146="","",IF(VLOOKUP(G146,漢字書き!$A$2:$N$502,7,0)=0,"",VLOOKUP(G146,漢字書き!$A$2:$N$502,7,0))) ->  | H150: =IF(H146="","",IF(VLOOKUP(H146,漢字書き!$A$2:$N$502,7,0)=0,"",VLOOKUP(H146,漢字書き!$A$2:$N$502,7,0))) ->  | I150: =IF(I146="","",IF(VLOOKUP(I146,漢字書き!$A$2:$N$502,7,0)=0,"",VLOOKUP(I146,漢字書き!$A$2:$N$502,7,0))) ->  | J150: =IF(J146="","",IF(VLOOKUP(J146,漢字書き!$A$2:$N$502,7,0)=0,"",VLOOKUP(J146,漢字書き!$A$2:$N$502,7,0))) -> る | K150: =IF(K146="","",IF(VLOOKUP(K146,漢字読み!$A$2:$O$502,7,0)=0,"",VLOOKUP(K146,漢字読み!$A$2:$O$502,7,0))) -> ない | L150: =IF(L146="","",IF(VLOOKUP(L146,漢字読み!$A$2:$O$502,7,0)=0,"",VLOOKUP(L146,漢字読み!$A$2:$O$502,7,0))) ->  | M150: =IF(M146="","",IF(VLOOKUP(M146,漢字読み!$A$2:$O$502,7,0)=0,"",VLOOKUP(M146,漢字読み!$A$2:$O$502,7,0))) ->  | N150: =IF(N146="","",IF(VLOOKUP(N146,漢字読み!$A$2:$O$502,7,0)=0,"",VLOOKUP(N146,漢字読み!$A$2:$O$502,7,0))) -> わう | O150: =IF(O146="","",IF(VLOOKUP(O146,漢字読み!$A$2:$O$502,7,0)=0,"",VLOOKUP(O146,漢字読み!$A$2:$O$502,7,0))) -> える | P150: =IF(P146="","",IF(VLOOKUP(P146,漢字読み!$A$2:$O$502,7,0)=0,"",VLOOKUP(P146,漢字読み!$A$2:$O$502,7,0))) ->  | Q150: =IF(Q146="","",IF(VLOOKUP(Q146,漢字読み!$A$2:$O$502,7,0)=0,"",VLOOKUP(Q146,漢字読み!$A$2:$O$502,7,0))) ->  | R150: =IF(R146="","",IF(VLOOKUP(R146,漢字読み!$A$2:$O$502,7,0)=0,"",VLOOKUP(R146,漢字読み!$A$2:$O$502,7,0))) ->  | S150: =IF(S146="","",IF(VLOOKUP(S146,漢字読み!$A$2:$O$502,7,0)=0,"",VLOOKUP(S146,漢字読み!$A$2:$O$502,7,0))) ->  | T150: =IF(T146="","",IF(VLOOKUP(T146,漢字読み!$A$2:$O$502,7,0)=0,"",VLOOKUP(T146,漢字読み!$A$2:$O$502,7,0))) -> された | W150: 和歌山県教育委員会
A151: =A141 -> 83 | B151: =B141 -> 55 | C151: =C141 -> 190 | D151: =D141 -> 102 | E151: =E141 -> 24 | F151: =F141 -> 105 | G151: =G141 -> 117 | H151: =H141 -> 118 | I151: =I141 -> 220 | J151: =J141 -> 175 | K151: =K141 -> 205 | L151: =L141 -> 198 | M151: =M141 -> 167 | N151: =N141 -> 57 | O151: =O141 -> 72 | P151: =P141 -> 166 | Q151: =Q141 -> 110 | R151: =R141 -> 26 | S151: =S141 -> 96 | T151: =T141 -> 209
A152: ⑳ | B152: ⑲ | C152: ⑱ | D152: ⑰ | E152: ⑯ | F152: ⑮ | G152: ⑭ | H152: ⑬ | I152: ⑫ | J152: ⑪ | K152: ⑩ | L152: ⑨ | M152: ⑧ | N152: ⑦ | O152: ⑥ | P152: ⑤ | Q152: ④ | R152: ③ | S152: ② | T152: ① | U152: 次の［ ］の部分の漢字には読みがなをひらがなで書き、カタカナは漢字に直しなさい。 | V152: 11 | W152: 「漢字の博士検定試験」練習問題
A153: =IF(A151="","",VLOOKUP(A151,漢字書き!$A$2:$N$506,6,0)) -> 手紙の［ヘンジ］を書く | B153: =IF(B151="","",VLOOKUP(B151,漢字書き!$A$2:$N$506,6,0)) -> ［オモテ］とうら | C153: =IF(C151="","",VLOOKUP(C151,漢字書き!$A$2:$N$506,6,0)) -> ［キカイ］をしゅう理する | D153: =IF(D151="","",VLOOKUP(D151,漢字書き!$A$2:$N$506,6,0)) -> クラスの［ヤクイン］になる | E153: =IF(E151="","",VLOOKUP(E151,漢字書き!$A$2:$N$506,6,0)) -> 大きな［ハコ］ | F153: =IF(F151="","",VLOOKUP(F151,漢字書き!$A$2:$N$506,6,0)) -> ［ヤクソウ］をさがす | G153: =IF(G151="","",VLOOKUP(G151,漢字書き!$A$2:$N$506,6,0)) -> ［ヨテイ］がある | H153: =IF(H151="","",VLOOKUP(H151,漢字書き!$A$2:$N$506,6,0)) -> ［ヨウモウ］のセーター | I153: =IF(I151="","",VLOOKUP(I151,漢字書き!$A$2:$N$506,6,0)) -> ぜっこうの［キカイ］ | J153: =IF(J151="","",VLOOKUP(J151,漢字書き!$A$2:$N$506,6,0)) -> ［イチオク］の人口 | K153: =IF(K151="","",VLOOKUP(K151,漢字読み!$A$2:$O$506,6,0)) -> 木の［器］を使う | L153: =IF(L151="","",VLOOKUP(L151,漢字読み!$A$2:$O$506,6,0)) -> 平和を［希求］する | M153: =IF(M151="","",VLOOKUP(M151,漢字読み!$A$2:$O$506,6,0)) -> ［果実］のめぐみ | N153: =IF(N151="","",VLOOKUP(N151,漢字読み!$A$2:$O$506,6,0)) -> かれは［手品］がうまい | O153: =IF(O151="","",VLOOKUP(O151,漢字読み!$A$2:$O$506,6,0)) -> ［平日］のダイヤ | P153: =IF(P151="","",VLOOKUP(P151,漢字読み!$A$2:$O$506,6,0)) -> ルールを［追加］する | Q153: =IF(Q151="","",VLOOKUP(Q151,漢字読み!$A$2:$O$506,6,0)) -> ［遊］びに行こう | R153: =IF(R151="","",VLOOKUP(R151,漢字読み!$A$2:$O$506,6,0)) -> ［畑］で野さいをつくる | S153: =IF(S151="","",VLOOKUP(S151,漢字読み!$A$2:$O$506,6,0)) -> ［役場］につとめる | T153: =IF(T151="","",VLOOKUP(T151,漢字読み!$A$2:$O$506,6,0)) -> ［求人］の広こく | V153: 級
A154: =IF(A$11="","",VLOOKUP(A151,漢字書き!$A$2:$O$506,8,0)) -> 返事 | B154: =IF(B$11="","",VLOOKUP(B151,漢字書き!$A$2:$O$506,8,0)) -> 表 | C154: =IF(C$11="","",VLOOKUP(C151,漢字書き!$A$2:$O$506,8,0)) -> 機械 | D154: =IF(D$11="","",VLOOKUP(D151,漢字書き!$A$2:$O$506,8,0)) -> 役員 | E154: =IF(E$11="","",VLOOKUP(E151,漢字書き!$A$2:$O$506,8,0)) -> 箱 | F154: =IF(F$11="","",VLOOKUP(F151,漢字書き!$A$2:$O$506,8,0)) -> 薬草 | G154: =IF(G$11="","",VLOOKUP(G151,漢字書き!$A$2:$O$506,8,0)) -> 予定 | H154: =IF(H$11="","",VLOOKUP(H151,漢字書き!$A$2:$O$506,8,0)) -> 羊毛 | I154: =IF(I$11="","",VLOOKUP(I151,漢字書き!$A$2:$O$506,8,0)) -> 機会 | J154: =IF(J$11="","",VLOOKUP(J151,漢字書き!$A$2:$O$506,8,0)) -> 一億 | K154: =IF(K$11="","",VLOOKUP(K151,漢字読み!$A$2:$O$506,8,0)) -> うつわ | L154: =IF(L$11="","",VLOOKUP(L151,漢字読み!$A$2:$O$506,8,0)) -> ききゅう | M154: =IF(M$11="","",VLOOKUP(M151,漢字読み!$A$2:$O$506,8,0)) -> かじつ | N154: =IF(N$11="","",VLOOKUP(N151,漢字読み!$A$2:$O$506,8,0)) -> てじな | O154: =IF(O$11="","",VLOOKUP(O151,漢字読み!$A$2:$O$506,8,0)) -> へいじつ | P154: =IF(P$11="","",VLOOKUP(P151,漢字読み!$A$2:$O$506,8,0)) -> ついか | Q154: =IF(Q$11="","",VLOOKUP(Q151,漢字読み!$A$2:$O$506,8,0)) -> あそ | R154: =IF(R$11="","",VLOOKUP(R151,漢字読み!$A$2:$O$506,8,0)) -> はたけ | S154: =IF(S$11="","",VLOOKUP(S151,漢字読み!$A$2:$O$506,8,0)) -> やくば | T154: =IF(T$11="","",VLOOKUP(T151,漢字読み!$A$2:$O$506,8,0)) -> きゅうじん | V154: 名前
A155: =IF(A151="","",IF(VLOOKUP(A151,漢字書き!$A$2:$N$502,7,0)=0,"",VLOOKUP(A151,漢字書き!$A$2:$N$502,7,0))) ->  | B155: =IF(B151="","",IF(VLOOKUP(B151,漢字書き!$A$2:$N$502,7,0)=0,"",VLOOKUP(B151,漢字書き!$A$2:$N$502,7,0))) ->  | C155: =IF(C151="","",IF(VLOOKUP(C151,漢字書き!$A$2:$N$502,7,0)=0,"",VLOOKUP(C151,漢字書き!$A$2:$N$502,7,0))) ->  | D155: =IF(D151="","",IF(VLOOKUP(D151,漢字書き!$A$2:$N$502,7,0)=0,"",VLOOKUP(D151,漢字書き!$A$2:$N$502,7,0))) ->  | E155: =IF(E151="","",IF(VLOOKUP(E151,漢字書き!$A$2:$N$502,7,0)=0,"",VLOOKUP(E151,漢字書き!$A$2:$N$502,7,0))) ->  | F155: =IF(F151="","",IF(VLOOKUP(F151,漢字書き!$A$2:$N$502,7,0)=0,"",VLOOKUP(F151,漢字書き!$A$2:$N$502,7,0))) ->  | G155: =IF(G151="","",IF(VLOOKUP(G151,漢字書き!$A$2:$N$502,7,0)=0,"",VLOOKUP(G151,漢字書き!$A$2:$N$502,7,0))) ->  | H155: =IF(H151="","",IF(VLOOKUP(H151,漢字書き!$A$2:$N$502,7,0)=0,"",VLOOKUP(H151,漢字書き!$A$2:$N$502,7,0))) ->  | I155: =IF(I151="","",IF(VLOOKUP(I151,漢字書き!$A$2:$N$502,7,0)=0,"",VLOOKUP(I151,漢字書き!$A$2:$N$502,7,0))) ->  | J155: =IF(J151="","",IF(VLOOKUP(J151,漢字書き!$A$2:$N$502,7,0)=0,"",VLOOKUP(J151,漢字書き!$A$2:$N$502,7,0))) ->  | K155: =IF(K151="","",IF(VLOOKUP(K151,漢字読み!$A$2:$O$502,7,0)=0,"",VLOOKUP(K151,漢字読み!$A$2:$O$502,7,0))) ->  | L155: =IF(L151="","",IF(VLOOKUP(L151,漢字読み!$A$2:$O$502,7,0)=0,"",VLOOKUP(L151,漢字読み!$A$2:$O$502,7,0))) -> する | M155: =IF(M151="","",IF(VLOOKUP(M151,漢字読み!$A$2:$O$502,7,0)=0,"",VLOOKUP(M151,漢字読み!$A$2:$O$502,7,0))) ->  | N155: =IF(N151="","",IF(VLOOKUP(N151,漢字読み!$A$2:$O$502,7,0)=0,"",VLOOKUP(N151,漢字読み!$A$2:$O$502,7,0))) ->  | O155: =IF(O151="","",IF(VLOOKUP(O151,漢字読み!$A$2:$O$502,7,0)=0,"",VLOOKUP(O151,漢字読み!$A$2:$O$502,7,0))) ->  | P155: =IF(P151="","",IF(VLOOKUP(P151,漢字読み!$A$2:$O$502,7,0)=0,"",VLOOKUP(P151,漢字読み!$A$2:$O$502,7,0))) -> する | Q155: =IF(Q151="","",IF(VLOOKUP(Q151,漢字読み!$A$2:$O$502,7,0)=0,"",VLOOKUP(Q151,漢字読み!$A$2:$O$502,7,0))) -> び | R155: =IF(R151="","",IF(VLOOKUP(R151,漢字読み!$A$2:$O$502,7,0)=0,"",VLOOKUP(R151,漢字読み!$A$2:$O$502,7,0))) ->  | S155: =IF(S151="","",IF(VLOOKUP(S151,漢字読み!$A$2:$O$502,7,0)=0,"",VLOOKUP(S151,漢字読み!$A$2:$O$502,7,0))) ->  | T155: =IF(T151="","",IF(VLOOKUP(T151,漢字読み!$A$2:$O$502,7,0)=0,"",VLOOKUP(T151,漢字読み!$A$2:$O$502,7,0))) ->  | W155: 和歌山県教育委員会
A156: =A146 -> 18 | B156: =B146 -> 46 | C156: =C146 -> 132 | D156: =D146 -> 219 | E156: =E146 -> 25 | F156: =F146 -> 4 | G156: =G146 -> 138 | H156: =H146 -> 62 | I156: =I146 -> 229 | J156: =J146 -> 147 | K156: =K146 -> 191 | L156: =L146 -> 202 | M156: =M146 -> 32 | N156: =N146 -> 85 | O156: =O146 -> 175 | P156: =P146 -> 122 | Q156: =Q146 -> 129 | R156: =R146 -> 212 | S156: =S146 -> 103 | T156: =T146 -> 157
A157: ⑳ | B157: ⑲ | C157: ⑱ | D157: ⑰ | E157: ⑯ | F157: ⑮ | G157: ⑭ | H157: ⑬ | I157: ⑫ | J157: ⑪ | K157: ⑩ | L157: ⑨ | M157: ⑧ | N157: ⑦ | O157: ⑥ | P157: ⑤ | Q157: ④ | R157: ③ | S157: ② | T157: ① | U157: 次の［ ］の部分の漢字には読みがなをひらがなで書き、カタカナは漢字に直しなさい。 | V157: 11 | W157: 「漢字の博士検定試験」練習問題
A158: =IF(A156="","",VLOOKUP(A156,漢字書き!$A$2:$N$506,6,0)) -> ［ナミ］が高い海 | B158: =IF(B156="","",VLOOKUP(B156,漢字書き!$A$2:$N$506,6,0)) -> 夕日が［ウツク］しい | C158: =IF(C156="","",VLOOKUP(C156,漢字書き!$A$2:$N$506,6,0)) -> ［ナガ］れの速い川 | D158: =IF(D156="","",VLOOKUP(D156,漢字書き!$A$2:$N$506,6,0)) -> [ショッキ]をあらう | E158: =IF(E156="","",VLOOKUP(E156,漢字書き!$A$2:$N$506,6,0)) -> ［ハタケ］の土 | F158: =IF(F156="","",VLOOKUP(F156,漢字書き!$A$2:$N$506,6,0)) -> ［トウコウ］中の学生 | G158: =IF(G156="","",VLOOKUP(G156,漢字書き!$A$2:$N$506,6,0)) -> ［リョクチャ］を飲む | H158: =IF(H156="","",VLOOKUP(H156,漢字書き!$A$2:$N$506,6,0)) -> ［ヒン］がよい人 | I158: =IF(I156="","",VLOOKUP(I156,漢字書き!$A$2:$N$506,6,0)) -> ［トミ］をたくわえる | J158: =IF(J156="","",VLOOKUP(J156,漢字書き!$A$2:$N$506,6,0)) -> あんこを［ネ］る | K158: =IF(K156="","",VLOOKUP(K156,漢字読み!$A$2:$O$506,6,0)) -> 自分は［関係］ない | L158: =IF(L156="","",VLOOKUP(L156,漢字読み!$A$2:$O$506,6,0)) -> ［新潟県］の米づくり | M158: =IF(M156="","",VLOOKUP(M156,漢字読み!$A$2:$O$506,6,0)) -> 急な［坂］にさしかかる | N158: =IF(N156="","",VLOOKUP(N156,漢字読み!$A$2:$O$506,6,0)) -> ゆっくり［味］わう | O158: =IF(O156="","",VLOOKUP(O156,漢字読み!$A$2:$O$506,6,0)) -> 草木が［芽生］える | P158: =IF(P156="","",VLOOKUP(P156,漢字読み!$A$2:$O$506,6,0)) -> ［太陽］の光 | Q158: =IF(Q156="","",VLOOKUP(Q156,漢字読み!$A$2:$O$506,6,0)) -> ［上流］の水 | R158: =IF(R156="","",VLOOKUP(R156,漢字読み!$A$2:$O$506,6,0)) -> ［富山県］に行く | S158: =IF(S156="","",VLOOKUP(S156,漢字読み!$A$2:$O$506,6,0)) -> ［油］がもれる | T158: =IF(T156="","",VLOOKUP(T156,漢字読み!$A$2:$O$506,6,0)) -> ［印字］された文 | V158: 級
A159: =IF(A$16="","",VLOOKUP(A156,漢字書き!$A$2:$O$506,8,0)) -> 波 | B159: =IF(B$16="","",VLOOKUP(B156,漢字書き!$A$2:$O$506,8,0)) -> 美 | C159: =IF(C$16="","",VLOOKUP(C156,漢字書き!$A$2:$O$506,8,0)) -> 流 | D159: =IF(D$16="","",VLOOKUP(D156,漢字書き!$A$2:$O$506,8,0)) -> 食器 | E159: =IF(E$16="","",VLOOKUP(E156,漢字書き!$A$2:$O$506,8,0)) -> 畑 | F159: =IF(F$16="","",VLOOKUP(F156,漢字書き!$A$2:$O$506,8,0)) -> 登校 | G159: =IF(G$16="","",VLOOKUP(G156,漢字書き!$A$2:$O$506,8,0)) -> 緑茶 | H159: =IF(H$16="","",VLOOKUP(H156,漢字書き!$A$2:$O$506,8,0)) -> 品 | I159: =IF(I$16="","",VLOOKUP(I156,漢字書き!$A$2:$O$506,8,0)) -> 富 | J159: =IF(J$16="","",VLOOKUP(J156,漢字書き!$A$2:$O$506,8,0)) -> 練 | K159: =IF(K$16="","",VLOOKUP(K156,漢字読み!$A$2:$O$506,8,0)) -> かんけい | L159: =IF(L$16="","",VLOOKUP(L156,漢字読み!$A$2:$O$506,8,0)) -> にいがたけん | M159: =IF(M$16="","",VLOOKUP(M156,漢字読み!$A$2:$O$506,8,0)) -> さか | N159: =IF(N$16="","",VLOOKUP(N156,漢字読み!$A$2:$O$506,8,0)) -> あじ | O159: =IF(O$16="","",VLOOKUP(O156,漢字読み!$A$2:$O$506,8,0)) -> めば | P159: =IF(P$16="","",VLOOKUP(P156,漢字読み!$A$2:$O$506,8,0)) -> たいよう | Q159: =IF(Q$16="","",VLOOKUP(Q156,漢字読み!$A$2:$O$506,8,0)) -> じょうりゅう | R159: =IF(R$16="","",VLOOKUP(R156,漢字読み!$A$2:$O$506,8,0)) -> とやまけん | S159: =IF(S$16="","",VLOOKUP(S156,漢字読み!$A$2:$O$506,8,0)) -> あぶら | T159: =IF(T$16="","",VLOOKUP(T156,漢字読み!$A$2:$O$506,8,0)) -> いんじ | V159: 名前
A160: =IF(A156="","",IF(VLOOKUP(A156,漢字書き!$A$2:$N$502,7,0)=0,"",VLOOKUP(A156,漢字書き!$A$2:$N$502,7,0))) ->  | B160: =IF(B156="","",IF(VLOOKUP(B156,漢字書き!$A$2:$N$502,7,0)=0,"",VLOOKUP(B156,漢字書き!$A$2:$N$502,7,0))) -> しい | C160: =IF(C156="","",IF(VLOOKUP(C156,漢字書き!$A$2:$N$502,7,0)=0,"",VLOOKUP(C156,漢字書き!$A$2:$N$502,7,0))) -> れ | D160: =IF(D156="","",IF(VLOOKUP(D156,漢字書き!$A$2:$N$502,7,0)=0,"",VLOOKUP(D156,漢字書き!$A$2:$N$502,7,0))) ->  | E160: =IF(E156="","",IF(VLOOKUP(E156,漢字書き!$A$2:$N$502,7,0)=0,"",VLOOKUP(E156,漢字書き!$A$2:$N$502,7,0))) ->  | F160: =IF(F156="","",IF(VLOOKUP(F156,漢字書き!$A$2:$N$502,7,0)=0,"",VLOOKUP(F156,漢字書き!$A$2:$N$502,7,0))) -> 中 | G160: =IF(G156="","",IF(VLOOKUP(G156,漢字書き!$A$2:$N$502,7,0)=0,"",VLOOKUP(G156,漢字書き!$A$2:$N$502,7,0))) ->  | H160: =IF(H156="","",IF(VLOOKUP(H156,漢字書き!$A$2:$N$502,7,0)=0,"",VLOOKUP(H156,漢字書き!$A$2:$N$502,7,0))) ->  | I160: =IF(I156="","",IF(VLOOKUP(I156,漢字書き!$A$2:$N$502,7,0)=0,"",VLOOKUP(I156,漢字書き!$A$2:$N$502,7,0))) ->  | J160: =IF(J156="","",IF(VLOOKUP(J156,漢字書き!$A$2:$N$502,7,0)=0,"",VLOOKUP(J156,漢字書き!$A$2:$N$502,7,0))) -> る | K160: =IF(K156="","",IF(VLOOKUP(K156,漢字読み!$A$2:$O$502,7,0)=0,"",VLOOKUP(K156,漢字読み!$A$2:$O$502,7,0))) -> ない | L160: =IF(L156="","",IF(VLOOKUP(L156,漢字読み!$A$2:$O$502,7,0)=0,"",VLOOKUP(L156,漢字読み!$A$2:$O$502,7,0))) ->  | M160: =IF(M156="","",IF(VLOOKUP(M156,漢字読み!$A$2:$O$502,7,0)=0,"",VLOOKUP(M156,漢字読み!$A$2:$O$502,7,0))) ->  | N160: =IF(N156="","",IF(VLOOKUP(N156,漢字読み!$A$2:$O$502,7,0)=0,"",VLOOKUP(N156,漢字読み!$A$2:$O$502,7,0))) -> わう | O160: =IF(O156="","",IF(VLOOKUP(O156,漢字読み!$A$2:$O$502,7,0)=0,"",VLOOKUP(O156,漢字読み!$A$2:$O$502,7,0))) -> える | P160: =IF(P156="","",IF(VLOOKUP(P156,漢字読み!$A$2:$O$502,7,0)=0,"",VLOOKUP(P156,漢字読み!$A$2:$O$502,7,0))) ->  | Q160: =IF(Q156="","",IF(VLOOKUP(Q156,漢字読み!$A$2:$O$502,7,0)=0,"",VLOOKUP(Q156,漢字読み!$A$2:$O$502,7,0))) ->  | R160: =IF(R156="","",IF(VLOOKUP(R156,漢字読み!$A$2:$O$502,7,0)=0,"",VLOOKUP(R156,漢字読み!$A$2:$O$502,7,0))) ->  | S160: =IF(S156="","",IF(VLOOKUP(S156,漢字読み!$A$2:$O$502,7,0)=0,"",VLOOKUP(S156,漢字読み!$A$2:$O$502,7,0))) ->  | T160: =IF(T156="","",IF(VLOOKUP(T156,漢字読み!$A$2:$O$502,7,0)=0,"",VLOOKUP(T156,漢字読み!$A$2:$O$502,7,0))) -> された | W160: 和歌山県教育委員会
A161: =INDIRECT("'関数（書き）'!C" & COLUMN(B$1)+SUM($AD$2:$AD162)) -> 216 | B161: =INDIRECT("'関数（書き）'!C" & COLUMN(C$1)+SUM($AD$2:$AD162)) -> 226 | C161: =INDIRECT("'関数（書き）'!C" & COLUMN(D$1)+SUM($AD$2:$AD162)) -> 181 | D161: =INDIRECT("'関数（書き）'!C" & COLUMN(E$1)+SUM($AD$2:$AD162)) -> 50 | E161: =INDIRECT("'関数（書き）'!C" & COLUMN(F$1)+SUM($AD$2:$AD162)) -> 98 | F161: =INDIRECT("'関数（書き）'!C" & COLUMN(G$1)+SUM($AD$2:$AD162)) -> 96 | G161: =INDIRECT("'関数（書き）'!C" & COLUMN(H$1)+SUM($AD$2:$AD162)) -> 139 | H161: =INDIRECT("'関数（書き）'!C" & COLUMN(I$1)+SUM($AD$2:$AD162)) -> 124 | I161: =INDIRECT("'関数（書き）'!C" & COLUMN(J$1)+SUM($AD$2:$AD162)) -> 111 | J161: =INDIRECT("'関数（書き）'!C" & COLUMN(K$1)+SUM($AD$2:$AD162)) -> 183 | K161: =INDIRECT("'関数（読み）'!C" & COLUMN(B$1)+SUM($AD$2:$AD162)) -> 179 | L161: =INDIRECT("'関数（読み）'!C" & COLUMN(C$1)+SUM($AD$2:$AD162)) -> 9 | M161: =INDIRECT("'関数（読み）'!C" & COLUMN(D$1)+SUM($AD$2:$AD162)) -> 1 | N161: =INDIRECT("'関数（読み）'!C" & COLUMN(E$1)+SUM($AD$2:$AD162)) -> 196 | O161: =INDIRECT("'関数（読み）'!C" & COLUMN(F$1)+SUM($AD$2:$AD162)) -> 124 | P161: =INDIRECT("'関数（読み）'!C" & COLUMN(G$1)+SUM($AD$2:$AD162)) -> 140 | Q161: =INDIRECT("'関数（読み）'!C" & COLUMN(H$1)+SUM($AD$2:$AD162)) -> 170 | R161: =INDIRECT("'関数（読み）'!C" & COLUMN(I$1)+SUM($AD$2:$AD162)) -> 47 | S161: =INDIRECT("'関数（読み）'!C" & COLUMN(J$1)+SUM($AD$2:$AD162)) -> 62 | T161: =INDIRECT("'関数（読み）'!C" & COLUMN(K$1)+SUM($AD$2:$AD162)) -> 116
A162: ⑳ | B162: ⑲ | C162: ⑱ | D162: ⑰ | E162: ⑯ | F162: ⑮ | G162: ⑭ | H162: ⑬ | I162: ⑫ | J162: ⑪ | K162: ⑩ | L162: ⑨ | M162: ⑧ | N162: ⑦ | O162: ⑥ | P162: ⑤ | Q162: ④ | R162: ③ | S162: ② | T162: ① | U162: 次の［ ］の部分の漢字には読みがなをひらがなで書き、カタカナは漢字に直しなさい。 | V162: 11 | W162: 「漢字の博士検定試験」練習問題 | AC162: ← | AD162: 10 | AE162: 問 | AF162: =AH147+1 -> 161 | AG162: ～ | AH162: =SUM($AD$2:$AD162)+10 -> 170 | AI162: 問まで | AJ162: =COUNTIF($A$1:$T$200,T163) -> 2
A163: =IF(A161="","",VLOOKUP(A161,漢字書き!$A$2:$N$506,6,0)) -> ［ハタ］をふる | B163: =IF(B161="","",VLOOKUP(B161,漢字書き!$A$2:$N$506,6,0)) -> ［クマモトケン］への旅行 | C163: =IF(C161="","",VLOOKUP(C161,漢字書き!$A$2:$N$506,6,0)) -> ［カモツ］列車 | D163: =IF(D161="","",VLOOKUP(D161,漢字書き!$A$2:$N$506,6,0)) -> ［フデ］を使って書く | E163: =IF(E161="","",VLOOKUP(E161,漢字書き!$A$2:$N$506,6,0)) -> [ジメン]を強くける | F163: =IF(F161="","",VLOOKUP(F161,漢字書き!$A$2:$N$506,6,0)) -> ［イノチ］の重さ | G163: =IF(G161="","",VLOOKUP(G161,漢字書き!$A$2:$N$506,6,0)) -> ［ミドリ］の草原 | H163: =IF(H161="","",VLOOKUP(H161,漢字書き!$A$2:$N$506,6,0)) -> 明るい［タイヨウ］ | I163: =IF(I161="","",VLOOKUP(I161,漢字書き!$A$2:$N$506,6,0)) -> ［ユウリョク］なせん手 | J163: =IF(J161="","",VLOOKUP(J161,漢字書き!$A$2:$N$506,6,0)) -> ［ホウカ］後のやくそく | K163: =IF(K161="","",VLOOKUP(K161,漢字読み!$A$2:$O$506,6,0)) -> タバコは［有害］だ | L163: =IF(L161="","",VLOOKUP(L161,漢字読み!$A$2:$O$506,6,0)) -> ［動作］がはやい | M163: =IF(M161="","",VLOOKUP(M161,漢字読み!$A$2:$O$506,6,0)) -> ねっ［湯］に気をつける | N163: =IF(N161="","",VLOOKUP(N161,漢字読み!$A$2:$O$506,6,0)) -> ［悲願］の一勝 | O163: =IF(O161="","",VLOOKUP(O161,漢字読み!$A$2:$O$506,6,0)) -> 田中［様］からお電話です | P163: =IF(P161="","",VLOOKUP(P161,漢字読み!$A$2:$O$506,6,0)) -> 水泳の［練習］ | Q163: =IF(Q161="","",VLOOKUP(Q161,漢字読み!$A$2:$O$506,6,0)) -> ［銀貨］をもらう | R163: =IF(R161="","",VLOOKUP(R161,漢字読み!$A$2:$O$506,6,0)) -> ［氷］がとける | S163: =IF(S161="","",VLOOKUP(S161,漢字読み!$A$2:$O$506,6,0)) -> ［部活動］がさかんだ | T163: =IF(T161="","",VLOOKUP(T161,漢字読み!$A$2:$O$506,6,0)) -> ［洋服］を買いにいく | V163: 級
V164: 名前
A165: =IF(A161="","",IF(VLOOKUP(A161,漢字書き!$A$2:$N$502,7,0)=0,"",VLOOKUP(A161,漢字書き!$A$2:$N$502,7,0))) ->  | B165: =IF(B161="","",IF(VLOOKUP(B161,漢字書き!$A$2:$N$502,7,0)=0,"",VLOOKUP(B161,漢字書き!$A$2:$N$502,7,0))) ->  | C165: =IF(C161="","",IF(VLOOKUP(C161,漢字書き!$A$2:$N$502,7,0)=0,"",VLOOKUP(C161,漢字書き!$A$2:$N$502,7,0))) ->  | D165: =IF(D161="","",IF(VLOOKUP(D161,漢字書き!$A$2:$N$502,7,0)=0,"",VLOOKUP(D161,漢字書き!$A$2:$N$502,7,0))) ->  | E165: =IF(E161="","",IF(VLOOKUP(E161,漢字書き!$A$2:$N$502,7,0)=0,"",VLOOKUP(E161,漢字書き!$A$2:$N$502,7,0))) ->  | F165: =IF(F161="","",IF(VLOOKUP(F161,漢字書き!$A$2:$N$502,7,0)=0,"",VLOOKUP(F161,漢字書き!$A$2:$N$502,7,0))) ->  | G165: =IF(G161="","",IF(VLOOKUP(G161,漢字書き!$A$2:$N$502,7,0)=0,"",VLOOKUP(G161,漢字書き!$A$2:$N$502,7,0))) ->  | H165: =IF(H161="","",IF(VLOOKUP(H161,漢字書き!$A$2:$N$502,7,0)=0,"",VLOOKUP(H161,漢字書き!$A$2:$N$502,7,0))) ->  | I165: =IF(I161="","",IF(VLOOKUP(I161,漢字書き!$A$2:$N$502,7,0)=0,"",VLOOKUP(I161,漢字書き!$A$2:$N$502,7,0))) -> な | J165: =IF(J161="","",IF(VLOOKUP(J161,漢字書き!$A$2:$N$502,7,0)=0,"",VLOOKUP(J161,漢字書き!$A$2:$N$502,7,0))) -> 後 | K165: =IF(K161="","",IF(VLOOKUP(K161,漢字読み!$A$2:$O$502,7,0)=0,"",VLOOKUP(K161,漢字読み!$A$2:$O$502,7,0))) -> だ | L165: =IF(L161="","",IF(VLOOKUP(L161,漢字読み!$A$2:$O$502,7,0)=0,"",VLOOKUP(L161,漢字読み!$A$2:$O$502,7,0))) ->  | M165: =IF(M161="","",IF(VLOOKUP(M161,漢字読み!$A$2:$O$502,7,0)=0,"",VLOOKUP(M161,漢字読み!$A$2:$O$502,7,0))) ->  | N165: =IF(N161="","",IF(VLOOKUP(N161,漢字読み!$A$2:$O$502,7,0)=0,"",VLOOKUP(N161,漢字読み!$A$2:$O$502,7,0))) ->  | O165: =IF(O161="","",IF(VLOOKUP(O161,漢字読み!$A$2:$O$502,7,0)=0,"",VLOOKUP(O161,漢字読み!$A$2:$O$502,7,0))) ->  | P165: =IF(P161="","",IF(VLOOKUP(P161,漢字読み!$A$2:$O$502,7,0)=0,"",VLOOKUP(P161,漢字読み!$A$2:$O$502,7,0))) ->  | Q165: =IF(Q161="","",IF(VLOOKUP(Q161,漢字読み!$A$2:$O$502,7,0)=0,"",VLOOKUP(Q161,漢字読み!$A$2:$O$502,7,0))) ->  | R165: =IF(R161="","",IF(VLOOKUP(R161,漢字読み!$A$2:$O$502,7,0)=0,"",VLOOKUP(R161,漢字読み!$A$2:$O$502,7,0))) ->  | S165: =IF(S161="","",IF(VLOOKUP(S161,漢字読み!$A$2:$O$502,7,0)=0,"",VLOOKUP(S161,漢字読み!$A$2:$O$502,7,0))) ->  | T165: =IF(T161="","",IF(VLOOKUP(T161,漢字読み!$A$2:$O$502,7,0)=0,"",VLOOKUP(T161,漢字読み!$A$2:$O$502,7,0))) ->  | W165: 和歌山県教育委員会
A166: =INDIRECT("'関数（書き）'!C" & COLUMN(B$1)+SUM($AD$2:$AD167)) -> 119 | B166: =INDIRECT("'関数（書き）'!C" & COLUMN(C$1)+SUM($AD$2:$AD167)) -> 38 | C166: =INDIRECT("'関数（書き）'!C" & COLUMN(D$1)+SUM($AD$2:$AD167)) -> 53 | D166: =INDIRECT("'関数（書き）'!C" & COLUMN(E$1)+SUM($AD$2:$AD167)) -> 145 | E166: =INDIRECT("'関数（書き）'!C" & COLUMN(F$1)+SUM($AD$2:$AD167)) -> 142 | F166: =INDIRECT("'関数（書き）'!C" & COLUMN(G$1)+SUM($AD$2:$AD167)) -> 187 | G166: =INDIRECT("'関数（書き）'!C" & COLUMN(H$1)+SUM($AD$2:$AD167)) -> 180 | H166: =INDIRECT("'関数（書き）'!C" & COLUMN(I$1)+SUM($AD$2:$AD167)) -> 198 | I166: =INDIRECT("'関数（書き）'!C" & COLUMN(J$1)+SUM($AD$2:$AD167)) -> 29 | J166: =INDIRECT("'関数（書き）'!C" & COLUMN(K$1)+SUM($AD$2:$AD167)) -> 166 | K166: =INDIRECT("'関数（読み）'!C" & COLUMN(B$1)+SUM($AD$2:$AD167)) -> 29 | L166: =INDIRECT("'関数（読み）'!C" & COLUMN(C$1)+SUM($AD$2:$AD167)) -> 213 | M166: =INDIRECT("'関数（読み）'!C" & COLUMN(D$1)+SUM($AD$2:$AD167)) -> 94 | N166: =INDIRECT("'関数（読み）'!C" & COLUMN(E$1)+SUM($AD$2:$AD167)) -> 152 | O166: =INDIRECT("'関数（読み）'!C" & COLUMN(F$1)+SUM($AD$2:$AD167)) -> 91 | P166: =INDIRECT("'関数（読み）'!C" & COLUMN(G$1)+SUM($AD$2:$AD167)) -> 3 | Q166: =INDIRECT("'関数（読み）'!C" & COLUMN(H$1)+SUM($AD$2:$AD167)) -> 127 | R166: =INDIRECT("'関数（読み）'!C" & COLUMN(I$1)+SUM($AD$2:$AD167)) -> 188 | S166: =INDIRECT("'関数（読み）'!C" & COLUMN(J$1)+SUM($AD$2:$AD167)) -> 109 | T166: =INDIRECT("'関数（読み）'!C" & COLUMN(K$1)+SUM($AD$2:$AD167)) -> 113
A167: ⑳ | B167: ⑲ | C167: ⑱ | D167: ⑰ | E167: ⑯ | F167: ⑮ | G167: ⑭ | H167: ⑬ | I167: ⑫ | J167: ⑪ | K167: ⑩ | L167: ⑨ | M167: ⑧ | N167: ⑦ | O167: ⑥ | P167: ⑤ | Q167: ④ | R167: ③ | S167: ② | T167: ① | U167: 次の［ ］の部分の漢字には読みがなをひらがなで書き、カタカナは漢字に直しなさい。 | V167: 11 | W167: 「漢字の博士検定試験」練習問題 | AC167: ← | AD167: 10 | AE167: 問 | AF167: =AH162+1 -> 171 | AG167: ～ | AH167: =SUM($AD$2:$AD167)+10 -> 180 | AI167: 問まで | AJ167: =COUNTIF($A$1:$T$200,T168) -> 2
A168: =IF(A166="","",VLOOKUP(A166,漢字書き!$A$2:$N$506,6,0)) -> ［ヒツジ］のむれ | B168: =IF(B166="","",VLOOKUP(B166,漢字書き!$A$2:$N$506,6,0)) -> 立て［イタ］に水で話す | C168: =IF(C166="","",VLOOKUP(C166,漢字書き!$A$2:$N$506,6,0)) -> ［コオリ］がとける | D168: =IF(D166="","",VLOOKUP(D166,漢字書き!$A$2:$N$506,6,0)) -> ［レンシュウ］にはげむ | E168: =IF(E166="","",VLOOKUP(E166,漢字書き!$A$2:$N$506,6,0)) -> お［レイ］を言う | F168: =IF(F166="","",VLOOKUP(F166,漢字書き!$A$2:$N$506,6,0)) -> 機械を［カイ］りょうする | G168: =IF(G166="","",VLOOKUP(G166,漢字書き!$A$2:$N$506,6,0)) -> 役わりを［ハ］たす | H168: =IF(H166="","",VLOOKUP(H166,漢字書き!$A$2:$N$506,6,0)) -> ［カンゼン］に仕上げる | I168: =IF(I166="","",VLOOKUP(I166,漢字書き!$A$2:$N$506,6,0)) -> ［ハッピョウ］会で歌を歌う | J168: =IF(J166="","",VLOOKUP(J166,漢字書き!$A$2:$N$506,6,0)) -> ［シルシ］をつける | K168: =IF(K166="","",VLOOKUP(K166,漢字読み!$A$2:$O$506,6,0)) -> 右の［反対］は左 | L168: =IF(L166="","",VLOOKUP(L166,漢字読み!$A$2:$O$506,6,0)) -> ［富］をたくわえる | M168: =IF(M166="","",VLOOKUP(M166,漢字読み!$A$2:$O$506,6,0)) -> ［問］いつめる | N168: =IF(N166="","",VLOOKUP(N166,漢字読み!$A$2:$O$506,6,0)) -> [白衣]を着る | O168: =IF(O166="","",VLOOKUP(O166,漢字読み!$A$2:$O$506,6,0)) -> こんなんに[直面]する | P168: =IF(P166="","",VLOOKUP(P166,漢字読み!$A$2:$O$506,6,0)) -> ふろの［湯］を入れる | Q168: =IF(Q166="","",VLOOKUP(Q166,漢字読み!$A$2:$O$506,6,0)) -> ［落下］さんでおりる | R168: =IF(R166="","",VLOOKUP(R166,漢字読み!$A$2:$O$506,6,0)) -> 兄は［外交官］だ | S168: =IF(S166="","",VLOOKUP(S166,漢字読み!$A$2:$O$506,6,0)) -> ［遊園地］がにぎわう | T168: =IF(T166="","",VLOOKUP(T166,漢字読み!$A$2:$O$506,6,0)) -> ［子羊］のむれ | V168: 級
V169: 名前
A170: =IF(A166="","",IF(VLOOKUP(A166,漢字書き!$A$2:$N$502,7,0)=0,"",VLOOKUP(A166,漢字書き!$A$2:$N$502,7,0))) ->  | B170: =IF(B166="","",IF(VLOOKUP(B166,漢字書き!$A$2:$N$502,7,0)=0,"",VLOOKUP(B166,漢字書き!$A$2:$N$502,7,0))) ->  | C170: =IF(C166="","",IF(VLOOKUP(C166,漢字書き!$A$2:$N$502,7,0)=0,"",VLOOKUP(C166,漢字書き!$A$2:$N$502,7,0))) ->  | D170: =IF(D166="","",IF(VLOOKUP(D166,漢字書き!$A$2:$N$502,7,0)=0,"",VLOOKUP(D166,漢字書き!$A$2:$N$502,7,0))) ->  | E170: =IF(E166="","",IF(VLOOKUP(E166,漢字書き!$A$2:$N$502,7,0)=0,"",VLOOKUP(E166,漢字書き!$A$2:$N$502,7,0))) ->  | F170: =IF(F166="","",IF(VLOOKUP(F166,漢字書き!$A$2:$N$502,7,0)=0,"",VLOOKUP(F166,漢字書き!$A$2:$N$502,7,0))) -> りょう | G170: =IF(G166="","",IF(VLOOKUP(G166,漢字書き!$A$2:$N$502,7,0)=0,"",VLOOKUP(G166,漢字書き!$A$2:$N$502,7,0))) -> たす | H170: =IF(H166="","",IF(VLOOKUP(H166,漢字書き!$A$2:$N$502,7,0)=0,"",VLOOKUP(H166,漢字書き!$A$2:$N$502,7,0))) ->  | I170: =IF(I166="","",IF(VLOOKUP(I166,漢字書き!$A$2:$N$502,7,0)=0,"",VLOOKUP(I166,漢字書き!$A$2:$N$502,7,0))) -> 会 | J170: =IF(J166="","",IF(VLOOKUP(J166,漢字書き!$A$2:$N$502,7,0)=0,"",VLOOKUP(J166,漢字書き!$A$2:$N$502,7,0))) ->  | K170: =IF(K166="","",IF(VLOOKUP(K166,漢字読み!$A$2:$O$502,7,0)=0,"",VLOOKUP(K166,漢字読み!$A$2:$O$502,7,0))) ->  | L170: =IF(L166="","",IF(VLOOKUP(L166,漢字読み!$A$2:$O$502,7,0)=0,"",VLOOKUP(L166,漢字読み!$A$2:$O$502,7,0))) ->  | M170: =IF(M166="","",IF(VLOOKUP(M166,漢字読み!$A$2:$O$502,7,0)=0,"",VLOOKUP(M166,漢字読み!$A$2:$O$502,7,0))) -> い | N170: =IF(N166="","",IF(VLOOKUP(N166,漢字読み!$A$2:$O$502,7,0)=0,"",VLOOKUP(N166,漢字読み!$A$2:$O$502,7,0))) ->  | O170: =IF(O166="","",IF(VLOOKUP(O166,漢字読み!$A$2:$O$502,7,0)=0,"",VLOOKUP(O166,漢字読み!$A$2:$O$502,7,0))) -> する | P170: =IF(P166="","",IF(VLOOKUP(P166,漢字読み!$A$2:$O$502,7,0)=0,"",VLOOKUP(P166,漢字読み!$A$2:$O$502,7,0))) ->  | Q170: =IF(Q166="","",IF(VLOOKUP(Q166,漢字読み!$A$2:$O$502,7,0)=0,"",VLOOKUP(Q166,漢字読み!$A$2:$O$502,7,0))) -> さん | R170: =IF(R166="","",IF(VLOOKUP(R166,漢字読み!$A$2:$O$502,7,0)=0,"",VLOOKUP(R166,漢字読み!$A$2:$O$502,7,0))) ->  | S170: =IF(S166="","",IF(VLOOKUP(S166,漢字読み!$A$2:$O$502,7,0)=0,"",VLOOKUP(S166,漢字読み!$A$2:$O$502,7,0))) ->  | T170: =IF(T166="","",IF(VLOOKUP(T166,漢字読み!$A$2:$O$502,7,0)=0,"",VLOOKUP(T166,漢字読み!$A$2:$O$502,7,0))) ->  | W170: 和歌山県教育委員会
A171: =A161 -> 216 | B171: =B161 -> 226 | C171: =C161 -> 181 | D171: =D161 -> 50 | E171: =E161 -> 98 | F171: =F161 -> 96 | G171: =G161 -> 139 | H171: =H161 -> 124 | I171: =I161 -> 111 | J171: =J161 -> 183 | K171: =K161 -> 179 | L171: =L161 -> 9 | M171: =M161 -> 1 | N171: =N161 -> 196 | O171: =O161 -> 124 | P171: =P161 -> 140 | Q171: =Q161 -> 170 | R171: =R161 -> 47 | S171: =S161 -> 62 | T171: =T161 -> 116
A172: ⑳ | B172: ⑲ | C172: ⑱ | D172: ⑰ | E172: ⑯ | F172: ⑮ | G172: ⑭ | H172: ⑬ | I172: ⑫ | J172: ⑪ | K172: ⑩ | L172: ⑨ | M172: ⑧ | N172: ⑦ | O172: ⑥ | P172: ⑤ | Q172: ④ | R172: ③ | S172: ② | T172: ① | U172: 次の［ ］の部分の漢字には読みがなをひらがなで書き、カタカナは漢字に直しなさい。 | V172: 11 | W172: 「漢字の博士検定試験」練習問題
A173: =IF(A171="","",VLOOKUP(A171,漢字書き!$A$2:$N$506,6,0)) -> ［ハタ］をふる | B173: =IF(B171="","",VLOOKUP(B171,漢字書き!$A$2:$N$506,6,0)) -> ［クマモトケン］への旅行 | C173: =IF(C171="","",VLOOKUP(C171,漢字書き!$A$2:$N$506,6,0)) -> ［カモツ］列車 | D173: =IF(D171="","",VLOOKUP(D171,漢字書き!$A$2:$N$506,6,0)) -> ［フデ］を使って書く | E173: =IF(E171="","",VLOOKUP(E171,漢字書き!$A$2:$N$506,6,0)) -> [ジメン]を強くける | F173: =IF(F171="","",VLOOKUP(F171,漢字書き!$A$2:$N$506,6,0)) -> ［イノチ］の重さ | G173: =IF(G171="","",VLOOKUP(G171,漢字書き!$A$2:$N$506,6,0)) -> ［ミドリ］の草原 | H173: =IF(H171="","",VLOOKUP(H171,漢字書き!$A$2:$N$506,6,0)) -> 明るい［タイヨウ］ | I173: =IF(I171="","",VLOOKUP(I171,漢字書き!$A$2:$N$506,6,0)) -> ［ユウリョク］なせん手 | J173: =IF(J171="","",VLOOKUP(J171,漢字書き!$A$2:$N$506,6,0)) -> ［ホウカ］後のやくそく | K173: =IF(K171="","",VLOOKUP(K171,漢字読み!$A$2:$O$506,6,0)) -> タバコは［有害］だ | L173: =IF(L171="","",VLOOKUP(L171,漢字読み!$A$2:$O$506,6,0)) -> ［動作］がはやい | M173: =IF(M171="","",VLOOKUP(M171,漢字読み!$A$2:$O$506,6,0)) -> ねっ［湯］に気をつける | N173: =IF(N171="","",VLOOKUP(N171,漢字読み!$A$2:$O$506,6,0)) -> ［悲願］の一勝 | O173: =IF(O171="","",VLOOKUP(O171,漢字読み!$A$2:$O$506,6,0)) -> 田中［様］からお電話です | P173: =IF(P171="","",VLOOKUP(P171,漢字読み!$A$2:$O$506,6,0)) -> 水泳の［練習］ | Q173: =IF(Q171="","",VLOOKUP(Q171,漢字読み!$A$2:$O$506,6,0)) -> ［銀貨］をもらう | R173: =IF(R171="","",VLOOKUP(R171,漢字読み!$A$2:$O$506,6,0)) -> ［氷］がとける | S173: =IF(S171="","",VLOOKUP(S171,漢字読み!$A$2:$O$506,6,0)) -> ［部活動］がさかんだ | T173: =IF(T171="","",VLOOKUP(T171,漢字読み!$A$2:$O$506,6,0)) -> ［洋服］を買いにいく | V173: 級
A174: =IF(A$11="","",VLOOKUP(A171,漢字書き!$A$2:$O$506,8,0)) -> 旗 | B174: =IF(B$11="","",VLOOKUP(B171,漢字書き!$A$2:$O$506,8,0)) -> 熊本県 | C174: =IF(C$11="","",VLOOKUP(C171,漢字書き!$A$2:$O$506,8,0)) -> 貨物 | D174: =IF(D$11="","",VLOOKUP(D171,漢字書き!$A$2:$O$506,8,0)) -> 筆者 | E174: =IF(E$11="","",VLOOKUP(E171,漢字書き!$A$2:$O$506,8,0)) -> 地面 | F174: =IF(F$11="","",VLOOKUP(F171,漢字書き!$A$2:$O$506,8,0)) -> 命 | G174: =IF(G$11="","",VLOOKUP(G171,漢字書き!$A$2:$O$506,8,0)) -> 緑 | H174: =IF(H$11="","",VLOOKUP(H171,漢字書き!$A$2:$O$506,8,0)) -> 太陽 | I174: =IF(I$11="","",VLOOKUP(I171,漢字書き!$A$2:$O$506,8,0)) -> 優良 | J174: =IF(J$11="","",VLOOKUP(J171,漢字書き!$A$2:$O$506,8,0)) -> 放課 | K174: =IF(K$11="","",VLOOKUP(K171,漢字読み!$A$2:$O$506,8,0)) -> ゆうがい | L174: =IF(L$11="","",VLOOKUP(L171,漢字読み!$A$2:$O$506,8,0)) -> どうさ | M174: =IF(M$11="","",VLOOKUP(M171,漢字読み!$A$2:$O$506,8,0)) -> とう | N174: =IF(N$11="","",VLOOKUP(N171,漢字読み!$A$2:$O$506,8,0)) -> ひがん | O174: =IF(O$11="","",VLOOKUP(O171,漢字読み!$A$2:$O$506,8,0)) -> さま | P174: =IF(P$11="","",VLOOKUP(P171,漢字読み!$A$2:$O$506,8,0)) -> れんしゅう | Q174: =IF(Q$11="","",VLOOKUP(Q171,漢字読み!$A$2:$O$506,8,0)) -> ぎんか | R174: =IF(R$11="","",VLOOKUP(R171,漢字読み!$A$2:$O$506,8,0)) -> こおり | S174: =IF(S$11="","",VLOOKUP(S171,漢字読み!$A$2:$O$506,8,0)) -> ぶかつどう | T174: =IF(T$11="","",VLOOKUP(T171,漢字読み!$A$2:$O$506,8,0)) -> ようふく | V174: 名前
A175: =IF(A171="","",IF(VLOOKUP(A171,漢字書き!$A$2:$N$502,7,0)=0,"",VLOOKUP(A171,漢字書き!$A$2:$N$502,7,0))) ->  | B175: =IF(B171="","",IF(VLOOKUP(B171,漢字書き!$A$2:$N$502,7,0)=0,"",VLOOKUP(B171,漢字書き!$A$2:$N$502,7,0))) ->  | C175: =IF(C171="","",IF(VLOOKUP(C171,漢字書き!$A$2:$N$502,7,0)=0,"",VLOOKUP(C171,漢字書き!$A$2:$N$502,7,0))) ->  | D175: =IF(D171="","",IF(VLOOKUP(D171,漢字書き!$A$2:$N$502,7,0)=0,"",VLOOKUP(D171,漢字書き!$A$2:$N$502,7,0))) ->  | E175: =IF(E171="","",IF(VLOOKUP(E171,漢字書き!$A$2:$N$502,7,0)=0,"",VLOOKUP(E171,漢字書き!$A$2:$N$502,7,0))) ->  | F175: =IF(F171="","",IF(VLOOKUP(F171,漢字書き!$A$2:$N$502,7,0)=0,"",VLOOKUP(F171,漢字書き!$A$2:$N$502,7,0))) ->  | G175: =IF(G171="","",IF(VLOOKUP(G171,漢字書き!$A$2:$N$502,7,0)=0,"",VLOOKUP(G171,漢字書き!$A$2:$N$502,7,0))) ->  | H175: =IF(H171="","",IF(VLOOKUP(H171,漢字書き!$A$2:$N$502,7,0)=0,"",VLOOKUP(H171,漢字書き!$A$2:$N$502,7,0))) ->  | I175: =IF(I171="","",IF(VLOOKUP(I171,漢字書き!$A$2:$N$502,7,0)=0,"",VLOOKUP(I171,漢字書き!$A$2:$N$502,7,0))) -> な | J175: =IF(J171="","",IF(VLOOKUP(J171,漢字書き!$A$2:$N$502,7,0)=0,"",VLOOKUP(J171,漢字書き!$A$2:$N$502,7,0))) -> 後 | K175: =IF(K171="","",IF(VLOOKUP(K171,漢字読み!$A$2:$O$502,7,0)=0,"",VLOOKUP(K171,漢字読み!$A$2:$O$502,7,0))) -> だ | L175: =IF(L171="","",IF(VLOOKUP(L171,漢字読み!$A$2:$O$502,7,0)=0,"",VLOOKUP(L171,漢字読み!$A$2:$O$502,7,0))) ->  | M175: =IF(M171="","",IF(VLOOKUP(M171,漢字読み!$A$2:$O$502,7,0)=0,"",VLOOKUP(M171,漢字読み!$A$2:$O$502,7,0))) ->  | N175: =IF(N171="","",IF(VLOOKUP(N171,漢字読み!$A$2:$O$502,7,0)=0,"",VLOOKUP(N171,漢字読み!$A$2:$O$502,7,0))) ->  | O175: =IF(O171="","",IF(VLOOKUP(O171,漢字読み!$A$2:$O$502,7,0)=0,"",VLOOKUP(O171,漢字読み!$A$2:$O$502,7,0))) ->  | P175: =IF(P171="","",IF(VLOOKUP(P171,漢字読み!$A$2:$O$502,7,0)=0,"",VLOOKUP(P171,漢字読み!$A$2:$O$502,7,0))) ->  | Q175: =IF(Q171="","",IF(VLOOKUP(Q171,漢字読み!$A$2:$O$502,7,0)=0,"",VLOOKUP(Q171,漢字読み!$A$2:$O$502,7,0))) ->  | R175: =IF(R171="","",IF(VLOOKUP(R171,漢字読み!$A$2:$O$502,7,0)=0,"",VLOOKUP(R171,漢字読み!$A$2:$O$502,7,0))) ->  | S175: =IF(S171="","",IF(VLOOKUP(S171,漢字読み!$A$2:$O$502,7,0)=0,"",VLOOKUP(S171,漢字読み!$A$2:$O$502,7,0))) ->  | T175: =IF(T171="","",IF(VLOOKUP(T171,漢字読み!$A$2:$O$502,7,0)=0,"",VLOOKUP(T171,漢字読み!$A$2:$O$502,7,0))) ->  | W175: 和歌山県教育委員会
A176: =A166 -> 119 | B176: =B166 -> 38 | C176: =C166 -> 53 | D176: =D166 -> 145 | E176: =E166 -> 142 | F176: =F166 -> 187 | G176: =G166 -> 180 | H176: =H166 -> 198 | I176: =I166 -> 29 | J176: =J166 -> 166 | K176: =K166 -> 29 | L176: =L166 -> 213 | M176: =M166 -> 94 | N176: =N166 -> 152 | O176: =O166 -> 91 | P176: =P166 -> 3 | Q176: =Q166 -> 127 | R176: =R166 -> 188 | S176: =S166 -> 109 | T176: =T166 -> 113
A177: ⑳ | B177: ⑲ | C177: ⑱ | D177: ⑰ | E177: ⑯ | F177: ⑮ | G177: ⑭ | H177: ⑬ | I177: ⑫ | J177: ⑪ | K177: ⑩ | L177: ⑨ | M177: ⑧ | N177: ⑦ | O177: ⑥ | P177: ⑤ | Q177: ④ | R177: ③ | S177: ② | T177: ① | U177: 次の［ ］の部分の漢字には読みがなをひらがなで書き、カタカナは漢字に直しなさい。 | V177: 11 | W177: 「漢字の博士検定試験」練習問題
A178: =IF(A176="","",VLOOKUP(A176,漢字書き!$A$2:$N$506,6,0)) -> ［ヒツジ］のむれ | B178: =IF(B176="","",VLOOKUP(B176,漢字書き!$A$2:$N$506,6,0)) -> 立て［イタ］に水で話す | C178: =IF(C176="","",VLOOKUP(C176,漢字書き!$A$2:$N$506,6,0)) -> ［コオリ］がとける | D178: =IF(D176="","",VLOOKUP(D176,漢字書き!$A$2:$N$506,6,0)) -> ［レンシュウ］にはげむ | E178: =IF(E176="","",VLOOKUP(E176,漢字書き!$A$2:$N$506,6,0)) -> お［レイ］を言う | F178: =IF(F176="","",VLOOKUP(F176,漢字書き!$A$2:$N$506,6,0)) -> 機械を［カイ］りょうする | G178: =IF(G176="","",VLOOKUP(G176,漢字書き!$A$2:$N$506,6,0)) -> 役わりを［ハ］たす | H178: =IF(H176="","",VLOOKUP(H176,漢字書き!$A$2:$N$506,6,0)) -> ［カンゼン］に仕上げる | I178: =IF(I176="","",VLOOKUP(I176,漢字書き!$A$2:$N$506,6,0)) -> ［ハッピョウ］会で歌を歌う | J178: =IF(J176="","",VLOOKUP(J176,漢字書き!$A$2:$N$506,6,0)) -> ［シルシ］をつける | K178: =IF(K176="","",VLOOKUP(K176,漢字読み!$A$2:$O$506,6,0)) -> 右の［反対］は左 | L178: =IF(L176="","",VLOOKUP(L176,漢字読み!$A$2:$O$506,6,0)) -> ［富］をたくわえる | M178: =IF(M176="","",VLOOKUP(M176,漢字読み!$A$2:$O$506,6,0)) -> ［問］いつめる | N178: =IF(N176="","",VLOOKUP(N176,漢字読み!$A$2:$O$506,6,0)) -> [白衣]を着る | O178: =IF(O176="","",VLOOKUP(O176,漢字読み!$A$2:$O$506,6,0)) -> こんなんに[直面]する | P178: =IF(P176="","",VLOOKUP(P176,漢字読み!$A$2:$O$506,6,0)) -> ふろの［湯］を入れる | Q178: =IF(Q176="","",VLOOKUP(Q176,漢字読み!$A$2:$O$506,6,0)) -> ［落下］さんでおりる | R178: =IF(R176="","",VLOOKUP(R176,漢字読み!$A$2:$O$506,6,0)) -> 兄は［外交官］だ | S178: =IF(S176="","",VLOOKUP(S176,漢字読み!$A$2:$O$506,6,0)) -> ［遊園地］がにぎわう | T178: =IF(T176="","",VLOOKUP(T176,漢字読み!$A$2:$O$506,6,0)) -> ［子羊］のむれ | V178: 級
A179: =IF(A$16="","",VLOOKUP(A176,漢字書き!$A$2:$O$506,8,0)) -> 羊 | B179: =IF(B$16="","",VLOOKUP(B176,漢字書き!$A$2:$O$506,8,0)) -> 板 | C179: =IF(C$16="","",VLOOKUP(C176,漢字書き!$A$2:$O$506,8,0)) -> 氷 | D179: =IF(D$16="","",VLOOKUP(D176,漢字書き!$A$2:$O$506,8,0)) -> 練習 | E179: =IF(E$16="","",VLOOKUP(E176,漢字書き!$A$2:$O$506,8,0)) -> 礼 | F179: =IF(F$16="","",VLOOKUP(F176,漢字書き!$A$2:$O$506,8,0)) -> 改 | G179: =IF(G$16="","",VLOOKUP(G176,漢字書き!$A$2:$O$506,8,0)) -> 果 | H179: =IF(H$16="","",VLOOKUP(H176,漢字書き!$A$2:$O$506,8,0)) -> 完全 | I179: =IF(I$16="","",VLOOKUP(I176,漢字書き!$A$2:$O$506,8,0)) -> 発表 | J179: =IF(J$16="","",VLOOKUP(J176,漢字書き!$A$2:$O$506,8,0)) -> 印 | K179: =IF(K$16="","",VLOOKUP(K176,漢字読み!$A$2:$O$506,8,0)) -> はんたい | L179: =IF(L$16="","",VLOOKUP(L176,漢字読み!$A$2:$O$506,8,0)) -> とみ | M179: =IF(M$16="","",VLOOKUP(M176,漢字読み!$A$2:$O$506,8,0)) -> と | N179: =IF(N$16="","",VLOOKUP(N176,漢字読み!$A$2:$O$506,8,0)) -> はくい | O179: =IF(O$16="","",VLOOKUP(O176,漢字読み!$A$2:$O$506,8,0)) -> ちょくめん | P179: =IF(P$16="","",VLOOKUP(P176,漢字読み!$A$2:$O$506,8,0)) -> ゆ | Q179: =IF(Q$16="","",VLOOKUP(Q176,漢字読み!$A$2:$O$506,8,0)) -> らっか | R179: =IF(R$16="","",VLOOKUP(R176,漢字読み!$A$2:$O$506,8,0)) -> がいこうかん | S179: =IF(S$16="","",VLOOKUP(S176,漢字読み!$A$2:$O$506,8,0)) -> ゆうえんち | T179: =IF(T$16="","",VLOOKUP(T176,漢字読み!$A$2:$O$506,8,0)) -> こひつじ | V179: 名前
A180: =IF(A176="","",IF(VLOOKUP(A176,漢字書き!$A$2:$N$502,7,0)=0,"",VLOOKUP(A176,漢字書き!$A$2:$N$502,7,0))) ->  | B180: =IF(B176="","",IF(VLOOKUP(B176,漢字書き!$A$2:$N$502,7,0)=0,"",VLOOKUP(B176,漢字書き!$A$2:$N$502,7,0))) ->  | C180: =IF(C176="","",IF(VLOOKUP(C176,漢字書き!$A$2:$N$502,7,0)=0,"",VLOOKUP(C176,漢字書き!$A$2:$N$502,7,0))) ->  | D180: =IF(D176="","",IF(VLOOKUP(D176,漢字書き!$A$2:$N$502,7,0)=0,"",VLOOKUP(D176,漢字書き!$A$2:$N$502,7,0))) ->  | E180: =IF(E176="","",IF(VLOOKUP(E176,漢字書き!$A$2:$N$502,7,0)=0,"",VLOOKUP(E176,漢字書き!$A$2:$N$502,7,0))) ->  | F180: =IF(F176="","",IF(VLOOKUP(F176,漢字書き!$A$2:$N$502,7,0)=0,"",VLOOKUP(F176,漢字書き!$A$2:$N$502,7,0))) -> りょう | G180: =IF(G176="","",IF(VLOOKUP(G176,漢字書き!$A$2:$N$502,7,0)=0,"",VLOOKUP(G176,漢字書き!$A$2:$N$502,7,0))) -> たす | H180: =IF(H176="","",IF(VLOOKUP(H176,漢字書き!$A$2:$N$502,7,0)=0,"",VLOOKUP(H176,漢字書き!$A$2:$N$502,7,0))) ->  | I180: =IF(I176="","",IF(VLOOKUP(I176,漢字書き!$A$2:$N$502,7,0)=0,"",VLOOKUP(I176,漢字書き!$A$2:$N$502,7,0))) -> 会 | J180: =IF(J176="","",IF(VLOOKUP(J176,漢字書き!$A$2:$N$502,7,0)=0,"",VLOOKUP(J176,漢字書き!$A$2:$N$502,7,0))) ->  | K180: =IF(K176="","",IF(VLOOKUP(K176,漢字読み!$A$2:$O$502,7,0)=0,"",VLOOKUP(K176,漢字読み!$A$2:$O$502,7,0))) ->  | L180: =IF(L176="","",IF(VLOOKUP(L176,漢字読み!$A$2:$O$502,7,0)=0,"",VLOOKUP(L176,漢字読み!$A$2:$O$502,7,0))) ->  | M180: =IF(M176="","",IF(VLOOKUP(M176,漢字読み!$A$2:$O$502,7,0)=0,"",VLOOKUP(M176,漢字読み!$A$2:$O$502,7,0))) -> い | N180: =IF(N176="","",IF(VLOOKUP(N176,漢字読み!$A$2:$O$502,7,0)=0,"",VLOOKUP(N176,漢字読み!$A$2:$O$502,7,0))) ->  | O180: =IF(O176="","",IF(VLOOKUP(O176,漢字読み!$A$2:$O$502,7,0)=0,"",VLOOKUP(O176,漢字読み!$A$2:$O$502,7,0))) -> する | P180: =IF(P176="","",IF(VLOOKUP(P176,漢字読み!$A$2:$O$502,7,0)=0,"",VLOOKUP(P176,漢字読み!$A$2:$O$502,7,0))) ->  | Q180: =IF(Q176="","",IF(VLOOKUP(Q176,漢字読み!$A$2:$O$502,7,0)=0,"",VLOOKUP(Q176,漢字読み!$A$2:$O$502,7,0))) -> さん | R180: =IF(R176="","",IF(VLOOKUP(R176,漢字読み!$A$2:$O$502,7,0)=0,"",VLOOKUP(R176,漢字読み!$A$2:$O$502,7,0))) ->  | S180: =IF(S176="","",IF(VLOOKUP(S176,漢字読み!$A$2:$O$502,7,0)=0,"",VLOOKUP(S176,漢字読み!$A$2:$O$502,7,0))) ->  | T180: =IF(T176="","",IF(VLOOKUP(T176,漢字読み!$A$2:$O$502,7,0)=0,"",VLOOKUP(T176,漢字読み!$A$2:$O$502,7,0))) ->  | W180: 和歌山県教育委員会
A181: =INDIRECT("'関数（書き）'!C" & COLUMN(B$1)+SUM($AD$2:$AD182)) -> 121 | B181: =INDIRECT("'関数（書き）'!C" & COLUMN(C$1)+SUM($AD$2:$AD182)) -> 128 | C181: =INDIRECT("'関数（書き）'!C" & COLUMN(D$1)+SUM($AD$2:$AD182)) -> 106 | D181: =INDIRECT("'関数（書き）'!C" & COLUMN(E$1)+SUM($AD$2:$AD182)) -> 91 | E181: =INDIRECT("'関数（書き）'!C" & COLUMN(F$1)+SUM($AD$2:$AD182)) -> 22 | F181: =INDIRECT("'関数（書き）'!C" & COLUMN(G$1)+SUM($AD$2:$AD182)) -> 17 | G181: =INDIRECT("'関数（書き）'!C" & COLUMN(H$1)+SUM($AD$2:$AD182)) -> 131 | H181: =INDIRECT("'関数（書き）'!C" & COLUMN(I$1)+SUM($AD$2:$AD182)) -> 209 | I181: =INDIRECT("'関数（書き）'!C" & COLUMN(J$1)+SUM($AD$2:$AD182)) -> 9 | J181: =INDIRECT("'関数（書き）'!C" & COLUMN(K$1)+SUM($AD$2:$AD182)) -> 207 | K181: =INDIRECT("'関数（読み）'!C" & COLUMN(B$1)+SUM($AD$2:$AD182)) -> 43 | L181: =INDIRECT("'関数（読み）'!C" & COLUMN(C$1)+SUM($AD$2:$AD182)) -> 45 | M181: =INDIRECT("'関数（読み）'!C" & COLUMN(D$1)+SUM($AD$2:$AD182)) -> 206 | N181: =INDIRECT("'関数（読み）'!C" & COLUMN(E$1)+SUM($AD$2:$AD182)) -> 71 | O181: =INDIRECT("'関数（読み）'!C" & COLUMN(F$1)+SUM($AD$2:$AD182)) -> 93 | P181: =INDIRECT("'関数（読み）'!C" & COLUMN(G$1)+SUM($AD$2:$AD182)) -> 148 | Q181: =INDIRECT("'関数（読み）'!C" & COLUMN(H$1)+SUM($AD$2:$AD182)) -> 98 | R181: =INDIRECT("'関数（読み）'!C" & COLUMN(I$1)+SUM($AD$2:$AD182)) -> 31 | S181: =INDIRECT("'関数（読み）'!C" & COLUMN(J$1)+SUM($AD$2:$AD182)) -> 76 | T181: =INDIRECT("'関数（読み）'!C" & COLUMN(K$1)+SUM($AD$2:$AD182)) -> 13
A182: ⑳ | B182: ⑲ | C182: ⑱ | D182: ⑰ | E182: ⑯ | F182: ⑮ | G182: ⑭ | H182: ⑬ | I182: ⑫ | J182: ⑪ | K182: ⑩ | L182: ⑨ | M182: ⑧ | N182: ⑦ | O182: ⑥ | P182: ⑤ | Q182: ④ | R182: ③ | S182: ② | T182: ① | U182: 次の［ ］の部分の漢字には読みがなをひらがなで書き、カタカナは漢字に直しなさい。 | V182: 11 | W182: 「漢字の博士検定試験」練習問題 | AC182: ← | AD182: 10 | AE182: 問 | AF182: =AH167+1 -> 181 | AG182: ～ | AH182: =SUM($AD$2:$AD182)+10 -> 190 | AI182: 問まで | AJ182: =COUNTIF($A$1:$T$200,T183) -> 2
A183: =IF(A181="","",VLOOKUP(A181,漢字書き!$A$2:$N$506,6,0)) -> ［ラクヨウ］のきせつ | B183: =IF(B181="","",VLOOKUP(B181,漢字書き!$A$2:$N$506,6,0)) -> ［ラッカ］した所 | C183: =IF(C181="","",VLOOKUP(C181,漢字書き!$A$2:$N$506,6,0)) -> ［クスリ］を飲む | D183: =IF(D181="","",VLOOKUP(D181,漢字書き!$A$2:$N$506,6,0)) -> かぜ［ギミ］になっている | E183: =IF(E181="","",VLOOKUP(E181,漢字書き!$A$2:$N$506,6,0)) -> ［ニバイ］の量になる | F183: =IF(F181="","",VLOOKUP(F181,漢字書き!$A$2:$N$506,6,0)) -> ［デンパ］がとどく | G183: =IF(G181="","",VLOOKUP(G181,漢字書き!$A$2:$N$506,6,0)) -> 川の［カリュウ］ | H183: =IF(H181="","",VLOOKUP(H181,漢字書き!$A$2:$N$506,6,0)) -> 強く［ネガ］う | I183: =IF(I181="","",VLOOKUP(I181,漢字書き!$A$2:$N$506,6,0)) -> ［ウンドウ］会に出る | J183: =IF(J181="","",VLOOKUP(J181,漢字書き!$A$2:$N$506,6,0)) -> ［カンキャク］のはく手 | K183: =IF(K181="","",VLOOKUP(K181,漢字読み!$A$2:$O$506,6,0)) -> ［筆者］の考え | L183: =IF(L181="","",VLOOKUP(L181,漢字読み!$A$2:$O$506,6,0)) -> ［筆］を使う | M183: =IF(M181="","",VLOOKUP(M181,漢字読み!$A$2:$O$506,6,0)) -> ［食器］をあらう | N183: =IF(N181="","",VLOOKUP(N181,漢字読み!$A$2:$O$506,6,0)) -> 人間は［平等］だ | O183: =IF(O181="","",VLOOKUP(O181,漢字読み!$A$2:$O$506,6,0)) -> ［問］いに答える | P183: =IF(P181="","",VLOOKUP(P181,漢字読み!$A$2:$O$506,6,0)) -> それは［名案］だ | Q183: =IF(Q181="","",VLOOKUP(Q181,漢字読み!$A$2:$O$506,6,0)) -> ［役者］になりたい | R183: =IF(R181="","",VLOOKUP(R181,漢字読み!$A$2:$O$506,6,0)) -> [坂道]を下る | S183: =IF(S181="","",VLOOKUP(S181,漢字読み!$A$2:$O$506,6,0)) -> ［返答］を待つ | T183: =IF(T181="","",VLOOKUP(T181,漢字読み!$A$2:$O$506,6,0)) -> ［農家］の庭先 | V183: 級
V184: 名前
A185: =IF(A181="","",IF(VLOOKUP(A181,漢字書き!$A$2:$N$502,7,0)=0,"",VLOOKUP(A181,漢字書き!$A$2:$N$502,7,0))) ->  | B185: =IF(B181="","",IF(VLOOKUP(B181,漢字書き!$A$2:$N$502,7,0)=0,"",VLOOKUP(B181,漢字書き!$A$2:$N$502,7,0))) -> した | C185: =IF(C181="","",IF(VLOOKUP(C181,漢字書き!$A$2:$N$502,7,0)=0,"",VLOOKUP(C181,漢字書き!$A$2:$N$502,7,0))) ->  | D185: =IF(D181="","",IF(VLOOKUP(D181,漢字書き!$A$2:$N$502,7,0)=0,"",VLOOKUP(D181,漢字書き!$A$2:$N$502,7,0))) ->  | E185: =IF(E181="","",IF(VLOOKUP(E181,漢字書き!$A$2:$N$502,7,0)=0,"",VLOOKUP(E181,漢字書き!$A$2:$N$502,7,0))) ->  | F185: =IF(F181="","",IF(VLOOKUP(F181,漢字書き!$A$2:$N$502,7,0)=0,"",VLOOKUP(F181,漢字書き!$A$2:$N$502,7,0))) ->  | G185: =IF(G181="","",IF(VLOOKUP(G181,漢字書き!$A$2:$N$502,7,0)=0,"",VLOOKUP(G181,漢字書き!$A$2:$N$502,7,0))) ->  | H185: =IF(H181="","",IF(VLOOKUP(H181,漢字書き!$A$2:$N$502,7,0)=0,"",VLOOKUP(H181,漢字書き!$A$2:$N$502,7,0))) -> う | I185: =IF(I181="","",IF(VLOOKUP(I181,漢字書き!$A$2:$N$502,7,0)=0,"",VLOOKUP(I181,漢字書き!$A$2:$N$502,7,0))) -> 会 | J185: =IF(J181="","",IF(VLOOKUP(J181,漢字書き!$A$2:$N$502,7,0)=0,"",VLOOKUP(J181,漢字書き!$A$2:$N$502,7,0))) ->  | K185: =IF(K181="","",IF(VLOOKUP(K181,漢字読み!$A$2:$O$502,7,0)=0,"",VLOOKUP(K181,漢字読み!$A$2:$O$502,7,0))) ->  | L185: =IF(L181="","",IF(VLOOKUP(L181,漢字読み!$A$2:$O$502,7,0)=0,"",VLOOKUP(L181,漢字読み!$A$2:$O$502,7,0))) ->  | M185: =IF(M181="","",IF(VLOOKUP(M181,漢字読み!$A$2:$O$502,7,0)=0,"",VLOOKUP(M181,漢字読み!$A$2:$O$502,7,0))) ->  | N185: =IF(N181="","",IF(VLOOKUP(N181,漢字読み!$A$2:$O$502,7,0)=0,"",VLOOKUP(N181,漢字読み!$A$2:$O$502,7,0))) ->  | O185: =IF(O181="","",IF(VLOOKUP(O181,漢字読み!$A$2:$O$502,7,0)=0,"",VLOOKUP(O181,漢字読み!$A$2:$O$502,7,0))) -> い | P185: =IF(P181="","",IF(VLOOKUP(P181,漢字読み!$A$2:$O$502,7,0)=0,"",VLOOKUP(P181,漢字読み!$A$2:$O$502,7,0))) ->  | Q185: =IF(Q181="","",IF(VLOOKUP(Q181,漢字読み!$A$2:$O$502,7,0)=0,"",VLOOKUP(Q181,漢字読み!$A$2:$O$502,7,0))) ->  | R185: =IF(R181="","",IF(VLOOKUP(R181,漢字読み!$A$2:$O$502,7,0)=0,"",VLOOKUP(R181,漢字読み!$A$2:$O$502,7,0))) ->  | S185: =IF(S181="","",IF(VLOOKUP(S181,漢字読み!$A$2:$O$502,7,0)=0,"",VLOOKUP(S181,漢字読み!$A$2:$O$502,7,0))) ->  | T185: =IF(T181="","",IF(VLOOKUP(T181,漢字読み!$A$2:$O$502,7,0)=0,"",VLOOKUP(T181,漢字読み!$A$2:$O$502,7,0))) ->  | W185: 和歌山県教育委員会
A186: =INDIRECT("'関数（書き）'!C" & COLUMN(B$1)+SUM($AD$2:$AD187)) -> 196 | B186: =INDIRECT("'関数（書き）'!C" & COLUMN(C$1)+SUM($AD$2:$AD187)) -> 79 | C186: =INDIRECT("'関数（書き）'!C" & COLUMN(D$1)+SUM($AD$2:$AD187)) -> 97 | D186: =INDIRECT("'関数（書き）'!C" & COLUMN(E$1)+SUM($AD$2:$AD187)) -> 3 | E186: =INDIRECT("'関数（書き）'!C" & COLUMN(F$1)+SUM($AD$2:$AD187)) -> 201 | F186: =INDIRECT("'関数（書き）'!C" & COLUMN(G$1)+SUM($AD$2:$AD187)) -> 61 | G186: =INDIRECT("'関数（書き）'!C" & COLUMN(H$1)+SUM($AD$2:$AD187)) -> 123 | H186: =INDIRECT("'関数（書き）'!C" & COLUMN(I$1)+SUM($AD$2:$AD187)) -> 99 | I186: =INDIRECT("'関数（書き）'!C" & COLUMN(J$1)+SUM($AD$2:$AD187)) -> 160 | J186: =INDIRECT("'関数（書き）'!C" & COLUMN(K$1)+SUM($AD$2:$AD187)) -> 120 | K186: =INDIRECT("'関数（読み）'!C" & COLUMN(B$1)+SUM($AD$2:$AD187)) -> 211 | L186: =INDIRECT("'関数（読み）'!C" & COLUMN(C$1)+SUM($AD$2:$AD187)) -> 4 | M186: =INDIRECT("'関数（読み）'!C" & COLUMN(D$1)+SUM($AD$2:$AD187)) -> 46 | N186: =INDIRECT("'関数（読み）'!C" & COLUMN(E$1)+SUM($AD$2:$AD187)) -> 155 | O186: =INDIRECT("'関数（読み）'!C" & COLUMN(F$1)+SUM($AD$2:$AD187)) -> 172 | P186: =INDIRECT("'関数（読み）'!C" & COLUMN(G$1)+SUM($AD$2:$AD187)) -> 60 | Q186: =INDIRECT("'関数（読み）'!C" & COLUMN(H$1)+SUM($AD$2:$AD187)) -> 203 | R186: =INDIRECT("'関数（読み）'!C" & COLUMN(I$1)+SUM($AD$2:$AD187)) -> 162 | S186: =INDIRECT("'関数（読み）'!C" & COLUMN(J$1)+SUM($AD$2:$AD187)) -> 154 | T186: =INDIRECT("'関数（読み）'!C" & COLUMN(K$1)+SUM($AD$2:$AD187)) -> 12
A187: ⑳ | B187: ⑲ | C187: ⑱ | D187: ⑰ | E187: ⑯ | F187: ⑮ | G187: ⑭ | H187: ⑬ | I187: ⑫ | J187: ⑪ | K187: ⑩ | L187: ⑨ | M187: ⑧ | N187: ⑦ | O187: ⑥ | P187: ⑤ | Q187: ④ | R187: ③ | S187: ② | T187: ① | U187: 次の［ ］の部分の漢字には読みがなをひらがなで書き、カタカナは漢字に直しなさい。 | V187: 11 | W187: 「漢字の博士検定試験」練習問題 | AC187: ← | AD187: 10 | AE187: 問 | AF187: =AH182+1 -> 191 | AG187: ～ | AH187: =SUM($AD$2:$AD187)+10 -> 200 | AI187: 問まで | AJ187: =COUNTIF($A$1:$T$200,T188) -> 2
A188: =IF(A186="","",VLOOKUP(A186,漢字書き!$A$2:$N$506,6,0)) -> 目を［サ］ます | B188: =IF(B186="","",VLOOKUP(B186,漢字書き!$A$2:$N$506,6,0)) -> ［ヘイワ］な世の中 | C188: =IF(C186="","",VLOOKUP(C186,漢字書き!$A$2:$N$506,6,0)) -> テレビの［ガメン］ | D188: =IF(D186="","",VLOOKUP(D186,漢字書き!$A$2:$N$506,6,0)) -> ［トザン］列車に乗る | E188: =IF(E186="","",VLOOKUP(E186,漢字書き!$A$2:$N$506,6,0)) -> ［クダ］に水を通す | F188: =IF(F186="","",VLOOKUP(F186,漢字書き!$A$2:$N$506,6,0)) -> ［ジョウヒン］な母親 | G188: =IF(G186="","",VLOOKUP(G186,漢字書き!$A$2:$N$506,6,0)) -> 木の［ハ］をひろう | H188: =IF(H186="","",VLOOKUP(H186,漢字書き!$A$2:$N$506,6,0)) -> ［モンダイ］になる | I188: =IF(I186="","",VLOOKUP(I186,漢字書き!$A$2:$N$506,6,0)) -> ［ジョウイ］のせいせき | J188: =IF(J186="","",VLOOKUP(J186,漢字書き!$A$2:$N$506,6,0)) -> ［タイヘイヨウ］にうかぶ島 | K188: =IF(K186="","",VLOOKUP(K186,漢字読み!$A$2:$O$506,6,0)) -> 火山が有名な［熊本県］ | L188: =IF(L186="","",VLOOKUP(L186,漢字読み!$A$2:$O$506,6,0)) -> 朝早く［登校］する | M188: =IF(M186="","",VLOOKUP(M186,漢字読み!$A$2:$O$506,6,0)) -> ［流氷］が動く | N188: =IF(N186="","",VLOOKUP(N186,漢字読み!$A$2:$O$506,6,0)) -> ［愛媛県］に行く | O188: =IF(O186="","",VLOOKUP(O186,漢字読み!$A$2:$O$506,6,0)) -> せきにんを［課］す | P188: =IF(P186="","",VLOOKUP(P186,漢字読み!$A$2:$O$506,6,0)) -> じゃんけんで［負］ける | Q188: =IF(Q186="","",VLOOKUP(Q186,漢字読み!$A$2:$O$506,6,0)) -> 日本の［国旗］ | R188: =IF(R186="","",VLOOKUP(R186,漢字読み!$A$2:$O$506,6,0)) -> ［岩塩］をくだく | S188: =IF(S186="","",VLOOKUP(S186,漢字読み!$A$2:$O$506,6,0)) -> 十の［位］ | T188: =IF(T186="","",VLOOKUP(T186,漢字読み!$A$2:$O$506,6,0)) -> [童心]にかえる | V188: 級
V189: 名前
A190: =IF(A186="","",IF(VLOOKUP(A186,漢字書き!$A$2:$N$502,7,0)=0,"",VLOOKUP(A186,漢字書き!$A$2:$N$502,7,0))) -> ます | B190: =IF(B186="","",IF(VLOOKUP(B186,漢字書き!$A$2:$N$502,7,0)=0,"",VLOOKUP(B186,漢字書き!$A$2:$N$502,7,0))) -> な | C190: =IF(C186="","",IF(VLOOKUP(C186,漢字書き!$A$2:$N$502,7,0)=0,"",VLOOKUP(C186,漢字書き!$A$2:$N$502,7,0))) ->  | D190: =IF(D186="","",IF(VLOOKUP(D186,漢字書き!$A$2:$N$502,7,0)=0,"",VLOOKUP(D186,漢字書き!$A$2:$N$502,7,0))) ->  | E190: =IF(E186="","",IF(VLOOKUP(E186,漢字書き!$A$2:$N$502,7,0)=0,"",VLOOKUP(E186,漢字書き!$A$2:$N$502,7,0))) ->  | F190: =IF(F186="","",IF(VLOOKUP(F186,漢字書き!$A$2:$N$502,7,0)=0,"",VLOOKUP(F186,漢字書き!$A$2:$N$502,7,0))) -> な | G190: =IF(G186="","",IF(VLOOKUP(G186,漢字書き!$A$2:$N$502,7,0)=0,"",VLOOKUP(G186,漢字書き!$A$2:$N$502,7,0))) ->  | H190: =IF(H186="","",IF(VLOOKUP(H186,漢字書き!$A$2:$N$502,7,0)=0,"",VLOOKUP(H186,漢字書き!$A$2:$N$502,7,0))) ->  | I190: =IF(I186="","",IF(VLOOKUP(I186,漢字書き!$A$2:$N$502,7,0)=0,"",VLOOKUP(I186,漢字書き!$A$2:$N$502,7,0))) ->  | J190: =IF(J186="","",IF(VLOOKUP(J186,漢字書き!$A$2:$N$502,7,0)=0,"",VLOOKUP(J186,漢字書き!$A$2:$N$502,7,0))) ->  | K190: =IF(K186="","",IF(VLOOKUP(K186,漢字読み!$A$2:$O$502,7,0)=0,"",VLOOKUP(K186,漢字読み!$A$2:$O$502,7,0))) ->  | L190: =IF(L186="","",IF(VLOOKUP(L186,漢字読み!$A$2:$O$502,7,0)=0,"",VLOOKUP(L186,漢字読み!$A$2:$O$502,7,0))) -> する | M190: =IF(M186="","",IF(VLOOKUP(M186,漢字読み!$A$2:$O$502,7,0)=0,"",VLOOKUP(M186,漢字読み!$A$2:$O$502,7,0))) ->  | N190: =IF(N186="","",IF(VLOOKUP(N186,漢字読み!$A$2:$O$502,7,0)=0,"",VLOOKUP(N186,漢字読み!$A$2:$O$502,7,0))) ->  | O190: =IF(O186="","",IF(VLOOKUP(O186,漢字読み!$A$2:$O$502,7,0)=0,"",VLOOKUP(O186,漢字読み!$A$2:$O$502,7,0))) -> す | P190: =IF(P186="","",IF(VLOOKUP(P186,漢字読み!$A$2:$O$502,7,0)=0,"",VLOOKUP(P186,漢字読み!$A$2:$O$502,7,0))) -> ける | Q190: =IF(Q186="","",IF(VLOOKUP(Q186,漢字読み!$A$2:$O$502,7,0)=0,"",VLOOKUP(Q186,漢字読み!$A$2:$O$502,7,0))) ->  | R190: =IF(R186="","",IF(VLOOKUP(R186,漢字読み!$A$2:$O$502,7,0)=0,"",VLOOKUP(R186,漢字読み!$A$2:$O$502,7,0))) ->  | S190: =IF(S186="","",IF(VLOOKUP(S186,漢字読み!$A$2:$O$502,7,0)=0,"",VLOOKUP(S186,漢字読み!$A$2:$O$502,7,0))) ->  | T190: =IF(T186="","",IF(VLOOKUP(T186,漢字読み!$A$2:$O$502,7,0)=0,"",VLOOKUP(T186,漢字読み!$A$2:$O$502,7,0))) ->  | W190: 和歌山県教育委員会
A191: =A181 -> 121 | B191: =B181 -> 128 | C191: =C181 -> 106 | D191: =D181 -> 91 | E191: =E181 -> 22 | F191: =F181 -> 17 | G191: =G181 -> 131 | H191: =H181 -> 209 | I191: =I181 -> 9 | J191: =J181 -> 207 | K191: =K181 -> 43 | L191: =L181 -> 45 | M191: =M181 -> 206 | N191: =N181 -> 71 | O191: =O181 -> 93 | P191: =P181 -> 148 | Q191: =Q181 -> 98 | R191: =R181 -> 31 | S191: =S181 -> 76 | T191: =T181 -> 13
A192: ⑳ | B192: ⑲ | C192: ⑱ | D192: ⑰ | E192: ⑯ | F192: ⑮ | G192: ⑭ | H192: ⑬ | I192: ⑫ | J192: ⑪ | K192: ⑩ | L192: ⑨ | M192: ⑧ | N192: ⑦ | O192: ⑥ | P192: ⑤ | Q192: ④ | R192: ③ | S192: ② | T192: ① | U192: 次の［ ］の部分の漢字には読みがなをひらがなで書き、カタカナは漢字に直しなさい。 | V192: 11 | W192: 「漢字の博士検定試験」練習問題
A193: =IF(A191="","",VLOOKUP(A191,漢字書き!$A$2:$N$506,6,0)) -> ［ラクヨウ］のきせつ | B193: =IF(B191="","",VLOOKUP(B191,漢字書き!$A$2:$N$506,6,0)) -> ［ラッカ］した所 | C193: =IF(C191="","",VLOOKUP(C191,漢字書き!$A$2:$N$506,6,0)) -> ［クスリ］を飲む | D193: =IF(D191="","",VLOOKUP(D191,漢字書き!$A$2:$N$506,6,0)) -> かぜ［ギミ］になっている | E193: =IF(E191="","",VLOOKUP(E191,漢字書き!$A$2:$N$506,6,0)) -> ［ニバイ］の量になる | F193: =IF(F191="","",VLOOKUP(F191,漢字書き!$A$2:$N$506,6,0)) -> ［デンパ］がとどく | G193: =IF(G191="","",VLOOKUP(G191,漢字書き!$A$2:$N$506,6,0)) -> 川の［カリュウ］ | H193: =IF(H191="","",VLOOKUP(H191,漢字書き!$A$2:$N$506,6,0)) -> 強く［ネガ］う | I193: =IF(I191="","",VLOOKUP(I191,漢字書き!$A$2:$N$506,6,0)) -> ［ウンドウ］会に出る | J193: =IF(J191="","",VLOOKUP(J191,漢字書き!$A$2:$N$506,6,0)) -> ［カンキャク］のはく手 | K193: =IF(K191="","",VLOOKUP(K191,漢字読み!$A$2:$O$506,6,0)) -> ［筆者］の考え | L193: =IF(L191="","",VLOOKUP(L191,漢字読み!$A$2:$O$506,6,0)) -> ［筆］を使う | M193: =IF(M191="","",VLOOKUP(M191,漢字読み!$A$2:$O$506,6,0)) -> ［食器］をあらう | N193: =IF(N191="","",VLOOKUP(N191,漢字読み!$A$2:$O$506,6,0)) -> 人間は［平等］だ | O193: =IF(O191="","",VLOOKUP(O191,漢字読み!$A$2:$O$506,6,0)) -> ［問］いに答える | P193: =IF(P191="","",VLOOKUP(P191,漢字読み!$A$2:$O$506,6,0)) -> それは［名案］だ | Q193: =IF(Q191="","",VLOOKUP(Q191,漢字読み!$A$2:$O$506,6,0)) -> ［役者］になりたい | R193: =IF(R191="","",VLOOKUP(R191,漢字読み!$A$2:$O$506,6,0)) -> [坂道]を下る | S193: =IF(S191="","",VLOOKUP(S191,漢字読み!$A$2:$O$506,6,0)) -> ［返答］を待つ | T193: =IF(T191="","",VLOOKUP(T191,漢字読み!$A$2:$O$506,6,0)) -> ［農家］の庭先 | V193: 級
A194: =IF(A$11="","",VLOOKUP(A191,漢字書き!$A$2:$O$506,8,0)) -> 落葉 | B194: =IF(B$11="","",VLOOKUP(B191,漢字書き!$A$2:$O$506,8,0)) -> 落下 | C194: =IF(C$11="","",VLOOKUP(C191,漢字書き!$A$2:$O$506,8,0)) -> 薬 | D194: =IF(D$11="","",VLOOKUP(D191,漢字書き!$A$2:$O$506,8,0)) -> 気味 | E194: =IF(E$11="","",VLOOKUP(E191,漢字書き!$A$2:$O$506,8,0)) -> 二倍 | F194: =IF(F$11="","",VLOOKUP(F191,漢字書き!$A$2:$O$506,8,0)) -> 電波 | G194: =IF(G$11="","",VLOOKUP(G191,漢字書き!$A$2:$O$506,8,0)) -> 下流 | H194: =IF(H$11="","",VLOOKUP(H191,漢字書き!$A$2:$O$506,8,0)) -> 願 | I194: =IF(I$11="","",VLOOKUP(I191,漢字書き!$A$2:$O$506,8,0)) -> 運動 | J194: =IF(J$11="","",VLOOKUP(J191,漢字書き!$A$2:$O$506,8,0)) -> 観客 | K194: =IF(K$11="","",VLOOKUP(K191,漢字読み!$A$2:$O$506,8,0)) -> ひっしゃ | L194: =IF(L$11="","",VLOOKUP(L191,漢字読み!$A$2:$O$506,8,0)) -> ふで | M194: =IF(M$11="","",VLOOKUP(M191,漢字読み!$A$2:$O$506,8,0)) -> しょっき | N194: =IF(N$11="","",VLOOKUP(N191,漢字読み!$A$2:$O$506,8,0)) -> びょうどう | O194: =IF(O$11="","",VLOOKUP(O191,漢字読み!$A$2:$O$506,8,0)) -> と | P194: =IF(P$11="","",VLOOKUP(P191,漢字読み!$A$2:$O$506,8,0)) -> めいあん | Q194: =IF(Q$11="","",VLOOKUP(Q191,漢字読み!$A$2:$O$506,8,0)) -> やくしゃ | R194: =IF(R$11="","",VLOOKUP(R191,漢字読み!$A$2:$O$506,8,0)) -> さかみち | S194: =IF(S$11="","",VLOOKUP(S191,漢字読み!$A$2:$O$506,8,0)) -> へんとう | T194: =IF(T$11="","",VLOOKUP(T191,漢字読み!$A$2:$O$506,8,0)) -> のうか | V194: 名前
A195: =IF(A191="","",IF(VLOOKUP(A191,漢字書き!$A$2:$N$502,7,0)=0,"",VLOOKUP(A191,漢字書き!$A$2:$N$502,7,0))) ->  | B195: =IF(B191="","",IF(VLOOKUP(B191,漢字書き!$A$2:$N$502,7,0)=0,"",VLOOKUP(B191,漢字書き!$A$2:$N$502,7,0))) -> した | C195: =IF(C191="","",IF(VLOOKUP(C191,漢字書き!$A$2:$N$502,7,0)=0,"",VLOOKUP(C191,漢字書き!$A$2:$N$502,7,0))) ->  | D195: =IF(D191="","",IF(VLOOKUP(D191,漢字書き!$A$2:$N$502,7,0)=0,"",VLOOKUP(D191,漢字書き!$A$2:$N$502,7,0))) ->  | E195: =IF(E191="","",IF(VLOOKUP(E191,漢字書き!$A$2:$N$502,7,0)=0,"",VLOOKUP(E191,漢字書き!$A$2:$N$502,7,0))) ->  | F195: =IF(F191="","",IF(VLOOKUP(F191,漢字書き!$A$2:$N$502,7,0)=0,"",VLOOKUP(F191,漢字書き!$A$2:$N$502,7,0))) ->  | G195: =IF(G191="","",IF(VLOOKUP(G191,漢字書き!$A$2:$N$502,7,0)=0,"",VLOOKUP(G191,漢字書き!$A$2:$N$502,7,0))) ->  | H195: =IF(H191="","",IF(VLOOKUP(H191,漢字書き!$A$2:$N$502,7,0)=0,"",VLOOKUP(H191,漢字書き!$A$2:$N$502,7,0))) -> う | I195: =IF(I191="","",IF(VLOOKUP(I191,漢字書き!$A$2:$N$502,7,0)=0,"",VLOOKUP(I191,漢字書き!$A$2:$N$502,7,0))) -> 会 | J195: =IF(J191="","",IF(VLOOKUP(J191,漢字書き!$A$2:$N$502,7,0)=0,"",VLOOKUP(J191,漢字書き!$A$2:$N$502,7,0))) ->  | K195: =IF(K191="","",IF(VLOOKUP(K191,漢字読み!$A$2:$O$502,7,0)=0,"",VLOOKUP(K191,漢字読み!$A$2:$O$502,7,0))) ->  | L195: =IF(L191="","",IF(VLOOKUP(L191,漢字読み!$A$2:$O$502,7,0)=0,"",VLOOKUP(L191,漢字読み!$A$2:$O$502,7,0))) ->  | M195: =IF(M191="","",IF(VLOOKUP(M191,漢字読み!$A$2:$O$502,7,0)=0,"",VLOOKUP(M191,漢字読み!$A$2:$O$502,7,0))) ->  | N195: =IF(N191="","",IF(VLOOKUP(N191,漢字読み!$A$2:$O$502,7,0)=0,"",VLOOKUP(N191,漢字読み!$A$2:$O$502,7,0))) ->  | O195: =IF(O191="","",IF(VLOOKUP(O191,漢字読み!$A$2:$O$502,7,0)=0,"",VLOOKUP(O191,漢字読み!$A$2:$O$502,7,0))) -> い | P195: =IF(P191="","",IF(VLOOKUP(P191,漢字読み!$A$2:$O$502,7,0)=0,"",VLOOKUP(P191,漢字読み!$A$2:$O$502,7,0))) ->  | Q195: =IF(Q191="","",IF(VLOOKUP(Q191,漢字読み!$A$2:$O$502,7,0)=0,"",VLOOKUP(Q191,漢字読み!$A$2:$O$502,7,0))) ->  | R195: =IF(R191="","",IF(VLOOKUP(R191,漢字読み!$A$2:$O$502,7,0)=0,"",VLOOKUP(R191,漢字読み!$A$2:$O$502,7,0))) ->  | S195: =IF(S191="","",IF(VLOOKUP(S191,漢字読み!$A$2:$O$502,7,0)=0,"",VLOOKUP(S191,漢字読み!$A$2:$O$502,7,0))) ->  | T195: =IF(T191="","",IF(VLOOKUP(T191,漢字読み!$A$2:$O$502,7,0)=0,"",VLOOKUP(T191,漢字読み!$A$2:$O$502,7,0))) ->  | W195: 和歌山県教育委員会
A196: =A186 -> 196 | B196: =B186 -> 79 | C196: =C186 -> 97 | D196: =D186 -> 3 | E196: =E186 -> 201 | F196: =F186 -> 61 | G196: =G186 -> 123 | H196: =H186 -> 99 | I196: =I186 -> 160 | J196: =J186 -> 120 | K196: =K186 -> 211 | L196: =L186 -> 4 | M196: =M186 -> 46 | N196: =N186 -> 155 | O196: =O186 -> 172 | P196: =P186 -> 60 | Q196: =Q186 -> 203 | R196: =R186 -> 162 | S196: =S186 -> 154 | T196: =T186 -> 12
A197: ⑳ | B197: ⑲ | C197: ⑱ | D197: ⑰ | E197: ⑯ | F197: ⑮ | G197: ⑭ | H197: ⑬ | I197: ⑫ | J197: ⑪ | K197: ⑩ | L197: ⑨ | M197: ⑧ | N197: ⑦ | O197: ⑥ | P197: ⑤ | Q197: ④ | R197: ③ | S197: ② | T197: ① | U197: 次の［ ］の部分の漢字には読みがなをひらがなで書き、カタカナは漢字に直しなさい。 | V197: 11 | W197: 「漢字の博士検定試験」練習問題
A198: =IF(A196="","",VLOOKUP(A196,漢字書き!$A$2:$N$506,6,0)) -> 目を［サ］ます | B198: =IF(B196="","",VLOOKUP(B196,漢字書き!$A$2:$N$506,6,0)) -> ［ヘイワ］な世の中 | C198: =IF(C196="","",VLOOKUP(C196,漢字書き!$A$2:$N$506,6,0)) -> テレビの［ガメン］ | D198: =IF(D196="","",VLOOKUP(D196,漢字書き!$A$2:$N$506,6,0)) -> ［トザン］列車に乗る | E198: =IF(E196="","",VLOOKUP(E196,漢字書き!$A$2:$N$506,6,0)) -> ［クダ］に水を通す | F198: =IF(F196="","",VLOOKUP(F196,漢字書き!$A$2:$N$506,6,0)) -> ［ジョウヒン］な母親 | G198: =IF(G196="","",VLOOKUP(G196,漢字書き!$A$2:$N$506,6,0)) -> 木の［ハ］をひろう | H198: =IF(H196="","",VLOOKUP(H196,漢字書き!$A$2:$N$506,6,0)) -> ［モンダイ］になる | I198: =IF(I196="","",VLOOKUP(I196,漢字書き!$A$2:$N$506,6,0)) -> ［ジョウイ］のせいせき | J198: =IF(J196="","",VLOOKUP(J196,漢字書き!$A$2:$N$506,6,0)) -> ［タイヘイヨウ］にうかぶ島 | K198: =IF(K196="","",VLOOKUP(K196,漢字読み!$A$2:$O$506,6,0)) -> 火山が有名な［熊本県］ | L198: =IF(L196="","",VLOOKUP(L196,漢字読み!$A$2:$O$506,6,0)) -> 朝早く［登校］する | M198: =IF(M196="","",VLOOKUP(M196,漢字読み!$A$2:$O$506,6,0)) -> ［流氷］が動く | N198: =IF(N196="","",VLOOKUP(N196,漢字読み!$A$2:$O$506,6,0)) -> ［愛媛県］に行く | O198: =IF(O196="","",VLOOKUP(O196,漢字読み!$A$2:$O$506,6,0)) -> せきにんを［課］す | P198: =IF(P196="","",VLOOKUP(P196,漢字読み!$A$2:$O$506,6,0)) -> じゃんけんで［負］ける | Q198: =IF(Q196="","",VLOOKUP(Q196,漢字読み!$A$2:$O$506,6,0)) -> 日本の［国旗］ | R198: =IF(R196="","",VLOOKUP(R196,漢字読み!$A$2:$O$506,6,0)) -> ［岩塩］をくだく | S198: =IF(S196="","",VLOOKUP(S196,漢字読み!$A$2:$O$506,6,0)) -> 十の［位］ | T198: =IF(T196="","",VLOOKUP(T196,漢字読み!$A$2:$O$506,6,0)) -> [童心]にかえる | V198: 級
A199: =IF(A$16="","",VLOOKUP(A196,漢字書き!$A$2:$O$506,8,0)) -> 覚 | B199: =IF(B$16="","",VLOOKUP(B196,漢字書き!$A$2:$O$506,8,0)) -> 平和 | C199: =IF(C$16="","",VLOOKUP(C196,漢字書き!$A$2:$O$506,8,0)) -> 画面 | D199: =IF(D$16="","",VLOOKUP(D196,漢字書き!$A$2:$O$506,8,0)) -> 登山 | E199: =IF(E$16="","",VLOOKUP(E196,漢字書き!$A$2:$O$506,8,0)) -> 管 | F199: =IF(F$16="","",VLOOKUP(F196,漢字書き!$A$2:$O$506,8,0)) -> 上品 | G199: =IF(G$16="","",VLOOKUP(G196,漢字書き!$A$2:$O$506,8,0)) -> 葉 | H199: =IF(H$16="","",VLOOKUP(H196,漢字書き!$A$2:$O$506,8,0)) -> 問題 | I199: =IF(I$16="","",VLOOKUP(I196,漢字書き!$A$2:$O$506,8,0)) -> 上位 | J199: =IF(J$16="","",VLOOKUP(J196,漢字書き!$A$2:$O$506,8,0)) -> 太平洋 | K199: =IF(K$16="","",VLOOKUP(K196,漢字読み!$A$2:$O$506,8,0)) -> くまもとけん | L199: =IF(L$16="","",VLOOKUP(L196,漢字読み!$A$2:$O$506,8,0)) -> とうこう | M199: =IF(M$16="","",VLOOKUP(M196,漢字読み!$A$2:$O$506,8,0)) -> りゅうひょう | N199: =IF(N$16="","",VLOOKUP(N196,漢字読み!$A$2:$O$506,8,0)) -> えひめけん | O199: =IF(O$16="","",VLOOKUP(O196,漢字読み!$A$2:$O$506,8,0)) -> か | P199: =IF(P$16="","",VLOOKUP(P196,漢字読み!$A$2:$O$506,8,0)) -> ま | Q199: =IF(Q$16="","",VLOOKUP(Q196,漢字読み!$A$2:$O$506,8,0)) -> こっき | R199: =IF(R$16="","",VLOOKUP(R196,漢字読み!$A$2:$O$506,8,0)) -> がんえん | S199: =IF(S$16="","",VLOOKUP(S196,漢字読み!$A$2:$O$506,8,0)) -> くらい | T199: =IF(T$16="","",VLOOKUP(T196,漢字読み!$A$2:$O$506,8,0)) -> どうしん | V199: 名前
A200: =IF(A196="","",IF(VLOOKUP(A196,漢字書き!$A$2:$N$502,7,0)=0,"",VLOOKUP(A196,漢字書き!$A$2:$N$502,7,0))) -> ます | B200: =IF(B196="","",IF(VLOOKUP(B196,漢字書き!$A$2:$N$502,7,0)=0,"",VLOOKUP(B196,漢字書き!$A$2:$N$502,7,0))) -> な | C200: =IF(C196="","",IF(VLOOKUP(C196,漢字書き!$A$2:$N$502,7,0)=0,"",VLOOKUP(C196,漢字書き!$A$2:$N$502,7,0))) ->  | D200: =IF(D196="","",IF(VLOOKUP(D196,漢字書き!$A$2:$N$502,7,0)=0,"",VLOOKUP(D196,漢字書き!$A$2:$N$502,7,0))) ->  | E200: =IF(E196="","",IF(VLOOKUP(E196,漢字書き!$A$2:$N$502,7,0)=0,"",VLOOKUP(E196,漢字書き!$A$2:$N$502,7,0))) ->  | F200: =IF(F196="","",IF(VLOOKUP(F196,漢字書き!$A$2:$N$502,7,0)=0,"",VLOOKUP(F196,漢字書き!$A$2:$N$502,7,0))) -> な | G200: =IF(G196="","",IF(VLOOKUP(G196,漢字書き!$A$2:$N$502,7,0)=0,"",VLOOKUP(G196,漢字書き!$A$2:$N$502,7,0))) ->  | H200: =IF(H196="","",IF(VLOOKUP(H196,漢字書き!$A$2:$N$502,7,0)=0,"",VLOOKUP(H196,漢字書き!$A$2:$N$502,7,0))) ->  | I200: =IF(I196="","",IF(VLOOKUP(I196,漢字書き!$A$2:$N$502,7,0)=0,"",VLOOKUP(I196,漢字書き!$A$2:$N$502,7,0))) ->  | J200: =IF(J196="","",IF(VLOOKUP(J196,漢字書き!$A$2:$N$502,7,0)=0,"",VLOOKUP(J196,漢字書き!$A$2:$N$502,7,0))) ->  | K200: =IF(K196="","",IF(VLOOKUP(K196,漢字読み!$A$2:$O$502,7,0)=0,"",VLOOKUP(K196,漢字読み!$A$2:$O$502,7,0))) ->  | L200: =IF(L196="","",IF(VLOOKUP(L196,漢字読み!$A$2:$O$502,7,0)=0,"",VLOOKUP(L196,漢字読み!$A$2:$O$502,7,0))) -> する | M200: =IF(M196="","",IF(VLOOKUP(M196,漢字読み!$A$2:$O$502,7,0)=0,"",VLOOKUP(M196,漢字読み!$A$2:$O$502,7,0))) ->  | N200: =IF(N196="","",IF(VLOOKUP(N196,漢字読み!$A$2:$O$502,7,0)=0,"",VLOOKUP(N196,漢字読み!$A$2:$O$502,7,0))) ->  | O200: =IF(O196="","",IF(VLOOKUP(O196,漢字読み!$A$2:$O$502,7,0)=0,"",VLOOKUP(O196,漢字読み!$A$2:$O$502,7,0))) -> す | P200: =IF(P196="","",IF(VLOOKUP(P196,漢字読み!$A$2:$O$502,7,0)=0,"",VLOOKUP(P196,漢字読み!$A$2:$O$502,7,0))) -> ける | Q200: =IF(Q196="","",IF(VLOOKUP(Q196,漢字読み!$A$2:$O$502,7,0)=0,"",VLOOKUP(Q196,漢字読み!$A$2:$O$502,7,0))) ->  | R200: =IF(R196="","",IF(VLOOKUP(R196,漢字読み!$A$2:$O$502,7,0)=0,"",VLOOKUP(R196,漢字読み!$A$2:$O$502,7,0))) ->  | S200: =IF(S196="","",IF(VLOOKUP(S196,漢字読み!$A$2:$O$502,7,0)=0,"",VLOOKUP(S196,漢字読み!$A$2:$O$502,7,0))) ->  | T200: =IF(T196="","",IF(VLOOKUP(T196,漢字読み!$A$2:$O$502,7,0)=0,"",VLOOKUP(T196,漢字読み!$A$2:$O$502,7,0))) ->  | W200: 和歌山県教育委員会
... 220 more rows

Sheet 漢字読み
A1: 通し番号 | B1: 問題番号 | C1: 漢字 | D1: 読み | E1: 音訓 | F1: 問題 | G1: 送り仮名 | H1: 読み方
A2: 1 | B2: 1 | C2: 湯 | D2: トウ | E2: 1 | F2: ねっ［湯］に気をつける | H2: とう
A3: 2 | B3: 1 | C3: 湯 | D3: トウ | E3: 2 | F3: ［湯］に水をまぜる | H3: ゆ
A4: 3 | B4: 1 | C4: 湯 | D4: トウ | E4: 2 | F4: ふろの［湯］を入れる | H4: ゆ
A5: 4 | B5: 2 | C5: 登 | D5: トウ | E5: 1 | F5: 朝早く［登校］する | G5: する | H5: とうこう
A6: 5 | B6: 2 | C6: 登 | D6: トウ | E6: 1 | F6: ［登山］列車に乗る | H6: とざん
A7: 6 | B7: 2 | C7: 登 | D7: トウ | E7: 2 | F7: 山に［登］る | G7: る | H7: のぼ
A8: 7 | B8: 3 | C8: 等 | D8: トウ | E8: 1 | F8: ［平等］に分ける | H8: びょうどう
A9: 8 | B9: 3 | C9: 等 | D9: トウ | E9: 2 | F9: 三人に［等］しく分ける | G9: しく | H9: ひと
A10: 9 | B10: 4 | C10: 動 | D10: ドウ | E10: 1 | F10: ［動作］がはやい | H10: どうさ
A11: 10 | B11: 4 | C11: 動 | D11: ドウ | E11: 2 | F11: すばやい［動］き | G11: き | H11: うご
A12: 11 | B12: 5 | C12: 童 | D12: ドウ | E12: 1 | F12: ［童話］を読む | H12: どうわ
A13: 12 | B13: 5 | C13: 童 | D13: ドウ | E13: 1 | F13: [童心]にかえる | H13: どうしん
A14: 13 | B14: 6 | C14: 農 | D14: ノウ | E14: 1 | F14: ［農家］の庭先 | H14: のうか
A15: 14 | B15: 6 | C15: 農 | D15: ノウ | E15: 1 | F15: ［農業］を始める | H15: のうぎょう
A16: 15 | B16: 7 | C16: 波 | D16: ハ | E16: 1 | F16: ［波長］が合う | H16: はちょう
A17: 16 | B17: 7 | C17: 波 | D17: ハ | E17: 1 | F17: ［音波］を計算する | H17: おんぱ
A18: 17 | B18: 7 | C18: 波 | D18: ハ | E18: 2 | F18: ［波］の音が聞こえる | H18: なみ
A19: 18 | B19: 7 | C19: 波 | D19: ハ | E19: 2 | F19: 高い［波］に気をつける | H19: なみ
A20: 19 | B20: 8 | C20: 配 | D20: ハイ | E20: 1 | F20: 新聞を［配達］する | G20: する | H20: はいたつ
A21: 20 | B21: 8 | C21: 配 | D21: ハイ | E21: 2 | F21: 気を［配］る | G21: る | H21: くば
A22: 21 | B22: 9 | C22: 倍 | D22: バイ | E22: 1 | F22: 長さを［倍］にする | H22: ばい
A23: 22 | B23: 9 | C23: 倍 | D23: バイ | E23: 1 | F23: ［倍速］でさい生する | H23: ばいそく
A24: 23 | B24: 10 | C24: 箱 | D24: はこ | E24: 2 | F24: ［箱］を開ける | H24: はこ
A25: 24 | B25: 10 | C25: 箱 | D25: はこ | E25: 2 | F25: ノアの［箱船］ | H25: はこぶね
A26: 25 | B26: 11 | C26: 畑 | D26: はた | E26: 2 | F26: ［田畑］をたがやす | H26: たはた
A27: 26 | B27: 11 | C27: 畑 | D27: はた | E27: 2 | F27: ［畑］で野さいをつくる | H27: はたけ
A28: 27 | B28: 12 | C28: 発 | D28: ハツ | E28: 1 | F28: 元気に声を［発］する | G28: する | H28: はっ
A29: 28 | B29: 12 | C29: 発 | D29: ハツ | E29: 1 | F29: 考えを［発表］する | G29: する | H29: はっぴょう
A30: 29 | B30: 13 | C30: 反 | D30: ハン | E30: 1 | F30: 右の［反対］は左 | H30: はんたい
A31: 30 | B31: 13 | C31: 反 | D31: ハン | E31: 2 | F31: むねを［反］らす | G31: らす | H31: そ
A32: 31 | B32: 14 | C32: 坂 | D32: ハン | E32: 2 | F32: [坂道]を下る | H32: さかみち
A33: 32 | B33: 14 | C33: 坂 | D33: ハン | E33: 2 | F33: 急な［坂］にさしかかる | H33: さか
A34: 33 | B34: 15 | C34: 板 | D34: ハン | E34: 1 | F34: ［鉄板］でやいた肉 | H34: てっぱん
A35: 34 | B35: 15 | C35: 板 | D35: ハン | E35: 2 | F35: かんなで［板］をけずる | H35: いた
A36: 35 | B36: 16 | C36: 皮 | D36: ヒ | E36: 1 | F36: ［表皮］をけずる | H36: ひょうひ
A37: 36 | B37: 16 | C37: 皮 | D37: ヒ | E37: 2 | F37: ［毛皮］を着る | H37: けがわ
A38: 37 | B38: 17 | C38: 悲 | D38: ヒ | E38: 1 | F38: ［悲鳴］がきこえる | H38: ひめい
A39: 38 | B39: 17 | C39: 悲 | D39: ヒ | E39: 2 | F39: ［悲］しい日々 | G39: しい | H39: かな
A40: 39 | B40: 18 | C40: 美 | D40: ビ | E40: 1 | F40: 有終の［美］をかざる | H40: び
A41: 40 | B41: 18 | C41: 美 | D41: ビ | E41: 2 | F41: ［美］しいけしき | G41: しい | H41: うつく
A42: 41 | B42: 19 | C42: 鼻 | D42: ビ | E42: 2 | F42: [鼻水]が出る | H42: はなみず
A43: 42 | B43: 19 | C43: 鼻 | D43: ビ | E43: 2 | F43: ［鼻］がつまる | H43: はな
A44: 43 | B44: 20 | C44: 筆 | D44: ヒツ | E44: 1 | F44: ［筆者］の考え | H44: ひっしゃ
A45: 44 | B45: 20 | C45: 筆 | D45: ヒツ | E45: 1 | F45: ［毛筆］を使う | H45: もうひつ
A46: 45 | B46: 20 | C46: 筆 | D46: ヒツ | E46: 2 | F46: ［筆］を使う | H46: ふで
A47: 46 | B47: 21 | C47: 氷 | D47: ヒョウ | E47: 1 | F47: ［流氷］が動く | H47: りゅうひょう
A48: 47 | B48: 21 | C48: 氷 | D48: ヒョウ | E48: 2 | F48: ［氷］がとける | H48: こおり
A49: 48 | B49: 22 | C49: 表 | D49: ヒョウ | E49: 1 | F49: 当番［表］を見る | H49: ひょう
A50: 49 | B50: 22 | C50: 表 | D50: ヒョウ | E50: 2 | F50: うらと［表］をたしかめる | H50: おもて
A51: 50 | B51: 22 | C51: 表 | D51: ヒョウ | E51: 2 | F51: 図やグラフで［表］す | G51: す | H51: あらわ
A52: 51 | B52: 23 | C52: 秒 | D52: ビョウ | E52: 1 | F52: 一分は六十［秒］ | H52: びょう
A53: 52 | B53: 24 | C53: 病 | D53: ビョウ | E53: 1 | F53: ［病気］をなおす | H53: びょうき
A54: 53 | B54: 24 | C54: 病 | D54: ビョウ | E54: 1 | F54: ［病院］でみてもらう | H54: びょういん
A55: 54 | B55: 24 | C55: 病 | D55: ビョウ | E55: 2 | F55: ［病］にたおれる | H55: やまい
A56: 55 | B56: 25 | C56: 品 | D56: ヒン | E56: 1 | F56: 車の［部品］ | H56: ぶひん
A57: 56 | B57: 25 | C57: 品 | D57: ヒン | E57: 1 | F57: ［上品］なおばあさん | G57: な | H57: じょうひん
A58: 57 | B58: 25 | C58: 品 | D58: ヒン | E58: 2 | F58: かれは［手品］がうまい | H58: てじな
A59: 58 | B59: 26 | C59: 負 | D59: フ | E59: 1 | F59: ［勝負］にかける | H59: しょうぶ
A60: 59 | B60: 26 | C60: 負 | D60: フ | E60: 2 | F60: リュックをせ［負］う | G60: う | H60: お
A61: 60 | B61: 26 | C61: 負 | D61: フ | E61: 2 | F61: じゃんけんで［負］ける | G61: ける | H61: ま
A62: 61 | B62: 27 | C62: 部 | D62: ブ | E62: 1 | F62: ［全部］食べる | H62: ぜんぶ
A63: 62 | B63: 27 | C63: 部 | D63: ブ | E63: 1 | F63: ［部活動］がさかんだ | H63: ぶかつどう
A64: 63 | B64: 28 | C64: 服 | D64: フク | E64: 1 | F64: ［服］を着る | H64: ふく
A65: 64 | B65: 28 | C65: 服 | D65: フク | E65: 1 | F65: 薬を［服用］する | G65: する | H65: ふくよう
A66: 65 | B66: 29 | C66: 福 | D66: フク | E66: 1 | F66: ［七福神］をまつる | H66: しちふくじん
A67: 66 | B67: 29 | C67: 福 | D67: フク | E67: 1 | F67: ［福］をよぶ鳥 | H67: ふく
A68: 67 | B68: 30 | C68: 物 | D68: ブツ | E68: 1 | F68: ［荷物］を運ぶ | H68: にもつ
A69: 68 | B69: 30 | C69: 物 | D69: ブツ | E69: 1 | F69: わからない［物体］ | H69: ぶったい
A70: 69 | B70: 30 | C70: 物 | D70: ブツ | E70: 2 | F70: ［品物］をならべる | H70: しなもの
A71: 70 | B71: 31 | C71: 平 | D71: ヘイ | E71: 1 | F71: 世界の［平和］ | H71: へいわ
A72: 71 | B72: 31 | C72: 平 | D72: ヘイ | E72: 1 | F72: 人間は［平等］だ | H72: びょうどう
A73: 72 | B73: 31 | C73: 平 | D73: ヘイ | E73: 1 | F73: ［平日］のダイヤ | H73: へいじつ
A74: 73 | B74: 31 | C74: 平 | D74: ヘイ | E74: 2 | F74: ［平］らな土地 | G74: らな | H74: たい
A75: 74 | B75: 31 | C75: 平 | D75: ヘイ | E75: 2 | F75: ［平］たい皿を買う | G75: たい | H75: ひら
A76: 75 | B76: 32 | C76: 返 | D76: ヘン | E76: 1 | F76: 気持ちのよい［返事］ | H76: へんじ
A77: 76 | B77: 32 | C77: 返 | D77: ヘン | E77: 1 | F77: ［返答］を待つ | H77: へんとう
A78: 77 | B78: 32 | C78: 返 | D78: ヘン | E78: 2 | F78: ［返］すことばがない | G78: す | H78: かえ
A79: 78 | B79: 33 | C79: 勉 | D79: ベン | E79: 1 | F79: ［勉強］がすきだ | H79: べんきょう
A80: 79 | B80: 33 | C80: 勉 | D80: ベン | E80: 1 | F80: ［勉学］にはげむ | H80: べんがく
A81: 80 | B81: 34 | C81: 放 | D81: ホウ | E81: 1 | F81: 魚を［放流］する | G81: する | H81: ほうりゅう
A82: 81 | B82: 34 | C82: 放 | D82: ホウ | E82: 2 | F82: ち魚を［放］す | G82: す | H82: はな
A83: 82 | B83: 34 | C83: 放 | D83: ホウ | E83: 2 | F83: ボールを［放］る | G83: る | H83: ほう
A84: 83 | B84: 35 | C84: 味 | D84: ミ | E84: 1 | F84: ことばの［意味］ | H84: いみ
A85: 84 | B85: 35 | C85: 味 | D85: ミ | E85: 2 | F85: ［塩味］が強い | H85: しおあじ
A86: 85 | B86: 35 | C86: 味 | D86: ミ | E86: 2 | F86: ゆっくり［味］わう | G86: わう | H86: あじ
A87: 86 | B87: 36 | C87: 命 | D87: メイ | E87: 1 | F87: ［命題］をあたえられる | H87: めいだい
A88: 87 | B88: 36 | C88: 命 | D88: メイ | E88: 2 | F88: ［命］の重さ | H88: いのち
A89: 88 | B89: 37 | C89: 面 | D89: メン | E89: 1 | F89: 月の［表面］の写真 | H89: ひょうめん
A90: 89 | B90: 37 | C90: 面 | D90: メン | E90: 1 | F90: ［顔面］がこわばる | H90: がんめん
A91: 90 | B91: 37 | C91: 面 | D91: メン | E91: 1 | F91: [面]と向かって言う | H91: めん
A92: 91 | B92: 37 | C92: 面 | D92: メン | E92: 1 | F92: こんなんに[直面]する | G92: する | H92: ちょくめん
A93: 92 | B93: 38 | C93: 問 | D93: モン | E93: 1 | F93: ［問答］をする | H93: もんどう
A94: 93 | B94: 38 | C94: 問 | D94: モン | E94: 2 | F94: ［問］いに答える | G94: い | H94: と
A95: 94 | B95: 38 | C95: 問 | D95: モン | E95: 2 | F95: ［問］いつめる | G95: い | H95: と
A96: 95 | B96: 38 | C96: 問 | D96: モン | E96: 2 | F96: 魚のおろし［問屋］ | H96: どんや
A97: 96 | B97: 39 | C97: 役 | D97: ヤク | E97: 1 | F97: ［役場］につとめる | H97: やくば
A98: 97 | B98: 39 | C98: 役 | D98: ヤク | E98: 1 | F98: ［役目］を果たす | H98: やくめ
A99: 98 | B99: 39 | C99: 役 | D99: ヤク | E99: 1 | F99: ［役者］になりたい | H99: やくしゃ
A100: 99 | B100: 40 | C100: 薬 | D100: ヤク | E100: 1 | F100: ［薬局］に立ちよる | H100: やっきょく
A101: 100 | B101: 40 | C101: 薬 | D101: ヤク | E101: 2 | F101: ［目薬］をさす | H101: めぐすり
A102: 101 | B102: 41 | C102: 由 | D102: ユ | E102: 1 | F102: ［自由］をうばわれる | H102: じゆう
A103: 102 | B103: 41 | C103: 由 | D103: ユ | E103: 1 | F103: ［由来］をたずねる | H103: ゆらい
A104: 103 | B104: 42 | C104: 油 | D104: ユ | E104: 1 | F104: ［油］がもれる | H104: あぶら
A105: 104 | B105: 42 | C105: 油 | D105: ユ | E105: 2 | F105: 火に［油］をそそぐ | H105: あぶら
A106: 105 | B106: 42 | C106: 油 | D106: ユ | E106: 1 | F106: ［油田］を見つける | H106: ゆでん
A107: 106 | B107: 43 | C107: 有 | D107: ユウ | E107: 1 | F107: タバコは［有害］だ | G107: だ | H107: ゆうがい
A108: 107 | B108: 43 | C108: 有 | D108: ユウ | E108: 1 | F108: 温せんで［有名］な土地 | G108: な | H108: ゆうめい
A109: 108 | B109: 43 | C109: 有 | D109: ユウ | E109: 2 | F109: ［有］るかないか調べる | G109: るか | H109: あ
A110: 109 | B110: 44 | C110: 遊 | D110: ユウ | E110: 1 | F110: ［遊園地］がにぎわう | H110: ゆうえんち
A111: 110 | B111: 44 | C111: 遊 | D111: ユウ | E111: 2 | F111: ［遊］びに行こう | G111: び | H111: あそ
A112: 111 | B112: 45 | C112: 予 | D112: ヨ | E112: 1 | F112: 夏休みの［予定］ | H112: よてい
A113: 112 | B113: 46 | C113: 羊 | D113: ヨウ | E113: 1 | F113: ［羊毛］のセーター | H113: ようもう
A114: 113 | B114: 46 | C114: 羊 | D114: ヨウ | E114: 2 | F114: ［子羊］のむれ | H114: こひつじ
A115: 114 | B115: 46 | C115: 羊 | D115: ヨウ | E115: 2 | F115: かわいい［羊］ | H115: ひつじ
A116: 115 | B116: 47 | C116: 洋 | D116: ヨウ | E116: 1 | F116: ［西洋］の文化 | H116: せいよう
A117: 116 | B117: 47 | C117: 洋 | D117: ヨウ | E117: 1 | F117: ［洋服］を買いにいく | H117: ようふく
A118: 117 | B118: 47 | C118: 洋 | D118: ヨウ | E118: 1 | F118: ［大西洋］の海 | H118: たいせいよう
A119: 118 | B119: 48 | C119: 葉 | D119: ヨウ | E119: 1 | F119: ［落葉］する木 | G119: する | H119: らくよう
A120: 119 | B120: 48 | C120: 葉 | D120: ヨウ | E120: 2 | F120: モミジの［葉］のような手 | H120: は
A121: 120 | B121: 49 | C121: 陽 | D121: ヨウ | E121: 1 | F121: 気持ちのいい［陽気］ | H121: ようき
A122: 121 | B122: 49 | C122: 陽 | D122: ヨウ | E122: 1 | F122: ［陽光］がさす | H122: ようこう
A123: 122 | B123: 49 | C123: 陽 | D123: ヨウ | E123: 1 | F123: ［太陽］の光 | H123: たいよう
A124: 123 | B124: 50 | C124: 様 | D124: ヨウ | E124: 1 | F124: ［様子］がわからない | H124: ようす
A125: 124 | B125: 50 | C125: 様 | D125: ヨウ | E125: 2 | F125: 田中［様］からお電話です | H125: さま
A126: 125 | B126: 50 | C126: 様 | D126: ヨウ | E126: 2 | F126: ［様］になっている | H126: さま
A127: 126 | B127: 51 | C127: 落 | D127: ラク | E127: 1 | F127: ［落石］に注意 | H127: らくせき
A128: 127 | B128: 51 | C128: 落 | D128: ラク | E128: 1 | F128: ［落下］さんでおりる | G128: さん | H128: らっか
A129: 128 | B129: 51 | C129: 落 | D129: ラク | E129: 2 | F129: よごれを［落］とす | G129: とす | H129: お
A130: 129 | B130: 52 | C130: 流 | D130: リュウ | E130: 1 | F130: ［上流］の水 | H130: じょうりゅう
A131: 130 | B131: 52 | C131: 流 | D131: リュウ | E131: 2 | F131: 水に［流］す | G131: す | H131: なが
A132: 131 | B132: 52 | C132: 流 | D132: リュウ | E132: 2 | F132: ［流］れがかわる | G132: れ | H132: なが
A133: 132 | B133: 53 | C133: 旅 | D133: リョ | E133: 1 | F133: ［旅行］に行く | H133: りょこう
A134: 133 | B134: 53 | C134: 旅 | D134: リョ | E134: 1 | F134: 海外［旅行］ | H134: りょこう
A135: 134 | B135: 53 | C135: 旅 | D135: リョ | E135: 2 | F135: 一人で［旅］をする | H135: たび
A136: 135 | B136: 54 | C136: 両 | D136: リョウ | E136: 1 | F136: ［両手］でつかむ | H136: りょうて
A137: 136 | B137: 55 | C137: 緑 | D137: リョク | E137: 1 | F137: ［緑地］公園に行く | H137: りょくち
A138: 137 | B138: 55 | C138: 緑 | D138: リョク | E138: 2 | F138: 山の［緑］がきれいだ | H138: みどり
A139: 138 | B139: 56 | C139: 礼 | D139: レイ | E139: 1 | F139: ［礼］を言う | H139: れい
A140: 139 | B140: 57 | C140: 列 | D140: レツ | E140: 1 | F140: ［列］にくわわる | H140: れつ
A141: 140 | B141: 58 | C141: 練 | D141: レン | E141: 1 | F141: 水泳の［練習］ | H141: れんしゅう
A142: 141 | B142: 58 | C142: 練 | D142: レン | E142: 2 | F142: 考えを［練］る | G142: る | H142: ね
A143: 142 | B143: 59 | C143: 路 | D143: ロ | E143: 1 | F143: 汽車の［線路］ | H143: せんろ
A144: 143 | B144: 59 | C144: 路 | D144: ロ | E144: 1 | F144: ［路線］が変わる | H144: ろせん
A145: 144 | B145: 59 | C145: 路 | D145: ロ | E145: 1 | F145: ［道路］を工事する | H145: どうろ
A146: 145 | B146: 60 | C146: 和 | D146: ワ | E146: 1 | F146: ［平和］な国 | G146: な | H146: へいわ
A147: 146 | B147: 60 | C147: 和 | D147: ワ | E147: 1 | F147: [和紙]でつつむ | H147: わし
A148: 147 | B148: 61 | C148: 愛 | D148: アイ | E148: 1 | F148: 家族から［愛］される | G148: される | H148: あい
A149: 148 | B149: 62 | C149: 案 | D149: アン | E149: 1 | F149: それは［名案］だ | H149: めいあん
A150: 149 | B150: 62 | C150: 案 | D150: アン | E150: 1 | F150: ［案外］むずかしい | H150: あんがい
A151: 150 | B151: 63 | C151: 以 | D151: イ | E151: 1 | F151: 百万人［以上］の都市 | H151: いじょう
A152: 151 | B152: 64 | C152: 衣 | D152: イ | E152: 1 | F152: ［衣服］をたたむ | H152: いふく
A153: 152 | B153: 64 | C153: 衣 | D153: イ | E153: 1 | F153: [白衣]を着る | H153: はくい
A154: 153 | B154: 65 | C154: 位 | D154: イ | E154: 1 | F154: ［品位］が問われる | H154: ひんい
A155: 154 | B155: 65 | C155: 位 | D155: イ | E155: 2 | F155: 十の［位］ | H155: くらい
A156: 155 | B156: 66 | C156: 媛 | D156: エン | E156: 1 | F156: ［愛媛県］に行く | H156: えひめけん
A157: 156 | B157: 67 | C157: 岡 | D157: オカ | E157: 1 | F157: ［岡山県］に帰る | H157: おかやまけん
A158: 157 | B158: 68 | C158: 印 | D158: イン | E158: 1 | F158: ［印字］された文 | G158: された | H158: いんじ
A159: 158 | B159: 68 | C159: 印 | D159: イン | E159: 2 | F159: ［印］をつける | H159: しるし
A160: 159 | B160: 69 | C160: 英 | D160: エイ | E160: 1 | F160: ［英語］の時間 | H160: えいご
A161: 160 | B161: 70 | C161: 栄 | D161: エイ | E161: 2 | F161: 国が［栄］える | G161: える | H161: さか
A162: 161 | B162: 70 | C162: 栄 | D162: エイ | E162: 1 | F162: ［栄］ようをとる | G162: よう | H162: えい
A163: 162 | B163: 71 | C163: 塩 | D163: エン | E163: 1 | F163: ［岩塩］をくだく | H163: がんえん
A164: 163 | B164: 71 | C164: 塩 | D164: エン | E164: 2 | F164: てきに［塩］をおくる | H164: しお
A165: 164 | B165: 72 | C165: 億 | D165: オク | E165: 1 | F165: ［億万］長者になる | G165: 長者 | H165: おくまん
A166: 165 | B166: 73 | C166: 加 | D166: カ | E166: 2 | F166: スープに塩を［加］える | G166: える | H166: くわ
A167: 166 | B167: 73 | C167: 加 | D167: カ | E167: 1 | F167: ルールを［追加］する | G167: する | H167: ついか
A168: 167 | B168: 74 | C168: 果 | D168: カ | E168: 1 | F168: ［果実］のめぐみ | H168: かじつ
A169: 168 | B169: 74 | C169: 果 | D169: カ | E169: 2 | F169: やくそくを［果］たす | G169: たす | H169: は
A170: 169 | B170: 75 | C170: 貨 | D170: カ | E170: 1 | F170: ［貨物］を運ぶ列車 | H170: かもつ
A171: 170 | B171: 75 | C171: 貨 | D171: カ | E171: 1 | F171: ［銀貨］をもらう | H171: ぎんか
A172: 171 | B172: 76 | C172: 課 | D172: カ | E172: 1 | F172: ［課長］の仕事 | H172: かちょう
A173: 172 | B173: 76 | C173: 課 | D173: カ | E173: 1 | F173: せきにんを［課］す | G173: す | H173: か
A174: 173 | B174: 77 | C174: 芽 | D174: ガ | E174: 1 | F174: ［発芽］げん米を食べる | H174: はつが
A175: 174 | B175: 77 | C175: 芽 | D175: ガ | E175: 2 | F175: 木の［芽］がふくらむ | H175: め
A176: 175 | B176: 77 | C176: 芽 | D176: ガ | E176: 2 | F176: 草木が［芽生］える | G176: える | H176: めば
A177: 176 | B177: 78 | C177: 改 | D177: カイ | E177: 1 | F177: 悪人が［改心］する | G177: する | H177: かいしん
A178: 177 | B178: 78 | C178: 改 | D178: カイ | E178: 2 | F178: 心を［改］める | G178: める | H178: あらた
A179: 178 | B179: 79 | C179: 械 | D179: カイ | E179: 1 | F179: ［機械］を使う | H179: きかい
A180: 179 | B180: 80 | C180: 害 | D180: ガイ | E180: 1 | F180: タバコは［有害］だ | G180: だ | H180: ゆうがい
A181: 180 | B181: 81 | C181: 街 | D181: ガイ | E181: 1 | F181: ［街道］ぞいの店 | G181: ぞい | H181: かいどう
A182: 181 | B182: 81 | C182: 街 | D182: ガイ | E182: 2 | F182: ［街］の光が消える | H182: まち
A183: 182 | B183: 82 | C183: 各 | D183: カク | E183: 1 | F183: ［各自］で考える | H183: かくじ
A184: 183 | B184: 83 | C184: 覚 | D184: カク | E184: 1 | F184: ［自覚］がない | H184: じかく
A185: 184 | B185: 83 | C185: 覚 | D185: カク | E185: 2 | F185: ［目覚］まし時計が鳴る | G185: まし | H185: めざ
A186: 185 | B186: 83 | C186: 覚 | D186: カク | E186: 2 | F186: かけ算を［覚］える | G186: える | H186: おぼ
A187: 186 | B187: 84 | C187: 完 | D187: カン | E187: 1 | F187: ［完全］に仕上げる | H187: かんぜん
A188: 187 | B188: 85 | C188: 官 | D188: カン | E188: 1 | F188: けいさつ［官］になる | H188: かん
A189: 188 | B189: 85 | C189: 官 | D189: カン | E189: 1 | F189: 兄は［外交官］だ | H189: がいこうかん
A190: 189 | B190: 86 | C190: 管 | D190: カン | E190: 1 | F190: 体には［血管］がある | H190: けっかん
A191: 190 | B191: 86 | C191: 管 | D191: カン | E191: 2 | F191: ゴムの［管］ | H191: くだ
A192: 191 | B192: 87 | C192: 関 | D192: カン | E192: 1 | F192: 自分は［関係］ない | G192: ない | H192: かんけい
A193: 192 | B193: 87 | C193: 関 | D193: カン | E193: 2 | F193: ［関所］を通る | H193: せきしょ
A194: 193 | B194: 87 | C194: 関 | D194: カン | E194: 2 | F194: ［関］わりをさける | G194: わり | H194: かか
A195: 194 | B195: 88 | C195: 観 | D195: カン | E195: 1 | F195: ［観光］地をおとずれる | G195: 地 | H195: かんこう
A196: 195 | B196: 88 | C196: 観 | D196: カン | E196: 1 | F196: たくさんの［観客］がいる | H196: かんきゃく
A197: 196 | B197: 89 | C197: 願 | D197: ガン | E197: 1 | F197: ［悲願］の一勝 | H197: ひがん
A198: 197 | B198: 89 | C198: 願 | D198: ガン | E198: 2 | F198: ［願］いがかなう | G198: い | H198: ねが
A199: 198 | B199: 90 | C199: 希 | D199: キ | E199: 1 | F199: 平和を［希求］する | G199: する | H199: ききゅう
A200: 199 | B200: 91 | C200: 季 | D200: キ | E200: 1 | F200: 春夏秋冬の［季］せつ | G200: せつ | H200: き
... 14 more rows

Sheet 漢字書き
A1: 通し番号 | B1: 問題番号 | C1: 漢字 | D1: 読み | E1: 音訓 | F1: 問題 | G1: 送り仮名 | H1: 漢字
A2: 1 | B2: 1 | C2: 湯 | D2: トウ | E2: 1 | F2: ねっ［トウ］をかける | H2: 湯
A3: 2 | B3: 1 | C3: 湯 | D3: トウ | E3: 2 | F3: ［ユ］をわかす | H3: 湯
A4: 3 | B4: 2 | C4: 登 | D4: ト | E4: 1 | F4: ［トザン］列車に乗る | H4: 登山
A5: 4 | B5: 2 | C5: 登 | D5: ト | E5: 1 | F5: ［トウコウ］中の学生 | G5: 中 | H5: 登校
A6: 5 | B6: 2 | C6: 登 | D6: ト | E6: 2 | F6: 山に［ノボ］る | G6: る | H6: 登
A7: 6 | B7: 3 | C7: 等 | D7: トウ | E7: 1 | F7: ケーキを［トウブン］する | G7: する | H7: 等分
A8: 7 | B8: 3 | C8: 等 | D8: トウ | E8: 1 | F8: ［ビョウドウ］にあつかう | G8: に | H8: 平等
A9: 8 | B9: 3 | C9: 等 | D9: トウ | E9: 2 | F9: ［ヒト］しい長さ | G9: しい | H9: 等
A10: 9 | B10: 4 | C10: 動 | D10: ドウ | E10: 1 | F10: ［ウンドウ］会に出る | G10: 会 | H10: 運動
A11: 10 | B11: 4 | C11: 動 | D11: ドウ | E11: 1 | F11: ゆっくりした［ドウサ］ | H11: 動作
A12: 11 | B12: 4 | C12: 動 | D12: ドウ | E12: 2 | F12: 気持ちが［ウゴ］く | G12: く | H12: 動
A13: 12 | B13: 4 | C13: 動 | D13: ドウ | E13: 2 | F13: 気持ちを［ウゴ］かす | G13: かす | H13: 動
A14: 13 | B14: 5 | C14: 童 | D14: ドウ | E14: 1 | F14: 日本の［ドウワ］を読む | H14: 童話
A15: 14 | B15: 5 | C15: 童 | D15: ドウ | E15: 1 | F15: ［ドウ］ようを歌う | G15: よう | H15: 童
A16: 15 | B16: 5 | C16: 童 | D16: ドウ | E16: 1 | F16: じ[ドウ]会の役員 | G16: 会 | H16: 童
A17: 16 | B17: 6 | C17: 農 | D17: ノウ | E17: 1 | F17: ［ノウカ］の庭先 | H17: 農家
A18: 17 | B18: 7 | C18: 波 | D18: ハ | E18: 1 | F18: ［デンパ］がとどく | H18: 電波
A19: 18 | B19: 7 | C19: 波 | D19: ハ | E19: 2 | F19: ［ナミ］が高い海 | H19: 波
A20: 19 | B20: 8 | C20: 配 | D20: ハイ | E20: 1 | F20: 新聞を［ハイタツ］する | G20: する | H20: 配達
A21: 20 | B21: 8 | C21: 配 | D21: ハイ | E21: 1 | F21: ［シンパイ］をかける | H21: 心配
A22: 21 | B22: 8 | C22: 配 | D22: ハイ | E22: 2 | F22: きゅう食を［クバ］る | G22: る | H22: 配
A23: 22 | B23: 9 | C23: 倍 | D23: バイ | E23: 1 | F23: ［ニバイ］の量になる | H23: 二倍
A24: 23 | B24: 10 | C24: 箱 | D24: はこ | E24: 2 | F24: ごみ［バコ］を用意する | H24: 箱
A25: 24 | B25: 10 | C25: 箱 | D25: はこ | E25: 2 | F25: 大きな［ハコ］ | H25: 箱
A26: 25 | B26: 11 | C26: 畑 | D26: はたけ | E26: 2 | F26: ［ハタケ］の土 | H26: 畑
A27: 26 | B27: 11 | C27: 畑 | D27: はたけ | E27: 2 | F27: ［タハタ］をたがやす | H27: 田畑
A28: 27 | B28: 12 | C28: 発 | D28: ハツ | E28: 1 | F28: ［ハッセイ］練習 | H28: 発声
A29: 28 | B29: 12 | C29: 発 | D29: ハツ | E29: 1 | F29: 新星を[ハッケン]する | G29: する | H29: 発見
A30: 29 | B30: 12 | C30: 発 | D30: ハツ | E30: 1 | F30: ［ハッピョウ］会で歌を歌う | G30: 会 | H30: 発表
A31: 30 | B31: 13 | C31: 反 | D31: ハン | E31: 1 | F31: ［ハンタイ］の意見 | H31: 反対
A32: 31 | B32: 13 | C32: 反 | D32: ハン | E32: 1 | F32: 親に［ハンパツ］する | G32: する | H32: 反発
A33: 32 | B33: 13 | C33: 反 | D33: ハン | E33: 2 | F33: 体を［ソ］らす | G33: らす | H33: 反
A34: 33 | B34: 13 | C34: 反 | D34: ハン | E34: 2 | F34: 表紙が［ソ］る | G34: る | H34: 反
A35: 34 | B35: 14 | C35: 坂 | D35: バン | E35: 2 | F35: 急な［サカ］ | H35: 坂
A36: 35 | B36: 14 | C36: 坂 | D36: バン | E36: 2 | F36: ［サカミチ］を歩く | H36: 坂道
A37: 36 | B37: 15 | C37: 板 | D37: バン | E37: 1 | F37: ［コクバン］に書く | H37: 黒板
A38: 37 | B38: 15 | C38: 板 | D38: バン | E38: 1 | F38: ［テッパン］で肉をやく | H38: 鉄板
A39: 38 | B39: 15 | C39: 板 | D39: バン | E39: 2 | F39: 立て［イタ］に水で話す | H39: 板
A40: 39 | B40: 16 | C40: 皮 | D40: ヒ | E40: 1 | F40: 日にやけた［ヒ］ふ | G40: ふ | H40: 皮
A41: 40 | B41: 16 | C41: 皮 | D41: ヒ | E41: 2 | F41: りんごの［カワ］をむく | H41: 皮
A42: 41 | B42: 16 | C42: 皮 | D42: ヒ | E42: 2 | F42: ［ケガワ］のコート | H42: 毛皮
A43: 42 | B43: 16 | C43: 皮 | D43: ヒ | E43: 2 | F43: みかんの［カワ］ | H43: 皮
A44: 43 | B44: 17 | C44: 悲 | D44: ヒ | E44: 1 | F44: ［ヒガン］のゆう勝 | H44: 悲願
A45: 44 | B45: 17 | C45: 悲 | D45: ヒ | E45: 2 | F45: ［カナ］しい気持ちになる | G45: しい | H45: 悲
A46: 45 | B46: 18 | C46: 美 | D46: ビ | E46: 1 | F46: 母は［ビジン］だ | G46: だ | H46: 美人
A47: 46 | B47: 18 | C47: 美 | D47: ビ | E47: 2 | F47: 夕日が［ウツク］しい | G47: しい | H47: 美
A48: 47 | B48: 19 | C48: 鼻 | D48: ビ | E48: 2 | F48: ［ハナミズ］が出る | H48: 鼻水
A49: 48 | B49: 20 | C49: 筆 | D49: ヒツ | E49: 1 | F49: 本の［ヒッシャ］ | H49: 筆者
A50: 49 | B50: 20 | C50: 筆 | D50: ヒツ | E50: 1 | F50: ［モウヒツ］の時間 | H50: 毛筆
A51: 50 | B51: 20 | C51: 筆 | D51: ヒツ | E51: 2 | F51: ［フデ］を使って書く | H51: 筆者
A52: 51 | B52: 21 | C52: 氷 | D52: ヒョウ | E52: 1 | F52: ［ヒョウザン］の一角 | H52: 氷山
A53: 52 | B53: 21 | C53: 氷 | D53: ヒョウ | E53: 2 | F53: つめたい［コオリ］ | H53: 氷
A54: 53 | B54: 21 | C54: 氷 | D54: ヒョウ | E54: 2 | F54: ［コオリ］がとける | H54: 氷
A55: 54 | B55: 22 | C55: 表 | D55: ヒョウ | E55: 1 | F55: ［ヒョウシ］の写真 | H55: 表紙
A56: 55 | B56: 22 | C56: 表 | D56: ヒョウ | E56: 2 | F56: ［オモテ］とうら | H56: 表
A57: 56 | B57: 23 | C57: 秒 | D57: ビョウ | E57: 1 | F57: 時計の［ビョウ］しん | G57: しん | H57: 秒
A58: 57 | B58: 23 | C58: 秒 | D58: ビョウ | E58: 1 | F58: ［ジュウゴビョウ］の動画 | H58: 十五秒
A59: 58 | B59: 24 | C59: 病 | D59: ビョウ | E59: 1 | F59: ［ビョウイン］に通う | H59: 病院
A60: 59 | B60: 24 | C60: 病 | D60: ビョウ | E60: 1 | F60: [ビョウジャク]な人 | G60: な | H60: 病弱
A61: 60 | B61: 24 | C61: 病 | D61: ビョウ | E61: 2 | F61: ［ヤマイ］は気から | H61: 病
A62: 61 | B62: 25 | C62: 品 | D62: ヒン | E62: 1 | F62: ［ジョウヒン］な母親 | G62: な | H62: 上品
A63: 62 | B63: 25 | C63: 品 | D63: ヒン | E63: 1 | F63: ［ヒン］がよい人 | H63: 品
A64: 63 | B64: 25 | C64: 品 | D64: ヒン | E64: 2 | F64: ［テジナ］は楽しい | H64: 手品
A65: 64 | B65: 26 | C65: 負 | D65: フ | E65: 1 | F65: ［ショウブ］がつかない | H65: 勝負
A66: 65 | B66: 26 | C66: 負 | D66: フ | E66: 2 | F66: けがを［オ］う | G66: う | H66: 負
A67: 66 | B67: 26 | C67: 負 | D67: フ | E67: 2 | F67: 妹に［マ］かされる | G67: かされる | H67: 負
A68: 67 | B68: 26 | C68: 負 | D68: フ | E68: 2 | F68: 勝ったり［マ］けたりする | G68: け | H68: 負
A69: 68 | B69: 27 | C69: 部 | D69: ブ | E69: 1 | F69: ［ブシツ］をそうじする | H69: 部室
A70: 69 | B70: 27 | C70: 部 | D70: ブ | E70: 1 | F70: かれのよわい［ブブン］ | H70: 部分
A71: 70 | B71: 27 | C71: 部 | D71: ブ | E71: 1 | F71: ［ヤキュウブ］の先ぱい | H71: 野球部
A72: 71 | B72: 28 | C72: 服 | D72: フク | E72: 1 | F72: ［イフク］をそろえる | H72: 衣服
A73: 72 | B73: 28 | C73: 服 | D73: フク | E73: 1 | F73: 薬を［フクヨウ］する | G73: する | H73: 服用
A74: 73 | B74: 29 | C74: 福 | D74: フク | E74: 1 | F74: ［フク］は内おには外 | H74: 福
A75: 74 | B75: 29 | C75: 福 | D75: フク | E75: 1 | F75: ［コウフク］の王子 | H75: 幸福
A76: 75 | B76: 30 | C76: 物 | D76: ブツ | E76: 1 | F76: たくさんの［ケンブツ］人 | G76: 人 | H76: 見物
A77: 76 | B77: 30 | C77: 物 | D77: ブツ | E77: 1 | F77: ［ニモツ］を運ぶ | H77: 荷物
A78: 77 | B78: 30 | C78: 物 | D78: ブツ | E78: 2 | F78: ［シナモノ］をならべる | H78: 品物
A79: 78 | B79: 30 | C79: 物 | D79: ブツ | E79: 2 | F79: ［モノガタリ］を読む | H79: 物語
A80: 79 | B80: 31 | C80: 平 | D80: ヘイ | E80: 1 | F80: ［ヘイワ］な世の中 | G80: な | H80: 平和
A81: 80 | B81: 31 | C81: 平 | D81: ヘイ | E81: 1 | F81: ［ビョウドウ］にあつかう | G81: に | H81: 平等
A82: 81 | B82: 31 | C82: 平 | D82: ヘイ | E82: 2 | F82: ［タイ］らな所におく | G82: らな | H82: 平
A83: 82 | B83: 31 | C83: 平 | D83: ヘイ | E83: 2 | F83: 手の［ヒラ］を見つめる | H83: 平
A84: 83 | B84: 32 | C84: 返 | D84: ヘン | E84: 1 | F84: 手紙の［ヘンジ］を書く | H84: 返事
A85: 84 | B85: 32 | C85: 返 | D85: ヘン | E85: 2 | F85: 本を［カエ］す | G85: す | H85: 返
A86: 85 | B86: 33 | C86: 勉 | D86: ベン | E86: 1 | F86: よく［ベンキョウ］する | G86: する | H86: 勉強
A87: 86 | B87: 34 | C87: 放 | D87: ホウ | E87: 1 | F87: 魚を［ホウリュウ］する | G87: する | H87: 放流
A88: 87 | B88: 34 | C88: 放 | D88: ホウ | E88: 1 | F88: 学校を［カイホウ］する | G88: する | H88: 開放
A89: 88 | B89: 34 | C89: 放 | D89: ホウ | E89: 2 | F89: ［ハナ］しがいにする | G89: しがい | H89: 放
A90: 89 | B90: 34 | C90: 放 | D90: ホウ | E90: 2 | F90: 牛を［ハナ］す | G90: す | H90: 放
A91: 90 | B91: 34 | C91: 放 | D91: ホウ | E91: 2 | F91: ［ホウ］っておけない物 | G91: って | H91: 放
A92: 91 | B92: 35 | C92: 味 | D92: ミ | E92: 1 | F92: かぜ［ギミ］になっている | H92: 気味
A93: 92 | B93: 35 | C93: 味 | D93: ミ | E93: 2 | F93: うすい［アジ］ | H93: 味
A94: 93 | B94: 35 | C94: 味 | D94: ミ | E94: 2 | F94: ［アジ］のこい食べ物 | H94: 味
A95: 94 | B95: 36 | C95: 命 | D95: メイ | E95: 1 | F95: ［セイメイ］を守る | H95: 生命
A96: 95 | B96: 36 | C96: 命 | D96: メイ | E96: 2 | F96: ［イノチ］を大切にする | H96: 命
A97: 96 | B97: 36 | C97: 命 | D97: メイ | E97: 2 | F97: ［イノチ］の重さ | H97: 命
A98: 97 | B98: 37 | C98: 面 | D98: メン | E98: 1 | F98: テレビの［ガメン］ | H98: 画面
A99: 98 | B99: 37 | C99: 面 | D99: メン | E99: 1 | F99: [ジメン]を強くける | H99: 地面
A100: 99 | B100: 38 | C100: 問 | D100: モン | E100: 1 | F100: ［モンダイ］になる | H100: 問題
A101: 100 | B101: 38 | C101: 問 | D101: モン | E101: 2 | F101: かれに［ト］う | G101: う | H101: 問
A102: 101 | B102: 38 | C102: 問 | D102: モン | E102: 2 | F102: 商品の［トンヤ］ | H102: 問屋
A103: 102 | B103: 39 | C103: 役 | D103: ヤク | E103: 1 | F103: クラスの［ヤクイン］になる | H103: 役員
A104: 103 | B104: 39 | C104: 役 | D104: ヤク | E104: 1 | F104: ［ヤクシャ］になる | H104: 役者
A105: 104 | B105: 39 | C105: 役 | D105: ヤク | E105: 1 | F105: ［ヤクバ］につとめる | H105: 役場
A106: 105 | B106: 40 | C106: 薬 | D106: ヤク | E106: 1 | F106: ［ヤクソウ］をさがす | H106: 薬草
A107: 106 | B107: 40 | C107: 薬 | D107: ヤク | E107: 2 | F107: ［クスリ］を飲む | H107: 薬
A108: 107 | B108: 41 | C108: 由 | D108: ユ | E108: 1 | F108: ［ユライ］をたずねる | H108: 由来
A109: 108 | B109: 41 | C109: 由 | D109: ユ | E109: 1 | F109: ［ジユウ］な生活 | G109: な | H109: 自由
A110: 109 | B110: 42 | C110: 油 | D110: ユ | E110: 1 | F110: 石炭と［セキユ］ | H110: 石油
A111: 110 | B111: 42 | C111: 油 | D111: ユ | E111: 2 | F111: ［アブラ］がこぼれる | H111: 油
A112: 111 | B112: 43 | C112: 有 | D112: ユウ | E112: 1 | F112: ［ユウリョク］なせん手 | G112: な | H112: 優良
A113: 112 | B113: 43 | C113: 有 | D113: ユウ | E113: 2 | F113: ［ア］るかないか調べる | G113: る | H113: 有
A114: 113 | B114: 44 | C114: 遊 | D114: ユウ | E114: 1 | F114: ［ユウエンチ］に行く | H114: 遊園地
A115: 114 | B115: 44 | C115: 遊 | D115: ユウ | E115: 2 | F115: 友だちと［アソ］ぶ | G115: ぶ | H115: 遊
A116: 115 | B116: 44 | C116: 遊 | D116: ユウ | E116: 2 | F116: 昔の［アソ］び | G116: び | H116: 遊
A117: 116 | B117: 45 | C117: 予 | D117: ヨ | E117: 1 | F117: 十年後を［ヨゲン］する | G117: する | H117: 予言
A118: 117 | B118: 45 | C118: 予 | D118: ヨ | E118: 1 | F118: ［ヨテイ］がある | H118: 予定
A119: 118 | B119: 46 | C119: 羊 | D119: ヨウ | E119: 1 | F119: ［ヨウモウ］のセーター | H119: 羊毛
A120: 119 | B120: 46 | C120: 羊 | D120: ヨウ | E120: 2 | F120: ［ヒツジ］のむれ | H120: 羊
A121: 120 | B121: 47 | C121: 洋 | D121: ヨウ | E121: 1 | F121: ［タイヘイヨウ］にうかぶ島 | H121: 太平洋
A122: 121 | B122: 48 | C122: 葉 | D122: ヨウ | E122: 1 | F122: ［ラクヨウ］のきせつ | H122: 落葉
A123: 122 | B123: 48 | C123: 葉 | D123: ヨウ | E123: 2 | F123: ［コトバ］を集める | H123: 言葉
A124: 123 | B124: 48 | C124: 葉 | D124: ヨウ | E124: 2 | F124: 木の［ハ］をひろう | H124: 葉
A125: 124 | B125: 49 | C125: 陽 | D125: ヨウ | E125: 1 | F125: 明るい［タイヨウ］ | H125: 太陽
A126: 125 | B126: 49 | C126: 陽 | D126: ヨウ | E126: 1 | F126: ［ヨウキ］なせいかく | G126: な | H126: 陽気
A127: 126 | B127: 50 | C127: 様 | D127: ヨウ | E127: 1 | F127: まわりの［ヨウス］ | H127: 様子
A128: 127 | B128: 50 | C128: 様 | D128: ヨウ | E128: 2 | F128: はだかの［オウサマ］ | H128: 王様
A129: 128 | B129: 51 | C129: 落 | D129: ラク | E129: 1 | F129: ［ラッカ］した所 | G129: した | H129: 落下
A130: 129 | B130: 51 | C130: 落 | D130: ラク | E130: 2 | F130: 水が［オ］ちる | G130: ちる | H130: 落
A131: 130 | B131: 51 | C131: 落 | D131: ラク | E131: 2 | F131: よごれを［オ］とす | G131: とす | H131: 落
A132: 131 | B132: 52 | C132: 流 | D132: リュウ | E132: 1 | F132: 川の［カリュウ］ | H132: 下流
A133: 132 | B133: 52 | C133: 流 | D133: リュウ | E133: 2 | F133: ［ナガ］れの速い川 | G133: れ | H133: 流
A134: 133 | B134: 52 | C134: 流 | D134: リュウ | E134: 2 | F134: 急な［ナガ］れ | G134: れ | H134: 流
A135: 134 | B135: 53 | C135: 旅 | D135: リョ | E135: 1 | F135: ［リョカン］にとまる | H135: 旅館
A136: 135 | B136: 53 | C136: 旅 | D136: リョ | E136: 2 | F136: ［タビ］に出る | H136: 旅
A137: 136 | B137: 54 | C137: 両 | D137: リョウ | E137: 1 | F137: ［リョウホウ］ともほしい | H137: 両方
A138: 137 | B138: 54 | C138: 両 | D138: リョウ | E138: 1 | F138: ［リョウアシ］で立つ | H138: 両足
A139: 138 | B139: 55 | C139: 緑 | D139: リョク | E139: 1 | F139: ［リョクチャ］を飲む | H139: 緑茶
A140: 139 | B140: 55 | C140: 緑 | D140: リョク | E140: 2 | F140: ［ミドリ］の草原 | H140: 緑
A141: 140 | B141: 55 | C141: 緑 | D141: リョク | E141: 2 | F141: ［ミドリ］があざやかだ | H141: 緑
A142: 141 | B142: 56 | C142: 礼 | D142: レイ | E142: 1 | F142: ［レイ］ぎ正しい人 | G142: ぎ | H142: 礼
A143: 142 | B143: 56 | C143: 礼 | D143: レイ | E143: 1 | F143: お［レイ］を言う | H143: 礼
A144: 143 | B144: 57 | C144: 列 | D144: レツ | E144: 1 | F144: ［レッシャ］に乗る | H144: 列車
A145: 144 | B145: 57 | C145: 列 | D145: レツ | E145: 1 | F145: ［レツ］に加わる | H145: 列
A146: 145 | B146: 58 | C146: 練 | D146: レン | E146: 1 | F146: ［レンシュウ］にはげむ | H146: 練習
A147: 146 | B147: 58 | C147: 練 | D147: レン | E147: 1 | F147: ピアノの［レンシュウ］ | H147: 練習
A148: 147 | B148: 58 | C148: 練 | D148: レン | E148: 2 | F148: あんこを［ネ］る | G148: る | H148: 練
A149: 148 | B149: 59 | C149: 路 | D149: ロ | E149: 1 | F149: 汽車の［センロ］ | H149: 線路
A150: 149 | B150: 59 | C150: 路 | D150: ロ | E150: 2 | F150: ［ロジ］うらのお店 | G150: うら | H150: 路地
A151: 150 | B151: 60 | C151: 和 | D151: ワ | E151: 1 | F151: 平安時代の［ワカ］を読む | H151: 和歌
A152: 151 | B152: 60 | C152: 和 | D152: ワ | E152: 1 | F152: [ワショク]をこのむ | H152: 和食
A153: 152 | B153: 60 | C153: 和 | D153: ワ | E153: 1 | F153: [ワカヤマ]市に住む | G153: 市 | H153: 和歌山
A154: 153 | B154: 61 | C154: 愛 | D154: アイ | E154: 1 | F154: ［アイ］とゆう気 | H154: 愛
A155: 154 | B155: 61 | C155: 愛 | D155: アイ | E155: 1 | F155: ［アイチケン］の出身 | H155: 愛知県
A156: 155 | B156: 62 | C156: 案 | D156: アン | E156: 1 | F156: ［アンナイ］する | G156: する | H156: 案内
A157: 156 | B157: 62 | C157: 案 | D157: アン | E157: 1 | F157: みんなで［アン］を出す | H157: 案
A158: 157 | B158: 63 | C158: 以 | D158: イ | E158: 1 | F158: ［イジョウ］で終わりです | H158: 以上
A159: 158 | B159: 64 | C159: 衣 | D159: イ | E159: 1 | F159: ［イフク］を整える | H159: 衣服
A160: 159 | B160: 64 | C160: 衣 | D160: イ | E160: 1 | F160: 夏物の[イ]るい | G160: るい | H160: 衣
A161: 160 | B161: 65 | C161: 位 | D161: イ | E161: 1 | F161: ［ジョウイ］のせいせき | H161: 上位
A162: 161 | B162: 65 | C162: 位 | D162: イ | E162: 2 | F162: ［クライ］をそろえる | H162: 位
A163: 162 | B163: 66 | C163: 媛 | D163: エン | E163: 1 | F163: ［エヒメケン］に行く | H163: 愛媛県
A164: 163 | B164: 67 | C164: 岡 | D164: オカ | E164: 1 | F164: ［オカヤマケン］の出身 | H164: 岡山県
A165: 164 | B165: 67 | C165: 岡 | D165: オカ | E165: 1 | F165: ［フクオカケン］に住む | H165: 福岡県
A166: 165 | B166: 68 | C166: 印 | D166: イン | E166: 1 | F166: ［イン］さつされた文字 | G166: さつ | H166: 印
A167: 166 | B167: 68 | C167: 印 | D167: イン | E167: 2 | F167: ［シルシ］をつける | H167: 印
A168: 167 | B168: 69 | C168: 英 | D168: エイ | E168: 1 | F168: ［エイゴ］を話す | H168: 英語
A169: 168 | B169: 69 | C169: 英 | D169: エイ | E169: 1 | F169: ［エイ］ゆうになる | G169: ゆう | H169: 英
A170: 169 | B170: 70 | C170: 栄 | D170: エイ | E170: 1 | F170: ［エイコウ］のかけ橋 | H170: 栄光
A171: 170 | B171: 70 | C171: 栄 | D171: エイ | E171: 2 | F171: 町が［サカ］える | G171: える | H171: 栄
A172: 171 | B172: 71 | C172: 塩 | D172: エン | E172: 1 | F172: ［エンブン］の取りすぎ | H172: 塩分
A173: 172 | B173: 71 | C173: 塩 | D173: エン | E173: 2 | F173: ［シオアジ］が足りない | H173: 塩味
A174: 173 | B174: 71 | C174: 塩 | D174: エン | E174: 2 | F174: さとうと［シオ］ | H174: 塩
A175: 174 | B175: 72 | C175: 億 | D175: オク | E175: 1 | F175: ［オクマン］長者 | G175: 長者 | H175: 億万
A176: 175 | B176: 72 | C176: 億 | D176: オク | E176: 1 | F176: ［イチオク］の人口 | H176: 一億
A177: 176 | B177: 73 | C177: 加 | D177: カ | E177: 1 | F177: みんなでさん［カ］する | G177: する | H177: 加
A178: 177 | B178: 73 | C178: 加 | D178: カ | E178: 2 | F178: ゲームに［クワ］わる | G178: わる | H178: 加
A179: 178 | B179: 74 | C179: 果 | D179: カ | E179: 1 | F179: ［カジツ］のしゅうかく | H179: 果実
A180: 179 | B180: 74 | C180: 果 | D180: カ | E180: 2 | F180: ［ハ］てしなくつづく | G180: て | H180: 果
A181: 180 | B181: 74 | C181: 果 | D181: カ | E181: 2 | F181: 役わりを［ハ］たす | G181: たす | H181: 果
A182: 181 | B182: 75 | C182: 貨 | D182: カ | E182: 1 | F182: ［カモツ］列車 | H182: 貨物
A183: 182 | B183: 75 | C183: 貨 | D183: カ | E183: 1 | F183: ［キンカ］を手に入れる | H183: 金貨
A184: 183 | B184: 76 | C184: 課 | D184: カ | E184: 1 | F184: ［ホウカ］後のやくそく | G184: 後 | H184: 放課
A185: 184 | B185: 76 | C185: 課 | D185: カ | E185: 1 | F185: ［カダイ］をあたえられる | H185: 課題
A186: 185 | B186: 77 | C186: 芽 | D186: ガ | E186: 1 | F186: たねが［ハツガ］する | G186: する | H186: 発芽
A187: 186 | B187: 77 | C187: 芽 | D187: ガ | E187: 2 | F187: 木の［メ］がふくらむ | H187: 芽
A188: 187 | B188: 78 | C188: 改 | D188: カイ | E188: 1 | F188: 機械を［カイ］りょうする | G188: りょう | H188: 改
A189: 188 | B189: 78 | C189: 改 | D189: カイ | E189: 2 | F189: すなおに［アラタ］める | G189: める | H189: 改
A190: 189 | B190: 78 | C190: 改 | D190: カイ | E190: 2 | F190: 気持ちが［アラタ］まる | G190: まる | H190: 改
A191: 190 | B191: 79 | C191: 械 | D191: カイ | E191: 1 | F191: ［キカイ］をしゅう理する | H191: 機械
A192: 191 | B192: 80 | C192: 害 | D192: ガイ | E192: 1 | F192: ［ガイ］のある食べ物 | H192: 害
A193: 192 | B193: 81 | C193: 街 | D193: ガイ | E193: 1 | F193: 商店［ガイ］を歩く | H193: 街
A194: 193 | B194: 81 | C194: 街 | D194: ガイ | E194: 1 | F194: ［ガイロ］じゅの道 | G194: じゅ | H194: 街路
A195: 194 | B195: 82 | C195: 各 | D195: カク | E195: 1 | F195: 昼食は［カクジ］持ってくる | H195: 各自
A196: 195 | B196: 83 | C196: 覚 | D196: カク | E196: 1 | F196: ［カンカク］がするどい | H196: 感覚
A197: 196 | B197: 83 | C197: 覚 | D197: カク | E197: 2 | F197: 目を［サ］ます | G197: ます | H197: 覚
A198: 197 | B198: 83 | C198: 覚 | D198: カク | E198: 2 | F198: 字を［オボ］える | G198: える | H198: 覚
A199: 198 | B199: 84 | C199: 完 | D199: カン | E199: 1 | F199: ［カンゼン］に仕上げる | H199: 完全
A200: 199 | B200: 85 | C200: 官 | D200: カン | E200: 1 | F200: けいさつ［カン］になる | H200: 官
... 31 more rows

Sheet 関数（読み）
A1: 番号 | B1: ランダム | C1: 順位
A2: 1 | B2: =RAND() -> 0.2725116403 | C2: =RANK(B2,$B$2:$B$214) -> 158
A3: 2 | B3: =RAND() -> 0.9638794829 | C3: =RANK(B3,$B$2:$B$214) -> 5
A4: 3 | B4: 0.6440413641 | C4: 87
A5: 4 | B5: 0.1071024253 | C5: 185
A6: 5 | B6: 0.7328605304 | C6: 65
A7: 6 | B7: 0.6882094228 | C7: 78
A8: 7 | B8: 0.8313843112 | C8: 42
A9: 8 | B9: 0.894766395 | C9: 30
A10: 9 | B10: 0.8457264851 | C10: 37
A11: 10 | B11: 0.1724887845 | C11: 173
A12: 11 | B12: 0.9024270942 | C12: 27
A13: 12 | B13: 0.2092537412 | C13: 165
A14: 13 | B14: 0.3216170077 | C14: 149
A15: 14 | B15: 0.05423421577 | C15: 199
A16: 15 | B16: 0.9143027181 | C16: 22
A17: 16 | B17: 0.9366048616 | C17: 10
A18: 17 | B18: 0.08383026595 | C18: 193
A19: 18 | B19: 0.5374560466 | C19: 106
A20: 19 | B20: 0.7497429853 | C20: 61
A21: 20 | B21: 0.8026076664 | C21: 49
A22: 21 | B22: 0.9254524875 | C22: 18
A23: 22 | B23: 0.4596496598 | C23: 123
A24: 23 | B24: 0.8413769104 | C24: 40
A25: 24 | B25: 0.1315913377 | C25: 181
A26: 25 | B26: 0.6775491079 | C26: 80
A27: 26 | B27: 0.7212643967 | C27: 69
A28: 27 | B28: 0.9824447947 | C28: 2
A29: 28 | B29: 0.9621301576 | C29: 6
A30: 29 | B30: 0.01496906211 | C30: 210
A31: 30 | B31: 0.5067763614 | C31: 111
A32: 31 | B32: 0.06962150035 | C32: 194
A33: 32 | B33: 0.2873319727 | C33: 156
A34: 33 | B34: 0.3043596188 | C34: 153
A35: 34 | B35: 0.791162623 | C35: 53
A36: 35 | B36: 0.9226600493 | C36: 19
A37: 36 | B37: 0.4855186279 | C37: 118
A38: 37 | B38: 0.9277075636 | C38: 15
A39: 38 | B39: 0.4443224101 | C39: 130
A40: 39 | B40: 0.7753261787 | C40: 55
A41: 40 | B41: 0.5591991066 | C41: 104
A42: 41 | B42: 0.7993226964 | C42: 51
A43: 42 | B43: 0.03933504956 | C43: 204
A44: 43 | B44: 0.5939407509 | C44: 92
A45: 44 | B45: 0.9338696177 | C45: 11
A46: 45 | B46: 0.5642447613 | C46: 102
A47: 46 | B47: 0.4306883627 | C47: 134
A48: 47 | B48: 0.0604369615 | C48: 197
A49: 48 | B49: 0.09473334876 | C49: 189
A50: 49 | B50: 0.5056904476 | C50: 112
A51: 50 | B51: 0.9185998606 | C51: 21
A52: 51 | B52: 0.6727304453 | C52: 82
A53: 52 | B53: 0.3294139338 | C53: 147
A54: 53 | B54: 0.3190266052 | C54: 151
A55: 54 | B55: 0.8621477387 | C55: 33
A56: 55 | B56: 0.8446577389 | C56: 38
A57: 56 | B57: 0.2518012937 | C57: 160
A58: 57 | B58: 0.6940055654 | C58: 75
A59: 58 | B59: 0.8985461665 | C59: 28
A60: 59 | B60: 0.2487341347 | C60: 161
A61: 60 | B61: 0.1845220342 | C61: 171
A62: 61 | B62: 0.123257675 | C62: 183
A63: 62 | B63: 0.1633313669 | C63: 177
A64: 63 | B64: 0.9221068121 | C64: 20
A65: 64 | B65: 0.9467564683 | C65: 7
A66: 65 | B66: 0.08812454417 | C66: 192
A67: 66 | B67: =RAND() -> 0.7211915638 | C67: =RANK(B67,$B$2:$B$214) -> 70
A68: 67 | B68: 0.05102449713 | C68: 200
A69: 68 | B69: 0.8617512617 | C69: 34
A70: 69 | B70: 0.5698562113 | C70: 99
A71: 70 | B71: 0.8318995015 | C71: 41
A72: 71 | B72: 0.3885419441 | C72: 139
A73: 72 | B73: 0.5816619097 | C73: 95
A74: 73 | B74: 0.8049545897 | C74: 48
A75: 74 | B75: 0.1314860373 | C75: 182
A76: 75 | B76: 0.7972306642 | C76: 52
A77: 76 | B77: 0.530812117 | C77: 107
A78: 77 | B78: 0.7553608387 | C78: 59
A79: 78 | B79: 0.3453320607 | C79: 144
A80: 79 | B80: 0.9128720163 | C80: 24
A81: 80 | B81: 0.6887196076 | C81: 77
A82: 81 | B82: 0.350587546 | C82: 143
A83: 82 | B83: 0.3765462993 | C83: 141
A84: 83 | B84: 0.6214724891 | C84: 88
A85: 84 | B85: 0.8545254185 | C85: 35
A86: 85 | B86: 0.9125268173 | C86: 25
A87: 86 | B87: 0.7654437986 | C87: 58
A88: 87 | B88: 0.1210738472 | C88: 184
A89: 88 | B89: 0.8519753437 | C89: 36
A90: 89 | B90: 0.4001021767 | C90: 136
A91: 90 | B91: 0.3667806841 | C91: 142
A92: 91 | B92: 0.3297957211 | C92: 146
A93: 92 | B93: 0.2397164671 | C93: 163
A94: 93 | B94: 0.8018979437 | C94: 50
A95: 94 | B95: 0.4340229013 | C95: 133
A96: 95 | B96: 0.05081595193 | C96: 201
A97: 96 | B97: 0.8208940235 | C97: 44
A98: 97 | B98: 0.4561065405 | C98: 126
A99: 98 | B99: 0.1594519942 | C99: 178
A100: 99 | B100: 0.7436012115 | C100: 63
A101: 100 | B101: 0.5763273419 | C101: 97
A102: 101 | B102: 0.2045144438 | C102: 168
A103: 102 | B103: 0.9441143685 | C103: 8
A104: 103 | B104: 0.6156433214 | C104: 89
A105: 104 | B105: 0.611311386 | C105: 90
A106: 105 | B106: 0.7847625205 | C106: 54
A107: 106 | B107: 0.696396183 | C107: 74
A108: 107 | B108: 0.7696808575 | C108: 56
A109: 108 | B109: 0.1388751474 | C109: 180
A110: 109 | B110: 0.3304642649 | C110: 145
A111: 110 | B111: 0.4577748349 | C111: 125
A112: 111 | B112: 0.5152314407 | C112: 108
A113: 112 | B113: 0.3982185572 | C113: 137
A114: 113 | B114: 0.7269823546 | C114: 67
A115: 114 | B115: 0.9279952635 | C115: 14
A116: 115 | B116: 0.4842570226 | C116: 119
A117: 116 | B117: 0.02597186769 | C117: 207
A118: 117 | B118: 0.6987793848 | C118: 73
A119: 118 | B119: 0.5376290287 | C119: 105
A120: 119 | B120: 0.7347970929 | C120: 64
A121: 120 | B121: 0.4979783684 | C121: 114
A122: 121 | B122: 0.476644058 | C122: 120
A123: 122 | B123: 0.0971580145 | C123: 187
A124: 123 | B124: 0.6788048888 | C124: 79
A125: 124 | B125: 0.192532319 | C125: 169
A126: 125 | B126: 0.6728616358 | C126: 81
A127: 126 | B127: 0.652158423 | C127: 84
A128: 127 | B128: 0.5659435877 | C128: 101
A129: 128 | B129: 0.926805894 | C129: 16
A130: 129 | B130: 0.1055828231 | C130: 186
A131: 130 | B131: =RAND() -> 0.487870966 | C131: =RANK(B131,$B$2:$B$214) -> 117
A132: 131 | B132: 0.3914435226 | C132: 138
A133: 132 | B133: 0.4674466807 | C133: 121
A134: 133 | B134: 0.452882486 | C134: 128
A135: 134 | B135: 0.8423019382 | C135: 39
A136: 135 | B136: 0.9261641744 | C136: 17
A137: 136 | B137: 0.06789222093 | C137: 195
A138: 137 | B138: 0.9141124799 | C138: 23
A139: 138 | B139: 0.6471092279 | C139: 86
A140: 139 | B140: 0.3202776735 | C140: 150
A141: 140 | B141: 0.7312516144 | C141: 66
A142: 141 | B142: 0.03182664945 | C142: 205
A143: 142 | B143: 0.059818973 | C143: 198
A144: 143 | B144: 0.2051834326 | C144: 167
A145: 144 | B145: 0.7674872499 | C145: 57
A146: 145 | B146: 0.7121926019 | C146: 72
A147: 146 | B147: 0.2084294172 | C147: 166
A148: 147 | B148: 0.5077440546 | C148: 110
A149: 148 | B149: 0.9087106406 | C149: 26
A150: 149 | B150: 0.5789629653 | C150: 96
A151: 150 | B151: 0.01506079218 | C151: 209
A152: 151 | B152: 0.09110639491 | C152: 191
A153: 152 | B153: 0.04876141441 | C153: 202
A154: 153 | B154: 0.8797318452 | C154: 32
A155: 154 | B155: 0.6508833732 | C155: 85
A156: 155 | B156: 0.1722804661 | C156: 175
A157: 156 | B157: 0.4626630572 | C157: 122
A158: 157 | B158: 0.4486388393 | C158: 129
A159: 158 | B159: 0.005754666419 | C159: 212
A160: 159 | B160: 0.5607686764 | C160: 103
A161: 160 | B161: 0.2758814734 | C161: 157
A162: 161 | B162: 0.1577066326 | C162: 179
A163: 162 | B163: 0.9438896397 | C163: 9
A164: 163 | B164: 0.9998998952 | C164: 1
A165: 164 | B165: 0.06776750069 | C165: 196
A166: 165 | B166: 0.457921307 | C166: 124
A167: 166 | B167: 0.3783404957 | C167: 140
A168: 167 | B168: 0.1916834347 | C168: 170
A169: 168 | B169: 0.8091551655 | C169: 47
A170: 169 | B170: 0.7476538956 | C170: 62
A171: 170 | B171: 0.4887355721 | C171: 116
A172: 171 | B172: 0.8960184582 | C172: 29
A173: 172 | B173: 0.0001194293167 | C173: 213
A174: 173 | B174: 0.5852141215 | C174: 94
A175: 174 | B175: 0.3056618934 | C175: 152
A176: 175 | B176: 0.6035395817 | C176: 91
A177: 176 | B177: 0.9816449781 | C177: 3
A178: 177 | B178: 0.4540059715 | C178: 127
A179: 178 | B179: 0.0950715143 | C179: 188
A180: 179 | B180: 0.5123857489 | C180: 109
A181: 180 | B181: 0.504182329 | C181: 113
A182: 181 | B182: 0.8303969495 | C182: 43
A183: 182 | B183: 0.820290374 | C183: 45
A184: 183 | B184: 0.02748851955 | C184: 206
A185: 184 | B185: 0.7146793829 | C185: 71
A186: 185 | B186: 0.5881655345 | C186: 93
A187: 186 | B187: 0.3257651222 | C187: 148
A188: 187 | B188: 0.5719306314 | C188: 98
A189: 188 | B189: 0.8817760998 | C189: 31
A190: 189 | B190: 0.6887627779 | C190: 76
A191: 190 | B191: 0.9284978834 | C191: 13
A192: 191 | B192: 0.008613260987 | C192: 211
A193: 192 | B193: 0.9768171652 | C193: 4
A194: 193 | B194: 0.8162556858 | C194: 46
A195: 194 | B195: =RAND() -> 0.2906996609 | C195: =RANK(B195,$B$2:$B$214) -> 155
A196: 195 | B196: 0.1733353213 | C196: 172
A197: 196 | B197: 0.7514527519 | C197: 60
A198: 197 | B198: 0.04830990033 | C198: 203
A199: 198 | B199: 0.2462049992 | C199: 162
A200: 199 | B200: 0.3034656786 | C200: 154
... 14 more rows

Sheet 関数（書き）
A1: 番号 | B1: ランダム | C1: 順位
A2: 1 | B2: =RAND() -> 0.2400845433 | C2: =RANK(B2,$B$2:$B$232) -> 179
A3: 2 | B3: =RAND() -> 0.907489118 | C3: =RANK(B3,$B$2:$B$232) -> 20
A4: 3 | B4: 0.4366847493 | C4: 130
A5: 4 | B5: 0.7363084082 | C5: 64
A6: 5 | B6: 0.6291857658 | C6: 89
A7: 6 | B7: 0.3599722141 | C7: 151
A8: 7 | B8: 0.1645396959 | C8: 193
A9: 8 | B9: 0.7978242626 | C9: 43
A10: 9 | B10: 0.6223405879 | C10: 93
A11: 10 | B11: 0.9089607022 | C11: 19
A12: 11 | B12: 0.311998587 | C12: 164
A13: 12 | B13: 0.8784068348 | C13: 26
A14: 13 | B14: 0.3870164088 | C14: 140
A15: 14 | B15: 0.08657416186 | C15: 213
A16: 15 | B16: 0.9269858063 | C16: 14
A17: 16 | B17: 0.8395569615 | C17: 32
A18: 17 | B18: 0.08886392927 | C18: 212
A19: 18 | B19: 0.3424782176 | C19: 156
A20: 19 | B20: 0.5022413528 | C20: 116
A21: 20 | B21: 0.9409922886 | C21: 12
A22: 21 | B22: 0.5130544196 | C22: 113
A23: 22 | B23: 0.329588218 | C23: 158
A24: 23 | B24: 0.4655473145 | C24: 125
A25: 24 | B25: 0.9759724381 | C25: 2
A26: 25 | B26: 0.7090890832 | C26: 72
A27: 26 | B27: 0.04522368822 | C27: 224
A28: 27 | B28: 0.03977193042 | C28: 225
A29: 28 | B29: 0.3175010317 | C29: 161
A30: 29 | B30: 0.6593002305 | C30: 81
A31: 30 | B31: 0.4585773256 | C31: 127
A32: 31 | B32: 0.2924046924 | C32: 171
A33: 32 | B33: 0.2416024443 | C33: 178
A34: 33 | B34: 0.677401362 | C34: 78
A35: 34 | B35: 0.7056605227 | C35: 75
A36: 35 | B36: 0.801496572 | C36: 42
A37: 36 | B37: 0.2127995835 | C37: 184
A38: 37 | B38: 0.3129494125 | C38: 163
A39: 38 | B39: 0.1511385232 | C39: 195
A40: 39 | B40: 0.2972109774 | C40: 168
A41: 40 | B41: 0.1460013423 | C41: 197
A42: 41 | B42: 0.9622693852 | C42: 6
A43: 42 | B43: 0.2434818732 | C43: 177
A44: 43 | B44: 0.5239464138 | C44: 108
A45: 44 | B45: 0.7607324445 | C45: 54
A46: 45 | B46: 0.5117518178 | C46: 115
A47: 46 | B47: 0.4042032629 | C47: 136
A48: 47 | B48: 0.08577218305 | C48: 214
A49: 48 | B49: 0.8074469329 | C49: 40
A50: 49 | B50: 0.2943523787 | C50: 169
A51: 50 | B51: 0.8829624029 | C51: 23
A52: 51 | B52: 0.5692102047 | C52: 103
A53: 52 | B53: 0.5237773801 | C53: 109
A54: 53 | B54: 0.07443821089 | C54: 218
A55: 54 | B55: 0.2926834365 | C55: 170
A56: 55 | B56: 0.3696050222 | C56: 146
A57: 56 | B57: 0.7152580873 | C57: 70
A58: 57 | B58: 0.07867986477 | C58: 215
A59: 58 | B59: 0.176230349 | C59: 188
A60: 59 | B60: 0.003652460573 | C60: 231
A61: 60 | B61: 0.344333643 | C61: 154
A62: 61 | B62: 0.6331862568 | C62: 87
A63: 62 | B63: 0.4017874679 | C63: 137
A64: 63 | B64: 0.1206102887 | C64: 205
A65: 64 | B65: 0.4616645707 | C65: 126
A66: 65 | B66: 0.3754868235 | C66: 144
A67: 66 | B67: =RAND() -> 0.5278391557 | C67: =RANK(B67,$B$2:$B$232) -> 107
A68: 67 | B68: 0.7754643745 | C68: 49
A69: 68 | B69: 0.3316166666 | C69: 157
A70: 69 | B70: 0.7678887614 | C70: 52
A71: 70 | B71: 0.8231910948 | C71: 36
A72: 71 | B72: 0.1268399397 | C72: 204
A73: 72 | B73: 0.8232908289 | C73: 35
A74: 73 | B74: 0.2765395919 | C74: 172
A75: 74 | B75: 0.8557327713 | C75: 30
A76: 75 | B76: 0.8741673899 | C76: 28
A77: 76 | B77: 0.4192225897 | C77: 133
A78: 77 | B78: 0.133320447 | C78: 202
A79: 78 | B79: 0.7180470858 | C79: 68
A80: 79 | B80: 0.3003799539 | C80: 165
A81: 80 | B81: 0.923746941 | C81: 15
A82: 81 | B82: 0.852172308 | C82: 31
A83: 82 | B83: 0.9451537369 | C83: 11
A84: 83 | B84: 0.8059710876 | C84: 41
A85: 84 | B85: 0.3429835834 | C85: 155
A86: 85 | B86: 0.14226712 | C86: 199
A87: 86 | B87: 0.6302327797 | C87: 88
A88: 87 | B88: 0.9363303241 | C88: 13
A89: 88 | B89: 0.6275344133 | C89: 90
A90: 89 | B90: 0.09387978347 | C90: 211
A91: 90 | B91: 0.7815151891 | C91: 48
A92: 91 | B92: 0.02903898858 | C92: 227
A93: 92 | B93: 0.7833229658 | C93: 47
A94: 93 | B94: 0.83564917 | C94: 33
A95: 94 | B95: 0.8767086897 | C95: 27
A96: 95 | B96: 0.7370005697 | C96: 63
A97: 96 | B97: 0.1670629887 | C97: 192
A98: 97 | B98: 0.2657318958 | C98: 173
A99: 98 | B99: 0.3546698619 | C99: 153
A100: 99 | B100: 0.2537150977 | C100: 176
A101: 100 | B101: 0.3649618218 | C101: 148
A102: 101 | B102: 0.35997991 | C102: 150
A103: 102 | B103: 0.07468453517 | C103: 217
A104: 103 | B104: 0.7488267823 | C104: 58
A105: 104 | B105: 0.1361682152 | C105: 200
A106: 105 | B106: 0.6476219379 | C106: 84
A107: 106 | B107: 0.7732615359 | C107: 51
A108: 107 | B108: 0.6980689164 | C108: 76
A109: 108 | B109: 0.1729547002 | C109: 191
A110: 109 | B110: 0.5843450055 | C110: 100
A111: 110 | B111: 0.3642025877 | C111: 149
A112: 111 | B112: 0.7908290026 | C112: 44
A113: 112 | B113: 0.7065712856 | C113: 74
A114: 113 | B114: 0.6607848145 | C114: 80
A115: 114 | B115: 0.208295874 | C115: 185
A116: 115 | B116: 0.9046412227 | C116: 21
A117: 116 | B117: 0.7477293091 | C117: 59
A118: 117 | B118: 0.02647035289 | C118: 228
A119: 118 | B119: 0.7558058297 | C119: 56
A120: 119 | B120: 0.008515301685 | C120: 230
A121: 120 | B121: 0.9228473116 | C121: 16
A122: 121 | B122: 0.2257579528 | C122: 182
A123: 122 | B123: 0.6813154909 | C123: 77
A124: 123 | B124: 0.8145881376 | C124: 39
A125: 124 | B125: 0.3212391718 | C125: 159
A126: 125 | B126: 0.7265243442 | C126: 67
A127: 126 | B127: 0.05428539922 | C127: 222
A128: 127 | B128: 0.5180793345 | C128: 110
A129: 128 | B129: 0.713222496 | C129: 71
A130: 129 | B130: 0.747219749 | C130: 60
A131: 130 | B131: =RAND() -> 0.7548796489 | C131: =RANK(B131,$B$2:$B$232) -> 57
A132: 131 | B132: 0.2624201909 | C132: 174
A133: 132 | B133: 0.9621513985 | C133: 7
A134: 133 | B134: 0.4431142497 | C134: 129
A135: 134 | B135: 0.6118743193 | C135: 95
A136: 135 | B136: 0.8230958758 | C136: 37
A137: 136 | B137: 0.5830838455 | C137: 101
A138: 137 | B138: 0.9983115219 | C138: 1
A139: 138 | B139: 0.7332189723 | C139: 66
A140: 139 | B140: 0.3143896588 | C140: 162
A141: 140 | B141: 0.3807273593 | C141: 143
A142: 141 | B142: 0.6512897234 | C142: 83
A143: 142 | B143: 0.7574072421 | C143: 55
A144: 143 | B144: 0.1743180967 | C144: 190
A145: 144 | B145: 0.5823745354 | C145: 102
A146: 145 | B146: 0.880676255 | C146: 24
A147: 146 | B147: 0.5497327633 | C147: 105
A148: 147 | B148: 0.4966271836 | C148: 117
A149: 148 | B149: 0.4956083717 | C149: 118
A150: 149 | B150: 0.05997637031 | C150: 220
A151: 150 | B151: 0.2622967641 | C151: 175
A152: 151 | B152: 0.9163940934 | C152: 18
A153: 152 | B153: 0.7833682045 | C153: 46
A154: 153 | B154: 0.4298728748 | C154: 132
A155: 154 | B155: 0.06835631708 | C155: 219
A156: 155 | B156: 0.8785833741 | C156: 25
A157: 156 | B157: 0.9646023151 | C157: 4
A158: 157 | B158: 0.3938837708 | C158: 138
A159: 158 | B159: 0.7406055702 | C159: 62
A160: 159 | B160: 0.01227336126 | C160: 229
A161: 160 | B161: 0.367407488 | C161: 147
A162: 161 | B162: 0.07827160317 | C162: 216
A163: 162 | B163: 0.0331024023 | C163: 226
A164: 163 | B164: 0.2311965806 | C164: 181
A165: 164 | B165: 0.7735233572 | C165: 50
A166: 165 | B166: 0.6019985173 | C166: 98
A167: 166 | B167: 0.609396326 | C167: 96
A168: 167 | B168: 0.3904123443 | C168: 139
A169: 168 | B169: 0.4690378638 | C169: 124
A170: 169 | B170: 0.5158796302 | C170: 111
A171: 170 | B171: 0.2182289174 | C171: 183
A172: 171 | B172: 0.4947098184 | C172: 119
A173: 172 | B173: 0.8165036056 | C173: 38
A174: 173 | B174: 0.7640959861 | C174: 53
A175: 174 | B175: 0.371491241 | C175: 145
A176: 175 | B176: 0.3809079133 | C176: 142
A177: 176 | B177: 0.1769490401 | C177: 187
A178: 177 | B178: 0.233456995 | C178: 180
A179: 178 | B179: 0.1441745342 | C179: 198
A180: 179 | B180: 0.859500877 | C180: 29
A181: 180 | B181: 0.3002820615 | C181: 166
A182: 181 | B182: 0.4894548422 | C182: 121
A183: 182 | B183: 0.4551114135 | C183: 128
A184: 183 | B184: 0.5491254216 | C184: 106
A185: 184 | B185: 0.6254582333 | C185: 91
A186: 185 | B186: 0.8862780684 | C186: 22
A187: 186 | B187: 0.9186107341 | C187: 17
A188: 187 | B188: 0.4301482329 | C188: 131
A189: 188 | B189: 0.1010803085 | C189: 209
A190: 189 | B190: 0.956195499 | C190: 9
A191: 190 | B191: 0.1048645131 | C191: 207
A192: 191 | B192: 0.146933003 | C192: 196
A193: 192 | B193: 0.6759582537 | C193: 79
A194: 193 | B194: 0.6063621763 | C194: 97
A195: 194 | B195: =RAND() -> 0.9711257688 | C195: =RANK(B195,$B$2:$B$232) -> 3
A196: 195 | B196: 0.13483145 | C196: 201
A197: 196 | B197: 0.7460373386 | C197: 61
A198: 197 | B198: 0.4725513389 | C198: 123
A199: 198 | B199: 0.5846547245 | C199: 99
A200: 199 | B200: 0.3179309406 | C200: 160
... 32 more rows
